Workbook

Sheet bdd1 (hidden)
A1: exclu | B1: perf_RA | C1: mode_prod | D1: profil | E1: an | F1: num | G1: UT | H1: UTF | I1: SFH | J1: UGBB | K1: UGBB_UT | L1: UGBB_SFH | M1: SFH_UT | N1: prod_bov_four_UGB | O1: prod_bov_UGB | P1: prod_four_UGB | Q1: chop_bov_four_UGB | R1: chop_bov_UGB | S1: alim_comp_UGB | T1: intra_conso_UGB | U1: alim_achetés_UGB | V1: vete_UGB | W1: autres_ChOP_UGB | X1: chop_four_UGB | Y1: Chg_MAT_R_SFH | Z1: Trav par tiers_SFH | AA1: Meca_SFH | AB1: Ch_Fonc_R_SFH | AC1: aides couplées_UGB | AD1: autres aides_UGB | AE1: MB_bov_four_UGB | AF1: RA_bov_four_UTF | AG1: RT_bov_four_UT | AH1: RA_UTF | AI1: CoutMOF_UTF | AJ1: DELTA | AK1: IVV | AL1: age_vel_prim | AM1: age_ref | AN1: Veaux_vie_100V | AO1: Veaux_vie_100VEL | AP1: Morts_100bov | AQ1: PM_VN | AR1: PM_tot | AS1: PM_M1a | AT1: Vente_M1a_nb | AU1: Vente_M1_2a_nb | AV1: Vente_Tx_GR_nb | AW1: PV_moy_VN | AX1: PV_moy_vx | AY1: PV_moy_M1a | AZ1: PV_moy_F1a | BA1: PV_moy_M1-2a | BB1: PV_moy_F1-2a | BC1: PV_moy_M2a | BD1: PV_moy_F2a | BE1: PV_moy_tx mg | BF1: PV_moy_tx gr | BG1: Poids_tx_gr | BH1: poids_moy_TX_gr | BI1: PV_KG_tx gras | BJ1: R_PRODBOVCF_PRODTOT | BK1: CoutMOF_UTF_act bov | BL1: trav_par_tiers_UGBB | BM1: Chg_Mat_R_UGBB | BN1: CHg_fonc_R_UGBB | BO1: Tx_ref | BP1: tx_renew | BQ1: Race
A2: non | B2: 1 | C2: conventionnel | D2: eleveur engraisseur | E2: 2024 | F2: 24204 | G2: 2 | H2: 2 | I2: 62.89 | J2: 162.56 | K2: 81.28 | L2: 2.584830657 | M2: 31.445 | N2: 1067.9 | O2: 1067.9 | P2: 0 | Q2: 783.5 | R2: 674.8 | S2: 542.7 | T2: 35.2 | U2: 507.5 | V2: 121.1 | W2: 11 | X2: 108.7 | Y2: 899.3979965 | Z2: 406.8650024 | AA2: 1306.262999 | AB2: 1010.087454 | AC2: 89.45989173 | AD2: 99.44470385 | AE2: 284.4 | AF2: -10774 | AG2: -29048.2 | AH2: -4731 | AI2: 48996.65 | AJ2: -59770.65 | AK2: 516 | AL2: 36 | AM2: 7 | AN2: 57.52 | AO2: 89.66 | AP2: 5.345394737 | AQ2: 90.4 | AR2: 243.2 | AS2: 31.6 | AT2: 1 | AU2: 27 | AV2: 28 | AW2: 3057.4375 | BA2: 2765.925926 | BD2: 2373.8 | BF2: 2684.571429 | BG2: 18043 | BH2: 644.3928571 | BI2: 4.166047775 | BJ2: 67.5 | BK2: 33072.73875 | BL2: 157.4048967 | BM2: 347.9523868 | BN2: 390.7750984 | BO2: 39 | BP2: 24 | BQ2: BBB
A3: non | B3: 1 | C3: conventionnel | D3: eleveur naisseur | E3: 2020 | F3: 54188 | G3: 1 | H3: 1 | I3: 13.22 | J3: 29.9 | K3: 29.9 | L3: 2.26172466 | M3: 13.22 | N3: 761.4 | O3: 761.4 | P3: 0 | Q3: 426.9 | R3: 344.7 | S3: 161.4 | T3: 0 | U3: 161.4 | V3: 124.6 | W3: 58.7 | X3: 82.3 | Y3: 416.9455371 | Z3: 138.6800303 | AA3: 555.6255673 | AB3: 312.6104387 | AC3: 150.106689 | AD3: 146.1374582 | AE3: 334.4 | AF3: 3332 | AG3: -964.7 | AH3: 2930 | AI3: 27660 | AJ3: -24328 | AK3: 397 | AL3: 34 | AM3: 4 | AN3: 139.241 | AO3: 100 | AP3: 4.192872117 | AQ3: 15.8 | AR3: 47.7 | AS3: 0.8 | AT3: 13 | AU3: 0 | AV3: 0 | AW3: 1599.642857 | AX3: 722.2307692 | AY3: 722.2307692 | BG3: 0 | BJ3: 93.9 | BK3: 25972.74 | BL3: 61.31605351 | BM3: 184.348495 | BN3: 138.2177258 | BO3: 95 | BP3: 76 | BQ3: BBB
A4: non | B4: 1 | C4: conventionnel | D4: eleveur naisseur | E4: 2021 | F4: 54188 | G4: 1 | H4: 1 | I4: 13.22 | J4: 27.62 | K4: 27.62 | L4: 2.089258699 | M4: 13.22 | N4: 793.6 | O4: 793.6 | P4: 0 | Q4: 433.5 | R4: 344.8 | S4: 147.8 | T4: 0 | U4: 147.8 | V4: 139.6 | W4: 57.4 | X4: 88.7 | Y4: 380.005295 | Z4: 121.4750378 | AA4: 501.4803328 | AB4: 318.473525 | AC4: 149.2375091 | AD4: 158.0463432 | AE4: 360.1 | AF4: 3242 | AG4: -899.6 | AH4: 2940 | AI4: 28211.99 | AJ4: -24969.99 | AK4: 396 | AL4: 34 | AM4: 4 | AN4: 137.4 | AO4: 100 | AP4: 4.784688995 | AQ4: 13.1 | AR4: 41.8 | AS4: 0.4 | AT4: 9 | AU4: 0 | AV4: 0 | AW4: 1662.875 | AX4: 778.8888889 | AY4: 778.8888889 | BG4: 0 | BJ4: 93.6 | BK4: 26406.42264 | BL4: 58.14265025 | BM4: 181.8852281 | BN4: 152.4337437 | BO4: 69 | BP4: 69 | BQ4: BBB
A5: non | B5: 1 | C5: conventionnel | D5: eleveur naisseur | E5: 2022 | F5: 54188 | G5: 1 | H5: 1 | I5: 13.3 | J5: 25.94 | K5: 25.94 | L5: 1.95037594 | M5: 13.3 | N5: 1268.8 | O5: 1268.8 | P5: 0 | Q5: 540.6 | R5: 378.1 | S5: 165.7 | T5: 0 | U5: 165.7 | V5: 133.3 | W5: 79.1 | X5: 162.5 | Y5: 467.8203008 | Z5: 82.70676692 | AA5: 550.5270677 | AB5: 328.4172932 | AC5: 160.0424056 | AD5: 170.7016191 | AE5: 728.2 | AF5: 10236 | AG5: 5997.1 | AH5: 9931 | AI5: 29657.02 | AJ5: -19421.02 | AK5: 385 | AL5: 34 | AM5: 4 | AN5: 159.09 | AO5: 100 | AP5: 0 | AQ5: 13.2 | AR5: 41.7 | AS5: 0.5 | AT5: 9 | AU5: 0 | AV5: 0 | AW5: 2264 | AX5: 779.2222222 | AY5: 779.2222222 | BG5: 0 | BJ5: 98.6 | BK5: 29241.82172 | BL5: 42.40555127 | BM5: 239.8616037 | BN5: 168.3866615 | BO5: 76 | BP5: 76 | BQ5: BBB
A6: non | B6: 2 | C6: conventionnel | D6: eleveur naisseur | E6: 2023 | F6: 54188 | G6: 1 | H6: 1 | I6: 13.3 | J6: 23.02 | K6: 23.02 | L6: 1.730827068 | M6: 13.3 | N6: 1533.4 | O6: 1533.4 | P6: 0 | Q6: 564.1 | R6: 455.6 | S6: 251.5 | T6: 0 | U6: 251.5 | V6: 140.8 | W6: 63.3 | X6: 108.5 | Y6: 413.2849624 | Z6: 83.83458647 | AA6: 497.1195489 | AB6: 300.8789474 | AC6: 139.5699392 | AD6: 224.5560382 | AE6: 969.3 | AF6: 16311 | AG6: 12094.5 | AH6: 16631 | AI6: 33435 | AJ6: -17124 | AK6: 385 | AL6: 34 | AM6: 4 | AN6: 154.55 | AO6: 100 | AP6: 0 | AQ6: 11 | AR6: 37.9 | AS6: 0.5 | AT6: 9 | AU6: 0 | AV6: 0 | AW6: 2450.615385 | AX6: 806.5555556 | AY6: 806.5555556 | BG6: 0 | BJ6: 96.1 | BK6: 32131.035 | BL6: 48.43614248 | BM6: 238.7788879 | BN6: 173.8353606 | BO6: 118 | BP6: 82 | BQ6: BBB
A7: non | B7: 1 | C7: conventionnel | D7: eleveur naisseur | E7: 2023 | F7: 54291 | G7: 1.17 | H7: 1.17 | I7: 21.83 | J7: 30.29 | K7: 25.88888889 | L7: 1.387540082 | M7: 18.65811966 | N7: 1041.7 | O7: 721.5 | P7: 320.2 | Q7: 586.1 | R7: 339.2 | S7: 150.9 | T7: 66.3 | U7: 84.6 | V7: 119.8 | W7: 68.5 | X7: 246.9 | Y7: 397.4805314 | Z7: 261.8598259 | AA7: 659.3403573 | AB7: 292.8900596 | AC7: 117.2367118 | AD7: 234.6954773 | AE7: 455.6 | AF7: 7005 | AG7: 2629.3 | AH7: 11842 | AI7: 43817.94872 | AJ7: -36812.94872 | AK7: 533 | AL7: 37 | AM7: 7 | AN7: 115.61 | AO7: 100 | AP7: 4.444444444 | AQ7: 17.3 | AR7: 45 | AS7: 2 | AT7: 6 | AU7: 0 | AV7: 0 | AW7: 1993.75 | AX7: 820 | AY7: 813.3333333 | BG7: 0 | BJ7: 59.9 | BK7: 26246.95128 | BL7: 188.7223506 | BM7: 286.4641796 | BN7: 211.0858369 | BO7: 58 | BP7: 40 | BQ7: BBB
A8: non | B8: 1 | C8: conventionnel | D8: eleveur naisseur | E8: 2024 | F8: 54291 | G8: 1.17 | H8: 1.17 | I8: 22.64 | J8: 30.88 | K8: 26.39316239 | L8: 1.363957597 | M8: 19.35042735 | N8: 850.7 | O8: 552.8 | P8: 297.9 | Q8: 562.1 | R8: 348.4 | S8: 178.7 | T8: 62.7 | U8: 116 | V8: 84.9 | W8: 84.8 | X8: 213.7 | Y8: 322.2663428 | Z8: 306.5680212 | AA8: 628.834364 | AB8: 308.5291519 | AC8: 98.56865285 | AD8: 240.8673888 | AE8: 288.7 | AF8: 2840 | AG8: -1713.2 | AH8: 2096 | AI8: 44368.37607 | AJ8: -41528.37607 | AK8: 460 | AL8: 38 | AM8: 7 | AN8: 82.42 | AO8: 88.24 | AP8: 9.049773756 | AQ8: 18.2 | AR8: 44.2 | AS8: 1.4 | AT8: 12 | AU8: 1 | AV8: 0 | AX8: 932.5 | AY8: 956.25 | BG8: 0 | BJ8: 63.5 | BK8: 28173.9188 | BL8: 224.763601 | BM8: 236.2729922 | BN8: 226.2014249 | BO8: 22 | BP8: 49 | BQ8: BBB
A9: non | B9: 2 | C9: conventionnel | D9: eleveur engraisseur | E9: 2020 | F9: 54334 | G9: 1.19 | H9: 1.19 | I9: 39.35 | J9: 104.84 | K9: 88.10084034 | L9: 2.66429479 | M9: 33.06722689 | N9: 1039.8 | O9: 1039.8 | P9: 0 | Q9: 727.1 | R9: 666.6 | S9: 505.5 | T9: 22.5 | U9: 483 | V9: 118.6 | W9: 42.5 | X9: 60.5 | Y9: 155.4271919 | Z9: 364.815756 | AA9: 520.2429479 | AB9: 630.4813215 | AC9: 120.5020031 | AD9: 100.2908858 | AE9: 312.7 | AF9: 18142 | AG9: 4898.9 | AH9: 39202 | AI9: 43748.7395 | AJ9: -25606.7395 | AK9: 460 | AL9: 38 | AM9: 5 | AN9: 108.235 | AO9: 100 | AP9: 1.795332136 | AQ9: 42.5 | AR9: 167.1 | AS9: 24.2 | AT9: 0 | AU9: 20 | AV9: 23 | AW9: 1874 | BA9: 2345.15 | BC9: 2511.777778 | BD9: 2018.6 | BF9: 2384.26087 | BG9: 17276 | BH9: 751.1304348 | BI9: 3.174230146 | BJ9: 68.3 | BK9: 29880.38908 | BL9: 136.9276994 | BM9: 58.33708508 | BN9: 236.6409767 | BO9: 82 | BP9: 45 | BQ9: BBB
A10: non | B10: 3 | C10: conventionnel | D10: eleveur naisseur | E10: 2022 | F10: 54386 | G10: 0.3 | H10: 0.3 | I10: 13.95 | J10: 24.4 | K10: 81.33333333 | L10: 1.749103943 | M10: 46.5 | N10: 1407.2 | O10: 1253.1 | P10: 154.1 | Q10: 554.4 | R10: 291 | S10: 173.9 | T10: 89.8 | U10: 84.1 | V10: 35.1 | W10: 82 | X10: 263.3 | Y10: 898.3003584 | Z10: 315.0917563 | AA10: 1213.392115 | AB10: 376.8738351 | AC10: 118.3606557 | AD10: 261.9254594 | AE10: 852.8 | AF10: 43741 | AG10: 32476.2 | AH10: 67000 | AI10: 48110.26667 | AJ10: -4369.266667 | AK10: 389 | AM10: 5 | AN10: 83.8 | AO10: 93.75 | AP10: 5.025125628 | AQ10: 17.9 | AR10: 39.8 | AS10: 6.4 | AT10: 12 | AU10: 0 | AV10: 0 | AY10: 1225 | BE10: 1266.230769 | BG10: 0 | BJ10: 70.3 | BK10: 33821.51747 | BL10: 180.1446721 | BM10: 513.577459 | BN10: 215.4668033 | BO10: 6 | BP10: 0 | BQ10: autres
A11: non | B11: 3 | C11: indetermine | D11: eleveur naisseur | E11: 2024 | F11: 54386 | G11: 0.3 | H11: 0.3 | I11: 17.27 | J11: 28 | K11: 93.33333333 | L11: 1.621308628 | M11: 57.56666667 | N11: 1155.9 | O11: 1058.7 | P11: 97.2 | Q11: 165.9 | R11: 163 | S11: 54.4 | T11: 38 | U11: 16.4 | V11: 44.4 | W11: 64.2 | X11: 2.9 | Y11: 742.4371743 | Z11: 236.5419803 | AA11: 978.9791546 | AB11: 469.6948466 | AC11: 138.9035714 | AD11: 460.6406179 | AE11: 990 | AF11: 76014 | AG11: 64105.7 | AH11: 82257 | AI11: 54920.33333 | AJ11: 21093.66667 | AK11: 397 | AL11: 39 | AM11: 8 | AN11: 82.97 | AO11: 90.48 | AP11: 11.03752759 | AQ11: 22.9 | AR11: 45.3 | AS11: 6.1 | AT11: 11 | AU11: 0 | AV11: 0 | AY11: 994.8181818 | BE11: 994.8181818 | BG11: 0 | BJ11: 83.3 | BK11: 45748.63767 | BL11: 145.8957143 | BM11: 457.9246429 | BN11: 289.7010714 | BO11: 4 | BP11: 4 | BQ11: autres
A12: non | B12: 1 | C12: biologique | D12: eleveur engraisseur | E12: 2022 | F12: 54389 | G12: 1 | H12: 1 | I12: 28.3 | J12: 47.43 | K12: 47.43 | L12: 1.675971731 | M12: 28.3 | N12: 1098.7 | O12: 1098.7 | P12: 0 | Q12: 374.7 | R12: 331.8 | S12: 228.6 | T12: 135.2 | U12: 93.4 | V12: 60.4 | W12: 42.8 | X12: 42.9 | Y12: 1015.305654 | Z12: 419.5314488 | AA12: 1434.837102 | AB12: 332.6293286 | AC12: 88.94602572 | AD12: 262.7521952 | AE12: 724 | AF12: 10030 | AG12: 365.7 | AH12: 14868 | AI12: 39542.69 | AJ12: -29512.69 | AK12: 393 | AL12: 30 | AM12: 8 | AN12: 98.84 | AO12: 97.14 | AP12: 7.874015748 | AQ12: 34.4 | AR12: 76.2 | AS12: 13.2 | AT12: 14 | AU12: 1 | AV12: 13 | AW12: 2332.875 | AY12: 1369.928571 | BE12: 1470 | BF12: 1688.461538 | BG12: 5657 | BH12: 435.1538461 | BI12: 3.880148489 | BJ12: 68 | BK12: 26889.0292 | BL12: 250.3213156 | BM12: 605.8011807 | BN12: 198.4695341 | BO12: 29 | BP12: 23 | BQ12: LI
A13: non | B13: 3 | C13: indetermine | D13: eleveur naisseur | E13: 2023 | F13: 54389 | G13: 1 | H13: 1 | I13: 35.3 | J13: 43.98 | K13: 43.98 | L13: 1.245892351 | M13: 35.3 | N13: 987.8 | O13: 987.8 | P13: 0 | Q13: 464.4 | R13: 266.6 | S13: 135.8 | T13: 65.7 | U13: 70.1 | V13: 67.1 | W13: 63.7 | X13: 197.7 | Y13: 821.0917847 | Z13: 618.027762 | AA13: 1439.119547 | AB13: 326.1733711 | AC13: 0 | AD13: 379.0084572 | AE13: 523.4 | AF13: 30004 | AG13: 22402.2 | AH13: 11583 | AI13: 44580 | AJ13: -14576 | AK13: 392 | AL13: 30 | AM13: 7 | AN13: 104.94 | AO13: 97.14 | AP13: 16.41586867 | AQ13: 32.4 | AR13: 73.1 | AS13: 10.7 | AT13: 10 | AU13: 1 | AV13: 1 | AW13: 2277.875 | AY13: 1216.1 | BE13: 1216.1 | BG13: 282 | BH13: 282 | BI13: 6.24822695 | BJ13: 50.8 | BK13: 22646.64 | BL13: 496.0522965 | BM13: 659.0391087 | BN13: 261.7989995 | BO13: 25 | BP13: 9 | BQ13: LI
A14: non | B14: 2 | C14: indetermine | D14: eleveur naisseur | E14: 2024 | F14: 54389 | G14: 1 | H14: 1 | I14: 33.95 | J14: 45.66 | K14: 45.66 | L14: 1.344918999 | M14: 33.95 | N14: 872.6 | O14: 872.6 | P14: 0 | Q14: 343 | R14: 283.3 | S14: 171.6 | T14: 93.6 | U14: 78 | V14: 48.1 | W14: 63.6 | X14: 59.7 | Y14: 871.3307806 | Z14: 384.9337261 | AA14: 1256.264507 | AB14: 313.3396171 | AC14: 0 | AD14: 48.90565507 | AE14: 529.7 | AF14: 1580 | AG14: -6140.3 | AH14: -9466 | AI14: 45140 | AJ14: -43560 | AK14: 384 | AL14: 29 | AM14: 8 | AN14: 104.9 | AO14: 100 | AP14: 10.75268817 | AQ14: 28.6 | AR14: 74.4 | AS14: 8.4 | AT14: 9 | AU14: 2 | AV14: 2 | AW14: 2128.125 | AY14: 1214 | BE14: 1214 | BG14: 750 | BH14: 375 | BI14: 4.077333333 | BJ14: 57.6 | BK14: 26000.64 | BL14: 286.2133158 | BM14: 647.868594 | BN14: 232.9802891 | BO14: 31 | BP14: 28 | BQ14: LI
A15: non | B15: 3 | C15: conventionnel | D15: eleveur engraisseur | E15: 2020 | F15: 56048 | G15: 1 | H15: 1 | I15: 53.08 | J15: 136.65 | K15: 136.65 | L15: 2.574415976 | M15: 53.08 | N15: 1071.5 | O15: 1071.5 | P15: 0 | Q15: 703.8 | R15: 604.3 | S15: 457.8 | T15: 48.1 | U15: 409.7 | V15: 100.7 | W15: 45.8 | X15: 99.5 | Y15: 218.5987001 | Z15: 274.6137905 | AA15: 493.2124906 | AB15: 202.4519405 | AC15: 68.12177095 | AD15: 116.1501231 | AE15: 367.7 | AF15: 40890 | AG15: 21728.7 | AH15: 55610 | AI15: 46100 | AJ15: -5210 | AK15: 422 | AL15: 31 | AM15: 5 | AN15: 103.164 | AO15: 101.351 | AP15: 3.90625 | AQ15: 72.7 | AR15: 230.4 | AS15: 30.9 | AT15: 15 | AU15: 26 | AV15: 23 | AW15: 2077.02381 | AY15: 1134.466667 | BA15: 2209.192308 | BD15: 1941.4 | BE15: 1428.928571 | BF15: 2224.608696 | BG15: 12372 | BH15: 537.9130435 | BI15: 4.135628839 | BJ15: 84.7 | BK15: 39046.7 | BL15: 106.6703256 | BM15: 84.91195756 | BN15: 78.63994877 | BO15: 59 | BP15: 47 | BQ15: BBB
A16: non | B16: 2 | C16: conventionnel | D16: eleveur naisseur | E16: 2020 | F16: 66276 | G16: 1 | H16: 1 | I16: 49.84 | J16: 51.14 | K16: 51.14 | L16: 1.026083467 | M16: 49.84 | N16: 767.1 | O16: 767.1 | P16: 0 | Q16: 375.2 | R16: 369 | S16: 183.9 | T16: 0 | U16: 183.9 | V16: 172.3 | W16: 12.8 | X16: 6.3 | Y16: 416.4524478 | Z16: 0 | AA16: 416.4524478 | AB16: 400.4560594 | AC16: 136.5199452 | AD16: 413.3946031 | AE16: 391.8 | AF16: 16438 | AG16: 5132 | AH16: 13150 | AI16: 47944 | AJ16: -31506 | AK16: 404 | AL16: 32 | AM16: 4 | AN16: 124.138 | AO16: 100 | AP16: 2.621231979 | AQ16: 29 | AR16: 76.3 | AS16: 1.1 | AT16: 17 | AU16: 0 | AV16: 0 | AW16: 1730.928571 | AX16: 720.4375 | AY16: 721.3529412 | BG16: 0 | BJ16: 82 | BK16: 39314.08 | BL16: 0 | BM16: 405.866054 | BN16: 390.2763004 | BO16: 52 | BP16: 38 | BQ16: BBB
A17: non | B17: 2 | C17: conventionnel | D17: eleveur naisseur | E17: 2021 | F17: 66276 | G17: 1 | H17: 1 | I17: 48.72 | J17: 48.6 | K17: 48.6 | L17: 0.9975369458 | M17: 48.72 | N17: 929.3 | O17: 929.3 | P17: 0 | Q17: 341.5 | R17: 329.5 | S17: 159.1 | T17: 0 | U17: 159.1 | V17: 157.5 | W17: 12.9 | X17: 12 | Y17: 503.6988916 | Z17: 0 | AA17: 503.6988916 | AB17: 407.5888752 | AC17: 148.4238683 | AD17: 430.9654321 | AE17: 587.8 | AF17: 20670 | AG17: 9875.6 | AH17: 17660 | AI17: 40832.15 | AJ17: -20162.15 | AK17: 384 | AL17: 32 | AM17: 5 | AN17: 108.55 | AO17: 100 | AP17: 2.721088435 | AQ17: 30.4 | AR17: 73.5 | AS17: 1.4 | AT17: 24 | AU17: 0 | AV17: 0 | AW17: 1968.5 | AX17: 786.4166667 | AY17: 786.4166667 | BG17: 0 | BJ17: 84.1 | BK17: 34339.83815 | BL17: 0 | BM17: 504.9425926 | BN17: 408.5952675 | BO17: 56 | BP17: 66 | BQ17: BBB
A18: non | B18: 2 | C18: conventionnel | D18: eleveur naisseur | E18: 2022 | F18: 66276 | G18: 1 | H18: 1 | I18: 48.26 | J18: 47.08 | K18: 47.08 | L18: 0.975549109 | M18: 48.26 | N18: 1228 | O18: 1228 | P18: 0 | Q18: 332.9 | R18: 332.9 | S18: 176.7 | T18: 0 | U18: 176.7 | V18: 141.1 | W18: 15.1 | X18: 0 | Y18: 535.973477 | Z18: 12.57355988 | AA18: 548.5470369 | AB18: 414.4983423 | AC18: 161.0237893 | AD18: 487.0424809 | AE18: 895.1 | AF18: 29207 | AG18: 18680.9 | AH18: 25984 | AI18: 46264.94 | AJ18: -17057.94 | AK18: 393 | AL18: 31 | AM18: 4 | AN18: 130.57 | AO18: 102.5 | AP18: 1.367989056 | AQ18: 31.4 | AR18: 73.1 | AS18: 0.7 | AT18: 16 | AU18: 0 | AV18: 0 | AW18: 2384.714286 | AX18: 790.2105263 | AY18: 803.3125 | BG18: 0 | BJ18: 94 | BK18: 43489.0436 | BL18: 12.88870008 | BM18: 549.4069669 | BN18: 424.8872133 | BO18: 45 | BP18: 51 | BQ18: autres
A19: non | B19: 2 | C19: conventionnel | D19: eleveur naisseur | E19: 2023 | F19: 66276 | G19: 1 | H19: 1 | I19: 45.43 | J19: 44.46 | K19: 44.46 | L19: 0.9786484702 | M19: 45.43 | N19: 1114 | O19: 1114 | P19: 0 | Q19: 317 | R19: 317 | S19: 127.6 | T19: 0 | U19: 127.6 | V19: 155.2 | W19: 34.2 | X19: 0 | Y19: 631.4767775 | Z19: 0 | AA19: 631.4767775 | AB19: 449.8994057 | AC19: 135.5537562 | AD19: 541.6833108 | AE19: 797 | AF19: 24310 | AG19: 14674 | AH19: 20981 | AI19: 48369.3 | AJ19: -24059.3 | AK19: 397 | AL19: 33 | AM19: 5 | AN19: 134.62 | AO19: 106.06 | AP19: 1.457725948 | AQ19: 26 | AR19: 68.6 | AS19: 1.3 | AT19: 16 | AU19: 0 | AV19: 0 | AW19: 2391.875 | AX19: 751.3125 | AY19: 787.875 | BG19: 0 | BJ19: 85.5 | BK19: 41355.7515 | BL19: 0 | BM19: 645.2539361 | BN19: 459.7150247 | BO19: 65 | BP19: 38 | BQ19: BBB
A20: non | B20: 1 | C20: biologique | D20: eleveur engraisseur | E20: 2020 | F20: 66300 | G20: 3 | H20: 3 | I20: 62.76 | J20: 109.96 | K20: 36.65333333 | L20: 1.752071383 | M20: 20.92 | N20: 463.5 | O20: 463.5 | P20: 0 | Q20: 356.7 | R20: 356.7 | S20: 300.3 | T20: 0 | U20: 300.3 | V20: 26.6 | W20: 29.8 | X20: 0 | Y20: 51.97833015 | Z20: 0 | AA20: 51.97833015 | AB20: 444.9431166 | AC20: 27.21107676 | AD20: 254.3714987 | AE20: 106.7 | AF20: 5250 | AG20: 2089.5 | AH20: 5651 | AI20: 27561.653 | AJ20: -22311.653 | AK20: 427 | AL20: 45 | AM20: 6 | AN20: 86.657 | AO20: 100 | AP20: 3.298515668 | AQ20: 71.9 | AR20: 181.9 | AS20: 29.1 | AT20: 1 | AU20: 20 | AV20: 0 | AW20: 980.625 | BA20: 738.15 | BB20: 653.7142857 | BD20: 560.4 | BE20: 745.6666667 | BG20: 0 | BJ20: 86 | BK20: 23703.02158 | BL20: 0 | BM20: 29.66678792 | BN20: 253.9526191 | BO20: 14 | BP20: 6 | BQ20: LI
A21: non | B21: 1 | C21: biologique | D21: intermediaire | E21: 2021 | F21: 66300 | G21: 3 | H21: 3 | I21: 62.74 | J21: 111.69 | K21: 37.23 | L21: 1.780204017 | M21: 20.91333333 | N21: 399.5 | O21: 399.5 | P21: 0 | Q21: 109.4 | R21: 109.4 | S21: 85 | T21: 0 | U21: 85 | V21: 2.8 | W21: 21.6 | X21: 0 | Y21: 66.40293274 | Z21: 20.40165763 | AA21: 86.80459037 | AB21: 447.7708001 | AC21: 27.67893276 | AD21: 249.6885128 | AE21: 290 | AF21: 11408 | AG21: 7915.6 | AH21: 11553 | AI21: 28111.67667 | AJ21: -16703.67667 | AK21: 467 | AL21: 33 | AM21: 0 | AN21: 67.59 | AO21: 100 | AP21: 8.537279454 | AQ21: 72.5 | AR21: 175.7 | AS21: 25.7 | AT21: 3 | AU21: 7 | AV21: 0 | BA21: 808.4285714 | BE21: 848.8 | BG21: 0 | BJ21: 84.5 | BK21: 23754.36678 | BL21: 11.46029188 | BM21: 37.30074313 | BN21: 251.5278002 | BO21: 7 | BP21: 11 | BQ21: LI
A22: non | B22: 2 | C22: biologique | D22: eleveur engraisseur | E22: 2020 | F22: 66305 | G22: 2.11 | H22: 2.11 | I22: 69.56 | J22: 53.48 | K22: 25.34597156 | L22: 0.7688326624 | M22: 32.96682464 | N22: 955 | O22: 955 | P22: 0 | Q22: 254.7 | R22: 229.2 | S22: 113.1 | T22: 0 | U22: 113.1 | V22: 56.5 | W22: 59.6 | X22: 25.5 | Y22: 401.2307361 | Z22: 38.34976998 | AA22: 439.580506 | AB22: 256.0439764 | AC22: 99.46409873 | AD22: 767.1260284 | AE22: 700.3 | AF22: 21642 | AG22: 15427.4 | AH22: 20962 | AI22: 39327.01422 | AJ22: -17685.01422 | AK22: 383 | AL22: 33 | AM22: 10 | AN22: 94.972 | AO22: 103.03 | AP22: 1.098901099 | AQ22: 35.8 | AR22: 91 | AS22: 13.8 | AT22: 11 | AU22: 5 | AV22: 13 | AW22: 1551.5 | AY22: 1502.636364 | BA22: 1839 | BB22: 1262.166667 | BF22: 1555.692308 | BG22: 3584 | BH22: 275.6923077 | BI22: 5.642857143 | BJ22: 85.6 | BK22: 33663.92417 | BL22: 49.88051608 | BM22: 521.8700449 | BN22: 333.0295251 | BO22: 28 | BP22: 8 | BQ22: LI
A23: non | B23: 3 | C23: biologique | D23: intermediaire | E23: 2021 | F23: 66305 | G23: 2.11 | H23: 2.11 | I23: 107.44 | J23: 55.57 | K23: 26.33649289 | L23: 0.5172189129 | M23: 50.91943128 | N23: 1060.3 | O23: 1060.3 | P23: 0 | Q23: 343.2 | R23: 343.2 | S23: 119.9 | T23: 0 | U23: 119.9 | V23: 63 | W23: 160.3 | X23: 0 | Y23: 188.5381608 | Z23: 31.05398362 | AA23: 219.5921445 | AB23: 263.0194527 | AC23: 117.4448443 | AD23: 1004.711175 | AE23: 717.1 | AF23: 28942 | AG23: 22753 | AH23: 28712 | AI23: 40111.83412 | AJ23: -11169.83412 | AK23: 382 | AL23: 32 | AM23: 6 | AN23: 114.91 | AO23: 102.78 | AP23: 1.055966209 | AQ23: 32.2 | AR23: 94.7 | AS23: 15.3 | AT23: 13 | AU23: 9 | AV23: 8 | AW23: 1921.857143 | AY23: 1447.307692 | AZ23: 1118.2 | BA23: 1700 | BE23: 1543.461538 | BF23: 1568.75 | BG23: 2513 | BH23: 314.125 | BI23: 4.994031039 | BJ23: 86.4 | BK23: 34656.62468 | BL23: 60.04030952 | BM23: 364.522944 | BN23: 508.5263631 | BO23: 22 | BP23: 34 | BQ23: LI
A24: non | B24: 2 | C24: biologique | D24: eleveur engraisseur | E24: 2022 | F24: 66305 | G24: 2.11 | H24: 2.11 | I24: 117.52 | J24: 60.2 | K24: 28.53080569 | L24: 0.5122532335 | M24: 55.69668246 | N24: 1151.3 | O24: 1151.3 | P24: 0 | Q24: 185.9 | R24: 185.9 | S24: 43.1 | T24: 0 | U24: 43.1 | V24: 57.4 | W24: 85.4 | X24: 0 | Y24: 191.5015317 | Z24: 34.97149421 | AA24: 226.4730259 | AB24: 247.745405 | AC24: 119.9335548 | AD24: 919.2901993 | AE24: 965.4 | AF24: 34169 | AG24: 27744.8 | AH24: 32812 | AI24: 42166.37441 | AJ24: -7997.374408 | AK24: 381 | AL24: 30 | AM24: 9 | AN24: 102.83 | AO24: 100 | AP24: 4.081632653 | AQ24: 38.9 | AR24: 98 | AS24: 16.3 | AT24: 8 | AU24: 8 | AV24: 11 | AW24: 2349 | AY24: 1732 | BA24: 1979.625 | BB24: 1491.5 | BE24: 2690 | BF24: 1476.636364 | BG24: 2970 | BH24: 270 | BI24: 5.469023569 | BJ24: 94.9 | BK24: 40015.88931 | BL24: 68.26993355 | BM24: 373.8415282 | BN24: 483.6385382 | BO24: 26 | BP24: 41 | BQ24: LI
A25: non | B25: 2 | C25: biologique | D25: eleveur engraisseur | E25: 2023 | F25: 66305 | G25: 1.77 | H25: 1.77 | I25: 118.7 | J25: 59.15 | K25: 33.4180791 | L25: 0.49831508 | M25: 67.06214689 | N25: 1018.4 | O25: 1018.4 | P25: 0 | Q25: 274 | R25: 273.9 | S25: 123.6 | T25: 0 | U25: 123.6 | V25: 62.9 | W25: 87.4 | X25: 0.2 | Y25: 259.2551811 | Z25: 23.50463353 | AA25: 282.7598147 | AB25: 214.3222409 | AC25: 120.0710059 | AD25: 1125.319696 | AE25: 744.4 | AF25: 35095 | AG25: 27833.5 | AH25: 33392 | AI25: 44957.79661 | AJ25: -9862.79661 | AK25: 391 | AL25: 34 | AM25: 5 | AN25: 86.61 | AO25: 94.29 | AP25: 4.970178926 | AQ25: 38.1 | AR25: 100.6 | AS25: 20.1 | AT25: 14 | AU25: 2 | AV25: 15 | AW25: 2169 | AY25: 1747.071429 | BF25: 1737.133333 | BG25: 4978 | BH25: 331.8666667 | BI25: 5.234431499 | BJ25: 95.2 | BK25: 42799.82237 | BL25: 47.1682164 | BM25: 520.2635672 | BN25: 430.0938292 | BO25: 31 | BP25: 21 | BQ25: LI
A26: non | B26: 1 | C26: biologique | D26: eleveur naisseur | E26: 2024 | F26: 66305 | G26: 3.17 | H26: 3.17 | I26: 97.15 | J26: 67.22 | K26: 21.20504732 | L26: 0.6919197118 | M26: 30.6466877 | N26: 1173.3 | O26: 1173.3 | P26: 0 | Q26: 343.2 | R26: 331.3 | S26: 154.3 | T26: 0 | U26: 154.3 | V26: 64.5 | W26: 112.5 | X26: 11.9 | Y26: 496.0556871 | Z26: 18.00669068 | AA26: 514.0623778 | AB26: 287.9572826 | AC26: 138.3591193 | AD26: 1078.197858 | AE26: 830 | AF26: 26063 | AG26: 21827 | AH26: 22663 | AI26: 25631.54574 | AJ26: 431.4542587 | AK26: 396 | AL26: 28 | AM26: 6 | AN26: 105.14 | AO26: 104.65 | AP26: 1.790510295 | AQ26: 42.8 | AR26: 111.7 | AS26: 14.3 | AT26: 11 | AU26: 11 | AV26: 7 | AW26: 2406.5 | AY26: 1812.181818 | BA26: 2737.181818 | BE26: 2396.6 | BF26: 2013.428571 | BG26: 2209 | BH26: 315.5714286 | BI26: 6.380262562 | BJ26: 78.3 | BK26: 20069.50032 | BL26: 26.02424874 | BM26: 716.9266587 | BN26: 416.1715263 | BO26: 19 | BP26: 26 | BQ26: LI
A27: non | B27: 2 | C27: biologique | D27: eleveur naisseur | E27: 2020 | F27: 66313 | G27: 1 | H27: 1 | I27: 45.87 | J27: 61.69 | K27: 61.69 | L27: 1.344887726 | M27: 45.87 | N27: 671.2 | O27: 620.2 | P27: 51 | Q27: 313.4 | R27: 184 | S27: 47.8 | T27: 32.9 | U27: 14.9 | V27: 102.6 | W27: 33.6 | X27: 129.4 | Y27: 244.3590582 | Z27: 294.5661652 | AA27: 538.9252235 | AB27: 307.3653586 | AC27: 110.4781974 | AD27: 388.9508272 | AE27: 357.8 | AF27: 28408 | AG27: 22841.4 | AH27: 33513 | AI27: 54398 | AJ27: -25990 | AK27: 366 | AL27: 34 | AM27: 6 | AN27: 94.086 | AO27: 89.744 | AP27: 6.802721088 | AQ27: 37.2 | AR27: 102.9 | AS27: 14.7 | AT27: 15 | AU27: 3 | AV27: 0 | AW27: 1298.368421 | AY27: 759.1333333 | BB27: 854 | BE27: 778.3529412 | BG27: 0 | BJ27: 65.7 | BK27: 35739.486 | BL27: 219.0265845 | BM27: 181.6947641 | BN27: 228.5435079 | BO27: 51 | BP27: 27 | BQ27: LI
A28: non | B28: 2 | C28: biologique | D28: eleveur naisseur | E28: 2021 | F28: 66313 | G28: 1 | H28: 1 | I28: 46.73 | J28: 63.08 | K28: 63.08 | L28: 1.349882303 | M28: 46.73 | N28: 732.4 | O28: 732.4 | P28: 0 | Q28: 258.9 | R28: 159.8 | S28: 14.8 | T28: 0 | U28: 14.8 | V28: 122.8 | W28: 22.2 | X28: 99.1 | Y28: 442.1848919 | Z28: 251.0164776 | AA28: 693.2013696 | AB28: 238.9783865 | AC28: 114.3532023 | AD28: 421.393862 | AE28: 473.5 | AF28: 26051 | AG28: 19090.4 | AH28: 21243 | AI28: 56423.98 | AJ28: -30372.98 | AK28: 369 | AL28: 33 | AM28: 7 | AN28: 110.59 | AO28: 92.16 | AP28: 6.822612086 | AQ28: 42.5 | AR28: 102.6 | AS28: 12.1 | AT28: 21 | AU28: 0 | AV28: 0 | AW28: 1536.666667 | AY28: 889.9047619 | BE28: 889.9047619 | BG28: 0 | BJ28: 84.9 | BK28: 47903.95902 | BL28: 185.9543437 | BM28: 327.5729233 | BN28: 177.0364616 | BO28: 21 | BP28: 26 | BQ28: LI
A29: non | B29: 2 | C29: biologique | D29: eleveur naisseur | E29: 2023 | F29: 66313 | G29: 1 | H29: 1 | I29: 53.32 | J29: 71 | K29: 71 | L29: 1.331582896 | M29: 53.32 | N29: 835 | O29: 835 | P29: 0 | Q29: 300 | R29: 205.6 | S29: 86.2 | T29: 49.2 | U29: 37 | V29: 94.8 | W29: 24.6 | X29: 94.4 | Y29: 215.6494749 | Z29: 248.8636534 | AA29: 464.5131283 | AB29: 217.7164291 | AC29: 142.9014085 | AD29: 404.4247887 | AE29: 535 | AF29: 40035 | AG29: 31778.3 | AH29: 33160 | AI29: 65755.5 | AJ29: -25720.5 | AK29: 371 | AL29: 34 | AM29: 6 | AN29: 99.59 | AO29: 96 | AP29: 2.610966057 | AQ29: 48.2 | AR29: 114.9 | AS29: 17 | AT29: 23 | AU29: 0 | AV29: 0 | AW29: 1983.307692 | AY29: 1049.695652 | BE29: 1097.363636 | BG29: 0 | BJ29: 98.6 | BK29: 64834.923 | BL29: 186.8930986 | BM29: 161.9497183 | BN29: 163.5019718 | BO29: 29 | BP29: 27 | BQ29: LI
A30: non | B30: 3 | C30: biologique | D30: eleveur naisseur | E30: 2024 | F30: 66313 | G30: 1 | H30: 1 | I30: 52.88 | J30: 71.27 | K30: 71.27 | L30: 1.347768533 | M30: 52.88 | N30: 844.2 | O30: 844.2 | P30: 0 | Q30: 139.5 | R30: 118.5 | S30: 18.8 | T30: 0 | U30: 18.8 | V30: 78.7 | W30: 21 | X30: 21 | Y30: 275.2100983 | Z30: 204.2312784 | AA30: 479.4413767 | AB30: 238.15677 | AC30: 149.4780413 | AD30: 489.76415 | AE30: 704.7 | AF30: 60791 | AG30: 52135.8 | AH30: 57147 | AI30: 66581.5 | AJ30: -5790.5 | AK30: 362 | AL30: 35 | AM30: 6 | AN30: 105.59 | AO30: 94.44 | AP30: 6.908462867 | AQ30: 48.3 | AR30: 115.8 | AS30: 15.9 | AT30: 29 | AU30: 0 | AV30: 0 | AW30: 1695.076923 | AY30: 1155.862069 | AZ30: 727.3333333 | BB30: 855.375 | BE30: 1188.714286 | BG30: 0 | BJ30: 94.8 | BK30: 63119.262 | BL30: 151.532903 | BM30: 204.196857 | BN30: 176.704504 | BO30: 29 | BP30: 31 | BQ30: LI
A31: non | B31: 3 | C31: conventionnel | D31: eleveur engraisseur | E31: 2022 | F31: 66327 | G31: 2 | H31: 2 | I31: 97.13 | J31: 231.42 | K31: 115.71 | L31: 2.382580047 | M31: 48.565 | N31: 1596.9 | O31: 1596.9 | P31: 0 | Q31: 856.5 | R31: 762.9 | S31: 616.2 | T31: 74.2 | U31: 542 | V31: 114.8 | W31: 31.9 | X31: 93.5 | Y31: 569.6959745 | Z31: 76.71615361 | AA31: 646.4121281 | AB31: 441.7047256 | AC31: 133.3743842 | AD31: 127.1498142 | AE31: 740.5 | AF31: 57401 | AG31: 41958 | AH31: 57042 | AI31: 71176.84 | AJ31: -13775.84 | AK31: 386 | AL31: 31 | AM31: 6 | AN31: 100.17 | AO31: 99.15 | AP31: 4.095213719 | AQ31: 115.7 | AR31: 390.7 | AS31: 59.2 | AT31: 0 | AU31: 71 | AV31: 71 | AW31: 2979.636364 | BA31: 2924.859155 | BB31: 1779.4 | BC31: 3525.6 | BD31: 2460.4 | BF31: 2985.830986 | BG31: 52618 | BH31: 741.0985916 | BI31: 4.028925463 | BJ31: 100 | BK31: 71176.84 | BL31: 32.19877279 | BM31: 239.1088497 | BN31: 185.389249 | BO31: 41 | BP31: 35 | BQ31: BBB
A32: non | B32: 3 | C32: conventionnel | D32: eleveur engraisseur | E32: 2023 | F32: 66327 | G32: 2 | H32: 2 | I32: 97.03 | J32: 217.74 | K32: 108.87 | L32: 2.244048233 | M32: 48.515 | N32: 1554.7 | O32: 1554.7 | P32: 0 | Q32: 852 | R32: 749.3 | S32: 579.5 | T32: 0 | U32: 579.5 | V32: 130 | W32: 39.8 | X32: 102.7 | Y32: 612.433165 | Z32: 99.2243636 | AA32: 711.6575286 | AB32: 432.825724 | AC32: 112.609075 | AD32: 110.5955268 | AE32: 702.7 | AF32: 42842 | AG32: 28192.9 | AH32: 44078 | AI32: 80021.1 | AJ32: -37179.1 | AK32: 393 | AL32: 33 | AM32: 5 | AN32: 118.1 | AO32: 99.19 | AP32: 6.343077772 | AQ32: 103.3 | AR32: 362.6 | AS32: 55.4 | AT32: 0 | AU32: 55 | AV32: 55 | AW32: 2759.886792 | BA32: 2903.963636 | BD32: 1919.727273 | BF32: 2935.181818 | BG32: 38699 | BH32: 703.6181818 | BI32: 4.171554821 | BJ32: 96.6 | BK32: 77300.3826 | BL32: 44.21668044 | BM32: 272.9144392 | BN32: 192.877193 | BO32: 54 | BP32: 46 | BQ32: BBB
A33: non | B33: 2 | C33: conventionnel | D33: eleveur engraisseur | E33: 2024 | F33: 66327 | G33: 2 | H33: 2 | I33: 97 | J33: 215.21 | K33: 107.605 | L33: 2.218659794 | M33: 48.5 | N33: 1414.3 | O33: 1414.3 | P33: 0 | Q33: 691.8 | R33: 629.4 | S33: 476.5 | T33: 0 | U33: 476.5 | V33: 121.9 | W33: 31 | X33: 62.5 | Y33: 655.7080412 | Z33: 119.7350515 | AA33: 775.4430928 | AB33: 440.3929897 | AC33: 113.9329027 | AD33: 158.6377492 | AE33: 722.5 | AF33: 47483 | AG33: 32835.4 | AH33: 45518 | AI33: 76286.6 | AJ33: -28803.6 | AK33: 375 | AL33: 34 | AM33: 5 | AN33: 117.82 | AO33: 94.62 | AP33: 5.572582892 | AQ33: 104.4 | AR33: 358.9 | AS33: 62.8 | AT33: 0 | AU33: 42 | AV33: 42 | AW33: 2783.820513 | BA33: 3251.285714 | BD33: 2170.666667 | BF33: 3333.047619 | BG33: 32602 | BH33: 776.2380952 | BI33: 4.293847003 | BJ33: 97.4 | BK33: 74303.1484 | BL33: 53.96728777 | BM33: 295.5424004 | BN33: 198.4950513 | BO33: 42 | BP33: 51 | BQ33: BBB
A34: non | B34: 2 | C34: conventionnel | D34: eleveur naisseur | E34: 2024 | F34: 66331 | G34: 1 | H34: 1 | I34: 67 | J34: 78.03 | K34: 78.03 | L34: 1.164626866 | M34: 67 | N34: 902.7 | O34: 902.7 | P34: 0 | Q34: 83.7 | R34: 77.8 | S34: 44.1 | T34: 0 | U34: 44.1 | V34: 11.9 | W34: 21.8 | X34: 6 | Y34: 254.3668657 | Z34: 123.1343284 | AA34: 377.501194 | AB34: 407.8065672 | AC34: 140.8624888 | AD34: 359.8546713 | AE34: 819 | AF34: 51746 | AG34: 41595.5 | AH34: 48739 | AI34: 46832.75 | AJ34: 4913.25 | AK34: 443 | AL34: 34 | AM34: 4 | AN34: 89.74 | AO34: 100 | AP34: 14.71790679 | AQ34: 54.6 | AR34: 122.3 | AS34: 15.5 | AT34: 25 | AU34: 0 | AV34: 0 | AW34: 2055.136364 | AX34: 559.4285714 | AY34: 1036.68 | BE34: 1149.6 | BG34: 0 | BJ34: 95.2 | BK34: 44584.778 | BL34: 105.7285659 | BM34: 218.4106113 | BN34: 350.1607074 | BO34: 40 | BP34: 49 | BQ34: BBB
A35: non | B35: 1 | C35: biologique | D35: intermediaire | E35: 2020 | F35: 68099 | G35: 1.16 | H35: 1.16 | I35: 47.37 | J35: 38.45 | K35: 33.14655172 | L35: 0.8116951657 | M35: 40.8362069 | N35: 649.5 | O35: 649.5 | P35: 0 | Q35: 258 | R35: 167.4 | S35: 35 | T35: 0 | U35: 35 | V35: 79.5 | W35: 52.9 | X35: 90.6 | Y35: 69.91576947 | Z35: 236.0882415 | AA35: 306.004011 | AB35: 209.882415 | AC35: 0 | AD35: 719.7370611 | AE35: 391.5 | AF35: 16742 | AG35: 6552.7 | AH35: 15322 | AI35: 32382.0681 | AJ35: -15640.0681 | AK35: 379 | AM35: 7 | AN35: 93.525 | AO35: 104 | AP35: 6.472491909 | AQ35: 27.8 | AR35: 61.8 | AS35: 11.6 | AT35: 1 | AU35: 1 | AV35: 1 | AZ35: 804.25 | BG35: 748 | BH35: 748 | BI35: 1.203208556 | BJ35: 94.5 | BK35: 30601.05436 | BL35: 290.8582575 | BM35: 86.13550065 | BN35: 258.5729519 | BO35: 11 | BP35: 0 | BQ35: autres
A36: non | B36: 2 | C36: biologique | D36: intermediaire | E36: 2021 | F36: 68099 | G36: 1.16 | H36: 1.16 | I36: 47.38 | J36: 42.36 | K36: 36.51724138 | L36: 0.8940481216 | M36: 40.84482759 | N36: 584.3 | O36: 584.3 | P36: 0 | Q36: 196.3 | R36: 190.7 | S36: 78.3 | T36: 0 | U36: 78.3 | V36: 63.5 | W36: 48.9 | X36: 5.5 | Y36: 73.27311102 | Z36: 245.7365977 | AA36: 319.0097087 | AB36: 207.6097509 | AC36: 0 | AD36: 653.7207271 | AE36: 388 | AF36: 20958 | AG36: 12035.6 | AH36: 20055 | AI36: 33041.85345 | AJ36: -12083.85345 | AK36: 386 | AL36: 29 | AM36: 10 | AN36: 92.44 | AO36: 91.67 | AP36: 8.78477306 | AQ36: 23.8 | AR36: 68.3 | AS36: 7.5 | AT36: 0 | AU36: 5 | AV36: 0 | BA36: 1271.4 | BC36: 1970.6 | BE36: 1421.166667 | BG36: 0 | BJ36: 80.2 | BK36: 26499.56647 | BL36: 274.8583569 | BM36: 81.9565628 | BN36: 232.2131728 | BO36: 21 | BP36: 8 | BQ36: autres
A37: non | B37: 1 | C37: biologique | D37: intermediaire | E37: 2022 | F37: 68099 | G37: 1.2 | H37: 1.2 | I37: 47.37 | J37: 44.47 | K37: 37.05833333 | L37: 0.9387798185 | M37: 39.475 | N37: 696.8 | O37: 696.8 | P37: 0 | Q37: 303 | R37: 229.8 | S37: 114.8 | T37: 0 | U37: 114.8 | V37: 64.2 | W37: 50.8 | X37: 73.3 | Y37: 109.5201604 | Z37: 234.7014988 | AA37: 344.2216593 | AB37: 211.9742453 | AC37: 0 | AD37: 627.6258152 | AE37: 393.8 | AF37: 16946 | AG37: 7381.6 | AH37: 15544 | AI37: 34270.33333 | AJ37: -17324.33333 | AK37: 374 | AM37: 0 | AN37: 95.83 | AO37: 100 | AP37: 2.88184438 | AQ37: 24 | AR37: 69.4 | AS37: 8.6 | AT37: 0 | AU37: 0 | AV37: 0 | BB37: 991 | BC37: 2020.875 | BE37: 1958.666667 | BG37: 0 | BJ37: 94.8 | BK37: 32488.276 | BL37: 250.006971 | BM37: 116.6622442 | BN37: 225.7976164 | BO37: 0 | BP37: 0 | BQ37: autres
A38: non | B38: 1 | C38: biologique | D38: intermediaire | E38: 2023 | F38: 68099 | G38: 1.24 | H38: 1.24 | I38: 47.34 | J38: 47.87 | K38: 38.60483871 | L38: 1.011195606 | M38: 38.17741935 | N38: 553.5 | O38: 553.5 | P38: 0 | Q38: 263.5 | R38: 263.5 | S38: 124.2 | T38: 0 | U38: 124.2 | V38: 61.1 | W38: 78.2 | X38: 0 | Y38: 121.4738065 | Z38: 257.5492184 | AA38: 379.0230249 | AB38: 211.8588931 | AC38: 88.31209526 | AD38: 612.018592 | AE38: 290 | AF38: 20013 | AG38: 11681.7 | AH38: 18885 | AI38: 37389.67742 | AJ38: -17376.67742 | AK38: 376 | AL38: 36 | AM38: 0 | AN38: 92.2 | AO38: 96.3 | AP38: 8.275862069 | AQ38: 28.2 | AR38: 72.5 | AS38: 14.6 | AT38: 0 | AU38: 3 | AV38: 0 | AZ38: 1088.777778 | BG38: 0 | BJ38: 81.2 | BK38: 30360.41806 | BL38: 254.697723 | BM38: 120.1288907 | BN38: 209.5132651 | BO38: 4 | BP38: 21 | BQ38: autres
A39: non | B39: 2 | C39: biologique | D39: intermediaire | E39: 2024 | F39: 68099 | G39: 1.19 | H39: 1.19 | I39: 47.28 | J39: 50.69 | K39: 42.59663866 | L39: 1.072123519 | M39: 39.73109244 | N39: 781.8 | O39: 781.8 | P39: 0 | Q39: 270.7 | R39: 237.2 | S39: 128.2 | T39: 0 | U39: 128.2 | V39: 57.5 | W39: 51.5 | X39: 33.5 | Y39: 104.7593063 | Z39: 248.5617597 | AA39: 353.321066 | AB39: 225.4591794 | AC39: 80.06312882 | AD39: 625.1079108 | AE39: 511.1 | AF39: 31958 | AG39: 21791.5 | AH39: 29622 | AI39: 37932.77311 | AJ39: -5974.773109 | AK39: 409 | AL39: 39 | AM39: 4 | AN39: 87.88 | AO39: 93.55 | AP39: 5.13478819 | AQ39: 33 | AR39: 77.9 | AS39: 14.4 | AT39: 0 | AU39: 4 | AV39: 0 | AZ39: 1132 | BC39: 2131.714286 | BG39: 0 | BJ39: 91.5 | BK39: 34708.48739 | BL39: 231.8405997 | BM39: 97.71197475 | BN39: 210.2921681 | BO39: 6 | BP39: 18 | BQ39: autres
A40: non | B40: 2 | C40: conventionnel | D40: eleveur engraisseur | E40: 2020 | F40: 68124 | G40: 1.02 | H40: 1 | I40: 50.7 | J40: 68.66 | K40: 67.31372549 | L40: 1.354240631 | M40: 49.70588235 | N40: 1222.3 | O40: 1222.3 | P40: 0 | Q40: 613 | R40: 553.1 | S40: 380 | T40: 0 | U40: 380 | V40: 138.5 | W40: 34.6 | X40: 59.9 | Y40: 499.7256213 | Z40: 13.49112426 | AA40: 513.2167456 | AB40: 173.8863905 | AC40: 46 | AD40: 222.2917274 | AE40: 609.3 | AF40: 23192 | AG40: 7285.3 | AH40: 25508 | AI40: 35958 | AJ40: -12766 | AK40: 383 | AL40: 31 | AM40: 5 | AN40: 131.646 | AO40: 98.113 | AP40: 1.734605377 | AQ40: 39.5 | AR40: 115.3 | AS40: 14.3 | AT40: 15 | AU40: 12 | AV40: 12 | AW40: 1958.076923 | AX40: 705.1111111 | AY40: 939.8666667 | BA40: 2455.25 | BE40: 1292 | BF40: 2455.25 | BG40: 9052 | BH40: 754.3333333 | BI40: 3.254860804 | BJ40: 92.4 | BK40: 33225.192 | BL40: 9.962132246 | BM40: 369.0079959 | BN40: 128.4013982 | BO40: 33 | BP40: 56 | BQ40: BBB
A41: non | B41: 2 | C41: conventionnel | D41: eleveur engraisseur | E41: 2021 | F41: 68124 | G41: 1.01 | H41: 1 | I41: 50.26 | J41: 67.18 | K41: 66.51485149 | L41: 1.336649423 | M41: 49.76237624 | N41: 1512.9 | O41: 1512.9 | P41: 0 | Q41: 865.3 | R41: 758 | S41: 493.7 | T41: 0 | U41: 493.7 | V41: 159.1 | W41: 105.2 | X41: 107.2 | Y41: 428.7865101 | Z41: 193.3197374 | AA41: 622.1062475 | AB41: 176.8066057 | AC41: 48.57398035 | AD41: 226.8953558 | AE41: 647.7 | AF41: 19694 | AG41: 4045.2 | AH41: 21725 | AI41: 37615.98 | AJ41: -17921.98 | AK41: 373 | AL41: 30 | AM41: 5 | AN41: 140.16 | AO41: 98.11 | AP41: 5.902192243 | AQ41: 37.1 | AR41: 118.6 | AS41: 18.7 | AT41: 9 | AU41: 11 | AV41: 4 | AW41: 2374.7 | AY41: 1126.777778 | BA41: 2674.636364 | BE41: 2150.454545 | BG41: 2952 | BH41: 738 | BI41: 3.550813008 | BJ41: 94.4 | BK41: 35509.48512 | BL41: 144.6300982 | BM41: 320.7920512 | BN41: 132.275975 | BO41: 89 | BP41: 46 | BQ41: BBB
A42: non | B42: 2 | C42: conventionnel | D42: eleveur engraisseur | E42: 2022 | F42: 68124 | G42: 1.01 | H42: 1.01 | I42: 50.25 | J42: 67.55 | K42: 66.88118812 | L42: 1.344278607 | M42: 49.75247525 | N42: 1429.2 | O42: 1429.2 | P42: 0 | Q42: 840.5 | R42: 838.4 | S42: 603.1 | T42: 0 | U42: 603.1 | V42: 161.5 | W42: 73.8 | X42: 2.1 | Y42: 407.8105473 | Z42: 193.7412935 | AA42: 601.5518408 | AB42: 169.1170149 | AC42: 50.76980015 | AD42: 229.5989637 | AE42: 588.7 | AF42: 15315 | AG42: -288.8 | AH42: 14523 | AI42: 39542.69307 | AJ42: -24227.69307 | AK42: 389 | AL42: 30 | AM42: 4 | AN42: 127.98 | AO42: 100 | AP42: 3.355704698 | AQ42: 33.6 | AR42: 119.2 | AS42: 18.4 | AT42: 2 | AU42: 14 | AV42: 2 | AW42: 2848.2 | BA42: 2663.071429 | BE42: 2655.454545 | BG42: 1381 | BH42: 690.5 | BI42: 4.104996379 | BJ42: 98.7 | BK42: 39028.63806 | BL42: 144.1228719 | BM42: 303.3675796 | BN42: 125.8050333 | BO42: 51 | BP42: 57 | BQ42: BBB
A43: non | B43: 2 | C43: conventionnel | D43: eleveur engraisseur | E43: 2023 | F43: 68124 | G43: 1.01 | H43: 1.01 | I43: 50.3 | J43: 67 | K43: 66.33663366 | L43: 1.332007952 | M43: 49.8019802 | N43: 1754.8 | O43: 1754.8 | P43: 0 | Q43: 1013.3 | R43: 959.1 | S43: 772.3 | T43: 0 | U43: 772.3 | V43: 145.5 | W43: 41.3 | X43: 54.2 | Y43: 465.2646123 | Z43: 183.7375746 | AA43: 649.0021869 | AB43: 172.2439364 | AC43: 138.8134328 | AD43: 267.6032836 | AE43: 741.4 | AF43: 30846 | AG43: 15129.1 | AH43: 32942 | AI43: 51200.79208 | AJ43: -20354.79208 | AK43: 373 | AL43: 30 | AM43: 4 | AN43: 121.31 | AO43: 100 | AP43: 2.514668902 | AQ43: 30.5 | AR43: 119.3 | AS43: 19.4 | AT43: 0 | AU43: 16 | AV43: 15 | AW43: 3240.578947 | BA43: 3029.6875 | BF43: 3139.133333 | BG43: 11360 | BH43: 757.3333333 | BI43: 4.144982394 | BJ43: 95.1 | BK43: 48691.95327 | BL43: 137.9402985 | BM43: 349.2956716 | BN43: 129.3114925 | BO43: 66 | BP43: 66 | BQ43: BBB
A44: non | B44: 3 | C44: conventionnel | D44: eleveur engraisseur | E44: 2024 | F44: 68124 | G44: 1.01 | H44: 1.01 | I44: 50.66 | J44: 69.05 | K44: 68.36633663 | L44: 1.363008291 | M44: 50.15841584 | N44: 2201.6 | O44: 2201.6 | P44: 0 | Q44: 960.7 | R44: 929.4 | S44: 748.9 | T44: 0 | U44: 748.9 | V44: 149.1 | W44: 31.4 | X44: 31.3 | Y44: 410.703711 | Z44: 241.6373865 | AA44: 652.3410975 | AB44: 171.7234505 | AC44: 132.243302 | AD44: 298.6021723 | AE44: 1240.9 | AF44: 71187 | AG44: 55579.3 | AH44: 69634 | AI44: 51843.9604 | AJ44: 19343.0396 | AK44: 372 | AL44: 28 | AM44: 4 | AN44: 146.27 | AO44: 94.23 | AP44: 4.918032787 | AQ44: 33.5 | AR44: 122 | AS44: 22.3 | AT44: 2 | AU44: 17 | AV44: 17 | AW44: 3379.576923 | BA44: 3344.647059 | BF44: 3411.823529 | BG44: 13577 | BH44: 798.6470588 | BI44: 4.272004125 | BJ44: 97.3 | BK44: 50444.17347 | BL44: 177.2824041 | BM44: 301.3215062 | BN44: 125.988559 | BO44: 84 | BP44: 96 | BQ44: BBB
A45: non | B45: 3 | C45: conventionnel | D45: intermediaire | E45: 2021 | F45: 68257 | G45: 1 | H45: 1 | I45: 121.65 | J45: 109.07 | K45: 109.07 | L45: 0.8965885738 | M45: 121.65 | N45: 626.8 | O45: 626.8 | P45: 0 | Q45: 94.9 | R45: 93 | S45: 65.7 | T45: 0 | U45: 65.7 | V45: 14 | W45: 13.3 | X45: 1.8 | Y45: 346.486642 | Z45: 28.9648993 | AA45: 375.4515413 | AB45: 202.3393342 | AC45: 140.144311 | AD45: 517.5122398 | AE45: 532 | AF45: 61359 | AG45: 31484.9 | AH45: 56584 | AI45: 56631.63 | AJ45: 4727.37 | AK45: 435 | AL45: 36 | AM45: 6 | AN45: 102.92 | AO45: 100 | AP45: 2.216066482 | AQ45: 58.3 | AR45: 180.5 | AS45: 29.4 | AT45: 3 | AU45: 14 | AV45: 13 | AW45: 1345.961538 | BA45: 1091.571429 | BB45: 888.1666667 | BE45: 1084.6 | BF45: 1045 | BG45: 6322 | BH45: 486.3076923 | BI45: 2.148845302 | BJ45: 92.9 | BK45: 52610.78427 | BL45: 32.30567525 | BM45: 386.4499862 | BN45: 225.6769047 | BO45: 45 | BP45: 41 | BQ45: autres
A46: non | B46: 3 | C46: conventionnel | D46: eleveur engraisseur | E46: 2022 | F46: 68257 | G46: 1 | H46: 1 | I46: 118.28 | J46: 115.49 | K46: 115.49 | L46: 0.976411904 | M46: 118.28 | N46: 652.6 | O46: 652.6 | P46: 0 | Q46: 96.9 | R46: 96.9 | S46: 71 | T46: 0 | U46: 71 | V46: 9.2 | W46: 16.7 | X46: 0 | Y46: 366.6626649 | Z46: 12.17450118 | AA46: 378.837166 | AB46: 294.6214914 | AC46: 151.6018703 | AD46: 454.3041822 | AE46: 555.7 | AF46: 69967 | AG46: 39225.6 | AH46: 65498 | AI46: 56905.14 | AJ46: 13061.86 | AK46: 397 | AL46: 38 | AM46: 5 | AN46: 93.02 | AO46: 100 | AP46: 2.140181915 | AQ46: 60.2 | AR46: 186.9 | AS46: 21.7 | AT46: 6 | AU46: 30 | AV46: 16 | AW46: 1565.588235 | AY46: 776.8333333 | BA46: 1277.2 | BD46: 1375.4 | BE46: 1248 | BF46: 1253 | BG46: 8650 | BH46: 540.625 | BI46: 2.317687861 | BJ46: 80.4 | BK46: 45751.73256 | BL46: 12.468612 | BM46: 375.520478 | BN46: 301.7389384 | BO46: 30 | BP46: 51 | BQ46: autres
A47: non | B47: 3 | C47: conventionnel | D47: intermediaire | E47: 2023 | F47: 68257 | G47: 1 | H47: 1 | I47: 118.9 | J47: 121.51 | K47: 121.51 | L47: 1.02195122 | M47: 118.9 | N47: 691.3 | O47: 691.3 | P47: 0 | Q47: 157.5 | R47: 157.5 | S47: 135 | T47: 0 | U47: 135 | V47: 6.7 | W47: 15.8 | X47: 0 | Y47: 353.1174096 | Z47: 16.79983179 | AA47: 369.9172414 | AB47: 289.5050463 | AC47: 128.0322607 | AD47: 430.189614 | AE47: 533.8 | AF47: 65462 | AG47: 32182.6 | AH47: 62770 | AI47: 64110 | AJ47: 1352 | AK47: 424 | AL47: 35 | AM47: 5 | AN47: 100.74 | AO47: 100 | AP47: 0.5157297576 | AQ47: 67.5 | AR47: 193.9 | AS47: 28.2 | AT47: 28 | AU47: 13 | AV47: 11 | AW47: 1476.909091 | AY47: 702.6428571 | AZ47: 511.1666667 | BA47: 1125.461538 | BD47: 1430.529412 | BE47: 730.483871 | BF47: 1274.454545 | BG47: 5508 | BH47: 500.7272727 | BI47: 2.545206972 | BJ47: 83.7 | BK47: 53660.07 | BL47: 16.43897622 | BM47: 345.5325488 | BN47: 283.2865608 | BO47: 33 | BP47: 36 | BQ47: autres
A48: non | B48: 3 | C48: conventionnel | D48: eleveur naisseur | E48: 2024 | F48: 68257 | G48: 1.01 | H48: 1.01 | I48: 136.84 | J48: 114.74 | K48: 113.6039604 | L48: 0.8384975153 | M48: 135.4851485 | N48: 784.9 | O48: 784.9 | P48: 0 | Q48: 154.3 | R48: 154.3 | S48: 123.5 | T48: 0 | U48: 123.5 | V48: 8.7 | W48: 22.1 | X48: 0 | Y48: 324.6237211 | Z48: 16.70724934 | AA48: 341.3309705 | AB48: 270.9942268 | AC48: 148.8504445 | AD48: 609.648684 | AE48: 630.6 | AF48: 99234 | AG48: 64933.7 | AH48: 86429 | AI48: 68295.24752 | AJ48: 30938.75248 | AK48: 408 | AL48: 31 | AM48: 5 | AN48: 112.02 | AO48: 100 | AP48: 9.320175439 | AQ48: 73.2 | AR48: 182.4 | AS48: 24.7 | AT48: 27 | AU48: 8 | AV48: 9 | AW48: 1630.225806 | AY48: 1068.407407 | AZ48: 853 | BA48: 1477.625 | BB48: 1185 | BC48: 1811 | BE48: 1330.043478 | BF48: 1302.888889 | BG48: 4773 | BH48: 530.3333333 | BI48: 2.456735806 | BJ48: 83.6 | BK48: 57094.82693 | BL48: 19.92522224 | BM48: 387.1492941 | BN48: 323.1902562 | BO48: 45 | BP48: 51 | BQ48: autres
A49: non | B49: 1 | C49: biologique | D49: eleveur engraisseur | E49: 2022 | F49: 68260 | G49: 0.71 | H49: 0.71 | I49: 33.8 | J49: 14.69 | K49: 20.69014085 | L49: 0.4346153846 | M49: 47.6056338 | N49: 629.4 | O49: 583.2 | P49: 46.2 | Q49: 300.9 | R49: 300.9 | S49: 18.1 | T49: 0 | U49: 18.1 | V49: 171.8 | W49: 111 | X49: 0 | Y49: 210.041716 | Z49: 92.32485207 | AA49: 302.366568 | AB49: 190.4381657 | AC49: 0 | AD49: 1709.558884 | AE49: 328.5 | AF49: 20816 | AG49: 17451.9 | AH49: 16521 | AI49: 35922.57746 | AJ49: -15106.57746 | AL49: 25 | AM49: 9 | AN49: 55.56 | AO49: 100 | AP49: 4.739336493 | AQ49: 10.8 | AR49: 21.1 | AS49: 3.2 | AT49: 0 | AU49: 3 | AV49: 2 | BG49: 1124 | BH49: 562 | BI49: 2.958185053 | BJ49: 85.5 | BK49: 30713.80373 | BL49: 212.4288632 | BM49: 483.2818244 | BN49: 438.1763104 | BO49: 28 | BP49: 19 | BQ49: autres
A50: non | B50: 3 | C50: biologique | D50: eleveur engraisseur | E50: 2020 | F50: 68261 | G50: 1 | H50: 1 | I50: 51.72 | J50: 49.77 | K50: 49.77 | L50: 0.9622969838 | M50: 51.72 | N50: 920 | O50: 920 | P50: 0 | Q50: 388.7 | R50: 385.5 | S50: 132.1 | T50: 0 | U50: 132.1 | V50: 213.7 | W50: 39.7 | X50: 3.2 | Y50: 516.3849381 | Z50: 169.4760247 | AA50: 685.8609629 | AB50: 296.9619103 | AC50: 103.538477 | AD50: 849.1416516 | AE50: 531.3 | AF50: 33647 | AG50: 24636.4 | AH50: 28779 | AI50: 55320 | AJ50: -21673 | AK50: 453 | AL50: 37 | AM50: 6 | AN50: 100.977 | AO50: 93.939 | AP50: 4.956629492 | AQ50: 30.7 | AR50: 80.7 | AS50: 11.4 | AT50: 11 | AU50: 1 | AV50: 11 | AW50: 2009.2 | AY50: 1484.363636 | BD50: 1745.333333 | BF50: 1475.818182 | BG50: 2645 | BH50: 240.4545455 | BI50: 6.137618147 | BJ50: 82.7 | BK50: 45749.64 | BL50: 176.1161342 | BM50: 536.6170183 | BN50: 308.596946 | BO50: 20 | BP50: 23 | BQ50: autres
A51: non | B51: 3 | C51: biologique | D51: eleveur engraisseur | E51: 2021 | F51: 68261 | G51: 1 | H51: 1 | I51: 56.12 | J51: 47.51 | K51: 47.51 | L51: 0.8465787598 | M51: 56.12 | N51: 874.3 | O51: 874.3 | P51: 0 | Q51: 480.8 | R51: 480.8 | S51: 277.8 | T51: 0 | U51: 277.8 | V51: 170.1 | W51: 32.9 | X51: 0 | Y51: 550.6874555 | Z51: 158.3465788 | AA51: 709.0340342 | AB51: 247.6789024 | AC51: 119.2942538 | AD51: 969.6876447 | AE51: 393.5 | AF51: 31305 | AG51: 22278.8 | AH51: 24706 | AI51: 56423.98 | AJ51: -25118.98 | AK51: 389 | AL51: 36 | AM51: 7 | AN51: 84.81 | AO51: 100 | AP51: 5.174644243 | AQ51: 28.3 | AR51: 77.3 | AS51: 12.8 | AT51: 11 | AU51: 1 | AV51: 12 | AW51: 1845.444444 | AY51: 1725.090909 | BF51: 1771 | BG51: 3449 | BH51: 287.4166667 | BI51: 6.161786025 | BJ51: 79.6 | BK51: 44913.48808 | BL51: 187.0429383 | BM51: 650.4857925 | BN51: 292.5645127 | BO51: 39 | BP51: 25 | BQ51: autres
A52: non | B52: 2 | C52: biologique | D52: eleveur engraisseur | E52: 2022 | F52: 68261 | G52: 1 | H52: 1 | I52: 58.73 | J52: 54.87 | K52: 54.87 | L52: 0.934275498 | M52: 58.73 | N52: 1099.1 | O52: 1083.8 | P52: 15.3 | Q52: 296.6 | R52: 296.6 | S52: 139.1 | T52: 0 | U52: 139.1 | V52: 111 | W52: 46.5 | X52: 0 | Y52: 635.2460412 | Z52: 175.1990465 | AA52: 810.4450877 | AB52: 306.6793802 | AC52: 108.5565883 | AD52: 925.9471478 | AE52: 802.5 | AF52: 42643 | AG52: 32291.2 | AH52: 35552 | AI52: 21590.31 | AJ52: 21052.69 | AK52: 453 | AL52: 36 | AM52: 6 | AN52: 101.31 | AO52: 100 | AP52: 4.608294931 | AQ52: 30.6 | AR52: 86.8 | AS52: 13.8 | AT52: 5 | AU52: 9 | AV52: 14 | AW52: 1518.5 | AY52: 1748.4 | BA52: 2341.444444 | BF52: 2063.214286 | BG52: 6160 | BH52: 440 | BI52: 4.689123377 | BJ52: 91 | BK52: 19647.1821 | BL52: 187.5239657 | BM52: 679.9343904 | BN52: 328.2536905 | BO52: 20 | BP52: 49 | BQ52: autres
A53: non | B53: 3 | C53: biologique | D53: intermediaire | E53: 2023 | F53: 68261 | G53: 1 | H53: 1 | I53: 70.01 | J53: 65.25 | K53: 65.25 | L53: 0.9320097129 | M53: 70.01 | N53: 1087 | O53: 1087 | P53: 0 | Q53: 175.7 | R53: 175.7 | S53: 87 | T53: 0 | U53: 87 | V53: 74.1 | W53: 14.6 | X53: 0 | Y53: 520.8725896 | Z53: 186.8447365 | AA53: 707.7173261 | AB53: 309.5977717 | AC53: 103.6628352 | AD53: 810.7786973 | AE53: 911.2 | AF53: 54337 | AG53: 39139.3 | AH53: 50143 | AI53: 24340.68 | AJ53: 29996.32 | AK53: 448 | AL53: 34 | AM53: 9 | AN53: 100.74 | AO53: 95.35 | AP53: 2.904162633 | AQ53: 40.7 | AR53: 103.3 | AS53: 18 | AT53: 8 | AU53: 4 | AV53: 6 | AY53: 1610 | BC53: 2019.2 | BD53: 2354.6 | BE53: 1547.2 | BF53: 2514.666667 | BG53: 2788 | BH53: 464.6666667 | BI53: 5.411764706 | BJ53: 88.2 | BK53: 21468.47976 | BL53: 200.4750958 | BM53: 558.8703448 | BN53: 332.1829885 | BO53: 7 | BP53: 34 | BQ53: autres
A54: non | B54: 1 | C54: biologique | D54: intermediaire | E54: 2024 | F54: 68261 | G54: 1.37 | H54: 1.37 | I54: 68.42 | J54: 63.78 | K54: 46.55474453 | L54: 0.9321835721 | M54: 49.94160584 | N54: 686.1 | O54: 686.1 | P54: 0 | Q54: 264.1 | R54: 254.7 | S54: 138.3 | T54: 0 | U54: 138.3 | V54: 67.9 | W54: 48.5 | X54: 9.4 | Y54: 654.4076293 | Z54: 354.7793043 | AA54: 1009.186934 | AB54: 371.2670272 | AC54: 129.9137661 | AD54: 882.5589526 | AE54: 422 | AF54: 8358 | AG54: -5353.1 | AH54: -1539 | AI54: 31589.05109 | AJ54: -23231.05109 | AK54: 431 | AL54: 34 | AM54: 7 | AN54: 72.29 | AO54: 100 | AP54: 3.755868545 | AQ54: 41.5 | AR54: 106.5 | AS54: 17.2 | AT54: 1 | AU54: 23 | AV54: 10 | AW54: 1259.642857 | BA54: 1410.478261 | BD54: 2157.5 | BE54: 946.5714286 | BF54: 2205.4 | BG54: 4055 | BH54: 405.5 | BI54: 5.438717633 | BJ54: 86.7 | BK54: 27387.7073 | BL54: 380.5895265 | BM54: 702.0158357 | BN54: 398.2767325 | BO54: 36 | BP54: 14 | BQ54: autres
A55: non | B55: 1 | C55: biologique | D55: eleveur naisseur | E55: 2024 | F55: 86003 | G55: 1 | H55: 1 | I55: 30.26 | J55: 28.88 | K55: 28.88 | L55: 0.9543952412 | M55: 30.26 | N55: 480.7 | O55: 480.7 | P55: 0 | Q55: 207 | R55: 200.7 | S55: 159.1 | T55: 0 | U55: 159.1 | V55: 2.4 | W55: 39.2 | X55: 6.3 | Y55: 250.6407799 | Z55: 78.56080635 | AA55: 329.2015863 | AB55: 147.9874422 | AC55: 128.8157895 | AD55: 654.9956801 | AE55: 273.7 | AF55: 24551 | AG55: 20947.9 | AH55: 26193 | AI55: 25278.4 | AJ55: -727.4 | AK55: 389 | AL55: 36 | AM55: 8 | AN55: 98.36 | AO55: 100 | AP55: 6.507592191 | AQ55: 18.3 | AR55: 46.1 | AS55: 8.3 | AT55: 10 | AU55: 1 | AV55: 0 | AY55: 903.8 | BE55: 899.5454545 | BG55: 0 | BJ55: 51.2 | BK55: 12942.5408 | BL55: 82.31475069 | BM55: 262.6173823 | BN55: 155.0588643 | BO55: 22 | BP55: 16 | BQ55: LI
A56: non | B56: 2 | C56: conventionnel | D56: eleveur engraisseur | E56: 2021 | F56: 87036 | G56: 4.22 | H56: 4.22 | I56: 187.44 | J56: 424.64 | K56: 100.6255924 | L56: 2.265471618 | M56: 44.41706161 | N56: 1443.5 | O56: 1441.3 | P56: 2.2 | Q56: 933.3 | R56: 878.2 | S56: 659.3 | T56: 117.1 | U56: 542.2 | V56: 152.9 | W56: 66 | X56: 55.1 | Y56: 661.2883056 | Z56: 139.058472 | AA56: 800.3467776 | AB56: 563.1443662 | AC56: 102.984269 | AD56: 129.584932 | AE56: 510.2 | AF56: 29959 | AG56: 15397.5 | AH56: 59060 | AI56: 59258.54976 | AJ56: -29299.54976 | AK56: 419 | AL56: 33 | AM56: 5 | AN56: 96.48 | AO56: 101.05 | AP56: 3.810868031 | AQ56: 199 | AR56: 708.5 | AS56: 119.8 | AT56: 7 | AU56: 146 | AV56: 160 | AW56: 2797.222222 | AY56: 1037 | BA56: 2766.678082 | BC56: 2897 | BD56: 2414.888889 | BF56: 2803.775 | BG56: 119982 | BH56: 749.8875 | BI56: 3.738927506 | BJ56: 74.4 | BK56: 44088.36102 | BL56: 61.38168802 | BM56: 291.8987378 | BN56: 248.5771006 | BO56: 52 | BP56: 42 | BQ56: BBB
A57: non | B57: 2 | C57: conventionnel | D57: eleveur engraisseur | E57: 2022 | F57: 87036 | G57: 3.64 | H57: 3 | I57: 189.17 | J57: 413.58 | K57: 113.6208791 | L57: 2.186287466 | M57: 51.96978022 | N57: 1631 | O57: 1627.2 | P57: 3.8 | Q57: 1089.4 | R57: 1021 | S57: 814.5 | T57: 125 | U57: 689.5 | V57: 156.8 | W57: 49.7 | X57: 68.4 | Y57: 769.6289052 | Z57: 102.0183962 | AA57: 871.6473014 | AB57: 603.9745203 | AC57: 109.1082741 | AD57: 134.5346343 | AE57: 541.7 | AF57: 37791 | AG57: 14726 | AH57: 78384 | AI57: 64770.92 | AJ57: -26979.92 | AK57: 416 | AL57: 32 | AM57: 5 | AN57: 93.06 | AO57: 101.09 | AP57: 1.892285298 | AQ57: 198.8 | AR57: 687 | AS57: 106.1 | AT57: 4 | AU57: 165 | AV57: 158 | AW57: 3474.423077 | BA57: 2869.842424 | BC57: 3412.333333 | BE57: 1707.533333 | BF57: 2928.835443 | BG57: 99864 | BH57: 632.0506329 | BI57: 4.633862052 | BJ57: 73 | BK57: 47282.7716 | BL57: 46.66284637 | BM57: 352.0254848 | BN57: 276.2557667 | BO57: 39 | BP57: 42 | BQ57: BBB
A58: non | B58: 1 | C58: conventionnel | D58: eleveur engraisseur | E58: 2023 | F58: 87036 | G58: 3.85 | H58: 3 | I58: 189.87 | J58: 402.45 | K58: 104.5324675 | L58: 2.119608153 | M58: 49.31688312 | N58: 1641.3 | O58: 1631.8 | P58: 9.5 | Q58: 1277.3 | R58: 1153.2 | S58: 932.5 | T58: 151.5 | U58: 781 | V58: 156.2 | W58: 64.5 | X58: 124.1 | Y58: 724.3113709 | Z58: 118.830779 | AA58: 843.1421499 | AB58: 616.3543477 | AC58: 85.08572493 | AD58: 118.2932005 | AE58: 364 | AF58: -645 | AG58: -15872.7 | AH58: 22839 | AI58: 73022.04 | AJ58: -73667.04 | AK58: 430 | AL58: 34 | AM58: 5 | AN58: 96.99 | AO58: 100.54 | AP58: 1.653389448 | AQ58: 192.8 | AR58: 665.3 | AS58: 100.9 | AT58: 5 | AU58: 128 | AV58: 140 | AW58: 3484.3125 | AY58: 1287.4 | BA58: 3157.390625 | BC58: 3240.4 | BD58: 2904.125 | BE58: 2640.5 | BF58: 3165.464286 | BG58: 90490 | BH58: 646.3571429 | BI58: 4.897391977 | BJ58: 77.5 | BK58: 56592.081 | BL58: 56.06261647 | BM58: 341.7194683 | BN58: 290.7869301 | BO58: 43 | BP58: 40 | BQ58: BBB
A59: non | B59: 3 | C59: conventionnel | D59: eleveur engraisseur | E59: 2024 | F59: 87036 | G59: 3.73 | H59: 3 | I59: 192.37 | J59: 401.17 | K59: 107.5522788 | L59: 2.085408328 | M59: 51.57372654 | N59: 1786.5 | O59: 1777.5 | P59: 9 | Q59: 1069.8 | R59: 986.9 | S59: 732.7 | T59: 128.1 | U59: 604.6 | V59: 185.3 | W59: 68.9 | X59: 82.9 | Y59: 685.6726101 | Z59: 107.1413942 | AA59: 792.8140043 | AB59: 607.2196288 | AC59: 93.26066256 | AD59: 151.8534292 | AE59: 716.7 | AF59: 57872 | AG59: 30628.5 | AH59: 97481 | AI59: 73939.32 | AJ59: -16067.32 | AK59: 426 | AL59: 33 | AM59: 5 | AN59: 109.32 | AO59: 100.93 | AP59: 1.49298298 | AQ59: 198.5 | AR59: 669.8 | AS59: 106.7 | AT59: 4 | AU59: 132 | AV59: 134 | AW59: 3664.205479 | BA59: 3191.742424 | BC59: 3326.9 | BE59: 5174.25 | BF59: 3093.529851 | BG59: 90196 | BH59: 673.1044776 | BI59: 4.595913344 | BJ59: 77.8 | BK59: 57524.79096 | BL59: 51.37669816 | BM59: 328.7953735 | BN59: 291.1754119 | BO59: 38 | BP59: 51 | BQ59: BBB
A60: non | B60: 2 | C60: conventionnel | D60: eleveur naisseur | E60: 2020 | F60: 87055 | G60: 1.45 | H60: 1.45 | I60: 87.54 | J60: 128.42 | K60: 88.56551724 | L60: 1.46698652 | M60: 60.37241379 | N60: 876.9 | O60: 863.2 | P60: 13.7 | Q60: 694.9 | R60: 595.1 | S60: 349 | T60: 44.6 | U60: 304.4 | V60: 177.5 | W60: 68.6 | X60: 99.8 | Y60: 239.1879027 | Z60: 131.8787983 | AA60: 371.0667009 | AB60: 144.5364291 | AC60: 133.325183 | AD60: 132.5845046 | AE60: 182 | AF60: 12121 | AG60: -76.6 | AH60: 18975 | AI60: 50434.48276 | AJ60: -38313.48276 | AK60: 410 | AL60: 36 | AM60: 5 | AN60: 103.495 | AO60: 100 | AP60: 4.279600571 | AQ60: 74.4 | AR60: 210.3 | AS60: 28.1 | AT60: 40 | AU60: 5 | AV60: 0 | AW60: 1915.652174 | AY60: 1117.325 | BA60: 1587 | BD60: 2221.230769 | BE60: 1200.97619 | BG60: 0 | BJ60: 81.3 | BK60: 41003.23448 | BL60: 89.89775736 | BM60: 163.0471033 | BN60: 98.52607849 | BO60: 31 | BP60: 32 | BQ60: BBB
A61: non | B61: 2 | C61: conventionnel | D61: eleveur naisseur | E61: 2021 | F61: 87055 | G61: 1.37 | H61: 1.37 | I61: 89.82 | J61: 131.61 | K61: 96.06569343 | L61: 1.465263861 | M61: 65.5620438 | N61: 1054.5 | O61: 1001.1 | P61: 53.4 | Q61: 719.9 | R61: 631.4 | S61: 356.6 | T61: 33.4 | U61: 323.2 | V61: 208.8 | W61: 66 | X61: 88.5 | Y61: 249.0202627 | Z61: 110.0527722 | AA61: 359.073035 | AB61: 139.665108 | AC61: 134.4122787 | AD61: 131.9751621 | AE61: 334.6 | AF61: 24380 | AG61: 11427 | AH61: 27912 | AI61: 52695.80292 | AJ61: -28315.80292 | AK61: 415 | AL61: 31 | AM61: 6 | AN61: 102.4 | AO61: 97.59 | AP61: 4.633920297 | AQ61: 79.1 | AR61: 215.8 | AS61: 29.9 | AT61: 29 | AU61: 3 | AV61: 0 | AW61: 2338.419355 | AY61: 1207.172414 | BB61: 1569.4 | BE61: 1271.677419 | BG61: 0 | BJ61: 91.4 | BK61: 48163.96387 | BL61: 75.10781855 | BM61: 169.949092 | BN61: 95.3173771 | BO61: 42 | BP61: 40 | BQ61: BBB
A62: non | B62: 2 | C62: conventionnel | D62: eleveur naisseur | E62: 2022 | F62: 87055 | G62: 1.4 | H62: 1.37 | I62: 89.44 | J62: 129.57 | K62: 92.55 | L62: 1.44868068 | M62: 63.88571429 | N62: 1046 | O62: 1046 | P62: 0 | Q62: 721.3 | R62: 589.9 | S62: 378.4 | T62: 29.8 | U62: 348.6 | V62: 170.7 | W62: 40.8 | X62: 131.5 | Y62: 275.1266771 | Z62: 119.509839 | AA62: 394.6365161 | AB62: 142.898144 | AC62: 143.4861465 | AD62: 136.6280525 | AE62: 324.6 | AF62: 23969 | AG62: 10803 | AH62: 30516 | AI62: 53767.63504 | AJ62: -29798.63504 | AK62: 420 | AL62: 33 | AM62: 5 | AN62: 108.29 | AO62: 93.1 | AP62: 6.717850288 | AQ62: 74.8 | AR62: 208.4 | AS62: 30.4 | AT62: 31 | AU62: 5 | AV62: 1 | AW62: 2627.291667 | AY62: 1243.419355 | BA62: 1637.2 | BE62: 1298.111111 | BG62: 650 | BH62: 650 | BI62: 3.058461538 | BJ62: 86.6 | BK62: 46562.77194 | BL62: 82.49563942 | BM62: 189.9153353 | BN62: 98.64019449 | BO62: 33 | BP62: 41 | BQ62: BBB
A63: non | B63: 2 | C63: conventionnel | D63: eleveur naisseur | E63: 2023 | F63: 87055 | G63: 1.37 | H63: 1.37 | I63: 91.46 | J63: 134.66 | K63: 98.2919708 | L63: 1.472337634 | M63: 66.75912409 | N63: 1045 | O63: 1045 | P63: 0 | Q63: 779.8 | R63: 682.3 | S63: 429.8 | T63: 46.4 | U63: 383.4 | V63: 208.6 | W63: 43.9 | X63: 97.5 | Y63: 222.6162257 | Z63: 169.1495736 | AA63: 391.7657993 | AB63: 161.1287995 | AC63: 135.6215654 | AD63: 176.9065717 | AE63: 265.2 | AF63: 21202 | AG63: 8586.6 | AH63: 27713 | AI63: 60482.48175 | AJ63: -39280.48175 | AK63: 410 | AL63: 34 | AM63: 6 | AN63: 91.87 | AO63: 100 | AP63: 1.400560224 | AQ63: 84.9 | AR63: 214.2 | AS63: 27.9 | AT63: 43 | AU63: 3 | AV63: 2 | AW63: 2593.28 | AY63: 1278.790698 | BC63: 3505 | BE63: 1312.733333 | BG63: 1400 | BH63: 700 | BI63: 4.885714286 | BJ63: 87.8 | BK63: 53103.61898 | BL63: 114.8850438 | BM63: 151.1991683 | BN63: 109.4373979 | BO63: 29 | BP63: 35 | BQ63: BBB
A64: non | B64: 2 | C64: conventionnel | D64: eleveur naisseur | E64: 2024 | F64: 87055 | G64: 1.43 | H64: 1.37 | I64: 88.72 | J64: 132.24 | K64: 92.47552448 | L64: 1.490532011 | M64: 62.04195804 | N64: 1114.1 | O64: 1114.1 | P64: 0 | Q64: 736.4 | R64: 663.2 | S64: 421.1 | T64: 46.1 | U64: 375 | V64: 189.5 | W64: 52.6 | X64: 73.3 | Y64: 192.1362714 | Z64: 161.643147 | AA64: 353.7794184 | AB64: 138.0455365 | AC64: 143.2183908 | AD64: 223.1414446 | AE64: 377.6 | AF64: 42500 | AG64: 28849.5 | AH64: 44394 | AI64: 61243.06569 | AJ64: -18743.06569 | AK64: 412 | AL64: 34 | AM64: 6 | AN64: 98.87 | AO64: 98.75 | AP64: 6.413192854 | AQ64: 79.9 | AR64: 218.3 | AS64: 32.1 | AT64: 31 | AU64: 2 | AV64: 0 | AW64: 2611.547619 | AY64: 1269.870968 | BE64: 1315.935484 | BG64: 0 | BJ64: 89.3 | BK64: 54690.05766 | BL64: 108.4466122 | BM64: 128.9044918 | BN64: 92.61494253 | BO64: 53 | BP64: 24 | BQ64: BBB
A65: non | B65: 2 | C65: conventionnel | D65: eleveur naisseur | E65: 2020 | F65: 87071 | G65: 1.5 | H65: 1.5 | I65: 110.17 | J65: 75.66 | K65: 50.44 | L65: 0.6867568304 | M65: 73.44666667 | N65: 717.4 | O65: 545.5 | P65: 171.9 | Q65: 366.6 | R65: 343 | S65: 238.1 | T65: 75.6 | U65: 162.5 | V65: 90 | W65: 14.9 | X65: 23.5 | Y65: 262.2040483 | Z65: 20.85240991 | AA65: 283.0564582 | AB65: 166.2874558 | AC65: 147.2027491 | AD65: 244.8440138 | AE65: 350.8 | AF65: 12039 | AG65: 4623.7 | AH65: 12621 | AI65: 54090.66667 | AJ65: -42051.66667 | AK65: 453 | AL65: 43 | AM65: 6 | AN65: 96.774 | AO65: 100 | AP65: 0.9328358209 | AQ65: 46.5 | AR65: 107.2 | AS65: 3.4 | AT65: 27 | AU65: 0 | AV65: 0 | AW65: 1463 | AX65: 684.7142857 | AY65: 715.962963 | AZ65: 908.3333333 | BB65: 924 | BE65: 825.3333333 | BG65: 0 | BJ65: 76.6 | BK65: 41433.45067 | BL65: 30.36360032 | BM65: 381.8004229 | BN65: 242.1344039 | BO65: 30 | BP65: 30 | BQ65: BBB
A66: non | B66: 1 | C66: conventionnel | D66: eleveur naisseur | E66: 2021 | F66: 87071 | G66: 1.17 | H66: 1.17 | I66: 96.2 | J66: 72.04 | K66: 61.57264957 | L66: 0.7488565489 | M66: 82.22222222 | N66: 679.2 | O66: 591.7 | P66: 87.5 | Q66: 318.5 | R66: 297.8 | S66: 170.4 | T66: 11.9 | U66: 158.5 | V66: 114.5 | W66: 12.9 | X66: 20.7 | Y66: 320.2106029 | Z66: 7.25987526 | AA66: 327.4704782 | AB66: 174.0727651 | AC66: 128.7391727 | AD66: 268.526513 | AE66: 360.7 | AF66: 7685 | AG66: -2748.1 | AH66: 6735 | AI66: 61085.78632 | AJ66: -53400.78632 | AK66: 499 | AL66: 38 | AM66: 7 | AN66: 98.29 | AO66: 95.83 | AP66: 3.045685279 | AQ66: 46.8 | AR66: 98.5 | AS66: 2.3 | AT66: 22 | AU66: 0 | AV66: 0 | AW66: 1603.428571 | AX66: 716.047619 | AY66: 727.5 | BG66: 0 | BJ66: 86.6 | BK66: 52900.29096 | BL66: 9.694614103 | BM66: 427.5993892 | BN66: 232.4514159 | BO66: 32 | BP66: 41 | BQ66: BBB
A67: non | B67: 1 | C67: conventionnel | D67: eleveur naisseur | E67: 2022 | F67: 87071 | G67: 1.3 | H67: 1.3 | I67: 82.85 | J67: 69.34 | K67: 53.33846154 | L67: 0.8369342185 | M67: 63.73076923 | N67: 867.1 | O67: 735 | P67: 132.1 | Q67: 399.8 | R67: 380.1 | S67: 281.6 | T67: 0 | U67: 281.6 | V67: 88.3 | W67: 10.2 | X67: 19.8 | Y67: 396.6968014 | Z67: 45.36813518 | AA67: 442.0649366 | AB67: 183.1213036 | AC67: 132.7588693 | AD67: 283.5334583 | AE67: 467.3 | AF67: 5404 | AG67: -4910.3 | AH67: 3690 | AI67: 59739.87692 | AJ67: -54335.87692 | AK67: 501 | AL67: 37 | AM67: 7 | AN67: 71.86 | AO67: 100 | AP67: 0.9345794393 | AQ67: 50.1 | AR67: 107 | AS67: 5.9 | AT67: 13 | AU67: 0 | AV67: 0 | AW67: 1966.952381 | AX67: 702.1 | AY67: 818.0769231 | BG67: 0 | BJ67: 97 | BK67: 57947.68062 | BL67: 54.20752812 | BM67: 473.98803 | BN67: 218.8001154 | BO67: 42 | BP67: 18 | BQ67: BBB
A68: non | B68: 2 | C68: conventionnel | D68: eleveur naisseur | E68: 2023 | F68: 87071 | G68: 1.3 | H68: 1.3 | I68: 82.22 | J68: 71.74 | K68: 55.18461538 | L68: 0.8725370956 | M68: 63.24615385 | N68: 1129.5 | O68: 768.4 | P68: 361.1 | Q68: 342.1 | R68: 342.1 | S68: 228.9 | T68: 0 | U68: 228.9 | V68: 101 | W68: 12.2 | X68: 0 | Y68: 343.7954269 | Z68: 9.243493067 | AA68: 353.03892 | AB68: 188.681586 | AC68: 143.7844996 | AD68: 370.8359353 | AE68: 787.3 | AF68: 39738 | AG68: 30195 | AH68: 42153 | AI68: 67350.09231 | AJ68: -27612.09231 | AK68: 459 | AL68: 36 | AM68: 7 | AN68: 93.37 | AO68: 102.7 | AP68: 0 | AQ68: 40.7 | AR68: 109.9 | AS68: 2.9 | AT68: 16 | AU68: 3 | AV68: 0 | AW68: 2090.076923 | AX68: 670.5714286 | AY68: 694.375 | BG68: 0 | BJ68: 87.5 | BK68: 58931.33077 | BL68: 10.59381098 | BM68: 394.018121 | BN68: 216.2447728 | BO68: 32 | BP68: 25 | BQ68: BBB
A69: non | B69: 2 | C69: conventionnel | D69: eleveur naisseur | E69: 2024 | F69: 87071 | G69: 1.3 | H69: 1.3 | I69: 82.62 | J69: 74.39 | K69: 57.22307692 | L69: 0.9003873154 | M69: 63.55384615 | N69: 1030.5 | O69: 843.7 | P69: 186.8 | Q69: 392.3 | R69: 392.3 | S69: 259 | T69: 0 | U69: 259 | V69: 120.6 | W69: 12.7 | X69: 0 | Y69: 364.949649 | Z69: 22.73662551 | AA69: 387.6862745 | AB69: 198.5836359 | AC69: 115.9309047 | AD69: 433.1115741 | AE69: 638.1 | AF69: 38100 | AG69: 28593.7 | AH69: 33711 | AI69: 68196.12308 | AJ69: -30096.12308 | AK69: 423 | AL69: 36 | AM69: 6 | AN69: 112.6 | AO69: 95.45 | AP69: 2.69541779 | AQ69: 37.3 | AR69: 111.3 | AS69: 3.9 | AT69: 10 | AU69: 0 | AV69: 0 | AW69: 2125.866667 | AX69: 660 | AY69: 911.2 | AZ69: 1028.666667 | BB69: 1085 | BG69: 0 | BJ69: 88.9 | BK69: 60626.35342 | BL69: 25.25205001 | BM69: 405.3251781 | BN69: 220.553569 | BO69: 40 | BP69: 38 | BQ69: autres
A70: non | B70: 3 | C70: conventionnel | D70: eleveur naisseur | E70: 2020 | F70: 87072 | G70: 1.1 | H70: 1.1 | I70: 111.88 | J70: 153.25 | K70: 139.3181818 | L70: 1.369771183 | M70: 101.7090909 | N70: 741.1 | O70: 741.1 | P70: 0 | Q70: 540.7 | R70: 478.9 | S70: 308 | T70: 0 | U70: 308 | V70: 115.1 | W70: 55.8 | X70: 61.7 | Y70: 100.2266714 | Z70: 97.84947265 | AA70: 198.0761441 | AB70: 208.3956024 | AC70: 159.4499837 | AD70: 183.3637847 | AE70: 200.4 | AF70: 35287 | AG70: 16075.2 | AH70: 39388 | AI70: 69519.27182 | AJ70: -34232.27182 | AK70: 427 | AL70: 36 | AM70: 5 | AN70: 98.914 | AO70: 95.349 | AP70: 9.224318658 | AQ70: 82.6 | AR70: 238.5 | AS70: 26.1 | AT70: 37 | AU70: 5 | AV70: 0 | AW70: 1928.735294 | AY70: 1216.351351 | BA70: 2053 | BE70: 1315.952381 | BG70: 0 | BJ70: 88.4 | BK70: 61455.03629 | BL70: 71.43490375 | BM70: 73.1703752 | BN70: 152.1389886 | BO70: 42 | BP70: 34 | BQ70: BBB
A71: non | B71: 3 | C71: conventionnel | D71: eleveur naisseur | E71: 2021 | F71: 87072 | G71: 1.1 | H71: 1.1 | I71: 111.92 | J71: 154.74 | K71: 140.6727273 | L71: 1.382594711 | M71: 101.7454545 | N71: 888.3 | O71: 888.3 | P71: 0 | Q71: 569.2 | R71: 503.5 | S71: 322.4 | T71: 0 | U71: 322.4 | V71: 133.4 | W71: 47.7 | X71: 65.8 | Y71: 117.6298249 | Z71: 135.3213903 | AA71: 252.9512152 | AB71: 208.6527877 | AC71: 162.046982 | AD71: 178.3918185 | AE71: 319.1 | AF71: 48065 | AG71: 29085.3 | AH71: 52421 | AI71: 65567.41818 | AJ71: -17502.41818 | AK71: 435 | AL71: 36 | AM71: 5 | AN71: 91.73 | AO71: 95.79 | AP71: 10.71281417 | AQ71: 99.2 | AR71: 242.7 | AS71: 23.7 | AT71: 26 | AU71: 1 | AV71: 0 | AW71: 2405.258065 | AY71: 1408.076923 | BD71: 1531.2 | BE71: 1426.269231 | BG71: 0 | BJ71: 90.2 | BK71: 59141.8112 | BL71: 97.87495153 | BM71: 85.0790358 | BN71: 150.9139201 | BO71: 32 | BP71: 54 | BQ71: BBB
A72: non | B72: 2 | C72: conventionnel | D72: intermediaire | E72: 2022 | F72: 87072 | G72: 1.28 | H72: 1.28 | I72: 108.81 | J72: 155.59 | K72: 121.5546875 | L72: 1.42992372 | M72: 85.0078125 | N72: 957.3 | O72: 957.3 | P72: 0 | Q72: 620.3 | R72: 596.8 | S72: 421.2 | T72: 7.8 | U72: 413.4 | V72: 137.5 | W72: 38.1 | X72: 23.4 | Y72: 166.9351163 | Z72: 178.427718 | AA72: 345.3628343 | AB72: 213.2056796 | AC72: 165.8943377 | AD72: 174.2470446 | AE72: 337.1 | AF72: 38111 | AG72: 20194 | AH72: 44615 | AI72: 63330.08594 | AJ72: -25219.08594 | AK72: 434 | AL72: 36 | AM72: 5 | AN72: 84.33 | AO72: 97.7 | AP72: 8.19000819 | AQ72: 100.8 | AR72: 244.2 | AS72: 22.2 | AT72: 19 | AU72: 3 | AV72: 0 | AW72: 2755.794118 | AY72: 1383.789474 | BB72: 1498.5 | BE72: 1443.727273 | BG72: 0 | BJ72: 86.6 | BK72: 54843.85442 | BL72: 124.7812841 | BM72: 116.744071 | BN72: 149.1028344 | BO72: 36 | BP72: 29 | BQ72: BBB
A73: non | B73: 3 | C73: conventionnel | D73: eleveur naisseur | E73: 2023 | F73: 87072 | G73: 1 | H73: 1 | I73: 112.29 | J73: 143.18 | K73: 143.18 | L73: 1.275091282 | M73: 112.29 | N73: 1089.2 | O73: 1089.2 | P73: 0 | Q73: 633.6 | R73: 575.7 | S73: 380.8 | T73: 0 | U73: 380.8 | V73: 142.1 | W73: 52.8 | X73: 57.8 | Y73: 210.9413127 | Z73: 113.9742631 | AA73: 324.9155757 | AB73: 207.0406982 | AC73: 128.7323649 | AD73: 250.4186339 | AE73: 455.7 | AF73: 59586 | AG73: 35142.4 | AH73: 63795 | AI73: 80244 | AJ73: -20658 | AK73: 467 | AL73: 34 | AM73: 5 | AN73: 87.36 | AO73: 95 | AP73: 6.181015453 | AQ73: 87 | AR73: 226.5 | AS73: 30.5 | AT73: 33 | AU73: 1 | AV73: 1 | AW73: 2926.558824 | AY73: 1403.121212 | BB73: 1367.2 | BE73: 1403.121212 | BG73: 817 | BH73: 817 | BI73: 4.308445532 | BJ73: 91.8 | BK73: 73663.992 | BL73: 89.38517949 | BM73: 165.432323 | BN73: 162.3732365 | BO73: 41 | BP73: 25 | BQ73: BBB
A74: non | B74: 2 | C74: conventionnel | D74: eleveur naisseur | E74: 2024 | F74: 87072 | G74: 1.83 | H74: 1.83 | I74: 104.92 | J74: 138.38 | K74: 75.61748634 | L74: 1.318909645 | M74: 57.33333333 | N74: 1232.2 | O74: 1232.2 | P74: 0 | Q74: 710.4 | R74: 662.4 | S74: 462.8 | T74: 21 | U74: 441.8 | V74: 146.2 | W74: 53.4 | X74: 48 | Y74: 256.7506672 | Z74: 127.5314525 | AA74: 384.2821197 | AB74: 225.6734655 | AC74: 142.9736956 | AD74: 299.9332364 | AE74: 521.8 | AF74: 43729 | AG74: 31028.2 | AH74: 42231 | AI74: 61666.66667 | AJ74: -17937.66667 | AK74: 431 | AL74: 37 | AM74: 6 | AN74: 105.97 | AO74: 96.67 | AP74: 8.068130883 | AQ74: 82.1 | AR74: 223.1 | AS74: 31.7 | AT74: 32 | AU74: 4 | AV74: 0 | AW74: 2968.216216 | AY74: 1575.90625 | BE74: 1636.138889 | BG74: 0 | BJ74: 90.9 | BK74: 56055 | BL74: 96.69460905 | BM74: 194.6688828 | BN74: 171.1060847 | BO74: 50 | BP74: 51 | BQ74: BBB
A75: non | B75: 2 | C75: conventionnel | D75: eleveur engraisseur | E75: 2020 | F75: 87083 | G75: 2.11 | H75: 2.11 | I75: 70.9 | J75: 135.88 | K75: 64.39810427 | L75: 1.916502116 | M75: 33.60189573 | N75: 634.9 | O75: 634.9 | P75: 0 | Q75: 268.7 | R75: 189.4 | S75: 83.5 | T75: 6.9 | U75: 76.6 | V75: 76.7 | W75: 29.2 | X75: 79.3 | Y75: 333.5685331 | Z75: 145.0500564 | AA75: 478.6185896 | AB75: 130.9057687 | AC75: 132.1222402 | AD75: 122.2911428 | AE75: 366.2 | AF75: 24267 | AG75: 13247.4 | AH75: 26870 | AI75: 33209.47867 | AJ75: -8942.478673 | AK75: 515 | AL75: 37 | AM75: 6 | AN75: 81.579 | AO75: 93.939 | AP75: 5.418719212 | AQ75: 76 | AR75: 203 | AS75: 19.2 | AT75: 13 | AU75: 20 | AV75: 0 | AW75: 1765.225806 | AX75: 749 | AY75: 1003.307692 | BA75: 1353.45 | BB75: 1469 | BE75: 1367.541667 | BG75: 0 | BJ75: 81.6 | BK75: 27098.9346 | BL75: 75.68478805 | BM75: 174.0506991 | BN75: 68.30452605 | BO75: 41 | BP75: 37 | BQ75: BBB
A76: non | B76: 2 | C76: conventionnel | D76: intermediaire | E76: 2021 | F76: 87083 | G76: 2.11 | H76: 2.11 | I76: 70.5 | J76: 130.5 | K76: 61.84834123 | L76: 1.85106383 | M76: 33.41232227 | N76: 899.8 | O76: 899.8 | P76: 0 | Q76: 313.1 | R76: 224.8 | S76: 131.4 | T76: 7.7 | U76: 123.7 | V76: 72.1 | W76: 21.3 | X76: 88.3 | Y76: 441.1242553 | Z76: 164.3489362 | AA76: 605.4731915 | AB76: 151.867234 | AC76: 142.1359387 | AD76: 126.5565051 | AE76: 586.7 | AF76: 31267 | AG76: 19459.9 | AH76: 35504 | AI76: 33872.21327 | AJ76: -2605.21327 | AK76: 560 | AL76: 36 | AM76: 5 | AN76: 77.11 | AO76: 94.2 | AP76: 6.19047619 | AQ76: 84.3 | AR76: 210 | AS76: 33.9 | AT76: 16 | AU76: 12 | AV76: 0 | AW76: 2304.410256 | AX76: 701.6666667 | AY76: 1276.1875 | BA76: 1447.916667 | BE76: 1473.434783 | BG76: 0 | BJ76: 85 | BK76: 28791.38128 | BL76: 88.7862069 | BM76: 238.3085057 | BN76: 82.04321839 | BO76: 51 | BP76: 40 | BQ76: BBB
A77: non | B77: 2 | C77: conventionnel | D77: intermediaire | E77: 2022 | F77: 87083 | G77: 1.97 | H77: 1.97 | I77: 70.49 | J77: 132.41 | K77: 67.21319797 | L77: 1.878422471 | M77: 35.78172589 | N77: 838.6 | O77: 838.6 | P77: 0 | Q77: 330 | R77: 251.6 | S77: 108.1 | T77: 8.5 | U77: 99.6 | V77: 111 | W77: 32.5 | X77: 78.4 | Y77: 470.8093347 | Z77: 143.8814016 | AA77: 614.6907363 | AB77: 135.6673287 | AC77: 147.2245299 | AD77: 127.4254178 | AE77: 508.6 | AF77: 27590 | AG77: 13623.1 | AH77: 27700 | AI77: 36737.98985 | AJ77: -9147.989848 | AK77: 515 | AL77: 38 | AM77: 6 | AN77: 93.96 | AO77: 93.33 | AP77: 4.531722054 | AQ77: 74.5 | AR77: 198.6 | AS77: 19.2 | AT77: 12 | AU77: 16 | AV77: 0 | AW77: 2686.153846 | AY77: 1521.583333 | BA77: 1690.75 | BE77: 1650.259259 | BG77: 0 | BJ77: 92.9 | BK77: 34129.59257 | BL77: 76.59693377 | BM77: 250.6408126 | BN77: 72.22407673 | BO77: 17 | BP77: 36 | BQ77: BBB
A78: non | B78: 2 | C78: conventionnel | D78: eleveur naisseur | E78: 2023 | F78: 87083 | G78: 1.97 | H78: 1.97 | I78: 70.89 | J78: 132.35 | K78: 67.18274112 | L78: 1.866977007 | M78: 35.98477157 | N78: 1014.6 | O78: 1010.9 | P78: 3.7 | Q78: 315.6 | R78: 231.8 | S78: 96.4 | T78: 6.5 | U78: 89.9 | V78: 98.3 | W78: 37.1 | X78: 83.7 | Y78: 516.4135985 | Z78: 178.554239 | AA78: 694.9678375 | AB78: 102.1337283 | AC78: 135.4333207 | AD78: 161.8635525 | AE78: 699.1 | AF78: 40094 | AG78: 26336.3 | AH78: 41407 | AI78: 41343.14721 | AJ78: -1249.147208 | AK78: 548 | AL78: 37 | AM78: 6 | AN78: 88.13 | AO78: 94.74 | AP78: 3.409644423 | AQ78: 81.7 | AR78: 205.3 | AS78: 26.1 | AT78: 23 | AU78: 8 | AV78: 0 | AW78: 2492.939394 | AX78: 814.2857143 | AY78: 1401 | AZ78: 800 | BA78: 1635.75 | BE78: 1612.36 | BG78: 0 | BJ78: 92.9 | BK78: 38407.78376 | BL78: 95.6381564 | BM78: 276.6041556 | BN78: 54.70540234 | BO78: 42 | BP78: 38 | BQ78: BBB
A79: non | B79: 2 | C79: conventionnel | D79: intermediaire | E79: 2024 | F79: 87083 | G79: 1.97 | H79: 1.97 | I79: 71.49 | J79: 128.69 | K79: 65.3248731 | L79: 1.800111904 | M79: 36.2893401 | N79: 965.7 | O79: 943.5 | P79: 22.2 | Q79: 308.7 | R79: 229.6 | S79: 105.1 | T79: 5.4 | U79: 99.7 | V79: 90.6 | W79: 33.9 | X79: 79.1 | Y79: 443.757029 | Z79: 191.8332634 | AA79: 635.5902923 | AB79: 101.9026437 | AC79: 139.2851037 | AD79: 192.0141577 | AE79: 657.1 | AF79: 40685 | AG79: 27240.9 | AH79: 39919 | AI79: 41862.94416 | AJ79: -1177.944162 | AK79: 478 | AL79: 35 | AM79: 5 | AN79: 80.86 | AO79: 90.67 | AP79: 7.327796776 | AQ79: 84.1 | AR79: 204.7 | AS79: 27.5 | AT79: 16 | AU79: 12 | AV79: 0 | AW79: 2577.269231 | AY79: 1471.6875 | BA79: 1637 | BE79: 1654.083333 | BG79: 0 | BJ79: 94.2 | BK79: 39434.8934 | BL79: 106.5674101 | BM79: 246.5163571 | BN79: 56.60906053 | BO79: 33 | BP79: 32 | BQ79: BBB
A80: non | B80: 2 | C80: conventionnel | D80: eleveur naisseur | E80: 2020 | F80: 87087 | G80: 1.58 | H80: 1.58 | I80: 69.19 | J80: 88.56 | K80: 56.05063291 | L80: 1.279953751 | M80: 43.79113924 | N80: 376.9 | O80: 358.1 | P80: 18.8 | Q80: 193.9 | R80: 129.6 | S80: 70.6 | T80: 0 | U80: 70.6 | V80: 23.9 | W80: 35.1 | X80: 64.3 | Y80: 43.98193381 | Z80: 144.5382281 | AA80: 188.5201619 | AB80: 210.1320856 | AC80: 95.72831978 | AD80: 241.9612692 | AE80: 183 | AF80: 13655 | AG80: 7751.5 | AH80: 12589 | AI80: 30528.48101 | AJ80: -16873.48101 | AK80: 491 | AL80: 39 | AM80: 7 | AN80: 87.171 | AO80: 100 | AP80: 8.270676692 | AQ80: 60.8 | AR80: 133 | AS80: 7.8 | AT80: 25 | AU80: 0 | AV80: 0 | AW80: 1314.846154 | AX80: 624.8333333 | AY80: 688.84 | BB80: 585 | BE80: 733.2307692 | BG80: 0 | BJ80: 81.2 | BK80: 24789.12658 | BL80: 112.9245709 | BM80: 34.36212737 | BN80: 164.1716238 | BO80: 25 | BP80: 28 | BQ80: BBB
A81: non | B81: 2 | C81: conventionnel | D81: eleveur naisseur | E81: 2021 | F81: 87087 | G81: 1.58 | H81: 1.58 | I81: 68.1 | J81: 91.97 | K81: 58.20886076 | L81: 1.35051395 | M81: 43.10126582 | N81: 650 | O81: 578.9 | P81: 71.1 | Q81: 252 | R81: 212.7 | S81: 114.6 | T81: 0.8 | U81: 113.8 | V81: 34.5 | W81: 63.6 | X81: 39.4 | Y81: 43.76005874 | Z81: 201.2657856 | AA81: 245.0258443 | AB81: 215.1828194 | AC81: 95.23899098 | AD81: 227.0827937 | AE81: 398 | AF81: 25879 | AG81: 20017.8 | AH81: 29110 | AI81: 31764.00633 | AJ81: -5885.006329 | AK81: 538 | AL81: 39 | AM81: 6 | AN81: 106.81 | AO81: 96.67 | AP81: 6.617647059 | AQ81: 54.3 | AR81: 136 | AS81: 7.8 | AT81: 20 | AU81: 0 | AV81: 0 | AW81: 1726 | AX81: 670.2 | AY81: 745.25 | BE81: 809.5 | BG81: 0 | BJ81: 80.3 | BK81: 25506.49708 | BL81: 149.0290312 | BM81: 32.40252256 | BN81: 159.334022 | BO81: 31 | BP81: 28 | BQ81: autres
A82: non | B82: 2 | C82: conventionnel | D82: eleveur naisseur | E82: 2022 | F82: 87087 | G82: 1.58 | H82: 1.58 | I82: 66.19 | J82: 95.4 | K82: 60.37974684 | L82: 1.441305333 | M82: 41.89240506 | N82: 477.4 | O82: 427.5 | P82: 49.9 | Q82: 287.7 | R82: 218.4 | S82: 115 | T82: 10.5 | U82: 104.5 | V82: 51.5 | W82: 51.9 | X82: 69.3 | Y82: 51.70403384 | Z82: 237.9996978 | AA82: 289.7037317 | AB82: 221.6207886 | AC82: 96.49371069 | AD82: 202.9807593 | AE82: 189.7 | AF82: 13802 | AG82: 8049.8 | AH82: 16504 | AI82: 33153.03797 | AJ82: -19351.03797 | AK82: 477 | AL82: 36 | AM82: 6 | AN82: 76.79 | AO82: 93.88 | AP82: 12.65822785 | AQ82: 59.9 | AR82: 142.2 | AS82: 10.3 | AT82: 23 | AU82: 0 | AV82: 0 | AW82: 1864.4 | AX82: 723.9090909 | AY82: 748.826087 | BE82: 771.6666667 | BG82: 0 | BJ82: 74.1 | BK82: 24566.40114 | BL82: 165.1278826 | BM82: 35.8730608 | BN82: 153.7639413 | BO82: 33 | BP82: 35 | BQ82: autres
A83: non | B83: 2 | C83: conventionnel | D83: eleveur naisseur | E83: 2023 | F83: 87087 | G83: 1.52 | H83: 1.52 | I83: 73.46 | J83: 96.12 | K83: 63.23684211 | L83: 1.308467193 | M83: 48.32894737 | N83: 897.1 | O83: 573.1 | P83: 324 | Q83: 332.7 | R83: 239.2 | S83: 122.8 | T83: 15.3 | U83: 107.5 | V83: 49.7 | W83: 66.7 | X83: 93.6 | Y83: 47.42989382 | Z83: 286.1169344 | AA83: 333.5468282 | AB83: 205.7472094 | AC83: 137.2222222 | AD83: 272.8824786 | AE83: 564.4 | AF83: 37416 | AG83: 31027.3 | AH83: 40680 | AI83: 44726.64474 | AJ83: -7310.644737 | AK83: 484 | AL83: 38 | AM83: 5 | AN83: 78.95 | AO83: 89.47 | AP83: 8.977900552 | AQ83: 64.6 | AR83: 144.8 | AS83: 10.1 | AT83: 22 | AU83: 0 | AV83: 0 | AW83: 1648.722222 | AX83: 778.375 | AY83: 915.3181818 | BE83: 993.5714286 | BG83: 0 | BJ83: 87.3 | BK83: 39046.36086 | BL83: 218.6657303 | BM83: 36.24843945 | BN83: 157.2429255 | BO83: 31 | BP83: 31 | BQ83: autres
A84: non | B84: 1 | C84: conventionnel | D84: eleveur naisseur | E84: 2024 | F84: 87087 | G84: 1.52 | H84: 1.52 | I84: 71.73 | J84: 107.05 | K84: 70.42763158 | L84: 1.492402063 | M84: 47.19078947 | N84: 382.4 | O84: 382.4 | P84: 0 | Q84: 345.3 | R84: 283.2 | S84: 186 | T84: 59.2 | U84: 126.8 | V84: 40 | W84: 57.2 | X84: 62.1 | Y84: 70.45016032 | Z84: 333.2788234 | AA84: 403.7289837 | AB84: 209.9919141 | AC84: 140.5875759 | AD84: 296.8024913 | AE84: 37.2 | AF84: 11952 | AG84: 5545.8 | AH84: 9298 | AI84: 45288.48684 | AJ84: -33336.48684 | AK84: 509 | AL84: 32 | AM84: 6 | AN84: 86.65 | AO84: 91.04 | AP84: 17.04545455 | AQ84: 70.4 | AR84: 158.4 | AS84: 8.1 | AT84: 20 | AU84: 0 | AV84: 0 | AW84: 1876.333333 | AX84: 818.2 | AY84: 788.8 | BE84: 770.3333333 | BG84: 0 | BJ84: 78.2 | BK84: 35415.59671 | BL84: 223.3170481 | BM84: 47.2058851 | BN84: 140.707333 | BO84: 31 | BP84: 41 | BQ84: autres
A85: non | B85: 2 | C85: biologique | D85: eleveur naisseur | E85: 2020 | F85: 87093 | G85: 1 | H85: 1 | I85: 59.95 | J85: 80.29 | K85: 80.29 | L85: 1.339282736 | M85: 59.95 | N85: 606.1 | O85: 606.1 | P85: 0 | Q85: 285.8 | R85: 263.8 | S85: 174.8 | T85: 0 | U85: 174.8 | V85: 73.4 | W85: 15.6 | X85: 22 | Y85: 328.6828857 | Z85: 110.9542952 | AA85: 439.637181 | AB85: 259.9694579 | AC85: 124.2216964 | AD85: 311.3907087 | AE85: 320.2 | AF85: 26270 | AG85: 5829.5 | AH85: 24535 | AI85: 51632 | AJ85: -25362 | AK85: 381 | AL85: 38 | AM85: 7 | AN85: 118.881 | AO85: 89.474 | AP85: 11.9047619 | AQ85: 42.9 | AR85: 126 | AS85: 9.2 | AT85: 19 | AU85: 0 | AV85: 0 | AW85: 1399.5 | AY85: 824.2631579 | BE85: 933.9333333 | BG85: 0 | BJ85: 85.6 | BK85: 44196.992 | BL85: 82.84605804 | BM85: 245.4171005 | BN85: 194.1109603 | BO85: 37 | BP85: 49 | BQ85: autres
A86: non | B86: 1 | C86: biologique | D86: eleveur naisseur | E86: 2021 | F86: 87093 | G86: 1 | H86: 1 | I86: 59.81 | J86: 80.98 | K86: 80.98 | L86: 1.353954188 | M86: 59.81 | N86: 599.6 | O86: 599.6 | P86: 0 | Q86: 381.1 | R86: 370.1 | S86: 250 | T86: 0 | U86: 250 | V86: 104.1 | W86: 16 | X86: 11 | Y86: 403.387895 | Z86: 170.335061 | AA86: 573.722956 | AB86: 276.2270523 | AC86: 127.2519141 | AD86: 313.8293406 | AE86: 218.5 | AF86: 10330 | AG86: -9450 | AH86: 7399 | AI86: 52662.38 | AJ86: -42332.38 | AK86: 375 | AL86: 38 | AM86: 5 | AN86: 100 | AO86: 100 | AP86: 10.30110935 | AQ86: 46 | AR86: 126.2 | AS86: 10.2 | AT86: 22 | AU86: 0 | AV86: 0 | AW86: 1532.904762 | AY86: 1158.409091 | BE86: 1287.444444 | BG86: 0 | BJ86: 84.6 | BK86: 44552.37348 | BL86: 125.805631 | BM86: 297.9331934 | BN86: 204.0150654 | BO86: 48 | BP86: 17 | BQ86: autres
A87: non | B87: 3 | C87: biologique | D87: eleveur naisseur | E87: 2022 | F87: 87093 | G87: 1 | H87: 1 | I87: 85.06 | J87: 85.16 | K87: 85.16 | L87: 1.001175641 | M87: 85.06 | N87: 1086.4 | O87: 1039.4 | P87: 47 | Q87: 354.8 | R87: 354.8 | S87: 221.7 | T87: 0 | U87: 221.7 | V87: 107.3 | W87: 25.8 | X87: 0 | Y87: 335.3136609 | Z87: 121.8954855 | AA87: 457.2091465 | AB87: 202.8202445 | AC87: 127.1723814 | AD87: 583.784171 | AE87: 731.6 | AF87: 67676 | AG87: 45360.8 | AH87: 64918 | AI87: 55359.76 | AJ87: 12316.24 | AK87: 363 | AL87: 38 | AM87: 5 | AN87: 150.33 | AO87: 100 | AP87: 7.326007326 | AQ87: 45.9 | AR87: 136.5 | AS87: 13.5 | AT87: 29 | AU87: 0 | AV87: 0 | AW87: 1714.411765 | AY87: 1170.724138 | BB87: 1516.714286 | BE87: 1260.458333 | BG87: 0 | BJ87: 97.1 | BK87: 53754.32696 | BL87: 121.7523485 | BM87: 334.9199155 | BN87: 202.5820808 | BO87: 39 | BP87: 81 | BQ87: autres
A88: non | B88: 3 | C88: biologique | D88: eleveur naisseur | E88: 2023 | F88: 87093 | G88: 1 | H88: 1 | I88: 85.07 | J88: 85.85 | K88: 85.85 | L88: 1.00916892 | M88: 85.07 | N88: 1048.5 | O88: 1048.5 | P88: 0 | Q88: 507.6 | R88: 470 | S88: 312.3 | T88: 0 | U88: 312.3 | V88: 127 | W88: 30.7 | X88: 37.6 | Y88: 331.4880686 | Z88: 166.8498883 | AA88: 498.337957 | AB88: 209.8611732 | AC88: 157.5771695 | AD88: 639.583809 | AE88: 540.9 | AF88: 60087 | AG88: 38350.7 | AH88: 56526 | AI88: 62412 | AJ88: -2325 | AK88: 379 | AL88: 37 | AM88: 5 | AN88: 128.46 | AO88: 100 | AP88: 4.369992717 | AQ88: 50.6 | AR88: 137.3 | AS88: 11.3 | AT88: 26 | AU88: 0 | AV88: 0 | AW88: 1970.944444 | AX88: 680 | AY88: 1137.884615 | AZ88: 857.1428571 | BB88: 1650 | BE88: 1224.318182 | BG88: 0 | BJ88: 86.9 | BK88: 54236.028 | BL88: 165.3339546 | BM88: 328.4762959 | BN88: 207.9544554 | BO88: 36 | BP88: 28 | BQ88: autres
A89: non | B89: 2 | C89: biologique | D89: eleveur naisseur | E89: 2024 | F89: 87093 | G89: 1 | H89: 1 | I89: 84.9 | J89: 85.86 | K89: 85.86 | L89: 1.01130742 | M89: 84.9 | N89: 809.3 | O89: 775 | P89: 34.3 | Q89: 452.5 | R89: 422.5 | S89: 270 | T89: 0 | U89: 270 | V89: 105.7 | W89: 46.8 | X89: 30 | Y89: 328.7872792 | Z89: 108.8199058 | AA89: 437.6071849 | AB89: 204.4100118 | AC89: 135.8944794 | AD89: 657.7561146 | AE89: 356.8 | AF89: 42915 | AG89: 21241.4 | AH89: 34921 | AI89: 63196 | AJ89: -20281 | AK89: 398 | AL89: 41 | AM89: 6 | AN89: 122.84 | AO89: 100 | AP89: 6.741573034 | AQ89: 46.4 | AR89: 133.5 | AS89: 12.1 | AT89: 18 | AU89: 1 | AV89: 0 | AW89: 1886.833333 | AY89: 1194.833333 | AZ89: 948.5555556 | BB89: 1572.333333 | BE89: 1215.176471 | BG89: 0 | BJ89: 91.2 | BK89: 57634.752 | BL89: 107.6031912 | BM89: 325.1111111 | BN89: 202.124505 | BO89: 39 | BP89: 34 | BQ89: autres
A90: non | B90: 1 | C90: conventionnel | D90: eleveur naisseur | E90: 2020 | F90: 87098 | G90: 1.67 | H90: 1.67 | I90: 62.49 | J90: 110 | K90: 65.86826347 | L90: 1.760281645 | M90: 37.41916168 | N90: 535.1 | O90: 535.1 | P90: 0 | Q90: 295.4 | R90: 238.5 | S90: 143.1 | T90: 0 | U90: 143.1 | V90: 62.8 | W90: 32.6 | X90: 56.9 | Y90: 413.2465995 | Z90: 264.7201152 | AA90: 677.9667147 | AB90: 173.8300528 | AC90: 93.69290909 | AD90: 162.902 | AE90: 239.7 | AF90: 2133 | AG90: -7303.7 | AH90: 1234 | AI90: 37804.79042 | AJ90: -35671.79042 | AK90: 461 | AL90: 38 | AM90: 5 | AN90: 105.442 | AO90: 101.639 | AP90: 3.071253071 | AQ90: 58.8 | AR90: 162.8 | AS90: 13.9 | AT90: 19 | AU90: 1 | AV90: 0 | AW90: 1274.333333 | AY90: 994.6315789 | AZ90: 436 | BE90: 986.6842105 | BG90: 0 | BJ90: 90.6 | BK90: 34251.14012 | BL90: 150.3850909 | BM90: 234.7616364 | BN90: 98.75127273 | BO90: 20 | BP90: 31 | BQ90: BBB
A91: non | B91: 1 | C91: conventionnel | D91: eleveur naisseur | E91: 2021 | F91: 87098 | G91: 1.67 | H91: 1.67 | I91: 61.28 | J91: 111.42 | K91: 66.71856287 | L91: 1.818211488 | M91: 36.69461078 | N91: 590.6 | O91: 590.6 | P91: 0 | Q91: 388.3 | R91: 326.7 | S91: 187.3 | T91: 0 | U91: 187.3 | V91: 107.8 | W91: 31.6 | X91: 61.7 | Y91: 541.3789164 | Z91: 354.4265666 | AA91: 895.805483 | AB91: 196.7718668 | AC91: 95.56946688 | AD91: 165.3598995 | AE91: 202.2 | AF91: -6439 | AG91: -16157.6 | AH91: -7478 | AI91: 38395.12575 | AJ91: -44834.12575 | AK91: 445 | AL91: 42 | AM91: 6 | AN91: 114.33 | AO91: 100 | AP91: 4.14446418 | AQ91: 65.5 | AR91: 168.9 | AS91: 20.3 | AT91: 32 | AU91: 0 | AV91: 0 | AW91: 1528 | AY91: 958.9375 | AZ91: 1127.5 | BB91: 725 | BE91: 1001.2 | BG91: 0 | BJ91: 89.2 | BK91: 34248.45217 | BL91: 194.9314306 | BM91: 297.7535451 | BN91: 108.2227607 | BO91: 27 | BP91: 38 | BQ91: BBB
A92: non | B92: 1 | C92: conventionnel | D92: eleveur naisseur | E92: 2022 | F92: 87098 | G92: 1.67 | H92: 1.67 | I92: 87.01 | J92: 115.93 | K92: 69.41916168 | L92: 1.332375589 | M92: 52.10179641 | N92: 703.5 | O92: 703.5 | P92: 0 | Q92: 455.5 | R92: 392.2 | S92: 202.6 | T92: 0 | U92: 202.6 | V92: 128 | W92: 61.6 | X92: 63.3 | Y92: 415.4152396 | Z92: 249.0496495 | AA92: 664.4648891 | AB92: 136.8154235 | AC92: 96.53239024 | AD92: 346.4192185 | AE92: 248 | AF92: 5413 | AG92: -4796.8 | AH92: 3960 | AI92: 40089.88623 | AJ92: -34676.88623 | AK92: 395 | AL92: 44 | AM92: 7 | AN92: 97.33 | AO92: 101.39 | AP92: 7.344632768 | AQ92: 74.9 | AR92: 177 | AS92: 21.2 | AT92: 35 | AU92: 0 | AV92: 0 | AW92: 1597.666667 | AY92: 1354.4 | AZ92: 1214.285714 | BE92: 1354.4 | BG92: 0 | BJ92: 97.6 | BK92: 39127.72896 | BL92: 186.9215044 | BM92: 311.7853877 | BN92: 102.6853274 | BO92: 17 | BP92: 21 | BQ92: BBB
A93: non | B93: 1 | C93: conventionnel | D93: eleveur naisseur | E93: 2023 | F93: 87098 | G93: 1.67 | H93: 1.67 | I93: 87.27 | J93: 112.32 | K93: 67.25748503 | L93: 1.28704022 | M93: 52.25748503 | N93: 729.1 | O93: 729.1 | P93: 0 | Q93: 459.4 | R93: 387.2 | S93: 213.7 | T93: 0 | U93: 213.7 | V93: 141.3 | W93: 32.2 | X93: 72.3 | Y93: 437.7468775 | Z93: 352.6799587 | AA93: 790.4268363 | AB93: 135.2179443 | AC93: 127.9691952 | AD93: 387.1158298 | AE93: 269.6 | AF93: 9612 | AG93: 287.8 | AH93: 7276 | AI93: 44998.20359 | AJ93: -35386.20359 | AK93: 433 | AL93: 44 | AM93: 6 | AN93: 96.39 | AO93: 98.63 | AP93: 6.501182033 | AQ93: 74.6 | AR93: 169.2 | AS93: 17.7 | AT93: 26 | AU93: 0 | AV93: 0 | AW93: 1560.642857 | AY93: 1335.115385 | AZ93: 1204.333333 | BE93: 1335.115385 | BG93: 0 | BJ93: 87.5 | BK93: 39373.42814 | BL93: 274.0240385 | BM93: 340.1190349 | BN93: 105.0611645 | BO93: 21 | BP93: 27 | BQ93: autres
A94: non | B94: 2 | C94: conventionnel | D94: eleveur naisseur | E94: 2024 | F94: 87098 | G94: 1.69 | H94: 1.67 | I94: 88 | J94: 112.43 | K94: 66.52662722 | L94: 1.277613636 | M94: 52.07100592 | N94: 923.9 | O94: 923.9 | P94: 0 | Q94: 481.5 | R94: 408.6 | S94: 216.8 | T94: 0 | U94: 216.8 | V94: 120.1 | W94: 71.7 | X94: 72.9 | Y94: 399.7401136 | Z94: 305.7943182 | AA94: 705.5344318 | AB94: 166.6980682 | AC94: 139.8763675 | AD94: 434.1672152 | AE94: 442.4 | AF94: 25272 | AG94: 16070.3 | AH94: 22197 | AI94: 45564.67066 | AJ94: -20292.67066 | AK94: 405 | AL94: 43 | AM94: 8 | AN94: 102.96 | AO94: 101.27 | AP94: 2.970885324 | AQ94: 77.7 | AR94: 168.3 | AS94: 26 | AT94: 42 | AU94: 1 | AV94: 0 | AW94: 1940.333333 | AY94: 1408.142857 | AZ94: 1227.111111 | BE94: 1418.097561 | BG94: 0 | BJ94: 94.5 | BK94: 43058.61377 | BL94: 239.3480388 | BM94: 312.8802811 | BN94: 130.4761185 | BO94: 13 | BP94: 15 | BQ94: autres
A95: non | B95: 1 | C95: conventionnel | D95: eleveur naisseur | E95: 2024 | F95: 87105 | G95: 1.83 | H95: 1.83 | I95: 47.58 | J95: 76.49 | K95: 41.79781421 | L95: 1.607608239 | M95: 26 | N95: 1012.4 | O95: 1012.4 | P95: 0 | Q95: 523.5 | R95: 449 | S95: 247.9 | T95: 71.6 | U95: 176.3 | V95: 121.5 | W95: 79.6 | X95: 74.6 | Y95: 541.4838167 | Z95: 193.2240437 | AA95: 734.7078604 | AB95: 377.7578815 | AC95: 159.1737482 | AD95: 269.4949182 | AE95: 488.9 | AF95: 12901 | AG95: 5418.5 | AH95: 17580 | AI95: 37000 | AJ95: -24099 | AK95: 394 | AL95: 33 | AM95: 6 | AN95: 88.63 | AO95: 92 | AP95: 8.688097307 | AQ95: 51.9 | AR95: 115.1 | AS95: 1.3 | AT95: 19 | AU95: 0 | AV95: 0 | AW95: 2684.176471 | AX95: 859.1052632 | AY95: 859.7894737 | BG95: 0 | BJ95: 75.9 | BK95: 28083 | BL95: 120.1934893 | BM95: 336.8257289 | BN95: 234.9813047 | BO95: 35 | BP95: 35 | BQ95: BBB
A96: non | B96: 3 | C96: conventionnel | D96: eleveur naisseur | E96: 2020 | F96: 88015 | G96: 1 | H96: 1 | I96: 106.27 | J96: 186.85 | K96: 186.85 | L96: 1.758257269 | M96: 106.27 | N96: 828 | O96: 828 | P96: 0 | Q96: 513.7 | R96: 419.4 | S96: 327 | T96: 109.9 | U96: 217.1 | V96: 67.2 | W96: 25.2 | X96: 94.3 | Y96: 391.7163828 | Z96: 97.145008 | AA96: 488.8613908 | AB96: 396.1714501 | AC96: 121.88076 | AD96: 126.0201174 | AE96: 314.4 | AF96: 36309 | AG96: 6907.5 | AH96: 60271 | AI96: 48866 | AJ96: -12557 | AK96: 401 | AL96: 31 | AM96: 5 | AN96: 101.413 | AO96: 102.521 | AP96: 3.243593902 | AQ96: 118.3 | AR96: 308.3 | AS96: 40.2 | AT96: 63 | AU96: 1 | AV96: 0 | AW96: 1810.142857 | AY96: 1119.873016 | BE96: 1136.916667 | BG96: 0 | BJ96: 72.6 | BK96: 35476.716 | BL96: 55.25073588 | BM96: 222.7867273 | BN96: 225.3205245 | BO96: 41 | BP96: 30 | BQ96: BBB
A97: non | B97: 3 | C97: conventionnel | D97: eleveur naisseur | E97: 2021 | F97: 88015 | G97: 1 | H97: 1 | I97: 113.19 | J97: 189.79 | K97: 189.79 | L97: 1.676738228 | M97: 113.19 | N97: 1024.4 | O97: 1024.4 | P97: 0 | Q97: 503.8 | R97: 419.5 | S97: 318.1 | T97: 53.2 | U97: 264.9 | V97: 75.6 | W97: 25.8 | X97: 84.2 | Y97: 430.4183232 | Z97: 65.9107695 | AA97: 496.3290927 | AB97: 340.1743087 | AC97: 123.9760788 | AD97: 131.1971129 | AE97: 520.6 | AF97: 66452 | AG97: 35851.9 | AH97: 84872 | AI97: 50781.58 | AJ97: 15670.42 | AK97: 428 | AL97: 31 | AM97: 6 | AN97: 115.62 | AO97: 104.8 | AP97: 3.847386983 | AQ97: 111.7 | AR97: 311.9 | AS97: 33.7 | AT97: 47 | AU97: 4 | AV97: 0 | AW97: 2193.3 | AY97: 1362.234043 | BB97: 932.2222222 | BC97: 2857 | BD97: 1379.333333 | BE97: 1418.916667 | BG97: 0 | BJ97: 82.1 | BK97: 41691.67718 | BL97: 39.30892039 | BM97: 256.6997734 | BN97: 202.8786027 | BO97: 36 | BP97: 41 | BQ97: BBB
A98: non | B98: 2 | C98: conventionnel | D98: eleveur naisseur | E98: 2022 | F98: 88015 | G98: 1 | H98: 1 | I98: 106.04 | J98: 191.26 | K98: 191.26 | L98: 1.803658997 | M98: 106.04 | N98: 1136.5 | O98: 1136.5 | P98: 0 | Q98: 668.5 | R98: 509.5 | S98: 420.4 | T98: 144.5 | U98: 275.9 | V98: 61.5 | W98: 27.6 | X98: 159 | Y98: 603.8013014 | Z98: 132.9403998 | AA98: 736.7417012 | AB98: 353.9715202 | AC98: 129.292586 | AD98: 122.5243251 | AE98: 468 | AF98: 37693 | AG98: 5154.6 | AH98: 51579 | AI98: 53382.63 | AJ98: -15689.63 | AK98: 405 | AL98: 31 | AM98: 5 | AN98: 93.75 | AO98: 99.15 | AP98: 1.284109149 | AQ98: 124.8 | AR98: 311.5 | AS98: 32.6 | AT98: 59 | AU98: 1 | AV98: 1 | AW98: 2507.767442 | AY98: 1385.79661 | AZ98: 1090 | BB98: 1625 | BE98: 1397.7 | BG98: 850 | BH98: 850 | BI98: 3.847058824 | BJ98: 84.1 | BK98: 44894.79183 | BL98: 73.70595002 | BM98: 334.7646659 | BN98: 196.2519084 | BO98: 34 | BP98: 30 | BQ98: BBB
A99: non | B99: 3 | C99: conventionnel | D99: eleveur naisseur | E99: 2023 | F99: 88015 | G99: 1 | H99: 1 | I99: 110.15 | J99: 190.74 | K99: 190.74 | L99: 1.731638675 | M99: 110.15 | N99: 1110.9 | O99: 1110.9 | P99: 0 | Q99: 671.7 | R99: 552.5 | S99: 440.2 | T99: 101.5 | U99: 338.7 | V99: 74.4 | W99: 37.9 | X99: 119.2 | Y99: 533.5233772 | Z99: 102.3985474 | AA99: 635.9219246 | AB99: 344.3410803 | AC99: 128.5493342 | AD99: 169.2374583 | AE99: 439.2 | AF99: 43738 | AG99: 11355.9 | AH99: 56953 | AI99: 63526.5 | AJ99: -19788.5 | AK99: 434 | AL99: 31 | AM99: 5 | AN99: 110.2 | AO99: 101.5 | AP99: 6.478781989 | AQ99: 122.5 | AR99: 308.7 | AS99: 29.2 | AT99: 33 | AU99: 1 | AV99: 0 | AW99: 2645.574468 | AY99: 1451.090909 | AZ99: 1146.875 | BD99: 2225.4 | BE99: 1486.352941 | BG99: 0 | BJ99: 86.1 | BK99: 54696.3165 | BL99: 59.13389955 | BM99: 308.1031771 | BN99: 198.8527315 | BO99: 41 | BP99: 47 | BQ99: BBB
A100: non | B100: 3 | C100: conventionnel | D100: eleveur naisseur | E100: 2024 | F100: 88015 | G100: 1 | H100: 1 | I100: 114.78 | J100: 189.96 | K100: 189.96 | L100: 1.654992159 | M100: 114.78 | N100: 1273.1 | O100: 1273.1 | P100: 0 | Q100: 646.1 | R100: 542.1 | S100: 431.4 | T100: 92.1 | U100: 339.3 | V100: 79.1 | W100: 31.6 | X100: 104 | Y100: 451.5807632 | Z100: 96.42359296 | AA100: 548.0043562 | AB100: 302.7287855 | AC100: 129.0771741 | AD100: 174.3816854 | AE100: 627 | AF100: 97190 | AG100: 64022.2 | AH100: 114909 | AI100: 64324.5 | AJ100: 32865.5 | AK100: 403 | AL100: 31 | AM100: 5 | AN100: 98.04 | AO100: 100 | AP100: 5.445227418 | AQ100: 122.4 | AR100: 312.2 | AS100: 37.8 | AT100: 51 | AU100: 4 | AV100: 1 | AW100: 2879.772727 | AY100: 1572.196078 | AZ100: 1400.5 | BB100: 1314.285714 | BE100: 1648.660377 | BG100: 828 | BH100: 828 | BI100: 4.22705314 | BJ100: 85.6 | BK100: 55061.772 | BL100: 58.26226574 | BM100: 272.8597599 | BN100: 182.9185618 | BO100: 37 | BP100: 34 | BQ100: BBB
A101: non | B101: 2 | C101: conventionnel | D101: eleveur engraisseur | E101: 2020 | F101: 88082 | G101: 2.87 | H101: 2.61 | I101: 143.64 | J101: 454.29 | K101: 158.2891986 | L101: 3.162698413 | M101: 50.04878049 | N101: 993.6 | O101: 993.6 | P101: 0 | Q101: 768.4 | R101: 700.2 | S101: 539.3 | T101: 21.7 | U101: 517.6 | V101: 143.9 | W101: 17 | X101: 68.2 | Y101: 541.6197368 | Z101: 96.65698273 | AA101: 638.2767196 | AB101: 394.7608605 | AC101: 90.95029607 | AD101: 72.48109694 | AE101: 225.2 | AF101: 16376 | AG101: -10885.4 | AH101: 26641 | AI101: 57934.09962 | AJ101: -41558.09962 | AK101: 417 | AL101: 34 | AM101: 5 | AN101: 94.548 | AO101: 95.753 | AP101: 6.952017448 | AQ101: 262.3 | AR101: 733.6 | AS101: 107.6 | AT101: 0 | AU101: 76 | AV101: 87 | AW101: 2429.436782 | BA101: 2372.460526 | BC101: 2283.466667 | BF101: 2368 | BG101: 61206 | BH101: 703.5172414 | BI101: 3.365944515 | BJ101: 88.9 | BK101: 51503.41456 | BL101: 30.56155539 | BM101: 171.2524137 | BN101: 124.8177376 | BO101: 35 | BP101: 27 | BQ101: BBB
A102: non | B102: 2 | C102: conventionnel | D102: eleveur engraisseur | E102: 2021 | F102: 88082 | G102: 2.88 | H102: 2.6 | I102: 143.45 | J102: 434.36 | K102: 150.8194444 | L102: 3.027953991 | M102: 49.80902778 | N102: 1152.3 | O102: 1152.3 | P102: 0 | Q102: 863.3 | R102: 774.6 | S102: 632 | T102: 15 | U102: 617 | V102: 123.5 | W102: 19.1 | X102: 88.8 | Y102: 615.1975601 | Z102: 123.1223423 | AA102: 738.3199024 | AB102: 373.780969 | AC102: 98.85095313 | AD102: 76.01481911 | AE102: 288.9 | AF102: 18176 | AG102: -8074.7 | AH102: 26542 | AI102: 59317.51538 | AJ102: -41141.51538 | AK102: 410 | AL102: 31 | AM102: 6 | AN102: 92.06 | AO102: 100 | AP102: 6.118759561 | AQ102: 236.8 | AR102: 719.1 | AS102: 100.3 | AT102: 0 | AU102: 89 | AV102: 108 | AW102: 2559.463636 | BA102: 2750.033708 | BC102: 2537.28 | BD102: 2278.25 | BF102: 2717.203704 | BG102: 83147 | BH102: 769.8796296 | BI102: 3.529387711 | BJ102: 91.3 | BK102: 54156.89155 | BL102: 40.66189336 | BM102: 203.1726909 | BN102: 123.443411 | BO102: 48 | BP102: 32 | BQ102: BBB
A103: non | B103: 2 | C103: conventionnel | D103: eleveur engraisseur | E103: 2022 | F103: 88082 | G103: 2.87 | H103: 2.6 | I103: 143.69 | J103: 418.06 | K103: 145.6655052 | L103: 2.909457861 | M103: 50.06620209 | N103: 1289.1 | O103: 1289.1 | P103: 0 | Q103: 908.2 | R103: 812.5 | S103: 665 | T103: 15.9 | U103: 649.1 | V103: 126.5 | W103: 21 | X103: 95.6 | Y103: 606.3058668 | Z103: 136.3055188 | AA103: 742.6113856 | AB103: 378.6397105 | AC103: 107.5072956 | AD103: 80.81509219 | AE103: 380.9 | AF103: 29815 | AG103: 3718.7 | AH103: 36405 | AI103: 62355.77692 | AJ103: -32540.77692 | AK103: 417 | AL103: 32 | AM103: 5 | AN103: 96.31 | AO103: 97.66 | AP103: 7.908611599 | AQ103: 217 | AR103: 682.8 | AS103: 91.9 | AT103: 0 | AU103: 73 | AV103: 87 | AW103: 2935.876404 | BA103: 2894.561644 | BC103: 2851.066667 | BD103: 2706.428571 | BF103: 2886.114943 | BG103: 71797 | BH103: 825.2528736 | BI103: 3.497249189 | BJ103: 92.3 | BK103: 57554.3821 | BL103: 46.84911257 | BM103: 208.3913553 | BN103: 130.1409845 | BO103: 44 | BP103: 39 | BQ103: BBB
A104: non | B104: 2 | C104: conventionnel | D104: eleveur engraisseur | E104: 2023 | F104: 88082 | G104: 2.95 | H104: 2.6 | I104: 140.56 | J104: 399.99 | K104: 135.5898305 | L104: 2.845688674 | M104: 47.64745763 | N104: 1434.7 | O104: 1434.7 | P104: 0 | Q104: 935.7 | R104: 800 | S104: 657.5 | T104: 6.9 | U104: 650.6 | V104: 118.4 | W104: 24.1 | X104: 135.7 | Y104: 672.3643284 | Z104: 203.3439812 | AA104: 875.7083096 | AB104: 424.9992886 | AC104: 107.1275282 | AD104: 57.56876805 | AE104: 499 | AF104: 31765 | AG104: 6648 | AH104: 41343 | AI104: 70299.23077 | AJ104: -38534.23077 | AK104: 450 | AL104: 32 | AM104: 4 | AN104: 93.17 | AO104: 96.95 | AP104: 5.248533498 | AQ104: 205 | AR104: 647.8 | AS104: 84.8 | AT104: 0 | AU104: 50 | AV104: 75 | AW104: 2963.492537 | BA104: 3057.14 | BC104: 3059.166667 | BD104: 2801.2 | BF104: 3005.346667 | BG104: 61704 | BH104: 822.72 | BI104: 3.652939842 | BJ104: 88.4 | BK104: 62144.52 | BL104: 71.45686142 | BM104: 236.2747319 | BN104: 149.3484837 | BO104: 67 | BP104: 47 | BQ104: autres
A105: non | B105: 2 | C105: conventionnel | D105: eleveur naisseur | E105: 2020 | F105: 88091 | G105: 2 | H105: 2 | I105: 73.92 | J105: 212.76 | K105: 106.38 | L105: 2.878246753 | M105: 36.96 | N105: 659.2 | O105: 659.2 | P105: 0 | Q105: 460.6 | R105: 391.9 | S105: 219.7 | T105: 52.1 | U105: 167.6 | V105: 127.2 | W105: 45 | X105: 68.7 | Y105: 596.6766775 | Z105: 88.06141775 | AA105: 684.7380952 | AB105: 180.367546 | AC105: 139.8526509 | AD105: 134.6835174 | AE105: 198.6 | AF105: 24826 | AG105: 10436.4 | AH105: 31268 | AI105: 55320 | AJ105: -30494 | AK105: 534 | AL105: 37 | AM105: 8 | AN105: 77.503 | AO105: 100 | AP105: 7.594936709 | AQ105: 145.8 | AR105: 316 | AS105: 36.9 | AT105: 64 | AU105: 4 | AV105: 3 | AW105: 1881.868421 | AY105: 1178.296875 | BG105: 2148 | BH105: 716 | BI105: 3.151769088 | BJ105: 79.9 | BK105: 44200.68 | BL105: 30.59550667 | BM105: 207.3056026 | BN105: 62.66576894 | BO105: 28 | BP105: 34 | BQ105: BBB
A106: non | B106: 2 | C106: conventionnel | D106: eleveur naisseur | E106: 2021 | F106: 88091 | G106: 2 | H106: 2 | I106: 77.04 | J106: 201.87 | K106: 100.935 | L106: 2.620327103 | M106: 38.52 | N106: 637.7 | O106: 637.7 | P106: 0 | Q106: 478.4 | R106: 424.7 | S106: 263.8 | T106: 91.3 | U106: 172.5 | V106: 129.6 | W106: 31.3 | X106: 53.7 | Y106: 492.6683541 | Z106: 63.48208723 | AA106: 556.1504413 | AB106: 176.0686656 | AC106: 153.9917769 | AD106: 147.609651 | AE106: 159.3 | AF106: 23323 | AG106: 9780.3 | AH106: 29108 | AI106: 55953.78 | AJ106: -32630.78 | AK106: 506 | AL106: 40 | AM106: 8 | AN106: 75.19 | AO106: 100.94 | AP106: 8.449788755 | AQ106: 142.3 | AR106: 307.7 | AS106: 31 | AT106: 38 | AU106: 2 | AV106: 2 | AW106: 2089.704545 | AY106: 1091.026316 | BG106: 1008 | BH106: 504 | BI106: 3.21031746 | BJ106: 83.5 | BK106: 46721.4063 | BL106: 24.22677961 | BM106: 188.0178828 | BN106: 67.19339179 | BO106: 33 | BP106: 27 | BQ106: BBB
A107: non | B107: 1 | C107: conventionnel | D107: intermediaire | E107: 2022 | F107: 88091 | G107: 2 | H107: 2 | I107: 78.88 | J107: 201.94 | K107: 100.97 | L107: 2.560091278 | M107: 39.44 | N107: 446.1 | O107: 446.1 | P107: 0 | Q107: 494.4 | R107: 426.2 | S107: 306.3 | T107: 80.4 | U107: 225.9 | V107: 92.4 | W107: 27.5 | X107: 68.2 | Y107: 494.6282961 | Z107: 206.1327333 | AA107: 700.7610294 | AB107: 170.284356 | AC107: 155.526394 | AD107: 118.0255273 | AE107: -48.3 | AF107: -5587 | AG107: -18848.1 | AH107: -4170 | AI107: 57831.18 | AJ107: -63418.18 | AK107: 522 | AL107: 36 | AM107: 6 | AN107: 56.25 | AO107: 92.31 | AP107: 13.30150068 | AQ107: 128 | AR107: 293.2 | AS107: 27.8 | AT107: 22 | AU107: 20 | AV107: 0 | AW107: 2214.125 | AY107: 1188.5 | BA107: 1522 | BE107: 1429.205128 | BG107: 0 | BJ107: 82.2 | BK107: 47537.22996 | BL107: 80.51772804 | BM107: 193.2072893 | BN107: 66.51495494 | BO107: 27 | BP107: 13 | BQ107: BBB
A108: non | B108: 1 | C108: conventionnel | D108: intermediaire | E108: 2023 | F108: 88091 | G108: 2 | H108: 2 | I108: 81.05 | J108: 184.35 | K108: 92.175 | L108: 2.2745219 | M108: 40.525 | N108: 624.8 | O108: 624.8 | P108: 0 | Q108: 470.2 | R108: 401.4 | S108: 216.3 | T108: 70.7 | U108: 145.6 | V108: 147.1 | W108: 38 | X108: 68.9 | Y108: 470.4772363 | Z108: 131.2769895 | AA108: 601.7542258 | AB108: 176.1481801 | AC108: 121.0805533 | AD108: 106.3367119 | AE108: 154.6 | AF108: 7336 | AG108: -5261.9 | AH108: 8118 | AI108: 65198.25 | AJ108: -57862.25 | AK108: 565 | AL108: 36 | AM108: 6 | AN108: 91.17 | AO108: 91.26 | AP108: 15.65344012 | AQ108: 103.1 | AR108: 274.7 | AS108: 32.8 | AT108: 8 | AU108: 2 | AV108: 0 | AW108: 2058.5 | AY108: 1161.75 | BD108: 2070.7 | BE108: 1281.4 | BG108: 0 | BJ108: 88.1 | BK108: 57439.65825 | BL108: 57.71630052 | BM108: 206.8466504 | BN108: 77.44404665 | BO108: 64 | BP108: 49 | BQ108: BBB
A109: non | B109: 1 | C109: conventionnel | D109: eleveur naisseur | E109: 2024 | F109: 88091 | G109: 2 | H109: 2 | I109: 80.79 | J109: 151.99 | K109: 75.995 | L109: 1.88129719 | M109: 40.395 | N109: 323.4 | O109: 323.4 | P109: 0 | Q109: 447.1 | R109: 353.7 | S109: 206 | T109: 30.8 | U109: 175.2 | V109: 110.4 | W109: 37.3 | X109: 93.4 | Y109: 451.6327516 | Z109: 166.5961134 | AA109: 618.228865 | AB109: 181.7054091 | AC109: 86.20251332 | AD109: 201.1679925 | AE109: -123.7 | AF109: -10293 | AG109: -20714.4 | AH109: -13601 | AI109: 64888.75 | AJ109: -75181.75 | AK109: 577 | AL109: 41 | AM109: 6 | AN109: 52.36 | AO109: 87.72 | AP109: 21.957914 | AQ109: 95.5 | AR109: 218.6 | AS109: 12.4 | AT109: 25 | AU109: 21 | AV109: 7 | AW109: 2134.666667 | AX109: 702.8888889 | AY109: 949.16 | BA109: 1637.142857 | BC109: 2022.857143 | BE109: 1466.4375 | BF109: 2058.714286 | BG109: 4351 | BH109: 621.5714286 | BI109: 3.312112158 | BJ109: 74.9 | BK109: 48601.67375 | BL109: 88.55385223 | BM109: 240.0645437 | BN109: 96.58517008 | BO109: 39 | BP109: 32 | BQ109: BBB
A110: non | B110: 1 | C110: conventionnel | D110: eleveur engraisseur | E110: 2020 | F110: 88126 | G110: 1.54 | H110: 1.54 | I110: 62.98 | J110: 142.21 | K110: 92.34415584 | L110: 2.258018419 | M110: 40.8961039 | N110: 757.5 | O110: 731.4 | P110: 26.1 | Q110: 642.2 | R110: 579.8 | S110: 464.2 | T110: 0 | U110: 464.2 | V110: 82.9 | W110: 32.7 | X110: 62.5 | Y110: 327.1276596 | Z110: 47.35789139 | AA110: 374.485551 | AB110: 206.2305494 | AC110: 108.7077561 | AD110: 116.3705084 | AE110: 115.2 | AF110: 6793 | AG110: -11023.2 | AH110: 7749 | AI110: 56833.76623 | AJ110: -50040.76623 | AK110: 428 | AL110: 44 | AM110: 8 | AN110: 85.714 | AO110: 100 | AP110: 6.286484059 | AQ110: 80.5 | AR110: 222.7 | AS110: 30.2 | AT110: 0 | AU110: 21 | AV110: 21 | AW110: 2228.619048 | BA110: 2310.190476 | BF110: 2374.428571 | BG110: 14469 | BH110: 689 | BI110: 3.446195314 | BJ110: 93.1 | BK110: 52912.23636 | BL110: 20.97320864 | BM110: 144.8737782 | BN110: 91.33253639 | BO110: 34 | BP110: 35 | BQ110: BBB
A111: non | B111: 1 | C111: conventionnel | D111: eleveur engraisseur | E111: 2021 | F111: 88126 | G111: 1.36 | H111: 1.36 | I111: 62.76 | J111: 146.34 | K111: 107.6029412 | L111: 2.331739962 | M111: 46.14705882 | N111: 793.5 | O111: 793.5 | P111: 0 | Q111: 707.1 | R111: 634.7 | S111: 530.3 | T111: 0 | U111: 530.3 | V111: 60.6 | W111: 43.8 | X111: 72.4 | Y111: 381.3256851 | Z111: 40.51147228 | AA111: 421.8371574 | AB111: 190.5619822 | AC111: 112.667555 | AD111: 112.96 | AE111: 86.4 | AF111: 4101 | AG111: -15581 | AH111: 6065 | AI111: 60347.08824 | AJ111: -56246.08824 | AK111: 456 | AL111: 37 | AM111: 7 | AN111: 77.71 | AO111: 100 | AP111: 3.048780488 | AQ111: 78.5 | AR111: 229.6 | AS111: 29.7 | AT111: 0 | AU111: 17 | AV111: 19 | AW111: 2402.875 | BA111: 2376.588235 | BC111: 2373 | BF111: 2536.736842 | BG111: 13090 | BH111: 688.9473684 | BI111: 3.682047364 | BJ111: 93.2 | BK111: 56243.48624 | BL111: 17.37392374 | BM111: 163.5369687 | BN111: 81.72522892 | BO111: 32 | BP111: 19 | BQ111: BBB
A112: non | B112: 2 | C112: conventionnel | D112: eleveur engraisseur | E112: 2022 | F112: 88126 | G112: 1 | H112: 1 | I112: 58.66 | J112: 148.95 | K112: 148.95 | L112: 2.539209001 | M112: 58.66 | N112: 1021.5 | O112: 1021.5 | P112: 0 | Q112: 730.3 | R112: 648.7 | S112: 549.7 | T112: 14 | U112: 535.7 | V112: 67.7 | W112: 31.3 | X112: 81.6 | Y112: 523.3317422 | Z112: 76.08847596 | AA112: 599.4202182 | AB112: 210.5110808 | AC112: 118.7579725 | AD112: 104.0030838 | AE112: 291.2 | AF112: 30329 | AG112: 3197.2 | AH112: 39143 | AI112: 69990.56 | AJ112: -39661.56 | AK112: 442 | AL112: 41 | AM112: 8 | AN112: 87.19 | AO112: 100 | AP112: 5.201560468 | AQ112: 75.7 | AR112: 230.7 | AS112: 30.7 | AT112: 0 | AU112: 16 | AV112: 29 | AW112: 2939.055556 | BA112: 2683.1875 | BC112: 2671.846154 | BF112: 2678.103448 | BG112: 19587 | BH112: 675.4137931 | BI112: 3.965129933 | BJ112: 88.9 | BK112: 62221.60784 | BL112: 29.96542464 | BM112: 206.1003021 | BN112: 82.90419604 | BO112: 26 | BP112: 44 | BQ112: BBB
A113: non | B113: 1 | C113: conventionnel | D113: eleveur engraisseur | E113: 2023 | F113: 88126 | G113: 1 | H113: 1 | I113: 58.66 | J113: 153.56 | K113: 153.56 | L113: 2.617797477 | M113: 58.66 | N113: 990.1 | O113: 990.1 | P113: 0 | Q113: 784.2 | R113: 710 | S113: 605.8 | T113: 19.6 | U113: 586.2 | V113: 67.4 | W113: 36.8 | X113: 74.2 | Y113: 491.6977497 | Z113: 63.04125469 | AA113: 554.7390044 | AB113: 233.5993863 | AC113: 77.08387601 | AD113: 105.1311101 | AE113: 205.9 | AF113: 11593 | AG113: -16778.5 | AH113: 14346 | AI113: 79129.5 | AJ113: -67536.5 | AK113: 456 | AL113: 39 | AM113: 7 | AN113: 79.5 | AO113: 101.59 | AP113: 2.174858634 | AQ113: 80.5 | AR113: 229.9 | AS113: 30.4 | AT113: 0 | AU113: 17 | AV113: 24 | AW113: 3328.941176 | BA113: 2555.882353 | BC113: 2886.4 | BF113: 2847.208333 | BG113: 16376 | BH113: 682.3333333 | BI113: 4.172752809 | BJ113: 94.2 | BK113: 74539.989 | BL113: 24.08179213 | BM113: 187.8287966 | BN113: 89.23508726 | BO113: 24 | BP113: 27 | BQ113: BBB
A114: non | B114: 2 | C114: conventionnel | D114: eleveur engraisseur | E114: 2024 | F114: 88126 | G114: 1 | H114: 1 | I114: 57.49 | J114: 153.76 | K114: 153.76 | L114: 2.674552096 | M114: 57.49 | N114: 1170.5 | O114: 1170.5 | P114: 0 | Q114: 769.3 | R114: 666.4 | S114: 543.4 | T114: 0 | U114: 543.4 | V114: 77.3 | W114: 45.7 | X114: 102.9 | Y114: 761.0020873 | Z114: 62.70220908 | AA114: 823.7042964 | AB114: 253.6512437 | AC114: 118.7747138 | AD114: 120.8777274 | AE114: 401.2 | AF114: 35186 | AG114: 4285.8 | AH114: 38665 | AI114: 80123.5 | AJ114: -44937.5 | AK114: 452 | AL114: 40 | AM114: 7 | AN114: 81.97 | AO114: 98.59 | AP114: 5.323505324 | AQ114: 85.4 | AR114: 244.2 | AS114: 37.6 | AT114: 0 | AU114: 21 | AV114: 31 | AW114: 3426.454545 | BA114: 3071 | BC114: 3236.090909 | BF114: 3161.419355 | BG114: 22382 | BH114: 722 | BI114: 4.378697167 | BJ114: 93.2 | BK114: 74675.102 | BL114: 23.44400364 | BM114: 284.5344043 | BN114: 94.83877471 | BO114: 34 | BP114: 34 | BQ114: BBB
A115: non | B115: 1 | C115: conventionnel | D115: eleveur naisseur | E115: 2020 | F115: 88130 | G115: 1.67 | H115: 1.67 | I115: 25.71 | J115: 40.01 | K115: 23.95808383 | L115: 1.556203812 | M115: 15.39520958 | N115: 1006 | O115: 988.5 | P115: 17.5 | Q115: 807.3 | R115: 645.2 | S115: 430.7 | T115: 155.3 | U115: 275.4 | V115: 156.5 | W115: 58 | X115: 162.1 | Y115: 182.5153637 | Z115: 164.3683392 | AA115: 346.8837028 | AB115: 109.378063 | AC115: 129.03999 | AD115: 163.4548229 | AE115: 198.7 | AF115: 5988 | AG115: 2349.7 | AH115: 10178 | AI115: 22537.96407 | AJ115: -16549.96407 | AK115: 473 | AL115: 30 | AM115: 5 | AN115: 117.886 | AO115: 93.548 | AP115: 5.908419498 | AQ115: 24.6 | AR115: 67.7 | AS115: 8.6 | AT115: 8 | AU115: 0 | AV115: 0 | AW115: 1899.6875 | AY115: 1146.875 | BE115: 1183.333333 | BG115: 0 | BJ115: 75 | BK115: 16903.47305 | BL115: 105.6213447 | BM115: 117.2824294 | BN115: 70.28517871 | BO115: 69 | BP115: 61 | BQ115: BBB
A116: non | B116: 1 | C116: conventionnel | D116: eleveur naisseur | E116: 2022 | F116: 88159 | G116: 1 | H116: 1 | I116: 49.82 | J116: 47.22 | K116: 47.22 | L116: 0.9478121236 | M116: 49.82 | N116: 954.4 | O116: 954.4 | P116: 0 | Q116: 498.4 | R116: 364.8 | S116: 197.7 | T116: 143.5 | U116: 54.2 | V116: 101.7 | W116: 65.4 | X116: 133.6 | Y116: 349.1242473 | Z116: 52.67302288 | AA116: 401.7972702 | AB116: 391.9074669 | AC116: 160.5463787 | AD116: 228.7852171 | AE116: 456 | AF116: 9992 | AG116: -1446.4 | AH116: 13239 | AI116: 66234 | AJ116: -56242 | AK116: 394 | AL116: 30 | AM116: 5 | AN116: 103.09 | AO116: 100 | AP116: 1.265822785 | AQ116: 29.1 | AR116: 79 | AS116: 6.7 | AT116: 19 | AU116: 0 | AV116: 0 | AW116: 1940.090909 | AX116: 750.2 | AY116: 1127.684211 | BE116: 1262.5 | BG116: 0 | BJ116: 66.6 | BK116: 44111.844 | BL116: 55.57327404 | BM116: 368.3475222 | BN116: 413.4864464 | BO116: 38 | BP116: 41 | BQ116: BBB
A117: non | B117: 2 | C117: conventionnel | D117: eleveur engraisseur | E117: 2021 | F117: 88167 | G117: 2.61 | H117: 2.61 | I117: 92.72 | J117: 210.14 | K117: 80.51340996 | L117: 2.266393443 | M117: 35.52490421 | N117: 1369 | O117: 1359.5 | P117: 9.5 | Q117: 701.9 | R117: 597.2 | S117: 417.4 | T117: 0 | U117: 417.4 | V117: 132.8 | W117: 47 | X117: 104.8 | Y117: 590.5202761 | Z117: 247.2071829 | AA117: 837.727459 | AB117: 502.3833046 | AC117: 108.700533 | AD117: 165.2047682 | AE117: 667.1 | AF117: 37649 | AG117: 9976 | AH117: 43739 | AI117: 46958.37165 | AJ117: -9309.371648 | AK117: 406 | AL117: 30 | AM117: 5 | AN117: 126.85 | AO117: 100 | AP117: 3.094233474 | AQ117: 108 | AR117: 355.5 | AS117: 57.6 | AT117: 14 | AU117: 56 | AV117: 48 | AW117: 2252.769231 | AY117: 1156.857143 | BA117: 2669.553571 | BE117: 1764.866667 | BF117: 2742.375 | BG117: 37621 | BH117: 783.7708333 | BI117: 3.498950054 | BJ117: 89.9 | BK117: 42215.57611 | BL117: 109.0751404 | BM117: 260.5550585 | BN117: 221.6664129 | BO117: 49 | BP117: 66 | BQ117: BBB
A118: non | B118: 2 | C118: conventionnel | D118: eleveur engraisseur | E118: 2022 | F118: 88167 | G118: 2.83 | H118: 2.83 | I118: 89.11 | J118: 201.03 | K118: 71.03533569 | L118: 2.25597576 | M118: 31.48763251 | N118: 1453.7 | O118: 1453.7 | P118: 0 | Q118: 846 | R118: 718.9 | S118: 518.8 | T118: 10.7 | U118: 508.1 | V118: 152.6 | W118: 47.5 | X118: 127.1 | Y118: 802.8489507 | Z118: 269.7780272 | AA118: 1072.626978 | AB118: 551.2419482 | AC118: 142.7622743 | AD118: 163.3407565 | AE118: 607.7 | AF118: 19887 | AG118: -6390.3 | AH118: 20861 | AI118: 33653.78445 | AJ118: -13766.78445 | AK118: 404 | AL118: 30 | AM118: 4 | AN118: 114.96 | AO118: 99.27 | AP118: 5.601415094 | AQ118: 118.3 | AR118: 339.2 | AS118: 46.2 | AT118: 39 | AU118: 43 | AV118: 44 | AW118: 2580.42 | AY118: 1593.512821 | BA118: 2867.069767 | BC118: 3690.166667 | BE118: 1655.55 | BF118: 2916.545455 | BG118: 34416 | BH118: 782.1818182 | BI118: 3.728730823 | BJ118: 95.5 | BK118: 32139.36415 | BL118: 119.5837437 | BM118: 355.8765856 | BN118: 244.3474606 | BO118: 43 | BP118: 46 | BQ118: BBB
A119: non | B119: 2 | C119: conventionnel | D119: eleveur naisseur | E119: 2023 | F119: 88167 | G119: 1.92 | H119: 1.92 | I119: 95.52 | J119: 191.45 | K119: 99.71354167 | L119: 2.004292295 | M119: 49.75 | N119: 1547.4 | O119: 1547.4 | P119: 0 | Q119: 884.9 | R119: 729.2 | S119: 446.6 | T119: 18.7 | U119: 427.9 | V119: 224.4 | W119: 58.2 | X119: 155.7 | Y119: 835.8044389 | Z119: 292.0361181 | AA119: 1127.840557 | AB119: 535.2823492 | AC119: 146.6210499 | AD119: 187.4765693 | AE119: 662.5 | AF119: 25680 | AG119: -11634.3 | AH119: 25880 | AI119: 77137.39583 | AJ119: -51457.39583 | AK119: 404 | AL119: 29 | AM119: 4 | AN119: 132.28 | AO119: 100.67 | AP119: 4.967401428 | AQ119: 113.4 | AR119: 322.1 | AS119: 40.6 | AT119: 74 | AU119: 10 | AV119: 0 | AW119: 2692.303571 | AY119: 1527.486486 | BA119: 3671.2 | BD119: 2164.142857 | BE119: 1809.7625 | BG119: 0 | BJ119: 93.7 | BK119: 72277.7399 | BL119: 145.7053539 | BM119: 417.0072604 | BN119: 267.0680073 | BO119: 51 | BP119: 63 | BQ119: BBB
A120: non | B120: 2 | C120: conventionnel | D120: eleveur naisseur | E120: 2024 | F120: 88167 | G120: 1.8 | H120: 1.8 | I120: 96.56 | J120: 182.53 | K120: 101.4055556 | L120: 1.890327258 | M120: 53.64444444 | N120: 1377.7 | O120: 1377.7 | P120: 0 | Q120: 785.9 | R120: 654.2 | S120: 388.2 | T120: 15.3 | U120: 372.9 | V120: 217 | W120: 49 | X120: 131.7 | Y120: 723.4529826 | Z120: 256.1371168 | AA120: 979.5900994 | AB120: 493.1851698 | AC120: 152.8598039 | AD120: 234.9463204 | AE120: 591.7 | AF120: 30749 | AG120: -6051.5 | AH120: 27992 | AI120: 65087.77778 | AJ120: -34338.77778 | AK120: 398 | AL120: 30 | AM120: 4 | AN120: 92.94 | AO120: 100 | AP120: 9.009009009 | AQ120: 116.2 | AR120: 310.8 | AS120: 45.2 | AT120: 41 | AU120: 3 | AV120: 0 | AW120: 3038.973333 | AY120: 1514.170732 | BD120: 2681.714286 | BE120: 1713.459459 | BG120: 0 | BJ120: 92 | BK120: 59880.75556 | BL120: 135.4988221 | BM120: 382.7130883 | BN120: 260.899359 | BO120: 65 | BP120: 35 | BQ120: BBB
A121: non | B121: 1 | C121: conventionnel | D121: eleveur naisseur | E121: 2020 | F121: 88184 | G121: 1.2 | H121: 1.2 | I121: 82.46 | J121: 157.12 | K121: 130.9333333 | L121: 1.905408683 | M121: 68.71666667 | N121: 887.6 | O121: 881.3 | P121: 6.3 | Q121: 643.9 | R121: 589.7 | S121: 456.9 | T121: 0 | U121: 456.9 | V121: 118 | W121: 14.8 | X121: 54.2 | Y121: 438.1637036 | Z121: 105.5092166 | AA121: 543.6729202 | AB121: 218.9876304 | AC121: 101.5658096 | AD121: 110.8305754 | AE121: 243.8 | AF121: 6589 | AG121: -12964.9 | AH121: 8064 | AI121: 60851.99917 | AJ121: -54262.99917 | AK121: 408 | AL121: 35 | AM121: 6 | AN121: 103.03 | AO121: 101.19 | AP121: 1.568627451 | AQ121: 82.5 | AR121: 255 | AS121: 24.6 | AT121: 41 | AU121: 5 | AV121: 4 | AW121: 2047.692308 | AX121: 731.2857143 | AY121: 1116.04878 | BA121: 2192.6 | BD121: 1900.6 | BE121: 1169.194444 | BG121: 2870 | BH121: 717.5 | BI121: 3.494773519 | BJ121: 93.6 | BK121: 56957.47122 | BL121: 55.37353615 | BM121: 229.9578602 | BN121: 114.9294807 | BO121: 48 | BP121: 36 | BQ121: BBB
A122: non | B122: 1 | C122: conventionnel | D122: eleveur naisseur | E122: 2021 | F122: 88184 | G122: 1.83 | H122: 1.83 | I122: 82.12 | J122: 155.88 | K122: 85.18032787 | L122: 1.898197759 | M122: 44.87431694 | N122: 937.7 | O122: 937.7 | P122: 0 | Q122: 634.9 | R122: 574.2 | S122: 444.3 | T122: 0 | U122: 444.3 | V122: 113.3 | W122: 16.6 | X122: 60.7 | Y122: 413.6401607 | Z122: 127.4225524 | AA122: 541.0627131 | AB122: 230.9409401 | AC122: 105.7721966 | AD122: 112.0286118 | AE122: 302.8 | AF122: 9431 | AG122: -2411.4 | AH122: 11247 | AI122: 53443.47541 | AJ122: -44012.47541 | AK122: 419 | AL122: 35 | AM122: 5 | AN122: 107.32 | AO122: 100 | AP122: 2.815768302 | AQ122: 79.2 | AR122: 248.6 | AS122: 20.4 | AT122: 21 | AU122: 2 | AV122: 2 | AW122: 2351.314286 | AX122: 664.1666667 | AY122: 1175.047619 | BD122: 2131.375 | BE122: 1278.705882 | BG122: 1208 | BH122: 604 | BI122: 2.957781457 | BJ122: 93.1 | BK122: 49755.87561 | BL122: 67.12817552 | BM122: 217.9120477 | BN122: 121.6632666 | BO122: 44 | BP122: 56 | BQ122: BBB
A123: non | B123: 2 | C123: conventionnel | D123: eleveur naisseur | E123: 2020 | F123: 88201 | G123: 2 | H123: 2 | I123: 107.54 | J123: 199.9 | K123: 99.95 | L123: 1.858843221 | M123: 53.77 | N123: 1020.6 | O123: 1020.6 | P123: 0 | Q123: 696.5 | R123: 599.3 | S123: 411.5 | T123: 49.9 | U123: 361.6 | V123: 165.6 | W123: 22.2 | X123: 97.1 | Y123: 384.5416589 | Z123: 96.15305003 | AA123: 480.6947089 | AB123: 202.5175749 | AC123: 126.4978489 | AD123: 116.4794731 | AE123: 324.1 | AF123: 21997 | AG123: 3732.7 | AH123: 30322 | AI123: 51632 | AJ123: -29635 | AK123: 407 | AL123: 29 | AM123: 5 | AN123: 120.033 | AO123: 102.113 | AP123: 9.865470852 | AQ123: 120.8 | AR123: 334.5 | AS123: 41.7 | AT123: 70 | AU123: 0 | AV123: 0 | AW123: 1869.1875 | AY123: 1188.328571 | BE123: 1183.323077 | BG123: 0 | BJ123: 84.9 | BK123: 43835.568 | BL123: 51.72735868 | BM123: 206.8714857 | BN123: 108.9481741 | BO123: 55 | BP123: 46 | BQ123: BBB
A124: non | B124: 2 | C124: conventionnel | D124: eleveur naisseur | E124: 2021 | F124: 88201 | G124: 2 | H124: 2 | I124: 108.24 | J124: 207.46 | K124: 103.73 | L124: 1.916666667 | M124: 54.12 | N124: 1216.9 | O124: 1216.9 | P124: 0 | Q124: 830.8 | R124: 722.6 | S124: 520.9 | T124: 48.2 | U124: 472.7 | V124: 180.1 | W124: 21.6 | X124: 108.2 | Y124: 382.7649667 | Z124: 132.7859387 | AA124: 515.5509054 | AB124: 228.9065041 | AC124: 126.6623928 | AD124: 111.9586106 | AE124: 386 | AF124: 23055 | AG124: 2702.8 | AH124: 27149 | AI124: 50781.58 | AJ124: -27726.58 | AK124: 381 | AL124: 29 | AM124: 5 | AN124: 128.7 | AO124: 101.75 | AP124: 5.982905983 | AQ124: 135.2 | AR124: 351 | AS124: 44.9 | AT124: 66 | AU124: 2 | AV124: 0 | AW124: 2254.339286 | AY124: 1329.818182 | BE124: 1582.830508 | BG124: 0 | BJ124: 91.3 | BK124: 46363.58254 | BL124: 69.27962017 | BM124: 199.7034609 | BN124: 119.4294804 | BO124: 42 | BP124: 55 | BQ124: BBB
A125: non | B125: 2 | C125: conventionnel | D125: eleveur naisseur | E125: 2022 | F125: 88201 | G125: 2 | H125: 2 | I125: 102.33 | J125: 208.19 | K125: 104.095 | L125: 2.034496238 | M125: 51.165 | N125: 1282.3 | O125: 1260.1 | P125: 22.2 | Q125: 889.1 | R125: 782.4 | S125: 597.4 | T125: 38 | U125: 559.4 | V125: 163.9 | W125: 21.1 | X125: 106.7 | Y125: 414.6796638 | Z125: 217.1170722 | AA125: 631.7967361 | AB125: 249.6579693 | AC125: 149.1233969 | AD125: 121.1902821 | AE125: 393.2 | AF125: 26534 | AG125: 6509.2 | AH125: 39243 | AI125: 53382.63 | AJ125: -26848.63 | AK125: 400 | AL125: 29 | AM125: 5 | AN125: 111.03 | AO125: 100 | AP125: 3.323179175 | AQ125: 133.3 | AR125: 361.1 | AS125: 55.9 | AT125: 75 | AU125: 2 | AV125: 0 | AW125: 2510.953846 | AY125: 1449.16 | BE125: 1449.862745 | BG125: 0 | BJ125: 82.9 | BK125: 44254.20027 | BL125: 106.7178539 | BM125: 203.8242471 | BN125: 122.7124261 | BO125: 53 | BP125: 42 | BQ125: BBB
A126: non | B126: 2 | C126: conventionnel | D126: eleveur naisseur | E126: 2023 | F126: 88201 | G126: 2 | H126: 2 | I126: 112.09 | J126: 200.35 | K126: 100.175 | L126: 1.78740298 | M126: 56.045 | N126: 1336.7 | O126: 1336.7 | P126: 0 | Q126: 1002.2 | R126: 858.7 | S126: 639.1 | T126: 81.4 | U126: 557.7 | V126: 184.9 | W126: 34.7 | X126: 143.5 | Y126: 303.0789544 | Z126: 163.2816487 | AA126: 466.3606031 | AB126: 238.226336 | AC126: 146.015972 | AD126: 154.6298395 | AE126: 334.5 | AF126: 21409 | AG126: 1206.4 | AH126: 27017 | AI126: 60183 | AJ126: -38774 | AK126: 410 | AL126: 28 | AM126: 4 | AN126: 128.62 | AO126: 101.27 | AP126: 3.464203233 | AQ126: 124.4 | AR126: 346.4 | AS126: 41.6 | AT126: 59 | AU126: 0 | AV126: 0 | AW126: 2451.2 | AY126: 1377.779661 | BE126: 1429.913043 | BG126: 0 | BJ126: 90.9 | BK126: 54706.347 | BL126: 91.35133516 | BM126: 169.5638632 | BN126: 133.2807088 | BO126: 62 | BP126: 61 | BQ126: BBB
A127: non | B127: 2 | C127: conventionnel | D127: eleveur naisseur | E127: 2024 | F127: 88201 | G127: 2 | H127: 2 | I127: 106.14 | J127: 200.43 | K127: 100.215 | L127: 1.888355003 | M127: 53.07 | N127: 1322.8 | O127: 1322.8 | P127: 0 | Q127: 929.5 | R127: 800.1 | S127: 555.9 | T127: 92.6 | U127: 463.3 | V127: 211.7 | W127: 32.5 | X127: 129.4 | Y127: 285.0145091 | Z127: 195.7932919 | AA127: 480.807801 | AB127: 272.0795176 | AC127: 140.8955745 | AD127: 184.2665333 | AE127: 393.3 | AF127: 35906 | AG127: 16302.1 | AH127: 45150 | AI127: 60939 | AJ127: -25033 | AK127: 414 | AL127: 27 | AM127: 4 | AN127: 116.65 | AO127: 100.66 | AP127: 7.624964699 | AQ127: 130.2 | AR127: 354.1 | AS127: 45 | AT127: 79 | AU127: 2 | AV127: 0 | AW127: 2615.03125 | AY127: 1387.658228 | AZ127: 770.6 | BE127: 1425.015625 | BG127: 0 | BJ127: 86.7 | BK127: 52834.113 | BL127: 103.6845782 | BM127: 150.9326947 | BN127: 144.0828219 | BO127: 51 | BP127: 48 | BQ127: BBB
A128: non | B128: 2 | C128: conventionnel | D128: intermediaire | E128: 2020 | F128: 88206 | G128: 1.56 | H128: 1.56 | I128: 120.01 | J128: 135.99 | K128: 87.17307692 | L128: 1.13315557 | M128: 76.92948718 | N128: 510.5 | O128: 510.5 | P128: 0 | Q128: 316.1 | R128: 282.7 | S128: 192.3 | T128: 63.5 | U128: 128.8 | V128: 77.5 | W128: 12.9 | X128: 33.4 | Y128: 147.748596 | Z128: 46.27322723 | AA128: 194.0218232 | AB128: 165.1778102 | AC128: 129.5706302 | AD128: 155.8469814 | AE128: 194.4 | AF128: 17725 | AG128: 8084 | AH128: 17483 | AI128: 56381.41026 | AJ128: -38656.41026 | AK128: 450 | AL128: 36 | AM128: 6 | AN128: 76.243 | AO128: 90.789 | AP128: 7.54005655 | AQ128: 90.5 | AR128: 212.2 | AS128: 23.7 | AT128: 10 | AU128: 12 | AV128: 0 | AW128: 1393 | AY128: 1159.8 | BA128: 1263 | BE128: 1216.090909 | BG128: 0 | BJ128: 83.4 | BK128: 47022.09615 | BL128: 40.83572321 | BM128: 130.3868593 | BN128: 145.7679903 | BO128: 14 | BP128: 14 | BQ128: autres
A129: non | B129: 2 | C129: conventionnel | D129: intermediaire | E129: 2021 | F129: 88206 | G129: 1.56 | H129: 1.56 | I129: 117.23 | J129: 134.75 | K129: 86.37820513 | L129: 1.1494498 | M129: 75.1474359 | N129: 648.6 | O129: 648.6 | P129: 0 | Q129: 365.7 | R129: 343.6 | S129: 245.4 | T129: 60 | U129: 185.4 | V129: 85.2 | W129: 13 | X129: 22.1 | Y129: 171.943018 | Z129: 116.0667065 | AA129: 288.0097245 | AB129: 133.7217436 | AC129: 114.710872 | AD129: 157.4759116 | AE129: 283 | AF129: 18723 | AG129: 8858.2 | AH129: 19322 | AI129: 57360.17308 | AJ129: -38637.17308 | AK129: 466 | AL129: 35 | AM129: 7 | AN129: 86.79 | AO129: 92 | AP129: 8.735632184 | AQ129: 79.5 | AR129: 217.5 | AS129: 28.8 | AT129: 19 | AU129: 7 | AV129: 0 | AW129: 1801.416667 | AY129: 1303.421053 | BA129: 1249.428571 | BB129: 950 | BE129: 1288.884615 | BG129: 0 | BJ129: 84.8 | BK129: 48641.42677 | BL129: 100.9758813 | BM129: 149.5872356 | BN129: 116.335436 | BO129: 34 | BP129: 21 | BQ129: autres
A130: non | B130: 1 | C130: conventionnel | D130: eleveur naisseur | E130: 2022 | F130: 88206 | G130: 1.56 | H130: 1.56 | I130: 117.32 | J130: 130.21 | K130: 83.46794872 | L130: 1.10987044 | M130: 75.20512821 | N130: 343.2 | O130: 343.2 | P130: 0 | Q130: 258.8 | R130: 246.3 | S130: 158.1 | T130: 34.2 | U130: 123.9 | V130: 71.6 | W130: 16.6 | X130: 12.5 | Y130: 152.3890215 | Z130: 100.2185476 | AA130: 252.607569 | AB130: 206.754688 | AC130: 151.0982259 | AD130: 166.7804896 | AE130: 84.3 | AF130: 11465 | AG130: 3059.7 | AH130: 10397 | AI130: 60055.66667 | AJ130: -48590.66667 | AK130: 413 | AL130: 38 | AM130: 7 | AN130: 86.1 | AO130: 87.69 | AP130: 20.80162354 | AQ130: 66.2 | AR130: 197.1 | AS130: 21.3 | AT130: 18 | AU130: 11 | AV130: 0 | AW130: 1627.615385 | AY130: 1077.5 | BA130: 1311.636364 | BE130: 1296.28 | BG130: 0 | BJ130: 59.5 | BK130: 35733.12167 | BL130: 90.29751939 | BM130: 137.3034329 | BN130: 186.2872283 | BO130: 59 | BP130: 44 | BQ130: autres
A131: non | B131: 2 | C131: conventionnel | D131: intermediaire | E131: 2023 | F131: 88206 | G131: 1.56 | H131: 1.56 | I131: 124.18 | J131: 121.64 | K131: 77.97435897 | L131: 0.9795458206 | M131: 79.6025641 | N131: 512.3 | O131: 512.3 | P131: 0 | Q131: 324.7 | R131: 281.5 | S131: 207 | T131: 46.9 | U131: 160.1 | V131: 60 | W131: 14.5 | X131: 43.2 | Y131: 125.0454985 | Z131: 109.3272669 | AA131: 234.3727653 | AB131: 191.9851023 | AC131: 139.0167708 | AD131: 277.762097 | AE131: 187.7 | AF131: 19124 | AG131: 11171.6 | AH131: 20481 | AI131: 68957.69231 | AJ131: -49833.69231 | AK131: 493 | AL131: 35 | AM131: 6 | AN131: 89.43 | AO131: 83.54 | AP131: 15.97444089 | AQ131: 73.8 | AR131: 187.8 | AS131: 28.5 | AT131: 11 | AU131: 8 | AV131: 0 | AW131: 1816.166667 | AY131: 1213.909091 | BA131: 975.875 | BE131: 1113.684211 | BG131: 0 | BJ131: 76.3 | BK131: 52614.71923 | BL131: 111.6101611 | BM131: 127.6566097 | BN131: 195.9939987 | BO131: 39 | BP131: 57 | BQ131: autres
A132: non | B132: 1 | C132: conventionnel | D132: eleveur engraisseur | E132: 2024 | F132: 88206 | G132: 1.56 | H132: 1.56 | I132: 119.66 | J132: 118.18 | K132: 75.75641026 | L132: 0.9876316229 | M132: 76.70512821 | N132: 316.1 | O132: 316.1 | P132: 0 | Q132: 267 | R132: 257.8 | S132: 186.4 | T132: 61.5 | U132: 124.9 | V132: 60.1 | W132: 11.3 | X132: 9.2 | Y132: 172.1416513 | Z132: 94.58482367 | AA132: 266.726475 | AB132: 199.3870968 | AC132: 123.0546624 | AD132: 324.3584853 | AE132: 49.2 | AF132: 11968 | AG132: 4695.7 | AH132: 5477 | AI132: 69825 | AJ132: -57857 | AK132: 460 | AL132: 36 | AM132: 6 | AN132: 64 | AO132: 76.19 | AP132: 24.19808666 | AQ132: 75 | AR132: 177.7 | AS132: 22.1 | AT132: 10 | AU132: 19 | AV132: 0 | AW132: 1741.176471 | AY132: 1271.7 | BA132: 1295.052632 | BE132: 1287 | BG132: 0 | BJ132: 70.4 | BK132: 49156.8 | BL132: 95.76933491 | BM132: 174.2974277 | BN132: 201.8840751 | BO132: 36 | BP132: 28 | BQ132: autres
A133: non | B133: 3 | C133: conventionnel | D133: eleveur engraisseur | E133: 2020 | F133: 88211 | G133: 2 | H133: 2 | I133: 123.57 | J133: 284.23 | K133: 142.115 | L133: 2.300153759 | M133: 61.785 | N133: 1170.2 | O133: 1170.2 | P133: 0 | Q133: 698.3 | R133: 617.4 | S133: 426.4 | T133: 0 | U133: 426.4 | V133: 145.6 | W133: 45.4 | X133: 80.9 | Y133: 608.596504 | Z133: 94.24010682 | AA133: 702.8366108 | AB133: 374.0855386 | AC133: 129.2498329 | AD133: 119.9490553 | AE133: 472 | AF133: 38037 | AG133: 13122.9 | AH133: 41608 | AI133: 54398 | AJ133: -16361 | AK133: 407 | AL133: 31 | AM133: 5 | AN133: 120.124 | AO133: 102.105 | AP133: 11.35169224 | AQ133: 161.5 | AR133: 475.7 | AS133: 80.2 | AT133: 14 | AU133: 60 | AV133: 45 | AW133: 2078.074627 | AY133: 1588.428571 | BA133: 2235.4 | BD133: 2108 | BE133: 1267.384615 | BF133: 2222.111111 | BG133: 26908 | BH133: 597.9555556 | BI133: 3.716181061 | BJ133: 93.8 | BK133: 51025.324 | BL133: 40.97122049 | BM133: 264.5894874 | BN133: 162.6350139 | BO133: 44 | BP133: 49 | BQ133: BBB
A134: non | B134: 3 | C134: conventionnel | D134: eleveur engraisseur | E134: 2021 | F134: 88211 | G134: 2 | H134: 2 | I134: 115.78 | J134: 272.59 | K134: 136.295 | L134: 2.354378995 | M134: 57.89 | N134: 1255.1 | O134: 1255.1 | P134: 0 | Q134: 750 | R134: 659.4 | S134: 461.2 | T134: 23.2 | U134: 438 | V134: 158 | W134: 40.2 | X134: 90.6 | Y134: 644.1321472 | Z134: 119.9913629 | AA134: 764.1235101 | AB134: 252.5907756 | AC134: 139.2428923 | AD134: 117.3938751 | AE134: 505.1 | AF134: 46466 | AG134: 22139.8 | AH134: 48794 | AI134: 52662.375 | AJ134: -6196.375 | AK134: 398 | AL134: 29 | AM134: 5 | AN134: 104.39 | AO134: 101.73 | AP134: 9.60279354 | AQ134: 168.6 | AR134: 458.2 | AS134: 77.4 | AT134: 3 | AU134: 59 | AV134: 52 | AW134: 2406.75 | BA134: 2569.661017 | BD134: 2182.461538 | BF134: 2564.576923 | BG134: 32142 | BH134: 618.1153846 | BI134: 4.149026196 | BJ134: 94.2 | BK134: 49607.95725 | BL134: 50.96518581 | BM134: 273.5889798 | BN134: 107.2855204 | BO134: 37 | BP134: 43 | BQ134: BBB
A135: non | B135: 2 | C135: conventionnel | D135: eleveur engraisseur | E135: 2022 | F135: 88211 | G135: 2 | H135: 2 | I135: 115.4 | J135: 280.01 | K135: 140.005 | L135: 2.426429809 | M135: 57.7 | N135: 1189.9 | O135: 1189.9 | P135: 0 | Q135: 791 | R135: 721.7 | S135: 563.8 | T135: 84.9 | U135: 478.9 | V135: 113.8 | W135: 44.1 | X135: 69.2 | Y135: 672.0369151 | Z135: 133.3005199 | AA135: 805.337435 | AB135: 270.6040728 | AC135: 139.8825042 | AD135: 105.9251052 | AE135: 399 | AF135: 34271 | AG135: 10604.7 | AH135: 52076 | AI135: 55359.765 | AJ135: -21088.765 | AK135: 424 | AL135: 31 | AM135: 5 | AN135: 97.49 | AO135: 101.24 | AP135: 7.413868295 | AQ135: 167.2 | AR135: 458.6 | AS135: 71.4 | AT135: 0 | AU135: 66 | AV135: 60 | AW135: 2699.466667 | BA135: 2778.30303 | BE135: 2102.666667 | BF135: 2845.866667 | BG135: 40990 | BH135: 683.1666667 | BI135: 4.165698951 | BJ135: 84.3 | BK135: 46668.28189 | BL135: 54.93689511 | BM135: 276.9653227 | BN135: 111.5235527 | BO135: 28 | BP135: 27 | BQ135: BBB
A136: non | B136: 3 | C136: conventionnel | D136: eleveur engraisseur | E136: 2023 | F136: 88211 | G136: 2 | H136: 2 | I136: 116.61 | J136: 276.12 | K136: 138.06 | L136: 2.367892977 | M136: 58.305 | N136: 1366.3 | O136: 1355.5 | P136: 10.8 | Q136: 916.5 | R136: 826.9 | S136: 635.4 | T136: 104.7 | U136: 530.7 | V136: 148.6 | W136: 42.9 | X136: 89.6 | Y136: 443.5781665 | Z136: 99.11242604 | AA136: 542.6905926 | AB136: 232.7904982 | AC136: 135.3436911 | AD136: 119.0045716 | AE136: 449.8 | AF136: 51325 | AG136: 27123.7 | AH136: 58818 | AI136: 62412 | AJ136: -11087 | AK136: 416 | AL136: 31 | AM136: 5 | AN136: 100.12 | AO136: 100 | AP136: 9.178321678 | AQ136: 163.8 | AR136: 457.6 | AS136: 70.6 | AT136: 2 | AU136: 68 | AV136: 57 | AW136: 2732 | BA136: 2957.294118 | BD136: 2533.4 | BE136: 3175.266667 | BF136: 2838.649123 | BG136: 39859 | BH136: 699.2807018 | BI136: 4.05938433 | BJ136: 92.4 | BK136: 57668.688 | BL136: 41.85680139 | BM136: 187.3303274 | BN136: 98.31124149 | BO136: 40 | BP136: 42 | BQ136: BBB
A137: non | B137: 2 | C137: conventionnel | D137: eleveur engraisseur | E137: 2024 | F137: 88211 | G137: 2.11 | H137: 2 | I137: 115.67 | J137: 266.74 | K137: 126.4170616 | L137: 2.306043054 | M137: 54.81990521 | N137: 1287.7 | O137: 1287.7 | P137: 0 | Q137: 848.2 | R137: 766.3 | S137: 563.5 | T137: 61.8 | U137: 501.7 | V137: 149.8 | W137: 53 | X137: 81.9 | Y137: 456.4850004 | Z137: 181.156739 | AA137: 637.6417394 | AB137: 247.9945535 | AC137: 138.8351953 | AD137: 164.5439049 | AE137: 439.5 | AF137: 44898 | AG137: 20205.9 | AH137: 48974 | AI137: 63196 | AJ137: -18298 | AK137: 404 | AL137: 28 | AM137: 5 | AN137: 103.83 | AO137: 100 | AP137: 12.83469794 | AQ137: 172.4 | AR137: 451.9 | AS137: 76 | AT137: 2 | AU137: 53 | AV137: 34 | AW137: 2795.411765 | BA137: 2848.245283 | BB137: 1652.6 | BE137: 2730.2 | BF137: 2961.470588 | BG137: 23048 | BH137: 677.8823529 | BI137: 4.368708782 | BJ137: 93.5 | BK137: 59088.26 | BL137: 78.55739672 | BM137: 197.9516383 | BN137: 107.5411637 | BO137: 42 | BP137: 30 | BQ137: BBB
A138: non | B138: 1 | C138: conventionnel | D138: eleveur naisseur | E138: 2022 | F138: 88222 | G138: 1.22 | H138: 1.22 | I138: 65.13 | J138: 84.27 | K138: 69.07377049 | L138: 1.293873791 | M138: 53.3852459 | N138: 1005.3 | O138: 989.9 | P138: 15.4 | Q138: 603.4 | R138: 585.7 | S138: 427 | T138: 0 | U138: 427 | V138: 114.9 | W138: 43.8 | X138: 17.7 | Y138: 368.2112698 | Z138: 161.2674651 | AA138: 529.4787348 | AB138: 267.0227238 | AC138: 158.5024327 | AD138: 280.5501365 | AE138: 401.9 | AF138: 9243 | AG138: -3133 | AH138: 6482 | AI138: 56646.62295 | AJ138: -47403.62295 | AK138: 415 | AL138: 29 | AM138: 5 | AN138: 92.66 | AO138: 89.83 | AP138: 4.647560031 | AQ138: 55.3 | AR138: 129.1 | AS138: 3.6 | AT138: 27 | AU138: 0 | AV138: 0 | AW138: 2638.153846 | AX138: 699.3636364 | AY138: 779.6296296 | BE138: 1132.8 | BG138: 0 | BJ138: 97.4 | BK138: 55173.81075 | BL138: 124.6392548 | BM138: 284.580515 | BN138: 206.3746292 | BO138: 24 | BP138: 24 | BQ138: BBB
A139: non | B139: 2 | C139: conventionnel | D139: eleveur naisseur | E139: 2023 | F139: 88222 | G139: 1 | H139: 1 | I139: 65.41 | J139: 89.02 | K139: 89.02 | L139: 1.360953983 | M139: 65.41 | N139: 1066.1 | O139: 1066.1 | P139: 0 | Q139: 561.4 | R139: 556.8 | S139: 358.8 | T139: 0 | U139: 358.8 | V139: 145.3 | W139: 52.7 | X139: 4.6 | Y139: 329.2068491 | Z139: 191.227641 | AA139: 520.4344901 | AB139: 269.6905672 | AC139: 150.0662772 | AD139: 303.6816446 | AE139: 504.7 | AF139: 31907 | AG139: 16683 | AH139: 32203 | AI139: 66870 | AJ139: -34963 | AK139: 407 | AL139: 31 | AM139: 5 | AN139: 110.71 | AO139: 85.92 | AP139: 9.767092412 | AQ139: 53.1 | AR139: 133.1 | AS139: 1.5 | AT139: 31 | AU139: 0 | AV139: 0 | AW139: 2661.391304 | AX139: 734.3 | AY139: 725.8387097 | BG139: 0 | BJ139: 91.6 | BK139: 61252.92 | BL139: 140.5099978 | BM139: 241.8941811 | BN139: 198.1628847 | BO139: 47 | BP139: 47 | BQ139: BBB
A140: non | B140: 1 | C140: conventionnel | D140: eleveur naisseur | E140: 2024 | F140: 88222 | G140: 1 | H140: 1 | I140: 67.53 | J140: 90.78 | K140: 90.78 | L140: 1.344291426 | M140: 67.53 | N140: 995.4 | O140: 995.4 | P140: 0 | Q140: 523.6 | R140: 497.7 | S140: 334.9 | T140: 0 | U140: 334.9 | V140: 105 | W140: 57.8 | X140: 25.9 | Y140: 390.4617207 | Z140: 251.190582 | AA140: 641.6523027 | AB140: 277.0838146 | AC140: 111.7647059 | AD140: 298.7359551 | AE140: 471.7 | AF140: 13101 | AG140: -2612.4 | AH140: 11228 | AI140: 67710 | AJ140: -54609 | AK140: 432 | AL140: 32 | AM140: 5 | AN140: 95.5 | AO140: 86.89 | AP140: 9.153318078 | AQ140: 54.5 | AR140: 131.1 | AS140: 1.5 | AT140: 28 | AU140: 0 | AV140: 0 | AW140: 2765.045455 | AX140: 752.3103448 | AY140: 747.1785714 | BG140: 0 | BJ140: 97.9 | BK140: 66288.09 | BL140: 186.8572373 | BM140: 290.459132 | BN140: 206.1188588 | BO140: 42 | BP140: 31 | BQ140: BBB
A141: non | B141: 1 | C141: conventionnel | D141: eleveur naisseur | E141: 2020 | F141: 88223 | G141: 2.08 | H141: 2.07 | I141: 100.21 | J141: 198.75 | K141: 95.55288462 | L141: 1.983334997 | M141: 48.17788462 | N141: 764.3 | O141: 755.2 | P141: 9.1 | Q141: 697.4 | R141: 587.5 | S141: 395.8 | T141: 48.9 | U141: 346.9 | V141: 153.4 | W141: 38.3 | X141: 109.8 | Y141: 652.9239497 | Z141: 135.4732961 | AA141: 788.3972458 | AB141: 295.6997206 | AC141: 143.0199245 | AD141: 164.4106271 | AE141: 67 | AF141: -1142 | AG141: -17867.2 | AH141: 8363 | AI141: 54957.48792 | AJ141: -56099.48792 | AK141: 408 | AL141: 30 | AM141: 6 | AN141: 87.232 | AO141: 101.852 | AP141: 5.449591281 | AQ141: 126.1 | AR141: 330.3 | AS141: 39.8 | AT141: 72 | AU141: 2 | AV141: 0 | AW141: 1720.72 | AY141: 1103.777778 | BD141: 1505.833333 | BE141: 1100.193548 | BG141: 0 | BJ141: 69.5 | BK141: 38195.45411 | BL141: 68.30580629 | BM141: 329.2050767 | BN141: 149.0921711 | BO141: 40 | BP141: 27 | BQ141: BBB
A142: non | B142: 2 | C142: conventionnel | D142: eleveur naisseur | E142: 2021 | F142: 88223 | G142: 2.08 | H142: 2.07 | I142: 101.31 | J142: 201.16 | K142: 96.71153846 | L142: 1.985588787 | M142: 48.70673077 | N142: 1052.4 | O142: 1035.5 | P142: 16.9 | Q142: 707.5 | R142: 603.9 | S142: 340.7 | T142: 19.1 | U142: 321.6 | V142: 214.8 | W142: 48.4 | X142: 103.6 | Y142: 651.6303425 | Z142: 144.2824993 | AA142: 795.9128418 | AB142: 282.0747212 | AC142: 139.1671306 | AD142: 154.3368066 | AE142: 344.9 | AF142: 15706 | AG142: -2314.6 | AH142: 16668 | AI142: 56039.51691 | AJ142: -40333.51691 | AK142: 409 | AL142: 30 | AM142: 7 | AN142: 146.92 | AO142: 104.49 | AP142: 11.82033097 | AQ142: 126.6 | AR142: 338.4 | AS142: 36.6 | AT142: 59 | AU142: 0 | AV142: 0 | AW142: 2000.309091 | AY142: 1136.457627 | BD142: 2102.4 | BE142: 1161.148936 | BG142: 0 | BJ142: 86.3 | BK142: 48362.10309 | BL142: 72.66484391 | BM142: 328.1799065 | BN142: 142.0609962 | BO142: 45 | BP142: 58 | BQ142: BBB
A143: non | B143: 1 | C143: conventionnel | D143: eleveur naisseur | E143: 2023 | F143: 88223 | G143: 2.08 | H143: 2.07 | I143: 98.19 | J143: 193.32 | K143: 92.94230769 | L143: 1.96883593 | M143: 47.20673077 | N143: 1176.4 | O143: 1162.6 | P143: 13.8 | Q143: 795.5 | R143: 699.2 | S143: 446.1 | T143: 50.6 | U143: 395.5 | V143: 198.3 | W143: 54.8 | X143: 96.3 | Y143: 860.5011712 | Z143: 288.6287809 | AA143: 1149.129952 | AB143: 319.6182911 | AC143: 141.7039106 | AD143: 171.1760753 | AE143: 380.9 | AF143: 2991 | AG143: -15246.2 | AH143: 6536 | AI143: 66369.08213 | AJ143: -63378.08213 | AK143: 413 | AL143: 30 | AM143: 5 | AN143: 127.95 | AO143: 97.24 | AP143: 9.720915648 | AQ143: 110.2 | AR143: 318.9 | AS143: 40.1 | AT143: 62 | AU143: 1 | AV143: 0 | AW143: 2268.539683 | AX143: 785 | AY143: 1197.983871 | BE143: 1260.648148 | BG143: 0 | BJ143: 84.2 | BK143: 55882.76715 | BL143: 146.5986965 | BM143: 437.0608835 | BN143: 162.338713 | BO143: 58 | BP143: 59 | BQ143: BBB
A144: non | B144: 1 | C144: conventionnel | D144: eleveur naisseur | E144: 2024 | F144: 88223 | G144: 2.01 | H144: 2 | I144: 98 | J144: 192.54 | K144: 95.79104478 | L144: 1.964693878 | M144: 48.75621891 | N144: 1017.2 | O144: 1017.2 | P144: 0 | Q144: 727.5 | R144: 664.2 | S144: 424.3 | T144: 62.1 | U144: 362.2 | V144: 198.5 | W144: 41.4 | X144: 63.3 | Y144: 686.2788776 | Z144: 248.0365306 | AA144: 934.3154082 | AB144: 337.4570408 | AC144: 135.2518957 | AD144: 191.6036606 | AE144: 289.7 | AF144: 3833 | AG144: -13994.3 | AH144: 6192 | AI144: 67710 | AJ144: -63877 | AK144: 405 | AL144: 32 | AM144: 4 | AN144: 103.27 | AO144: 93.75 | AP144: 9.440323668 | AQ144: 116.2 | AR144: 296.6 | AS144: 36.4 | AT144: 67 | AU144: 0 | AV144: 0 | AW144: 2407.787234 | AY144: 1254.537313 | BE144: 1289.322581 | BG144: 0 | BJ144: 82.2 | BK144: 55657.62 | BL144: 126.2469097 | BM144: 349.3057546 | BN144: 171.7606212 | BO144: 41 | BP144: 42 | BQ144: BBB
A145: non | B145: 3 | C145: conventionnel | D145: eleveur naisseur | E145: 2020 | F145: 88224 | G145: 2.28 | H145: 2.28 | I145: 146.04 | J145: 330.62 | K145: 145.0087719 | L145: 2.263900301 | M145: 64.05263158 | N145: 535.4 | O145: 535.4 | P145: 0 | Q145: 165 | R145: 158.6 | S145: 111.6 | T145: 0 | U145: 111.6 | V145: 35.7 | W145: 11.3 | X145: 6.4 | Y145: 181.4417968 | Z145: 28.63599014 | AA145: 210.0777869 | AB145: 119.9181731 | AC145: 71.39483395 | AD145: 104.7036779 | AE145: 370.5 | AF145: 60014 | AG145: 45707.1 | AH145: 64114 | AI145: 52043.64035 | AJ145: 7970.359649 | AK145: 411 | AL145: 41 | AM145: 7 | AN145: 103.009 | AO145: 96.19 | AP145: 7.591573354 | AQ145: 196.1 | AR145: 526.9 | AS145: 69.4 | AT145: 90 | AU145: 5 | AV145: 0 | AW145: 1322.177419 | AY145: 956.5 | AZ145: 689.0625 | BA145: 857 | BE145: 976.5934066 | BG145: 0 | BJ145: 90.3 | BK145: 46995.40724 | BL145: 12.64896256 | BM145: 80.14566572 | BN145: 52.96972355 | BO145: 35 | BP145: 23 | BQ145: LI
A146: non | B146: 3 | C146: conventionnel | D146: eleveur naisseur | E146: 2021 | F146: 88224 | G146: 2.28 | H146: 2.28 | I146: 144.81 | J146: 328.38 | K146: 144.0263158 | L146: 2.267661073 | M146: 63.51315789 | N146: 558.7 | O146: 558.7 | P146: 0 | Q146: 168.1 | R146: 160.8 | S146: 113.8 | T146: 0 | U146: 113.8 | V146: 36.7 | W146: 10.3 | X146: 7.3 | Y146: 195.8798426 | Z146: 40.79483461 | AA146: 236.6746772 | AB146: 121.9859816 | AC146: 74.26810403 | AD146: 104.5912967 | AE146: 390.6 | AF146: 61707 | AG146: 47465.9 | AH146: 65955 | AI146: 53032.15351 | AJ146: 8674.846491 | AK146: 401 | AL146: 43 | AM146: 7 | AN146: 107.5 | AO146: 97.01 | AP146: 8.467900748 | AQ146: 181.4 | AR146: 507.8 | AS146: 65.7 | AT146: 104 | AU146: 3 | AV146: 0 | AW146: 1342.354167 | AY146: 934.75 | AZ146: 876.1904762 | BB146: 851.8571429 | BE146: 947.1886792 | BG146: 0 | BJ146: 90.2 | BK146: 47835.00246 | BL146: 17.98982886 | BM146: 86.37968208 | BN146: 53.79374505 | BO146: 29 | BP146: 38 | BQ146: LI
A147: non | B147: 3 | C147: conventionnel | D147: eleveur naisseur | E147: 2022 | F147: 88224 | G147: 2 | H147: 2 | I147: 144.53 | J147: 322.6 | K147: 161.3 | L147: 2.232062548 | M147: 72.265 | N147: 780.2 | O147: 780.2 | P147: 0 | Q147: 153.6 | R147: 152.7 | S147: 109.2 | T147: 0 | U147: 109.2 | V147: 30.2 | W147: 13.3 | X147: 0.9 | Y147: 207.9009894 | Z147: 14.08012177 | AA147: 221.9811112 | AB147: 133.5445928 | AC147: 79.45133292 | AD147: 108.8862988 | AE147: 626.6 | AF147: 106119 | AG147: 90286.1 | AH147: 105474 | AI147: 57336.9 | AJ147: 48782.1 | AK147: 412 | AL147: 41 | AM147: 6 | AN147: 104.76 | AO147: 97.06 | AP147: 5.033219247 | AQ147: 189 | AR147: 496.7 | AS147: 61.8 | AT147: 107 | AU147: 2 | AV147: 0 | AW147: 1839.813559 | AX147: 468.75 | AY147: 1071.738318 | AZ147: 883.4827586 | BD147: 1972.222222 | BE147: 1132.765306 | BG147: 0 | BJ147: 98.1 | BK147: 56247.4989 | BL147: 6.308121513 | BM147: 93.14299442 | BN147: 59.83013019 | BO147: 31 | BP147: 30 | BQ147: LI
A148: non | B148: 3 | C148: conventionnel | D148: eleveur naisseur | E148: 2023 | F148: 88224 | G148: 2 | H148: 2 | I148: 145.58 | J148: 314.8 | K148: 157.4 | L148: 2.162384943 | M148: 72.79 | N148: 674.9 | O148: 674.9 | P148: 0 | Q148: 143.4 | R148: 142.2 | S148: 100.7 | T148: 0 | U148: 100.7 | V148: 28.9 | W148: 12.6 | X148: 1.3 | Y148: 184.9318588 | Z148: 38.22853414 | AA148: 223.1603929 | AB148: 135.2851353 | AC148: 134.8287802 | AD148: 145.7547649 | AE148: 531.5 | AF148: 103422 | AG148: 88225 | AH148: 108445 | AI148: 64641 | AJ148: 38781 | AK148: 412 | AL148: 43 | AM148: 7 | AN148: 95.01 | AO148: 96.28 | AP148: 3.524046434 | AQ148: 190.5 | AR148: 482.4 | AS148: 62 | AT148: 78 | AU148: 0 | AV148: 0 | AW148: 1741.976744 | AX148: 500 | AY148: 1091.025641 | AZ148: 750 | BB148: 1015.909091 | BD148: 1600 | BE148: 1140.277778 | BG148: 0 | BJ148: 91.5 | BK148: 59146.515 | BL148: 17.67887548 | BM148: 85.52217281 | BN148: 62.56292884 | BO148: 23 | BP148: 26 | BQ148: LI
A149: non | B149: 3 | C149: conventionnel | D149: eleveur naisseur | E149: 2024 | F149: 88224 | G149: 2 | H149: 2 | I149: 147.18 | J149: 305.01 | K149: 152.505 | L149: 2.072360375 | M149: 73.59 | N149: 720.2 | O149: 720.2 | P149: 0 | Q149: 119.4 | R149: 119.4 | S149: 76.2 | T149: 0 | U149: 76.2 | V149: 29.4 | W149: 13.8 | X149: 0 | Y149: 239.9900802 | Z149: 38.22638946 | AA149: 278.2164696 | AB149: 137.0650224 | AC149: 147.4725419 | AD149: 192.4862791 | AE149: 600.8 | AF149: 118391 | AG149: 102637.3 | AH149: 116352 | AI149: 65453 | AJ149: 52938 | AK149: 417 | AL149: 44 | AM149: 7 | AN149: 92.9 | AO149: 91 | AP149: 7.677543186 | AQ149: 195.9 | AR149: 468.9 | AS149: 50.6 | AT149: 86 | AU149: 0 | AV149: 0 | AW149: 1762.790698 | AY149: 1247.906977 | AZ149: 856.9444444 | BB149: 1065.47619 | BD149: 1295.652174 | BE149: 1270.421687 | BG149: 0 | BJ149: 94.3 | BK149: 61722.179 | BL149: 18.44582145 | BM149: 115.8051867 | BN149: 66.13956919 | BO149: 22 | BP149: 20 | BQ149: LI
A150: non | B150: 3 | C150: conventionnel | D150: intermediaire | E150: 2020 | F150: 88226 | G150: 1.1 | H150: 1.1 | I150: 113.28 | J150: 141.17 | K150: 128.3363636 | L150: 1.246204096 | M150: 102.9818182 | N150: 554.8 | O150: 475.2 | P150: 79.6 | Q150: 227.3 | R150: 184.4 | S150: 97 | T150: 0 | U150: 97 | V150: 76.7 | W150: 10.7 | X150: 42.9 | Y150: 194.5660311 | Z150: 54.90351342 | AA150: 249.4695445 | AB150: 186.3666137 | AC150: 103.6210243 | AD150: 289.268754 | AE150: 327.5 | AF150: 50936 | AG150: 34910.7 | AH150: 53701 | AI150: 46485.56273 | AJ150: 4450.437273 | AK150: 488 | AL150: 42 | AM150: 7 | AN150: 94.268 | AO150: 98.667 | AP150: 4.189944134 | AQ150: 78.5 | AR150: 214.8 | AS150: 20.6 | AT150: 14 | AU150: 15 | AV150: 0 | AW150: 1385.304348 | AX150: 770 | AY150: 764.2857143 | BA150: 869.2 | BE150: 847.9444444 | BG150: 0 | BJ150: 84.2 | BK150: 39140.84382 | BL150: 44.05659843 | BM150: 156.1269392 | BN150: 149.5474251 | BO150: 32 | BP150: 39 | BQ150: BBB
A151: non | B151: 2 | C151: conventionnel | D151: intermediaire | E151: 2021 | F151: 88226 | G151: 1.22 | H151: 1.22 | I151: 113.17 | J151: 146.61 | K151: 120.1721311 | L151: 1.295484669 | M151: 92.76229508 | N151: 518 | O151: 473.6 | P151: 44.4 | Q151: 187.1 | R151: 151.9 | S151: 80.3 | T151: 0 | U151: 80.3 | V151: 64.6 | W151: 7 | X151: 35.2 | Y151: 265.958823 | Z151: 70.06494654 | AA151: 336.0237696 | AB151: 197.8251303 | AC151: 103.0883978 | AD151: 257.7494714 | AE151: 330.8 | AF151: 39746 | AG151: 24949.4 | AH151: 40332 | AI151: 51737.39344 | AJ151: -11991.39344 | AK151: 483 | AL151: 42 | AM151: 6 | AN151: 81.83 | AO151: 93.15 | AP151: 7.326007326 | AQ151: 83.1 | AR151: 218.4 | AS151: 19.6 | AT151: 16 | AU151: 9 | AV151: 0 | AW151: 1435.333333 | AY151: 913.0625 | BA151: 1077.777778 | BD151: 1123.571429 | BE151: 1002.666667 | BG151: 0 | BJ151: 83.7 | BK151: 43304.19831 | BL151: 54.08396426 | BM151: 205.2967738 | BN151: 152.7035673 | BO151: 16 | BP151: 22 | BQ151: BBB
A152: non | B152: 3 | C152: conventionnel | D152: eleveur naisseur | E152: 2022 | F152: 88226 | G152: 1.22 | H152: 1.22 | I152: 113.7 | J152: 146.99 | K152: 120.4836066 | L152: 1.292788039 | M152: 93.19672131 | N152: 614.3 | O152: 569.3 | P152: 45 | Q152: 200.2 | R152: 173.3 | S152: 91.1 | T152: 0 | U152: 91.1 | V152: 76 | W152: 6.2 | X152: 26.9 | Y152: 255.3992964 | Z152: 93.02594547 | AA152: 348.4252419 | AB152: 203.1490765 | AC152: 108.0617729 | AD152: 250.1778352 | AE152: 414.1 | AF152: 41382 | AG152: 25917.3 | AH152: 39175 | AI152: 54452.22951 | AJ152: -13070.22951 | AK152: 488 | AL152: 40 | AM152: 7 | AN152: 86.85 | AO152: 100 | AP152: 7.452871548 | AQ152: 85.2 | AR152: 228.1 | AS152: 29.1 | AT152: 23 | AU152: 5 | AV152: 0 | AW152: 1758.366667 | AY152: 819.5652174 | BA152: 1199 | BE152: 968.9090909 | BG152: 0 | BJ152: 96.4 | BK152: 52491.94925 | BL152: 71.95761616 | BM152: 197.5569767 | BN152: 157.1402817 | BO152: 38 | BP152: 25 | BQ152: BBB
A153: non | B153: 2 | C153: conventionnel | D153: eleveur engraisseur | E153: 2023 | F153: 88226 | G153: 1.28 | H153: 1.28 | I153: 113.25 | J153: 149.71 | K153: 116.9609375 | L153: 1.321942605 | M153: 88.4765625 | N153: 575.3 | O153: 495.1 | P153: 80.2 | Q153: 258.9 | R153: 192.8 | S153: 114.2 | T153: 0 | U153: 114.2 | V153: 73 | W153: 5.6 | X153: 66.1 | Y153: 331.5837528 | Z153: 81.80264901 | AA153: 413.3864018 | AB153: 237.3222075 | AC153: 114.0812237 | AD153: 335.1848908 | AE153: 316.4 | AF153: 32323 | AG153: 17383.9 | AH153: 29805 | AI153: 53983.59375 | AJ153: -21660.59375 | AK153: 470 | AL153: 44 | AM153: 7 | AN153: 92.88 | AO153: 96.05 | AP153: 10.26327532 | AQ153: 78.6 | AR153: 224.1 | AS153: 27.7 | AT153: 12 | AU153: 26 | AV153: 0 | AW153: 1628.75 | AY153: 1173.083333 | BA153: 1291.653846 | BE153: 1266.432432 | BG153: 0 | BJ153: 96.5 | BK153: 52094.16797 | BL153: 61.8806359 | BM153: 250.8306726 | BN153: 179.525349 | BO153: 31 | BP153: 29 | BQ153: BBB
A154: non | B154: 3 | C154: conventionnel | D154: intermediaire | E154: 2024 | F154: 88226 | G154: 1.11 | H154: 1.11 | I154: 116.5 | J154: 150.81 | K154: 135.8648649 | L154: 1.294506438 | M154: 104.954955 | N154: 512.7 | O154: 512.7 | P154: 0 | Q154: 208.3 | R154: 151.6 | S154: 72 | T154: 0 | U154: 72 | V154: 72.6 | W154: 7 | X154: 56.7 | Y154: 294.593133 | Z154: 130.0395708 | AA154: 424.6327039 | AB154: 280.1059227 | AC154: 104.278894 | AD154: 406.4091241 | AE154: 304.4 | AF154: 57459 | AG154: 41206.7 | AH154: 49232 | AI154: 65066.66667 | AJ154: -7607.666667 | AK154: 502 | AL154: 45 | AM154: 6 | AN154: 81.89 | AO154: 100 | AP154: 8.126410835 | AQ154: 80.6 | AR154: 221.5 | AS154: 24.2 | AT154: 17 | AU154: 13 | AV154: 0 | AW154: 1776.458333 | AY154: 959.5882353 | BA154: 1134.923077 | BD154: 1715.4 | BE154: 1051.928571 | BG154: 0 | BJ154: 78.1 | BK154: 50817.06667 | BL154: 100.4549433 | BM154: 227.5717791 | BN154: 216.3804787 | BO154: 32 | BP154: 25 | BQ154: BBB
A155: non | B155: 3 | C155: conventionnel | D155: eleveur engraisseur | E155: 2021 | F155: 88229 | G155: 1.08 | H155: 1.08 | I155: 82.2 | J155: 121.68 | K155: 112.6666667 | L155: 1.480291971 | M155: 76.11111111 | N155: 1137.5 | O155: 1137.5 | P155: 0 | Q155: 604.3 | R155: 556.9 | S155: 419.1 | T155: 64.9 | U155: 354.2 | V155: 96.8 | W155: 41 | X155: 47.4 | Y155: 413.873601 | Z155: 226.843674 | AA155: 640.7172749 | AB155: 180.0832117 | AC155: 117.151956 | AD155: 184.7297348 | AE155: 533.2 | AF155: 40275 | AG155: 18238.1 | AH155: 51332 | AI155: 62693.30556 | AJ155: -22418.30556 | AK155: 425 | AL155: 29 | AM155: 5 | AN155: 90.2 | AO155: 100 | AP155: 5.80270793 | AQ155: 76.5 | AR155: 206.8 | AS155: 33 | AT155: 3 | AU155: 22 | AV155: 0 | AW155: 2478.571429 | BA155: 2393.181818 | BE155: 2336.26087 | BG155: 0 | BJ155: 84.1 | BK155: 52725.06997 | BL155: 153.2425214 | BM155: 279.5891683 | BN155: 121.6538462 | BO155: 38 | BP155: 41 | BQ155: BBB
A156: non | B156: 2 | C156: conventionnel | D156: eleveur engraisseur | E156: 2022 | F156: 88229 | G156: 1.83 | H156: 1.83 | I156: 86.03 | J156: 131.47 | K156: 71.84153005 | L156: 1.528187841 | M156: 47.01092896 | N156: 1205.6 | O156: 1205.6 | P156: 0 | Q156: 668.4 | R156: 632.8 | S156: 491.2 | T156: 7.9 | U156: 483.3 | V156: 109 | W156: 32.6 | X156: 35.6 | Y156: 359.5028478 | Z156: 158.6998721 | AA156: 518.20272 | AB156: 163.9874462 | AC156: 113.9537537 | AD156: 182.5780193 | AE156: 537.2 | AF156: 30838 | AG156: 17314.2 | AH156: 35379 | AI156: 53479.86885 | AJ156: -22641.86885 | AK156: 428 | AL156: 28 | AM156: 5 | AN156: 100.37 | AO156: 100 | AP156: 5.922551253 | AQ156: 80.7 | AR156: 219.5 | AS156: 36.7 | AT156: 2 | AU156: 22 | AV156: 0 | AW156: 2513.608696 | BA156: 2656.318182 | BE156: 2787.142857 | BG156: 0 | BJ156: 88.2 | BK156: 47169.24433 | BL156: 103.8484065 | BM156: 235.2478132 | BN156: 107.3084354 | BO156: 31 | BP156: 36 | BQ156: BBB
A157: non | B157: 3 | C157: conventionnel | D157: eleveur engraisseur | E157: 2023 | F157: 88229 | G157: 1.08 | H157: 1.08 | I157: 84.75 | J157: 129.74 | K157: 120.1296296 | L157: 1.530855457 | M157: 78.47222222 | N157: 1309.6 | O157: 1269.4 | P157: 40.2 | Q157: 645.8 | R157: 575.9 | S157: 449.8 | T157: 88.2 | U157: 361.6 | V157: 97.3 | W157: 28.8 | X157: 69.9 | Y157: 307.5346313 | Z157: 259.2248968 | AA157: 566.759528 | AB157: 88.63646018 | AC157: 126.4274703 | AD157: 195.7104965 | AE157: 663.9 | AF157: 74190 | AG157: 51410.9 | AH157: 88941 | AI157: 74300 | AJ157: -110 | AK157: 439 | AL157: 28 | AM157: 5 | AN157: 90.46 | AO157: 98.65 | AP157: 6.529850746 | AQ157: 80.7 | AR157: 214.4 | AS157: 32.3 | AT157: 6 | AU157: 32 | AV157: 3 | AW157: 2518.935484 | AY157: 1509 | BA157: 2719.5625 | BE157: 2486.515152 | BG157: 2074 | BH157: 691.3333333 | BI157: 5.105593057 | BJ157: 85.1 | BK157: 63229.3 | BL157: 169.333359 | BM157: 200.8907045 | BN157: 57.89995375 | BO157: 38 | BP157: 31 | BQ157: BBB
A158: non | B158: 3 | C158: conventionnel | D158: eleveur engraisseur | E158: 2024 | F158: 88229 | G158: 1.08 | H158: 1.08 | I158: 82.94 | J158: 127.97 | K158: 118.4907407 | L158: 1.542922595 | M158: 76.7962963 | N158: 1115.1 | O158: 1115.1 | P158: 0 | Q158: 560.5 | R158: 522.2 | S158: 390.4 | T158: 57.4 | U158: 333 | V158: 95.4 | W158: 36.4 | X158: 38.3 | Y158: 266.4896311 | Z158: 255.522667 | AA158: 522.012298 | AB158: 94.9383892 | AC158: 129.4975385 | AD158: 250.6052628 | AE158: 554.6 | AF158: 71006 | AG158: 49401.9 | AH158: 79961 | AI158: 75233.33333 | AJ158: -4227.333333 | AK158: 449 | AL158: 31 | AM158: 6 | AN158: 95.79 | AO158: 100 | AP158: 10.26894866 | AQ158: 78.3 | AR158: 204.5 | AS158: 31 | AT158: 8 | AU158: 31 | AV158: 2 | AW158: 2590.0625 | AY158: 1248.875 | BA158: 2710.322581 | BE158: 2434.054054 | BG158: 1126 | BH158: 563 | BI158: 5.819715808 | BJ158: 85.2 | BK158: 64098.8 | BL158: 165.6095179 | BM158: 172.7174338 | BN158: 61.53153083 | BO158: 23 | BP158: 40 | BQ158: BBB
A159: non | B159: 3 | C159: conventionnel | D159: eleveur naisseur | E159: 2020 | F159: 88241 | G159: 1.45 | H159: 1.45 | I159: 73.96 | J159: 154.15 | K159: 106.3103448 | L159: 2.084234721 | M159: 51.00689655 | N159: 970.2 | O159: 970.2 | P159: 0 | Q159: 569 | R159: 506.7 | S159: 359.7 | T159: 54.8 | U159: 304.9 | V159: 110.3 | W159: 36.7 | X159: 62.4 | Y159: 310.6231747 | Z159: 139.0438075 | AA159: 449.6669822 | AB159: 306.3722147 | AC159: 134.7951346 | AD159: 120.4882765 | AE159: 401.1 | AF159: 35529 | AG159: 19256.1 | AH159: 43944 | AI159: 58700.68966 | AJ159: -23171.68966 | AK159: 433 | AL159: 36 | AM159: 5 | AN159: 111.236 | AO159: 100 | AP159: 0.7958615201 | AQ159: 89 | AR159: 251.3 | AS159: 31.7 | AT159: 45 | AU159: 2 | AV159: 0 | AW159: 1926.225 | AY159: 1259.244444 | BE159: 1304.6 | BG159: 0 | BJ159: 85.4 | BK159: 50130.38897 | BL159: 66.71216348 | BM159: 149.0346416 | BN159: 146.9950633 | BO159: 45 | BP159: 46 | BQ159: BBB
A160: non | B160: 2 | C160: conventionnel | D160: eleveur naisseur | E160: 2021 | F160: 88241 | G160: 1.45 | H160: 1.45 | I160: 76.55 | J160: 155.3 | K160: 107.1034483 | L160: 2.028739386 | M160: 52.79310345 | N160: 1075.6 | O160: 1056.3 | P160: 19.3 | Q160: 563.5 | R160: 497 | S160: 338.5 | T160: 19.4 | U160: 319.1 | V160: 116.5 | W160: 42 | X160: 66.6 | Y160: 366.4642717 | Z160: 171.8902678 | AA160: 538.3545395 | AB160: 306.7254082 | AC160: 138.2385705 | AD160: 122.4257726 | AE160: 512.1 | AF160: 38354 | AG160: 19706.6 | AH160: 39387 | AI160: 59746.13103 | AJ160: -21392.13103 | AK160: 426 | AL160: 35 | AM160: 5 | AN160: 113.79 | AO160: 101.02 | AP160: 2.363135093 | AQ160: 87 | AR160: 253.9 | AS160: 30.2 | AT160: 38 | AU160: 2 | AV160: 1 | AW160: 2181.73913 | AX160: 795 | AY160: 1295.789474 | BE160: 1428.387097 | BG160: 900 | BH160: 900 | BI160: 3.555555556 | BJ160: 95.5 | BK160: 57057.55514 | BL160: 84.72762395 | BM160: 180.6364456 | BN160: 151.1901481 | BO160: 54 | BP160: 41 | BQ160: BBB
A161: non | B161: 2 | C161: conventionnel | D161: eleveur naisseur | E161: 2022 | F161: 88241 | G161: 1.37 | H161: 1.37 | I161: 76.68 | J161: 147.76 | K161: 107.8540146 | L161: 1.926969223 | M161: 55.97080292 | N161: 1113.3 | O161: 1113.3 | P161: 0 | Q161: 646.9 | R161: 584.8 | S161: 429.2 | T161: 72 | U161: 357.2 | V161: 108.6 | W161: 47 | X161: 62.1 | Y161: 300.9402713 | Z161: 235.084507 | AA161: 536.0247783 | AB161: 275.0003912 | AC161: 152.696941 | AD161: 135.907362 | AE161: 466.4 | AF161: 38408 | AG161: 18992.4 | AH161: 42702 | AI161: 63869.78102 | AJ161: -25461.78102 | AK161: 409 | AL161: 34 | AM161: 5 | AN161: 106.73 | AO161: 101.1 | AP161: 2.446982055 | AQ161: 86.2 | AR161: 245.2 | AS161: 29.2 | AT161: 50 | AU161: 2 | AV161: 0 | AW161: 2347.705882 | AX161: 669.4 | AY161: 1371.54 | BB161: 1501.6 | BD161: 2045.428571 | BE161: 1420.270833 | BG161: 0 | BJ161: 88.6 | BK161: 56588.62599 | BL161: 121.9970222 | BM161: 156.1728479 | BN161: 142.7113563 | BO161: 41 | BP161: 48 | BQ161: BBB
A162: non | B162: 3 | C162: conventionnel | D162: eleveur naisseur | E162: 2023 | F162: 88241 | G162: 1.37 | H162: 1.37 | I162: 74.33 | J162: 147.27 | K162: 107.4963504 | L162: 1.98129961 | M162: 54.25547445 | N162: 1231.2 | O162: 1231.2 | P162: 0 | Q162: 668.8 | R162: 594.2 | S162: 424.9 | T162: 75.8 | U162: 349.1 | V162: 110.9 | W162: 58.4 | X162: 74.6 | Y162: 397.5836136 | Z162: 233.5741962 | AA162: 631.1578098 | AB162: 233.6324499 | AC162: 142.3806614 | AD162: 140.9222711 | AE162: 562.4 | AF162: 44059 | AG162: 23772.1 | AH162: 51157 | AI162: 71871.53285 | AJ162: -27812.53285 | AK162: 411 | AL162: 34 | AM162: 5 | AN162: 118.32 | AO162: 101.09 | AP162: 3.663003663 | AQ162: 78.6 | AR162: 245.7 | AS162: 33.4 | AT162: 27 | AU162: 2 | AV162: 2 | AW162: 2554.309524 | AY162: 1485 | BE162: 1641.730769 | BG162: 1650 | BH162: 825 | BI162: 3.821818182 | BJ162: 89.4 | BK162: 64253.15036 | BL162: 117.8893868 | BM162: 200.6680926 | BN162: 117.9187886 | BO162: 55 | BP162: 48 | BQ162: BBB
A163: non | B163: 3 | C163: conventionnel | D163: eleveur naisseur | E163: 2024 | F163: 88241 | G163: 1.37 | H163: 1.37 | I163: 77.51 | J163: 149.5 | K163: 109.1240876 | L163: 1.928783383 | M163: 56.57664234 | N163: 1232.8 | O163: 1231.7 | P163: 1.1 | Q163: 611.7 | R163: 543.2 | S163: 374.2 | T163: 89 | U163: 285.2 | V163: 123.4 | W163: 45.6 | X163: 68.5 | Y163: 421.6292091 | Z163: 249.0042575 | AA163: 670.6334666 | AB163: 241.2759644 | AC163: 145.9123746 | AD163: 180.2453105 | AE163: 621 | AF163: 52637 | AG163: 30906.4 | AH163: 55558 | AI163: 72775.18248 | AJ163: -20138.18248 | AK163: 399 | AL163: 34 | AM163: 5 | AN163: 124.52 | AO163: 98.99 | AP163: 3.253355022 | AQ163: 78.7 | AR163: 245.9 | AS163: 37.2 | AT163: 42 | AU163: 6 | AV163: 0 | AW163: 2724.828571 | AY163: 1497.071429 | BA163: 1518.166667 | BD163: 2326.2 | BE163: 1515.659574 | BG163: 0 | BJ163: 91.2 | BK163: 66370.96642 | BL163: 129.0991304 | BM163: 218.5985284 | BN163: 125.0923077 | BO163: 44 | BP163: 55 | BQ163: BBB
A164: non | B164: 1 | C164: conventionnel | D164: intermediaire | E164: 2020 | F164: 88249 | G164: 1.11 | H164: 1.11 | I164: 66.96 | J164: 88.71 | K164: 79.91891892 | L164: 1.324820789 | M164: 60.32432432 | N164: 381.5 | O164: 381.5 | P164: 0 | Q164: 263.7 | R164: 183 | S164: 85.1 | T164: 57.9 | U164: 27.2 | V164: 75.5 | W164: 22.4 | X164: 80.7 | Y164: 161.8097222 | Z164: 86.70400239 | AA164: 248.5137246 | AB164: 239.9787933 | AC164: 69.33243152 | AD164: 161.5092561 | AE164: 117.8 | AF164: 4614 | AG164: -4690.9 | AH164: 4065 | AI164: 52246.66667 | AJ164: -47632.66667 | AK164: 482 | AL164: 36 | AM164: 5 | AN164: 106.754 | AO164: 100 | AP164: 17.37871108 | AQ164: 45.9 | AR164: 138.1 | AS164: 18.1 | AT164: 10 | AU164: 9 | AV164: 2 | AW164: 1091.125 | AY164: 1038 | BA164: 1213.666667 | BE164: 999.375 | BG164: 1190 | BH164: 595 | BI164: 2.721008403 | BJ164: 74.8 | BK164: 39080.50667 | BL164: 65.44583474 | BM164: 122.1370646 | BN164: 181.1405704 | BO164: 41 | BP164: 41 | BQ164: BA
A165: non | B165: 1 | C165: conventionnel | D165: intermediaire | E165: 2021 | F165: 88249 | G165: 1.1 | H165: 1.1 | I165: 68.17 | J165: 85.27 | K165: 77.51818182 | L165: 1.25084348 | M165: 61.97272727 | N165: 499.6 | O165: 499.6 | P165: 0 | Q165: 250.5 | R165: 171.4 | S165: 93.2 | T165: 64.6 | U165: 28.6 | V165: 59.5 | W165: 18.7 | X165: 79.1 | Y165: 222.9204929 | Z165: 112.2078627 | AA165: 335.1283556 | AB165: 237.5577233 | AC165: 73.77870294 | AD165: 166.2131797 | AE165: 249.2 | AF165: 11574 | AG165: 2655.3 | AH165: 12665 | AI165: 53773.76364 | AJ165: -42199.76364 | AK165: 391 | AL165: 37 | AM165: 6 | AN165: 78.28 | AO165: 97.56 | AP165: 4.357298475 | AQ165: 51.1 | AR165: 137.7 | AS165: 19 | AT165: 3 | AU165: 12 | AV165: 0 | AW165: 1175.7 | BA165: 1226.833333 | BD165: 1088 | BE165: 1055.785714 | BG165: 0 | BJ165: 71.3 | BK165: 38340.69347 | BL165: 89.70575818 | BM165: 178.216137 | BN165: 189.9180251 | BO165: 41 | BP165: 29 | BQ165: BA
A166: non | B166: 2 | C166: conventionnel | D166: intermediaire | E166: 2022 | F166: 88249 | G166: 1.1 | H166: 1.1 | I166: 70.59 | J166: 89.76 | K166: 81.6 | L166: 1.271568211 | M166: 64.17272727 | N166: 659 | O166: 659 | P166: 0 | Q166: 306.5 | R166: 229 | S166: 176.3 | T166: 142.5 | U166: 33.8 | V166: 35 | W166: 17.7 | X166: 77.5 | Y166: 192.3904236 | Z166: 42.78934693 | AA166: 235.1797705 | AB166: 239.6194928 | AC166: 74.40396613 | AD166: 158.5921076 | AE166: 352.5 | AF166: 21214 | AG166: 11749.1 | AH166: 23376 | AI166: 56528.06364 | AJ166: -35314.06364 | AK166: 432 | AL166: 39 | AM166: 7 | AN166: 87.72 | AO166: 95.24 | AP166: 4.252303331 | AQ166: 45.6 | AR166: 141.1 | AS166: 17.2 | AT166: 5 | AU166: 10 | AV166: 1 | AW166: 1685.8125 | AY166: 1185.4 | BA166: 1226.8 | BE166: 1164.857143 | BG166: 620 | BH166: 620 | BI166: 3.043548387 | BJ166: 81.7 | BK166: 46183.42799 | BL166: 33.6508467 | BM166: 151.3016934 | BN166: 188.4440731 | BO166: 37 | BP166: 22 | BQ166: BA
A167: non | B167: 2 | C167: conventionnel | D167: intermediaire | E167: 2023 | F167: 88249 | G167: 1.1 | H167: 1.1 | I167: 72.98 | J167: 94.39 | K167: 85.80909091 | L167: 1.293368046 | M167: 66.34545455 | N167: 487.3 | O167: 487.3 | P167: 0 | Q167: 247.4 | R167: 167 | S167: 104.2 | T167: 87.2 | U167: 17 | V167: 41.5 | W167: 21.3 | X167: 80.5 | Y167: 179.1512743 | Z167: 45.48616059 | AA167: 224.6374349 | AB167: 220.9693067 | AC167: 120.0307236 | AD167: 202.4097364 | AE167: 239.8 | AF167: 23968 | AG167: 14449.6 | AH167: 24598 | AI167: 63729.13636 | AJ167: -39761.13636 | AK167: 403 | AL167: 39 | AM167: 6 | AN167: 107.22 | AO167: 98.11 | AP167: 11.51761518 | AQ167: 48.5 | AR167: 147.6 | AS167: 18.5 | AT167: 9 | AU167: 7 | AV167: 1 | AW167: 1295.125 | AY167: 1151.333333 | BA167: 1555 | BE167: 1243.533333 | BG167: 690 | BH167: 690 | BI167: 3.75942029 | BJ167: 76.9 | BK167: 49007.70586 | BL167: 35.16876788 | BM167: 138.5153088 | BN167: 170.8479712 | BO167: 25 | BP167: 54 | BQ167: BA
A168: non | B168: 2 | C168: conventionnel | D168: intermediaire | E168: 2024 | F168: 88249 | G168: 1.1 | H168: 1.1 | I168: 71.16 | J168: 100.24 | K168: 91.12727273 | L168: 1.408656549 | M168: 64.69090909 | N168: 641.9 | O168: 641.9 | P168: 0 | Q168: 238.2 | R168: 167.7 | S168: 114.3 | T168: 94.4 | U168: 19.9 | V168: 34.4 | W168: 19 | X168: 70.6 | Y168: 209.9777965 | Z168: 71.96458685 | AA168: 281.9423834 | AB168: 231.769674 | AC168: 121.4604948 | AD168: 226.3414852 | AE168: 403.7 | AF168: 41763 | AG168: 30468.3 | AH168: 43619 | AI168: 64529.68182 | AJ168: -22766.68182 | AK168: 456 | AL168: 38 | AM168: 6 | AN168: 94.5 | AO168: 103.77 | AP168: 3.705991353 | AQ168: 58.2 | AR168: 161.9 | AS168: 24.6 | AT168: 13 | AU168: 5 | AV168: 1 | AW168: 1217.625 | AY168: 1168.230769 | BA168: 2069 | BE168: 1350.625 | BG168: 680 | BH168: 680 | BI168: 5.558823529 | BJ168: 81.4 | BK168: 52527.161 | BL168: 51.08739026 | BM168: 149.0624501 | BN168: 164.5324222 | BO168: 17 | BP168: 34 | BQ168: BA
A169: non | B169: 1 | C169: conventionnel | D169: eleveur naisseur | E169: 2020 | F169: 88258 | G169: 1.01 | H169: 1 | I169: 32.17 | J169: 47.72 | K169: 47.24752475 | L169: 1.483369599 | M169: 31.85148515 | N169: 695.1 | O169: 695.1 | P169: 0 | Q169: 568 | R169: 502.5 | S169: 336.2 | T169: 0 | U169: 336.2 | V169: 108.1 | W169: 58.2 | X169: 65.5 | Y169: 225.6120609 | Z169: 111.4976686 | AA169: 337.1097296 | AB169: 545.6931924 | AC169: 139.3371752 | AD169: 197.5848701 | AE169: 127.2 | AF169: -6419 | AG169: -15970.8 | AH169: -7420 | AI169: 55320 | AJ169: -61739 | AK169: 477 | AL169: 31 | AM169: 5 | AN169: 105.263 | AO169: 103.03 | AP169: 7.8125 | AQ169: 32.3 | AR169: 76.8 | AS169: 8.3 | AT169: 15 | AU169: 0 | AV169: 0 | AW169: 1661.357143 | AY169: 1010.866667 | BE169: 1035.375 | BG169: 0 | BJ169: 89.1 | BK169: 49290.12 | BL169: 75.16512992 | BM169: 152.0943001 | BN169: 367.874057 | BO169: 43 | BP169: 34 | BQ169: BBB
A170: non | B170: 1 | C170: conventionnel | D170: eleveur naisseur | E170: 2021 | F170: 88258 | G170: 1 | H170: 1 | I170: 32.1 | J170: 46.72 | K170: 46.72 | L170: 1.455451713 | M170: 32.1 | N170: 844.6 | O170: 844.6 | P170: 0 | Q170: 520.9 | R170: 426.2 | S170: 276.3 | T170: 0 | U170: 276.3 | V170: 91.9 | W170: 58 | X170: 94.7 | Y170: 224.4707165 | Z170: 116.7697819 | AA170: 341.2404984 | AB170: 530.5218069 | AC170: 147.0440925 | AD170: 201.3546661 | AE170: 323.8 | AF170: 2746 | AG170: -6279.9 | AH170: 2313 | AI170: 56423.98 | AJ170: -53677.98 | AK170: 462 | AL170: 34 | AM170: 6 | AN170: 93.33 | AO170: 107.69 | AP170: 2.75862069 | AQ170: 30 | AR170: 72.5 | AS170: 5 | AT170: 12 | AU170: 1 | AV170: 0 | AW170: 2120.125 | AY170: 1090.916667 | BE170: 1164.363636 | BG170: 0 | BJ170: 91 | BK170: 51345.8218 | BL170: 80.22923801 | BM170: 154.2275257 | BN170: 364.5066353 | BO170: 27 | BP170: 33 | BQ170: BBB
A171: non | B171: 1 | C171: conventionnel | D171: eleveur naisseur | E171: 2022 | F171: 88258 | G171: 1 | H171: 1 | I171: 31.87 | J171: 49.45 | K171: 49.45 | L171: 1.55161594 | M171: 31.87 | N171: 907.9 | O171: 907.9 | P171: 0 | Q171: 687.9 | R171: 571.7 | S171: 395.6 | T171: 0 | U171: 395.6 | V171: 113.9 | W171: 62.2 | X171: 116.1 | Y171: 279.873235 | Z171: 175.8518983 | AA171: 455.7251334 | AB171: 529.1176655 | AC171: 146.0060667 | AD171: 193.051365 | AE171: 220 | AF171: -5583 | AG171: -14411.2 | AH171: -6716 | AI171: 58325.46 | AJ171: -63908.46 | AK171: 502 | AL171: 31 | AM171: 4 | AN171: 97.14 | AO171: 97.14 | AP171: 6.281407035 | AQ171: 35 | AR171: 79.6 | AS171: 3.9 | AT171: 5 | AU171: 1 | AV171: 0 | AW171: 2376.333333 | AY171: 1194 | BE171: 1363.2 | BG171: 0 | BJ171: 97.9 | BK171: 57100.62534 | BL171: 113.3346815 | BM171: 180.3753286 | BN171: 341.0107179 | BO171: 26 | BP171: 34 | BQ171: BBB
A172: non | B172: 2 | C172: conventionnel | D172: eleveur naisseur | E172: 2023 | F172: 88258 | G172: 1.01 | H172: 1 | I172: 31.65 | J172: 51.05 | K172: 50.54455446 | L172: 1.612954186 | M172: 31.33663366 | N172: 1125.2 | O172: 1125.2 | P172: 0 | Q172: 598.6 | R172: 534.9 | S172: 372.1 | T172: 0 | U172: 372.1 | V172: 100 | W172: 62.8 | X172: 63.8 | Y172: 276.6821485 | Z172: 139.1627172 | AA172: 415.8448657 | AB172: 539.0461295 | AC172: 135.8099902 | AD172: 227.7951028 | AE172: 526.6 | AF172: 14598 | AG172: 6123.6 | AH172: 14873 | AI172: 66424.2 | AJ172: -51826.2 | AK172: 428 | AL172: 29 | AM172: 6 | AN172: 112.85 | AO172: 100 | AP172: 3.618817853 | AQ172: 31.9 | AR172: 82.9 | AS172: 8.3 | AT172: 13 | AU172: 0 | AV172: 0 | AW172: 2525.818182 | AY172: 1219.307692 | BE172: 1219.307692 | BG172: 0 | BJ172: 94.4 | BK172: 62704.4448 | BL172: 86.27815867 | BM172: 171.5375122 | BN172: 334.1980411 | BO172: 34 | BP172: 41 | BQ172: BBB
A173: non | B173: 1 | C173: conventionnel | D173: eleveur naisseur | E173: 2024 | F173: 88258 | G173: 1.03 | H173: 1 | I173: 31.65 | J173: 51.35 | K173: 49.85436893 | L173: 1.622432859 | M173: 30.72815534 | N173: 933.2 | O173: 933.2 | P173: 0 | Q173: 727.9 | R173: 652.3 | S173: 437.4 | T173: 0 | U173: 437.4 | V173: 107.6 | W173: 107.3 | X173: 75.6 | Y173: 264.8657188 | Z173: 218.6413902 | AA173: 483.507109 | AB173: 543.828752 | AC173: 148.1888997 | AD173: 293.0455696 | AE173: 205.4 | AF173: 463 | AG173: -7034.1 | AH173: -1648 | AI173: 67258.6 | AJ173: -66795.6 | AK173: 467 | AL173: 36 | AM173: 6 | AN173: 100.33 | AO173: 107.14 | AP173: 4.884004884 | AQ173: 29.9 | AR173: 81.9 | AS173: 13.1 | AT173: 15 | AU173: 0 | AV173: 0 | AW173: 2564.384615 | AY173: 1243.133333 | BE173: 1243.133333 | BG173: 0 | BJ173: 95.4 | BK173: 64164.7044 | BL173: 134.7614411 | BM173: 163.2521908 | BN173: 335.1933788 | BO173: 47 | BP173: 20 | BQ173: BBB
A174: non | B174: 3 | C174: conventionnel | D174: eleveur naisseur | E174: 2020 | F174: 88262 | G174: 1 | H174: 1 | I174: 48 | J174: 133.82 | K174: 133.82 | L174: 2.787916667 | M174: 48 | N174: 656.3 | O174: 656.3 | P174: 0 | Q174: 352 | R174: 343.2 | S174: 284 | T174: 170.9 | U174: 113.1 | V174: 52.2 | W174: 7 | X174: 8.7 | Y174: 277.2408333 | Z174: 5 | AA174: 282.2408333 | AB174: 234.3172708 | AC174: 124.2185772 | AD174: 78.42287373 | AE174: 304.3 | AF174: 48698 | AG174: 27390.3 | AH174: 69129 | AI174: 66384 | AJ174: -17686 | AK174: 433 | AL174: 50 | AM174: 7 | AN174: 120.664 | AO174: 98.765 | AP174: 9.034712316 | AQ174: 66.3 | AR174: 210.3 | AS174: 28.8 | AT174: 27 | AU174: 9 | AV174: 0 | AW174: 1752.966667 | AY174: 1250.481481 | BA174: 1275 | BE174: 1256.611111 | BG174: 0 | BJ174: 74.9 | BK174: 49721.616 | BL174: 1.793453893 | BM174: 99.44373038 | BN174: 84.04744433 | BO174: 51 | BP174: 56 | BQ174: BBB
A175: non | B175: 3 | C175: conventionnel | D175: intermediaire | E175: 2021 | F175: 88262 | G175: 1 | H175: 1 | I175: 47.33 | J175: 136.32 | K175: 136.32 | L175: 2.880202831 | M175: 47.33 | N175: 850.7 | O175: 850.7 | P175: 0 | Q175: 378.1 | R175: 367.5 | S175: 306.5 | T175: 179.7 | U175: 126.8 | V175: 50.8 | W175: 10.2 | X175: 10.6 | Y175: 332.5077118 | Z175: 16.63215719 | AA175: 349.139869 | AB175: 233.7113881 | AC175: 125.9885563 | AD175: 75.92710467 | AE175: 472.6 | AF175: 69003 | AG175: 47654.5 | AH175: 88367 | AI175: 69965.73 | AJ175: -962.73 | AK175: 391 | AL175: 48 | AM175: 7 | AN175: 98.4 | AO175: 100 | AP175: 5.938784833 | AQ175: 75.2 | AR175: 218.9 | AS175: 37.1 | AT175: 10 | AU175: 17 | AV175: 0 | AW175: 2315.173913 | AY175: 1480 | AZ175: 1090.909091 | BA175: 1735.294118 | BE175: 1646.153846 | BG175: 0 | BJ175: 81 | BK175: 56672.2413 | BL175: 5.774647887 | BM175: 115.445936 | BN175: 81.14407277 | BO175: 35 | BP175: 37 | BQ175: BBB
A176: non | B176: 2 | C176: conventionnel | D176: intermediaire | E176: 2022 | F176: 88262 | G176: 1 | H176: 1 | I176: 46.83 | J176: 129.13 | K176: 129.13 | L176: 2.757420457 | M176: 46.83 | N176: 590.8 | O176: 590.8 | P176: 0 | Q176: 422.9 | R176: 419.7 | S176: 367.4 | T176: 183.6 | U176: 183.8 | V176: 44.6 | W176: 7.7 | X176: 3.2 | Y176: 382.1091181 | Z176: 56.23339739 | AA176: 438.3425155 | AB176: 234.8152893 | AC176: 139.7816154 | AD176: 79.42269429 | AE176: 168 | AF176: 28465 | AG176: 8497.9 | AH176: 51164 | AI176: 71176.84 | AJ176: -42711.84 | AK176: 411 | AL176: 40 | AM176: 7 | AN176: 102.24 | AO176: 100 | AP176: 15.32377657 | AQ176: 71.4 | AR176: 202.3 | AS176: 28 | AT176: 11 | AU176: 16 | AV176: 0 | AW176: 2082.761905 | AY176: 1457.454545 | BA176: 1508.625 | BE176: 1487.777778 | BG176: 0 | BJ176: 68.5 | BK176: 48756.1354 | BL176: 20.39347944 | BM176: 138.5748471 | BN176: 85.15759312 | BO176: 38 | BP176: 36 | BQ176: BBB
A177: non | B177: 3 | C177: conventionnel | D177: eleveur engraisseur | E177: 2023 | F177: 88262 | G177: 1 | H177: 1 | I177: 52.06 | J177: 126.36 | K177: 126.36 | L177: 2.427199385 | M177: 52.06 | N177: 725.8 | O177: 725.8 | P177: 0 | Q177: 356.8 | R177: 282.7 | S177: 229.1 | T177: 90.1 | U177: 139 | V177: 47.9 | W177: 5.7 | X177: 74.1 | Y177: 385.0760661 | Z177: 0 | AA177: 385.0760661 | AB177: 214.7577795 | AC177: 96.35327635 | AD177: 100.7059209 | AE177: 369.1 | AF177: 47652 | AG177: 27124.5 | AH177: 56873 | AI177: 80912.7 | AJ177: -33260.7 | AK177: 506 | AL177: 43 | AM177: 7 | AN177: 105.86 | AO177: 98.48 | AP177: 5.265929437 | AQ177: 61.4 | AR177: 189.9 | AS177: 21.3 | AT177: 12 | AU177: 16 | AV177: 0 | AW177: 2289.6 | AY177: 1320.75 | BA177: 1546.125 | BE177: 1468.296296 | BG177: 0 | BJ177: 81.4 | BK177: 65862.9378 | BL177: 0 | BM177: 158.650364 | BN177: 88.47966129 | BO177: 37 | BP177: 28 | BQ177: BBB
A178: non | B178: 2 | C178: conventionnel | D178: eleveur naisseur | E178: 2024 | F178: 88262 | G178: 1 | H178: 1 | I178: 49.91 | J178: 124.37 | K178: 124.37 | L178: 2.491885394 | M178: 49.91 | N178: 752.8 | O178: 752.8 | P178: 0 | Q178: 484.2 | R178: 436.4 | S178: 333.3 | T178: 178.6 | U178: 154.7 | V178: 90.9 | W178: 12.2 | X178: 47.8 | Y178: 375.6020838 | Z178: 18.59346824 | AA178: 394.195552 | AB178: 237.9412943 | AC178: 122.3687384 | AD178: 120.5599811 | AE178: 268.6 | AF178: 37123 | AG178: 16903.1 | AH178: 47938 | AI178: 81252 | AJ178: -44129 | AK178: 426 | AL178: 46 | AM178: 7 | AN178: 91.64 | AO178: 100 | AP178: 10.96033403 | AQ178: 62.2 | AR178: 191.6 | AS178: 22.4 | AT178: 22 | AU178: 6 | AV178: 0 | AW178: 2330.214286 | AY178: 1636.863636 | BA178: 1709.5 | BE178: 1652.428571 | BG178: 0 | BJ178: 79.6 | BK178: 64676.592 | BL178: 7.461606497 | BM178: 150.7300796 | BN178: 95.48645172 | BO178: 51 | BP178: 48 | BQ178: autres
A179: non | B179: 2 | C179: conventionnel | D179: eleveur naisseur | E179: 2020 | F179: 88264 | G179: 1.14 | H179: 1.14 | I179: 101.32 | J179: 123.28 | K179: 108.1403509 | L179: 1.216739045 | M179: 88.87719298 | N179: 578.9 | O179: 578.9 | P179: 0 | Q179: 413.6 | R179: 373.2 | S179: 262.1 | T179: 141 | U179: 121.1 | V179: 86.1 | W179: 25 | X179: 40.3 | Y179: 217.2030201 | Z179: 139.8547079 | AA179: 357.057728 | AB179: 218.4562673 | AC179: 132.1420344 | AD179: 171.4061668 | AE179: 165.3 | AF179: 20851 | AG179: 8897 | AH179: 41280 | AI179: 55805.26316 | AJ179: -34954.26316 | AK179: 441 | AL179: 43 | AM179: 6 | AN179: 105.536 | AO179: 98.387 | AP179: 4.843918192 | AQ179: 57.8 | AR179: 185.8 | AS179: 18.4 | AT179: 23 | AU179: 2 | AV179: 0 | AW179: 1613.827586 | AY179: 1139.217391 | BE179: 1137.166667 | BG179: 0 | BJ179: 53.8 | BK179: 30023.23158 | BL179: 114.9422372 | BM179: 178.5124108 | BN179: 179.5424156 | BO179: 55 | BP179: 54 | BQ179: BBB
A180: non | B180: 1 | C180: conventionnel | D180: eleveur naisseur | E180: 2021 | F180: 88264 | G180: 1.14 | H180: 1.14 | I180: 102.16 | J180: 120.73 | K180: 105.9035088 | L180: 1.181773688 | M180: 89.61403509 | N180: 559.4 | O180: 559.4 | P180: 0 | Q180: 509.8 | R180: 470.1 | S180: 329.1 | T180: 203.8 | U180: 125.3 | V180: 105.1 | W180: 35.9 | X180: 39.8 | Y180: 177.5426782 | Z180: 170.2728074 | AA180: 347.8154855 | AB180: 249.3533673 | AC180: 140.8350037 | AD180: 177.8736639 | AE180: 49.6 | AF180: 6420 | AG180: -5217.2 | AH180: 20294 | AI180: 56918.92105 | AJ180: -50498.92105 | AK180: 452 | AL180: 39 | AM180: 6 | AN180: 84.51 | AO180: 98.18 | AP180: 8.849557522 | AQ180: 63.9 | AR180: 180.8 | AS180: 13.8 | AT180: 27 | AU180: 0 | AV180: 0 | AW180: 1880.571429 | AY180: 1070.851852 | BE180: 1116.88 | BG180: 0 | BJ180: 58.6 | BK180: 33354.48774 | BL180: 144.0824153 | BM180: 150.234076 | BN180: 210.9992545 | BO180: 44 | BP180: 44 | BQ180: BBB
A181: non | B181: 2 | C181: conventionnel | D181: eleveur naisseur | E181: 2022 | F181: 88264 | G181: 1.14 | H181: 1.14 | I181: 99.25 | J181: 112.22 | K181: 98.43859649 | L181: 1.130680101 | M181: 87.06140351 | N181: 776.9 | O181: 776.9 | P181: 0 | Q181: 485.5 | R181: 446.1 | S181: 296.7 | T181: 200.3 | U181: 96.4 | V181: 128 | W181: 21.4 | X181: 39.4 | Y181: 170.4483627 | Z181: 215.1432746 | AA181: 385.5916373 | AB181: 252.1692695 | AC181: 147.9771877 | AD181: 191.6648894 | AE181: 291.4 | AF181: 26469 | AG181: 15677.7 | AH181: 46927 | AI181: 59834.33333 | AJ181: -33365.33333 | AK181: 447 | AL181: 40 | AM181: 6 | AN181: 99.19 | AO181: 96.83 | AP181: 8.177570093 | AQ181: 61.5 | AR181: 171.2 | AS181: 11.8 | AT181: 29 | AU181: 0 | AV181: 0 | AW181: 2389.074074 | AY181: 1114.448276 | BD181: 1064.5 | BE181: 1241.772727 | BG181: 0 | BJ181: 60.6 | BK181: 36259.606 | BL181: 190.277758 | BM181: 150.7485297 | BN181: 223.0244163 | BO181: 52 | BP181: 42 | BQ181: BBB
A182: non | B182: 2 | C182: conventionnel | D182: eleveur naisseur | E182: 2023 | F182: 88264 | G182: 1.14 | H182: 1.14 | I182: 98 | J182: 102.66 | K182: 90.05263158 | L182: 1.04755102 | M182: 85.96491228 | N182: 763.1 | O182: 763.1 | P182: 0 | Q182: 595.4 | R182: 565.5 | S182: 435.2 | T182: 214.6 | U182: 220.6 | V182: 116.3 | W182: 14 | X182: 29.9 | Y182: 188.5257143 | Z182: 156.5702041 | AA182: 345.0959184 | AB182: 260.1531633 | AC182: 125.186051 | AD182: 321.8229627 | AE182: 167.7 | AF182: 20592 | AG182: 10430.7 | AH182: 39833 | AI182: 67456.57895 | AJ182: -46864.57895 | AK182: 426 | AL182: 38 | AM182: 5 | AN182: 91.78 | AO182: 94.12 | AP182: 7.566204288 | AQ182: 52.3 | AR182: 158.6 | AS182: 10.7 | AT182: 17 | AU182: 0 | AV182: 0 | AW182: 2190.419355 | AY182: 1168.823529 | BE182: 1157.5 | BG182: 0 | BJ182: 64.2 | BK182: 43307.12368 | BL182: 149.463082 | BM182: 179.9680499 | BN182: 248.3441457 | BO182: 63 | BP182: 33 | BQ182: BBB
A183: non | B183: 1 | C183: conventionnel | D183: intermediaire | E183: 2024 | F183: 88264 | G183: 1.14 | H183: 1.14 | I183: 96.27 | J183: 117.91 | K183: 103.4298246 | L183: 1.22478446 | M183: 84.44736842 | N183: 603.8 | O183: 586.6 | P183: 17.2 | Q183: 565.1 | R183: 514.4 | S183: 328.6 | T183: 184.2 | U183: 144.4 | V183: 147.9 | W183: 37.9 | X183: 50.7 | Y183: 169.313701 | Z183: 162.8011842 | AA183: 332.1148852 | AB183: 224.9137841 | AC183: 120.4681537 | AD183: 257.7837958 | AE183: 38.7 | AF183: 15689 | AG183: 4678.7 | AH183: 25992 | AI183: 68303.94737 | AJ183: -52614.94737 | AK183: 450 | AL183: 39 | AM183: 6 | AN183: 120.35 | AO183: 95.77 | AP183: 9.955752212 | AQ183: 56.5 | AR183: 180.8 | AS183: 17.3 | AT183: 13 | AU183: 0 | AV183: 0 | AW183: 2265.625 | AY183: 1242.923077 | BE183: 1242.923077 | BG183: 0 | BJ183: 62.6 | BK183: 42758.27105 | BL183: 132.9223136 | BM183: 138.2395895 | BN183: 183.6353999 | BO183: 30 | BP183: 67 | BQ183: BBB
A184: non | B184: 2 | C184: conventionnel | D184: eleveur naisseur | E184: 2020 | F184: 88272 | G184: 2 | H184: 2 | I184: 80.82 | J184: 116.68 | K184: 58.34 | L184: 1.443702054 | M184: 40.41 | N184: 525.3 | O184: 525.3 | P184: 0 | Q184: 298.8 | R184: 256.3 | S184: 138.5 | T184: 0 | U184: 138.5 | V184: 103.2 | W184: 14.6 | X184: 42.5 | Y184: 148.2188691 | Z184: 40.28891364 | AA184: 188.5077827 | AB184: 176.0674338 | AC184: 145.3153068 | AD184: 165.3575591 | AE184: 226.6 | AF184: 17220 | AG184: 8400.6 | AH184: 17707 | AI184: 52074.5595 | AJ184: -34854.5595 | AK184: 492 | AL184: 38 | AM184: 6 | AN184: 103.953 | AO184: 101.429 | AP184: 7.061379685 | AQ184: 68.3 | AR184: 184.1 | AS184: 16.8 | AT184: 26 | AU184: 3 | AV184: 1 | AW184: 1444.580645 | AY184: 1114.846154 | BE184: 1090.321429 | BG184: 350 | BH184: 350 | BI184: 5.391428571 | BJ184: 88.5 | BK184: 46085.98516 | BL184: 27.90666781 | BM184: 102.6658296 | BN184: 121.9555194 | BO184: 48 | BP184: 34 | BQ184: autres
A185: non | B185: 2 | C185: conventionnel | D185: intermediaire | E185: 2021 | F185: 88272 | G185: 2 | H185: 2 | I185: 80.8 | J185: 117.99 | K185: 58.995 | L185: 1.460272277 | M185: 40.4 | N185: 458.3 | O185: 458.3 | P185: 0 | Q185: 254.3 | R185: 211 | S185: 132.1 | T185: 0 | U185: 132.1 | V185: 67.4 | W185: 11.5 | X185: 43.3 | Y185: 181.6217822 | Z185: 12.9424505 | AA185: 194.5642327 | AB185: 175.4715347 | AC185: 139.7387067 | AD185: 164.2051869 | AE185: 204 | AF185: 16232 | AG185: 7830.1 | AH185: 17248 | AI185: 50969.66 | AJ185: -34737.66 | AK185: 472 | AL185: 42 | AM185: 6 | AN185: 87.42 | AO185: 95 | AP185: 8.973639933 | AQ185: 65.2 | AR185: 178.3 | AS185: 11.2 | AT185: 15 | AU185: 1 | AV185: 0 | AW185: 1593.105263 | AY185: 1008.666667 | BE185: 1128.2 | BG185: 0 | BJ185: 83.5 | BK185: 42559.6661 | BL185: 8.863039241 | BM185: 124.375286 | BN185: 120.1635732 | BO185: 32 | BP185: 31 | BQ185: autres
A186: non | B186: 2 | C186: conventionnel | D186: eleveur naisseur | E186: 2022 | F186: 88272 | G186: 2 | H186: 2 | I186: 78.57 | J186: 128.11 | K186: 64.055 | L186: 1.630520555 | M186: 39.285 | N186: 612.6 | O186: 612.6 | P186: 0 | Q186: 274 | R186: 274 | S186: 165.4 | T186: 0 | U186: 165.4 | V186: 99.4 | W186: 9.2 | X186: 0 | Y186: 204.115693 | Z186: 21.00038183 | AA186: 225.1160748 | AB186: 181.4098256 | AC186: 163.4376708 | AD186: 152.2821013 | AE186: 338.6 | AF186: 24573 | AG186: 15924.1 | AH186: 23852 | AI186: 53580.34 | AJ186: -29007.34 | AK186: 448 | AL186: 37 | AM186: 6 | AN186: 81.9 | AO186: 95 | AP186: 6.687242798 | AQ186: 69.6 | AR186: 194.4 | AS186: 22.1 | AT186: 27 | AU186: 1 | AV186: 0 | AW186: 1705.607143 | AY186: 1149.259259 | BE186: 1145.785714 | BG186: 0 | BJ186: 97.3 | BK186: 52133.67082 | BL186: 12.87955663 | BM186: 125.1843728 | BN186: 111.2588401 | BO186: 40 | BP186: 39 | BQ186: autres
A187: non | B187: 2 | C187: conventionnel | D187: eleveur naisseur | E187: 2023 | F187: 88272 | G187: 2 | H187: 2 | I187: 78.54 | J187: 122.63 | K187: 61.315 | L187: 1.561370003 | M187: 39.27 | N187: 601.7 | O187: 601.7 | P187: 0 | Q187: 306.5 | R187: 261.9 | S187: 154.5 | T187: 0 | U187: 154.5 | V187: 91.7 | W187: 15.7 | X187: 44.6 | Y187: 331.3711485 | Z187: 19.71925134 | AA187: 351.0903998 | AB187: 169.538961 | AC187: 117.2103074 | AD187: 227.1590965 | AE187: 295.2 | AF187: 19994 | AG187: 12191.5 | AH187: 20937 | AI187: 73779.9 | AJ187: -53785.9 | AK187: 415 | AL187: 37 | AM187: 6 | AN187: 79.62 | AO187: 90.77 | AP187: 8.560727662 | AQ187: 74.1 | AR187: 186.9 | AS187: 14.8 | AT187: 25 | AU187: 1 | AV187: 0 | AW187: 1925.32 | AY187: 1040.96 | BD187: 1447.375 | BE187: 1059.384615 | BG187: 0 | BJ187: 87.6 | BK187: 64631.1924 | BL187: 12.62945446 | BM187: 212.2310201 | BN187: 108.5834624 | BO187: 38 | BP187: 40 | BQ187: autres
A188: non | B188: 2 | C188: conventionnel | D188: eleveur naisseur | E188: 2024 | F188: 88272 | G188: 2 | H188: 2 | I188: 79.46 | J188: 119.83 | K188: 59.915 | L188: 1.508054367 | M188: 39.73 | N188: 580.9 | O188: 580.9 | P188: 0 | Q188: 301 | R188: 280.3 | S188: 136.8 | T188: 0 | U188: 136.8 | V188: 125.7 | W188: 17.8 | X188: 20.7 | Y188: 207.3526303 | Z188: 23.14057387 | AA188: 230.4932041 | AB188: 126.423106 | AC188: 127.0049236 | AD188: 255.0540766 | AE188: 279.9 | AF188: 25498 | AG188: 17931.8 | AH188: 24359 | AI188: 76467.16 | AJ188: -50969.16 | AK188: 430 | AL188: 41 | AM188: 6 | AN188: 100 | AO188: 85 | AP188: 21.99010445 | AQ188: 68 | AR188: 181.9 | AS188: 14.1 | AT188: 19 | AU188: 2 | AV188: 0 | AW188: 2004.052632 | AY188: 1055.473684 | BE188: 1055.52381 | BG188: 0 | BJ188: 94.1 | BK188: 71955.59756 | BL188: 15.34465493 | BM188: 137.4967871 | BN188: 83.83192857 | BO188: 34 | BP188: 34 | BQ188: autres
A189: non | B189: 3 | C189: conventionnel | D189: eleveur naisseur | E189: 2020 | F189: 88273 | G189: 1 | H189: 1 | I189: 48.54 | J189: 87.57 | K189: 87.57 | L189: 1.80407911 | M189: 48.54 | N189: 972.1 | O189: 972.1 | P189: 0 | Q189: 445.1 | R189: 312.1 | S189: 183.2 | T189: 0 | U189: 183.2 | V189: 102 | W189: 26.9 | X189: 133 | Y189: 318.2360733 | Z189: 135.0278121 | AA189: 453.2638855 | AB189: 264.310033 | AC189: 140.4701382 | AD189: 128.162727 | AE189: 527 | AF189: 40779 | AG189: 25223.3 | AH189: 41929 | AI189: 47944 | AJ189: -7165 | AK189: 406 | AL189: 33 | AM189: 5 | AN189: 123.188 | AO189: 101.493 | AP189: 1.423487544 | AQ189: 55.2 | AR189: 140.5 | AS189: 10 | AT189: 33 | AU189: 0 | AV189: 0 | AW189: 1843.423077 | AX189: 719.5 | AY189: 1070.666667 | BE189: 1155.192308 | BG189: 0 | BJ189: 91.6 | BK189: 43916.704 | BL189: 74.84583762 | BM189: 176.3980701 | BN189: 146.5068973 | BO189: 49 | BP189: 47 | BQ189: BBB
A190: non | B190: 2 | C190: conventionnel | D190: eleveur naisseur | E190: 2021 | F190: 88273 | G190: 1 | H190: 1 | I190: 48.46 | J190: 86.61 | K190: 86.61 | L190: 1.787247214 | M190: 48.46 | N190: 935.4 | O190: 935.4 | P190: 0 | Q190: 404.6 | R190: 299.1 | S190: 171.4 | T190: 0 | U190: 171.4 | V190: 96.8 | W190: 30.9 | X190: 105.5 | Y190: 409.8860916 | Z190: 154.7616591 | AA190: 564.6477507 | AB190: 210.017953 | AC190: 140.79298 | AD190: 129.7099642 | AE190: 530.8 | AF190: 34823 | AG190: 17511.5 | AH190: 33624 | AI190: 49841.18 | AJ190: -15018.18 | AK190: 412 | AL190: 33 | AM190: 5 | AN190: 105.88 | AO190: 100 | AP190: 3.584229391 | AQ190: 51 | AR190: 139.5 | AS190: 8.4 | AT190: 24 | AU190: 0 | AV190: 0 | AW190: 2059.222222 | AY190: 1224.208333 | BE190: 1244.826087 | BG190: 0 | BJ190: 98 | BK190: 48844.3564 | BL190: 86.5921949 | BM190: 229.3393373 | BN190: 117.5091791 | BO190: 35 | BP190: 35 | BQ190: BBB
A191: non | B191: 3 | C191: conventionnel | D191: eleveur naisseur | E191: 2022 | F191: 88273 | G191: 1 | H191: 1 | I191: 48.01 | J191: 96.9 | K191: 96.9 | L191: 2.018329515 | M191: 48.01 | N191: 1109.1 | O191: 1109.1 | P191: 0 | Q191: 499.1 | R191: 382.4 | S191: 198 | T191: 0 | U191: 198 | V191: 148.7 | W191: 35.7 | X191: 116.7 | Y191: 376.7596334 | Z191: 203.9887523 | AA191: 580.7483858 | AB191: 272.9629244 | AC191: 160.1960784 | AD191: 117.0977296 | AE191: 609.9 | AF191: 47607 | AG191: 29094 | AH191: 48869 | AI191: 52394.06 | AJ191: -4787.06 | AK191: 419 | AL191: 32 | AM191: 6 | AN191: 117.02 | AO191: 101.54 | AP191: 2.002670227 | AQ191: 56.4 | AR191: 149.8 | AS191: 12.5 | AT191: 33 | AU191: 0 | AV191: 0 | AW191: 2485.9 | AY191: 1263.515152 | BE191: 1288.25 | BG191: 0 | BJ191: 95.3 | BK191: 49931.53918 | BL191: 101.0681115 | BM191: 186.6690402 | BN191: 135.2420021 | BO191: 35 | BP191: 43 | BQ191: BBB
A192: non | B192: 3 | C192: conventionnel | D192: eleveur naisseur | E192: 2023 | F192: 88273 | G192: 1 | H192: 1 | I192: 48.38 | J192: 101.24 | K192: 101.24 | L192: 2.092600248 | M192: 48.38 | N192: 1157.8 | O192: 1157.8 | P192: 0 | Q192: 474.6 | R192: 353.7 | S192: 197 | T192: 0 | U192: 197 | V192: 132.1 | W192: 24.6 | X192: 120.9 | Y192: 292.5289376 | Z192: 228.8910707 | AA192: 521.4200083 | AB192: 270.3794957 | AC192: 138.6339392 | AD192: 151.3015606 | AE192: 683.2 | AF192: 63508 | AG192: 45349.5 | AH192: 65352 | AI192: 59068.5 | AJ192: 4439.5 | AK192: 398 | AL192: 33 | AM192: 5 | AN192: 123.42 | AO192: 101.3 | AP192: 3.645200486 | AQ192: 63.2 | AR192: 164.6 | AS192: 15.9 | AT192: 42 | AU192: 0 | AV192: 0 | AW192: 2359.166667 | AX192: 757.2 | AY192: 1105.428571 | BE192: 1163.411765 | BG192: 0 | BJ192: 95.5 | BK192: 56410.4175 | BL192: 109.3811734 | BM192: 139.7920782 | BN192: 129.2074279 | BO192: 47 | BP192: 51 | BQ192: autres
A193: non | B193: 3 | C193: conventionnel | D193: intermediaire | E193: 2024 | F193: 88273 | G193: 1 | H193: 1 | I193: 49.52 | J193: 99.58 | K193: 99.58 | L193: 2.010904685 | M193: 49.52 | N193: 1381.9 | O193: 1381.9 | P193: 0 | Q193: 450.3 | R193: 346.4 | S193: 183.3 | T193: 0 | U193: 183.3 | V193: 134.3 | W193: 28.8 | X193: 103.9 | Y193: 374.9878837 | Z193: 174.5113086 | AA193: 549.4991922 | AB193: 274.8719709 | AC193: 156.2281583 | AD193: 150.7379996 | AE193: 931.6 | AF193: 83633 | AG193: 66188.9 | AH193: 82501 | AI193: 59810.5 | AJ193: 23822.5 | AK193: 418 | AL193: 36 | AM193: 5 | AN193: 133.93 | AO193: 100 | AP193: 1.246105919 | AQ193: 56 | AR193: 160.5 | AS193: 12 | AT193: 39 | AU193: 0 | AV193: 0 | AW193: 2538.15 | AX193: 788.6153846 | AY193: 1073.589744 | BB193: 1543.25 | BE193: 1242.08 | BG193: 0 | BJ193: 98.1 | BK193: 58674.1005 | BL193: 86.78248644 | BM193: 186.4772043 | BN193: 136.6907009 | BO193: 73 | BP193: 54 | BQ193: autres
A194: non | B194: 2 | C194: conventionnel | D194: eleveur naisseur | E194: 2020 | F194: 88278 | G194: 2 | H194: 2 | I194: 87.14 | J194: 176.72 | K194: 88.36 | L194: 2.028000918 | M194: 43.57 | N194: 978.6 | O194: 978.6 | P194: 0 | Q194: 541.9 | R194: 453.2 | S194: 331.2 | T194: 20.2 | U194: 311 | V194: 99.6 | W194: 22.4 | X194: 88.7 | Y194: 344.9209318 | Z194: 121.9847372 | AA194: 466.905669 | AB194: 299.4646546 | AC194: 143.91744 | AD194: 132.5466631 | AE194: 436.7 | AF194: 34453 | AG194: 19184.7 | AH194: 46476 | AI194: 66384 | AJ194: -31931 | AK194: 417 | AL194: 34 | AM194: 5 | AN194: 113.937 | AO194: 100.901 | AP194: 3.50385424 | AQ194: 95.3 | AR194: 285.4 | AS194: 36.6 | AT194: 47 | AU194: 8 | AV194: 0 | AW194: 2003.853659 | AY194: 1360.659574 | BA194: 1690.25 | BE194: 1423.428571 | BG194: 0 | BJ194: 79.7 | BK194: 52908.048 | BL194: 60.15023766 | BM194: 170.079278 | BN194: 147.6649502 | BO194: 44 | BP194: 51 | BQ194: BBB
A195: non | B195: 2 | C195: conventionnel | D195: eleveur naisseur | E195: 2021 | F195: 88278 | G195: 2 | H195: 2 | I195: 90.71 | J195: 175.8 | K195: 87.9 | L195: 1.938044317 | M195: 45.355 | N195: 1093.1 | O195: 1093.1 | P195: 0 | Q195: 542.2 | R195: 480.2 | S195: 321.4 | T195: 31.1 | U195: 290.3 | V195: 130.2 | W195: 28.6 | X195: 61.9 | Y195: 383.47944 | Z195: 115.814133 | AA195: 499.2935729 | AB195: 295.2524529 | AC195: 148.4962457 | AD195: 138.2882524 | AE195: 550.9 | AF195: 38659 | AG195: 23323.3 | AH195: 42289 | AI195: 67708.77 | AJ195: -29049.77 | AK195: 413 | AL195: 32 | AM195: 5 | AN195: 106.86 | AO195: 99.09 | AP195: 3.798342541 | AQ195: 99 | AR195: 289.6 | AS195: 43.1 | AT195: 48 | AU195: 3 | AV195: 0 | AW195: 2079.076923 | AY195: 1543.104167 | BE195: 1577.14 | BG195: 0 | BJ195: 90.9 | BK195: 61547.27193 | BL195: 59.75824801 | BM195: 197.8692833 | BN195: 152.3455631 | BO195: 55 | BP195: 54 | BQ195: BBB
A196: non | B196: 2 | C196: conventionnel | D196: eleveur naisseur | E196: 2022 | F196: 88278 | G196: 2 | H196: 2 | I196: 88.41 | J196: 169.75 | K196: 84.875 | L196: 1.920031671 | M196: 44.205 | N196: 1207.7 | O196: 1207.7 | P196: 0 | Q196: 559 | R196: 490.7 | S196: 346 | T196: 62 | U196: 284 | V196: 119.4 | W196: 25.3 | X196: 68.2 | Y196: 466.6691551 | Z196: 159.0634544 | AA196: 625.7326094 | AB196: 300.5782151 | AC196: 150.9926362 | AD196: 145.2057951 | AE196: 648.7 | AF196: 39981 | AG196: 24653.9 | AH196: 40190 | AI196: 71176.84 | AJ196: -31195.84 | AK196: 442 | AL196: 34 | AM196: 5 | AN196: 112.15 | AO196: 99.08 | AP196: 2.884962135 | AQ196: 94.1 | AR196: 277.3 | AS196: 38.7 | AT196: 41 | AU196: 5 | AV196: 0 | AW196: 2438.461538 | AY196: 1520.097561 | BA196: 1545.4 | BE196: 1522.847826 | BG196: 0 | BJ196: 92.5 | BK196: 65838.577 | BL196: 82.84418262 | BM196: 243.0528424 | BN196: 156.5485714 | BO196: 43 | BP196: 46 | BQ196: BBB
A197: non | B197: 2 | C197: conventionnel | D197: eleveur naisseur | E197: 2023 | F197: 88278 | G197: 2 | H197: 2 | I197: 87.77 | J197: 170.64 | K197: 85.32 | L197: 1.944172268 | M197: 43.885 | N197: 1163.6 | O197: 1151.8 | P197: 11.8 | Q197: 640 | R197: 566.2 | S197: 427.1 | T197: 80.4 | U197: 346.7 | V197: 108 | W197: 31.1 | X197: 73.8 | Y197: 565.6975048 | Z197: 154.1648627 | AA197: 719.8623676 | AB197: 299.3885154 | AC197: 118.9170183 | AD197: 165.5258503 | AE197: 523.7 | AF197: 26791 | AG197: 11989.8 | AH197: 29436 | AI197: 80244 | AJ197: -53453 | AK197: 444 | AL197: 33 | AM197: 5 | AN197: 100.53 | AO197: 100 | AP197: 2.189781022 | AQ197: 91.5 | AR197: 274 | AS197: 35.9 | AT197: 49 | AU197: 4 | AV197: 0 | AW197: 2308.574074 | AY197: 1498.55102 | BE197: 1514.057692 | BG197: 0 | BJ197: 90.9 | BK197: 72941.796 | BL197: 79.29588608 | BM197: 290.9708744 | BN197: 153.9927918 | BO197: 59 | BP197: 46 | BQ197: BBB
A198: non | B198: 2 | C198: conventionnel | D198: eleveur naisseur | E198: 2024 | F198: 88278 | G198: 2 | H198: 2 | I198: 86.39 | J198: 165.62 | K198: 82.81 | L198: 1.917120037 | M198: 43.195 | N198: 1174.1 | O198: 1158.5 | P198: 15.6 | Q198: 608.3 | R198: 521.1 | S198: 350 | T198: 55.6 | U198: 294.4 | V198: 141.3 | W198: 29.8 | X198: 87.2 | Y198: 355.3029286 | Z198: 189.1654127 | AA198: 544.4683412 | AB198: 317.1761778 | AC198: 144.9836976 | AD198: 189.0361657 | AE198: 565.8 | AF198: 42263 | AG198: 28270.9 | AH198: 45710 | AI198: 81252 | AJ198: -38989 | AK198: 457 | AL198: 34 | AM198: 5 | AN198: 101.32 | AO198: 95.83 | AP198: 4.42804428 | AQ198: 89.4 | AR198: 271 | AS198: 43.6 | AT198: 42 | AU198: 3 | AV198: 0 | AW198: 2390.413043 | AY198: 1624.619048 | BE198: 1686.227273 | BG198: 0 | BJ198: 90.2 | BK198: 73289.304 | BL198: 98.67165801 | BM198: 185.3316025 | BN198: 165.4440889 | BO198: 51 | BP198: 54 | BQ198: BBB
A199: non | B199: 1 | C199: conventionnel | D199: eleveur naisseur | E199: 2020 | F199: 88284 | G199: 2 | H199: 2 | I199: 125.64 | J199: 164.22 | K199: 82.11 | L199: 1.307067813 | M199: 62.82 | N199: 301.7 | O199: 301.7 | P199: 0 | Q199: 162.2 | R199: 141.7 | S199: 92.8 | T199: 0 | U199: 92.8 | V199: 36.6 | W199: 12.3 | X199: 20.5 | Y199: 193.5628701 | Z199: 12.47612225 | AA199: 206.0389924 | AB199: 224.9640242 | AC199: 77.75240531 | AD199: 184.251431 | AE199: 139.5 | AF199: 6675 | AG199: -3974.4 | AH199: 7816 | AI199: 38724 | AJ199: -32049 | AK199: 473 | AL199: 38 | AM199: 7 | AN199: 86.042 | AO199: 96.774 | AP199: 9.884678748 | AQ199: 104.6 | AR199: 242.8 | AS199: 26.3 | AT199: 37 | AU199: 0 | AV199: 0 | AW199: 1002.1 | AY199: 792.972973 | AZ199: 797 | BB199: 796.2 | BD199: 1128.416667 | BE199: 792.972973 | BG199: 0 | BJ199: 81.7 | BK199: 31637.508 | BL199: 9.545122397 | BM199: 148.0893862 | BN199: 172.1135063 | BO199: 39 | BP199: 21 | BQ199: autres
A200: non | B200: 2 | C200: biologique | D200: eleveur naisseur | E200: 2023 | F200: 88284 | G200: 2 | H200: 2 | I200: 130.63 | J200: 141.14 | K200: 70.57 | L200: 1.08045625 | M200: 65.315 | N200: 540.8 | O200: 540.8 | P200: 0 | Q200: 131.3 | R200: 114.2 | S200: 66.1 | T200: 0 | U200: 66.1 | V200: 30.6 | W200: 17.5 | X200: 17.1 | Y200: 222.4985838 | Z200: 64.87223456 | AA200: 287.3708183 | AB200: 178.3199112 | AC200: 99.34816494 | AD200: 466.0837466 | AE200: 409.6 | AF200: 40114 | AG200: 30083.4 | AH200: 42991 | AI200: 46809 | AJ200: -6695 | AK200: 425 | AL200: 37 | AM200: 7 | AN200: 94.77 | AO200: 98.86 | AP200: 5.95510765 | AQ200: 91.8 | AR200: 218.3 | AS200: 24.5 | AT200: 31 | AU200: 2 | AV200: 0 | AW200: 1390.466667 | AY200: 853.1612903 | AZ200: 819.4545455 | BB200: 950.6666667 | BD200: 1316.666667 | BE200: 870.6666667 | BG200: 0 | BJ200: 80.3 | BK200: 37587.627 | BL200: 60.04151906 | BM200: 205.9302111 | BN200: 165.0413065 | BO200: 21 | BP200: 29 | BQ200: autres
... 166 more rows

Sheet histogr (hidden)
A1: Histrogrammes du RA de l'activité bovins et CF … AVEC charges proportionnelles au rapport (prod bov CF / prod tot) | Q1: Etape 1 : lister les observations par profil (RA_bov_four_UTF) | Y1: Etape 2 : Calculer le nb d'observations par tranche de revenus | AE1: 3) Calcul du milieu de la tranche | AG1: Etape 4 : passsage d'un nb d'observations à un % d'observations (Histogramme) | AM1: Etape 5 : calcul de la loi normale théorique
AM2: 21 | AN2: 22 | AO2: 23 | AP2: 11 | AQ2: 12 | AR2: 13
Q3: Naisseurs bio (N=34) | R3: Engraisseurs bio (N=11) | S3: Indéterminés bio (N=12) | T3: Naisseurs conv. (N=188) | U3: Engraisseurs conv. (N=72) | V3: Indéterminés conv. (N=45) | X3: LIMITES | Y3: =Q3 -> Naisseurs bio (N=34) | Z3: Engraisseurs bio (N=11) | AA3: Indéterminés bio (N=12) | AB3: Naisseurs conv. (N=188) | AC3: Engraisseurs conv. (N=72) | AD3: Indéterminés conv. (N=45) | AG3: =Y3 -> Naisseurs bio (N=34) | AH3: Engraisseurs bio (N=11) | AI3: Indéterminés bio (N=12) | AJ3: Naisseurs conv. (N=188) | AK3: Engraisseurs conv. (N=72) | AL3: Indéterminés conv. (N=45) | AM3: =AG3 -> Naisseurs bio (N=34) | AN3: Engraisseurs bio (N=11) | AO3: Indéterminés bio (N=12) | AP3: Naisseurs conv. (N=188) | AQ3: Engraisseurs conv. (N=72) | AR3: Indéterminés conv. (N=45) | AS3: Revenu agricole (x 1 000 €/UTF)
A4: Naisseurs, Bio (N=34) | F4: Engraisseurs, Bio (N=11) | K4: Indéterminés, Bio (N=12) | Q4: 26063 | R4: 10030 | S4: 11408 | T4: 3332 | U4: -10774 | V4: 61359 | X4: -22500 | Y4: =FREQUENCY(Q:Q,$X4:$X37) -> 0 | Z4: =FREQUENCY(R:R,$X4:$X37) -> 0 | AA4: =FREQUENCY(S:S,$X4:$X37) -> 0 | AB4: =FREQUENCY(T:T,$X4:$X37) -> 0 | AC4: =FREQUENCY(U:U,$X4:$X37) -> 0 | AD4: =FREQUENCY(V:V,$X4:$X37) -> 0 | AF4: X | AI4: Observé | AO4: Théorique
B5: Moyenne | C5: =AVERAGE(C8:C41) -> 47916.20588 | G5: Moyenne | H5: =AVERAGE(H8:H18) -> 26209.27273 | L5: Moyenne | M5: =AVERAGE(M8:M19) -> 26412.91667 | Q5: 28408 | R5: 5250 | S5: 28942 | T5: 3242 | U5: 18142 | V5: 65462 | X5: -17500 | Y5: 0 | Z5: 0 | AA5: 0 | AB5: 0 | AC5: 0 | AD5: 0 | AE5: =AF5/1000 -> -20 | AF5: =AVERAGE(X4:X5) -> -20000 | AG5: =Y5/Y$39 -> 0 | AH5: =Z5/Z$39 -> 0 | AI5: =AA5/AA$39 -> 0 | AJ5: =AB5/AB$39 -> 0 | AK5: =AC5/AC$39 -> 0 | AL5: =AD5/AD$39 -> 0 | AM5: =_xlfn.NORM.DIST($X5,Y$40,Y$41,TRUE())-_xlfn.NORM.DIST($X4,Y$40,Y$41,TRUE()) -> 0.01057117699 | AN5: =_xlfn.NORM.DIST($X5,Z$40,Z$41,TRUE())-_xlfn.NORM.DIST($X4,Z$40,Z$41,TRUE()) -> 6.720853017e-05 | AO5: =_xlfn.NORM.DIST($X5,AA$40,AA$41,TRUE())-_xlfn.NORM.DIST($X4,AA$40,AA$41,TRUE()) -> 0.0007620408906 | AP5: =_xlfn.NORM.DIST($X5,AB$40,AB$41,TRUE())-_xlfn.NORM.DIST($X4,AB$40,AB$41,TRUE()) -> 0.008828365702 | AQ5: =_xlfn.NORM.DIST($X5,AC$40,AC$41,TRUE())-_xlfn.NORM.DIST($X4,AC$40,AC$41,TRUE()) -> 0.006977479124 | AR5: =_xlfn.NORM.DIST($X5,AD$40,AD$41,TRUE())-_xlfn.NORM.DIST($X4,AD$40,AD$41,TRUE()) -> 0.008470255173
B6: Ecart-Type | C6: =_xlfn.STDEV.S(C8:C41) -> 37879.89888 | G6: Ecart-Type | H6: =_xlfn.STDEV.S(H8:H18) -> 11580.44545 | L6: Ecart-Type | M6: =_xlfn.STDEV.S(M8:M19) -> 14314.72587 | Q6: 26051 | R6: 21642 | S6: 16742 | T6: 10236 | U6: 40890 | V6: 38111 | X6: -12500 | Y6: 0 | Z6: 0 | AA6: 0 | AB6: 0 | AC6: 0 | AD6: 0 | AE6: =AF6/1000 -> -15 | AF6: =AVERAGE(X5:X6) -> -15000 | AG6: =Y6/Y$39 -> 0 | AH6: 0 | AI6: 0 | AJ6: =AB6/AB$39 -> 0 | AK6: 0 | AL6: 0 | AM6: =_xlfn.NORM.DIST($X6,Y$40,Y$41,TRUE())-_xlfn.NORM.DIST($X5,Y$40,Y$41,TRUE()) -> 0.01327323608 | AN6: 0.0003347302729 | AO6: 0.002201428201 | AP6: 0.01357498714 | AQ6: 0.01067273829 | AR6: 0.01292802247
A7: an | B7: num | C7: RA_bov_four_UTF | F7: an | G7: num | H7: RA_bov_four_UTF | K7: an | L7: num | M7: RA_bov_four_UTF | Q7: 40035 | R7: 34169 | S7: 20958 | T7: 16311 | U7: 57401 | V7: 31267 | X7: -7500 | Y7: 0 | Z7: 0 | AA7: 0 | AB7: 1 | AC7: 1 | AD7: 1 | AE7: -10 | AF7: =AVERAGE(X6:X7) -> -10000 | AG7: 0 | AH7: 0 | AI7: 0 | AJ7: 0.005319148936 | AK7: 0.01388888889 | AL7: 0.02222222222 | AM7: 0.01637851582 | AN7: 0.001387143385 | AO7: 0.005635798587 | AP7: 0.01994899622 | AQ7: 0.01567595141 | AR7: 0.01889601767
A8: 2024 | B8: 66305 | C8: 26063 | F8: 2022 | G8: 54389 | H8: 10030 | K8: 2021 | L8: 66300 | M8: 11408 | Q8: 60791 | R8: 35095 | S8: 16946 | T8: 7005 | U8: 42842 | V8: 27590 | X8: -2500 | Y8: 0 | Z8: 0 | AA8: 0 | AB8: 6 | AC8: 2 | AD8: 2 | AE8: -5 | AF8: -5000 | AG8: 0 | AH8: 0 | AI8: 0 | AJ8: 0.03191489362 | AK8: 0.02777777778 | AL8: 0.04444444444 | AM8: =_xlfn.NORM.DIST($X8,Y$40,Y$41,TRUE())-_xlfn.NORM.DIST($X7,Y$40,Y$41,TRUE()) -> 0.01986170486 | AN8: 0.004783345856 | AO8: 0.01278606287 | AP8: 0.02801723724 | AQ8: 0.02210918754 | AR8: 0.02644911653
A9: 2020 | B9: 66313 | C9: 28408 | F9: 2020 | G9: 66300 | H9: 5250 | K9: 2021 | L9: 66305 | M9: 28942 | Q9: 24551 | R9: 20816 | S9: 20013 | T9: 2840 | U9: 47483 | V9: 40685 | X9: 2500 | Y9: 0 | Z9: 0 | AA9: 0 | AB9: 4 | AC9: 3 | AD9: 1 | AE9: 0 | AF9: 0 | AG9: 0 | AH9: 0 | AI9: 0 | AJ9: 0.02127659574 | AK9: 0.04166666667 | AL9: 0.02222222222 | AM9: 0.02367024548 | AN9: 0.0137262487 | AO9: 0.02570713823 | AP9: 0.03760558252 | AQ9: 0.02994281096 | AR9: 0.03545315157
A10: 2021 | B10: 66313 | C10: 26051 | F10: 2020 | G10: 66305 | H10: 21642 | K10: 2020 | L10: 68099 | M10: 16742 | Q10: 26270 | R10: 33647 | S10: 31958 | T10: 43741 | U10: 23192 | V10: -5587 | X10: 7500 | Y10: 0 | Z10: 1 | AA10: 0 | AB10: 18 | AC10: 5 | AD10: 3 | AE10: 5 | AF10: 5000 | AG10: 0 | AH10: 0.09090909091 | AI10: 0 | AJ10: 0.09574468085 | AK10: 0.06944444444 | AL10: 0.06666666667 | AM10: 0.02772255546 | AN10: 0.03277963509 | AO10: 0.04580475443 | AP10: 0.04823943201 | AQ10: 0.03893976592 | AR10: 0.04550943095
A11: 2023 | B11: 66313 | C11: 40035 | F11: 2022 | G11: 66305 | H11: 34169 | K11: 2021 | L11: 68099 | M11: 20958 | Q11: 10330 | R11: 31305 | S11: 54337 | T11: 16438 | U11: 19694 | V11: 7336 | X11: 12500 | Y11: 2 | Z11: 1 | AA11: 2 | AB11: 18 | AC11: 3 | AD11: 3 | AE11: 10 | AF11: 10000 | AG11: 0.05882352941 | AH11: 0.09090909091 | AI11: 0.1666666667 | AJ11: 0.09574468085 | AK11: 0.04166666667 | AL11: 0.06666666667 | AM11: 0.03190862018 | AN11: 0.06514898598 | AO11: 0.07232875712 | AP11: 0.05913913767 | AQ11: 0.04862673963 | AR11: 0.05594366529
A12: 2024 | B12: 66313 | C12: 60791 | F12: 2023 | G12: 66305 | H12: 35095 | K12: 2022 | L12: 68099 | M12: 16946 | Q12: 67676 | R12: 42643 | S12: 8358 | T12: 20670 | U12: 15315 | V12: 17725 | X12: 17500 | Y12: 0 | Z12: 0 | AA12: 2 | AB12: 14 | AC12: 5 | AD12: 4 | AE12: 15 | AF12: 15000 | AG12: 0 | AH12: 0 | AI12: 0.1666666667 | AJ12: 0.07446808511 | AK12: 0.06944444444 | AL12: 0.08888888889 | AM12: 0.03609333854 | AN12: 0.1077650509 | AO12: 0.1012180598 | AP12: 0.06929003737 | AQ12: 0.0583093322 | AR12: 0.06585722748
A13: 2024 | B13: 86003 | C13: 24551 | F13: 2022 | G13: 68260 | H13: 20816 | K13: 2023 | L13: 68099 | M13: 20013 | Q13: 60087 | R13: 19940 | S13: 45052 | T13: 29207 | U13: 30846 | V13: 18723 | X13: 22500 | Y13: 3 | Z13: 3 | AA13: 3 | AB13: 13 | AC13: 5 | AD13: 5 | AE13: 20 | AF13: 20000 | AG13: 0.08823529412 | AH13: 0.2727272727 | AI13: 0.25 | AJ13: 0.06914893617 | AK13: 0.06944444444 | AL13: 0.1111111111 | AM13: 0.04012271888 | AN13: 0.1483632915 | AO13: 0.1255318011 | AP13: 0.07758712569 | AQ13: 0.06714012242 | AR13: 0.07424360187
A14: 2020 | B14: 87093 | C14: 26270 | F14: 2020 | G14: 68261 | H14: 33647 | K14: 2024 | L14: 68099 | M14: 31958 | Q14: 42915 | R14: 33765 | S14: 42084 | T14: 24310 | U14: 71187 | V14: 19124 | X14: 27500 | Y14: 6 | Z14: 0 | AA14: 0 | AB14: 28 | AC14: 3 | AD14: 2 | AE14: 25 | AF14: 25000 | AG14: 0.1764705882 | AH14: 0 | AI14: 0 | AJ14: 0.1489361702 | AK14: 0.04166666667 | AL14: 0.04444444444 | AM14: 0.04383267005 | AN14: 0.1700045822 | AO14: 0.1379747655 | AP14: 0.08302934826 | AQ14: 0.07423477038 | AR14: 0.08015261974
A15: 2021 | B15: 87093 | C15: 10330 | F15: 2021 | G15: 68261 | H15: 31305 | K15: 2023 | L15: 68261 | M15: 54337 | Q15: 40114 | S15: 20157 | T15: 51746 | U15: 69967 | V15: 50936 | X15: 32500 | Y15: 2 | Z15: 1 | AA15: 2 | AB15: 9 | AC15: 9 | AD15: 4 | AE15: 30 | AF15: 30000 | AG15: 0.05882352941 | AH15: 0.09090909091 | AI15: 0.1666666667 | AJ15: 0.04787234043 | AK15: 0.125 | AL15: 0.08888888889 | AM15: 0.04705976681 | AN15: 0.1621375531 | AO15: 0.134399094 | AP15: 0.08491740535 | AQ15: 0.07881589548 | AR15: 0.08286660213
A16: 2022 | B16: 87093 | C16: 67676 | F16: 2022 | G16: 68261 | H16: 42643 | K16: 2024 | L16: 68261 | M16: 8358 | Q16: 42409 | T16: 99234 | U16: 29959 | V16: 39746 | X16: 37500 | Y16: 1 | Z16: 4 | AA16: 0 | AB16: 16 | AC16: 4 | AD16: 2 | AE16: 35 | AF16: 35000 | AG16: 0.02941176471 | AH16: 0.3636363636 | AI16: 0 | AJ16: 0.08510638298 | AK16: 0.05555555556 | AL16: 0.04444444444 | AM16: 0.04965304533 | AN16: 0.1287046732 | AO16: 0.1160228734 | AP16: 0.08300130708 | AQ16: 0.0803528856 | AR16: 0.08204355538
A17: 2023 | B17: 87093 | C17: 60087 | F17: 2020 | G17: 89104 | H17: 19940 | K17: 2022 | L17: 89104 | M17: 45052 | Q17: 24947 | T17: 12121 | U17: 37791 | V17: 57459 | X17: 42500 | Y17: 7 | Z17: 0 | AA17: 1 | AB17: 21 | AC17: 6 | AD17: 6 | AE17: 40 | AF17: 40000 | AG17: 0.2058823529 | AH17: 0 | AI17: 0.08333333333 | AJ17: 0.1117021277 | AK17: 0.08333333333 | AL17: 0.1333333333 | AM17: 0.05148566 | AN17: 0.08503297306 | AO17: 0.08876474918 | AP17: 0.07753472812 | AQ17: 0.07866297446 | AR17: 0.07778798856
A18: 2024 | B18: 87093 | C18: 42915 | F18: 2023 | G18: 89104 | H18: 33765 | K18: 2024 | L18: 89104 | M18: 42084 | Q18: 41542 | T18: 24380 | U18: -645 | V18: 4614 | X18: 47500 | Y18: 1 | Z18: 1 | AA18: 1 | AB18: 7 | AC18: 7 | AD18: 2 | AE18: 45 | AF18: 45000 | AG18: 0.02941176471 | AH18: 0.09090909091 | AI18: 0.08333333333 | AJ18: 0.03723404255 | AK18: 0.09722222222 | AL18: 0.04444444444 | AM18: 0.05246515438 | AN18: 0.04675770802 | AO18: 0.06018459396 | AP18: 0.06921985784 | AQ18: 0.07394698458 | AR18: 0.07062910833
A19: 2023 | B19: 88284 | C19: 40114 | K19: 2021 | L19: 98042 | M19: 20157 | Q19: 11116 | T19: 23969 | U19: 57872 | V19: 11574 | X19: 52500 | Y19: 2 | Z19: 0 | AA19: 0 | AB19: 9 | AC19: 3 | AD19: 2 | AE19: 50 | AF19: 50000 | AG19: 0.05882352941 | AH19: 0 | AI19: 0 | AJ19: 0.04787234043 | AK19: 0.04166666667 | AL19: 0.04444444444 | AM19: 0.05254118971 | AN19: 0.02139825229 | AO19: 0.03616392116 | AP19: 0.05905928665 | AQ19: 0.06675007789 | AR19: 0.06141267138
A20: 2024 | B20: 88284 | C20: 42409 | Q20: 24040 | T20: 21202 | U20: 24267 | V20: 21214 | X20: 57500 | Y20: 0 | Z20: 0 | AA20: 1 | AB20: 5 | AC20: 3 | AD20: 1 | AE20: 55 | AF20: 55000 | AG20: 0 | AH20: 0 | AI20: 0.08333333333 | AJ20: 0.02659574468 | AK20: 0.04166666667 | AL20: 0.02222222222 | AM20: 0.05170983194 | AN20: 0.008149768212 | AO20: 0.01925784983 | AP20: 0.04815802818 | AQ20: 0.05785811265 | AR20: 0.05113700602
A21: 2022 | B21: 88290 | C21: 24947 | Q21: 79375 | T21: 42500 | U21: 16376 | V21: 23968 | X21: 62500 | Y21: 2 | Z21: 0 | AA21: 0 | AB21: 7 | AC21: 5 | AD21: 2 | AE21: 60 | AF21: 60000 | AG21: 0.05882352941 | AH21: 0 | AI21: 0 | AJ21: 0.03723404255 | AK21: 0.06944444444 | AL21: 0.04444444444 | AM21: 0.05001388907 | AN21: 0.002583052061 | AO21: 0.009088206338 | AP21: 0.03752944415 | AQ21: 0.0481568301 | AR21: 0.04077703029
A22: 2023 | B22: 88290 | C22: 41542 | Q22: 20396 | T22: 12039 | U22: 18176 | V22: 41763 | X22: 67500 | Y22: 1 | Z22: 0 | AA22: 0 | AB22: 2 | AC22: 1 | AD22: 2 | AE22: 65 | AF22: 65000 | AG22: 0.02941176471 | AH22: 0 | AI22: 0 | AJ22: 0.01063829787 | AK22: 0.01388888889 | AL22: 0.04444444444 | AM22: 0.04753925838 | AN22: 0.000681267802 | AO22: 0.003800860718 | AP22: 0.02795106883 | AQ22: 0.03848864481 | AR22: 0.03113858058
A23: 2024 | B23: 88310 | C23: 11116 | Q23: 19321 | T23: 7685 | U23: 29815 | V23: 69003 | X23: 72500 | Y23: 3 | Z23: 0 | AA23: 0 | AB23: 1 | AC23: 4 | AD23: 1 | AE23: 70 | AF23: 70000 | AG23: 0.08823529412 | AH23: 0 | AI23: 0 | AJ23: 0.005319148936 | AK23: 0.05555555556 | AL23: 0.02222222222 | AM23: 0.04440771764 | AN23: 0.0001495107222 | AO23: 0.001408684531 | AP23: 0.01989516107 | AQ23: 0.02953849688 | AR23: 0.02277114517
A24: 2021 | B24: 89104 | C24: 24040 | Q24: 38746 | T24: 5404 | U24: 31765 | V24: 28465 | X24: 77500 | Y24: 1 | Z24: 0 | AA24: 0 | AB24: 0 | AC24: 1 | AD24: 0 | AE24: 75 | AF24: 75000 | AG24: 0.02941176471 | AH24: 0 | AI24: 0 | AJ24: 0 | AK24: 0.01388888889 | AL24: 0 | AM24: 0.0407670022 | AN24: 2.73002761e-05 | AO24: 0.0004626659422 | AP24: 0.01353378076 | AQ24: 0.02176833156 | AR24: 0.01594680494
A25: 2024 | B25: 89120 | C25: 79375 | Q25: 49130 | T25: 39738 | U25: 6793 | V25: 15689 | X25: 82500 | Y25: 1 | Z25: 0 | AA25: 0 | AB25: 0 | AC25: 0 | AD25: 0 | AE25: 80 | AF25: 80000 | AG25: 0.02941176471 | AH25: 0 | AI25: 0 | AJ25: 0 | AK25: 0 | AL25: 0 | AM25: 0.03677929265 | AN25: 4.147346172e-06 | AO25: 0.0001346594063 | AP25: 0.008798594894 | AQ25: 0.01540432957 | AR25: 0.01069461457
A26: 2020 | B26: 97158 | C26: 20396 | Q26: 74305 | T26: 38100 | U26: 4101 | V26: 16232 | X26: 87500 | Y26: 0 | Z26: 0 | AA26: 0 | AB26: 1 | AC26: 0 | AD26: 1 | AE26: 85 | AF26: 85000 | AG26: 0 | AH26: 0 | AI26: 0 | AJ26: 0.005319148936 | AK26: 0 | AL26: 0.02222222222 | AM26: 0.03260935719 | AN26: 5.241416386e-07 | AO26: 3.473074196e-05 | AP26: 0.005466758282 | AQ26: 0.01046745933 | AR26: 0.006868456017
A27: 2021 | B27: 97158 | C27: 19321 | Q27: 51968 | T27: 35287 | U27: 30329 | V27: 83633 | X27: 92500 | Y27: 0 | Z27: 0 | AA27: 0 | AB27: 1 | AC27: 0 | AD27: 0 | AE27: 90 | AF27: 90000 | AG27: 0 | AH27: 0 | AI27: 0 | AJ27: 0.005319148936 | AK27: 0 | AL27: 0 | AM27: 0.02841354168 | AN27: 5.510200296e-08 | AO27: 7.937649872e-06 | AP27: 0.00324615031 | AQ27: 0.006829996666 | AR27: 0.004224307311
A28: 2022 | B28: 97158 | C28: 38746 | Q28: 31762 | T28: 48065 | U28: 11593 | V28: 43672 | X28: 97500 | Y28: 0 | Z28: 0 | AA28: 0 | AB28: 1 | AC28: 1 | AD28: 0 | AE28: 95 | AF28: 95000 | AG28: 0 | AH28: 0 | AI28: 0 | AJ28: 0.005319148936 | AK28: 0.01388888889 | AL28: 0 | AM28: 0.02433059718 | AN28: 4.818265009e-09 | AO28: 1.607541398e-06 | AP28: 0.00184216875 | AQ28: 0.004279374831 | AR28: 0.002488021598
A29: 2023 | B29: 97158 | C29: 49130 | Q29: 19897 | T29: 59586 | U29: 35186 | V29: -8432 | X29: 102500 | Y29: 0 | Z29: 0 | AA29: 0 | AB29: 1 | AC29: 0 | AD29: 1 | AE29: 100 | AF29: 100000 | AG29: 0 | AH29: 0 | AI29: 0 | AJ29: 0.005319148936 | AK29: 0 | AL29: 0.02222222222 | AM29: 0.02047502441 | AN29: 3.504145862e-10 | AO29: 2.884802989e-07 | AP29: 0.0009991070861 | AQ29: 0.002574664702 | AR29: 0.001403314109
A30: 2024 | B30: 97158 | C30: 74305 | Q30: 37551 | T30: 43729 | U30: 37649 | V30: 27925 | X30: 107500 | Y30: 0 | Z30: 0 | AA30: 0 | AB30: 4 | AC30: 0 | AD30: 0 | AE30: 105 | AF30: 105000 | AG30: 0 | AH30: 0 | AI30: 0 | AJ30: 0.02127659574 | AK30: 0 | AL30: 0 | AM30: 0.01693325102 | AN30: 2.119360243e-11 | AO30: 4.587171298e-08 | AP30: 0.0005178647003 | AQ30: 0.001487446736 | AR30: 0.0007579797024
A31: 2024 | B31: 97183 | C31: 51968 | Q31: 35114 | T31: 40094 | U31: 19887 | V31: 26297 | X31: 112500 | Y31: 1 | Z31: 0 | AA31: 0 | AB31: 0 | AC31: 0 | AD31: 0 | AE31: 110 | AF31: 110000 | AG31: 0.02941176471 | AH31: 0 | AI31: 0 | AJ31: 0 | AK31: 0 | AL31: 0 | AM31: 0.01376260101 | AN31: 1.065925126e-12 | AO31: 6.463076185e-09 | AP31: 0.0002565322697 | AQ31: 0.0008251680981 | AR31: 0.0003920685643
A32: 2020 | B32: 98044 | C32: 31762 | Q32: 38105 | T32: 13655 | U32: 11968 | V32: 65354 | X32: 117500 | Y32: 0 | Z32: 0 | AA32: 0 | AB32: 0 | AC32: 0 | AD32: 0 | AE32: 115 | AF32: 115000 | AG32: 0 | AH32: 0 | AI32: 0 | AJ32: 0 | AK32: 0 | AL32: 0 | AM32: 0.01099271437 | AN32: 4.463096559e-14 | AO32: 8.06843925e-10 | AP32: 0.000121447588 | AQ32: 0.000439565459 | AR32: 0.000194208414
A33: 2021 | B33: 98044 | C33: 19897 | Q33: 68167 | T33: 25879 | U33: 38037 | V33: 61163 | X33: 122500 | Y33: 0 | Z33: 0 | AA33: 0 | AB33: 1 | AC33: 0 | AD33: 0 | AE33: 120 | AF33: 120000 | AG33: 0 | AH33: 0 | AI33: 0 | AJ33: 0.005319148936 | AK33: 0 | AL33: 0 | AM33: 0.008628863813 | AN33: 0 | AO33: 8.924538886e-11 | AP33: 5.49486132e-05 | AQ33: 0.0002248457385 | AR33: 9.21245615e-05
A34: 2022 | B34: 98044 | C34: 37551 | Q34: 67232 | T34: 13802 | U34: 46466 | V34: 32541 | X34: 127500 | Y34: 0 | Z34: 0 | AA34: 0 | AB34: 0 | AC34: 1 | AD34: 0 | AE34: 125 | AF34: 125000 | AG34: 0 | AH34: 0 | AI34: 0 | AJ34: 0 | AK34: 0.01388888889 | AL34: 0 | AM34: 0.006656509064 | AN34: 0 | AO34: 8.746114943e-12 | AP34: 2.375993638e-05 | AQ34: 0.0001104397918 | AR34: 4.184889421e-05
A35: 2023 | B35: 98044 | C35: 35114 | Q35: 70124 | T35: 37416 | U35: 34271 | V35: 464 | X35: 132500 | Y35: 0 | Z35: 0 | AA35: 0 | AB35: 0 | AC35: 0 | AD35: 0 | AE35: 130 | AF35: 130000 | AG35: 0 | AH35: 0 | AI35: 0 | AJ35: 0 | AK35: 0 | AL35: 0 | AM35: 0.005046423312 | AN35: 0 | AO35: 7.595035711e-13 | AP35: 9.818705552e-06 | AQ35: 5.208901524e-05 | AR35: 1.820511718e-05
A36: 2024 | B36: 98044 | C36: 38105 | Q36: 107867 | T36: 11952 | U36: 51325 | V36: 35381 | X36: 137500 | Y36: 0 | Z36: 0 | AA36: 0 | AB36: 0 | AC36: 0 | AD36: 0 | AE36: 135 | AF36: 135000 | AG36: 0 | AH36: 0 | AI36: 0 | AJ36: 0 | AK36: 0 | AL36: 0 | AM36: 0.00375980274 | AN36: 0 | AO36: 5.83977311e-14 | AP36: 3.877781568e-06 | AQ36: 2.35909912e-05 | AR36: 7.584093445e-06
A37: 2020 | B37: 98049 | C37: 68167 | Q37: 222746 | T37: 2133 | U37: 44898 | V37: 49685 | X37: 142500 | Y37: 0 | Z37: 0 | AA37: 0 | AB37: 0 | AC37: 0 | AD37: 0 | AE37: 140 | AF37: =AVERAGE(X36:X37) -> 140000 | AG37: 0 | AH37: 0 | AI37: 0 | AJ37: 0 | AK37: 0 | AL37: 0 | AM37: 0.002752901475 | AN37: 0 | AO37: 3.996802889e-15 | AP37: 1.463633345e-06 | AQ37: 1.025948404e-05 | AR37: 3.025619654e-06
A38: 2021 | B38: 98049 | C38: 67232 | T38: -6439 | U38: 32323 | V38: -4001 | X38: 147500 | Y38: 1 | Z38: 0 | AA38: 0 | AB38: 0 | AC38: 0 | AD38: 0 | AE38: 145 | AF38: =AVERAGE(X37:X38) -> 145000 | AG38: 0.02941176471 | AH38: 0 | AI38: 0 | AJ38: 0 | AK38: 0 | AL38: 0 | AM38: 0.001980890628 | AN38: 0 | AO38: 0 | AP38: 5.279597179e-07 | AQ38: 4.284340203e-06 | AR38: 1.155913127e-06 | BG38: CALCUL DES QUARTILES (= moyenne des quartiles de chaque année, par SAS)
A39: 2022 | B39: 98049 | C39: 70124 | T39: 5413 | U39: 40275 | V39: 18527 | X39: TOTAL | Y39: =SUM(_xlfn.ANCHORARRAY(Y4)) -> 34 | Z39: 11 | AA39: 12 | AB39: 188 | AC39: 72 | AD39: 45 | AF39: TOTAL | AG39: =SUM(AG5:AG38) -> 1 | AH39: 1 | AI39: 1 | AJ39: 1 | AK39: 1 | AL39: 1 | AM39: 0.9641990684 | AN39: 0.999987013 | AO39: 0.9996833828 | AP39: 0.9874033383 | AQ39: 0.9897016466 | AR39: =SUM(AR5:AR38) -> 0.987600516 | BG39: =recherche!A32 -> 1 | BH39: =recherche!B32 -> 2 | BI39: =recherche!C32 -> 3 | BJ39: =recherche!D32 -> 4 | BK39: =recherche!E32 -> 5 | BL39: =recherche!F32 -> 6 | BM39: =recherche!G32 -> 7 | BN39: =recherche!H32 -> 8 | BO39: =recherche!I32 -> 9
A40: 2023 | B40: 98049 | C40: 107867 | T40: 9612 | U40: 30838 | V40: 39201 | X40: Moyenne | Y40: =AVERAGE(Q:Q) -> 47916.20588 | Z40: 26209.27273 | AA40: 26412.91667 | AB40: 29981.3617 | AC40: 34880.31944 | AD40: 31346.86667 | BG40: =recherche!A33 -> ID | BH40: =recherche!B33 -> Performance | BI40: =recherche!C33 -> Bio/Conv | BJ40: =recherche!D33 -> Profil | BK40: =recherche!E33 -> Nb | BL40: =recherche!F33 -> RA_UTF _Mean | BM40: =recherche!G33 -> RA_UTF _Q1 | BN40: =recherche!H33 -> RA_UTF _Median | BO40: =recherche!I33 -> RA_UTF _Q3
A41: 2024 | B41: 98049 | C41: 222746 | T41: 25272 | U41: 74190 | V41: 2939 | X41: Ecart-type | Y41: =_xlfn.STDEV.S(Q:Q) -> 37879.89888 | Z41: 11580.44545 | AA41: 14314.72587 | AB41: 23445.57333 | AC41: 24782.0617 | AD41: 23990.15724 | BG41: =recherche!A34 -> 11 | BH41: =recherche!B34 -> P1->3 | BI41: =recherche!C34 -> conventionnel | BJ41: =recherche!D34 -> naisseur | BK41: =recherche!E34 -> 177 | BL41: =recherche!F34 -> 29512.81921 | BM41: =recherche!G34 -> 12901 | BN41: =recherche!H34 -> 25879 | BO41: =recherche!I34 -> 39738
T42: 12901 | U42: 71006 | V42: 14239 | X42: Coef. Variation | Y42: =Y41/Y40 -> 0.7905446224 | Z42: 0.4418453564 | AA42: 0.5419593017 | AB42: 0.7820049523 | AC42: 0.7104883813 | AD42: 0.7653127662 | BG42: =recherche!A35 -> 12 | BH42: =recherche!B35 -> P1->3 | BI42: =recherche!C35 -> conventionnel | BJ42: =recherche!D35 -> engraisseur | BK42: =recherche!E35 -> 65 | BL42: =recherche!F35 -> 32737.46154 | BM42: =recherche!G35 -> 16376 | BN42: =recherche!H35 -> 32283 | BO42: =recherche!I35 -> 46466
T43: 36309 | U43: 47652 | V43: 11804 | X43: Q1, formule (incl) | Y43: =_xlfn.QUARTILE.INC(Q:Q,1) -> 26054 | Z43: 20378 | AA43: 16895 | AB43: 12787.25 | AC43: 16568.75 | AD43: 15689 | BG43: =recherche!A36 -> 13 | BH43: =recherche!B36 -> P1->3 | BI43: =recherche!C36 -> conventionnel | BJ43: =recherche!D36 -> indeterminé | BK43: =recherche!E36 -> 39 | BL43: =recherche!F36 -> 29949.41026 | BM43: =recherche!G36 -> 15689 | BN43: =recherche!H36 -> 27590 | BO43: =recherche!I36 -> 41763
T44: 66452 | U44: 44918 | V44: 8226 | X44: Q3, formule (incl) | Y44: =_xlfn.QUARTILE.INC(Q:Q,3) -> 60615 | Z44: 33967 | AA44: 34489.5 | AB44: 40265.25 | AC44: 47939.75 | AD44: 43672 | BG44: =recherche!A37 -> 21 | BH44: =recherche!B37 -> P1->3 | BI44: =recherche!C37 -> biologique | BJ44: =recherche!D37 -> naisseur | BK44: =recherche!E37 -> 33 | BL44: =recherche!F37 -> 48578.42424 | BM44: =recherche!G37 -> 26051 | BN44: =recherche!H37 -> 40035 | BO44: =recherche!I37 -> 60791
T45: 37693 | U45: 48803 | V45: 17235 | BG45: =recherche!A38 -> 22 | BH45: =recherche!B38 -> P1->3 | BI45: =recherche!C38 -> biologique | BJ45: =recherche!D38 -> engraisseur | BK45: =recherche!E38 -> 10 | BL45: =recherche!F38 -> 26748.6 | BM45: =recherche!G38 -> 19940 | BN45: =recherche!H38 -> 32476 | BO45: =recherche!I38 -> 34169
T46: 43738 | U46: 66030 | V46: 44899 | X46: Q1, formule (excl) | Y46: =_xlfn.QUARTILE.EXC(Q:Q,1) -> 25775 | Z46: 19940 | AA46: 16793 | AB46: 12559.75 | AC46: 16440.25 | AD46: 14964 | BG46: =recherche!A39 -> 23 | BH46: =recherche!B39 -> P1->3 | BI46: =recherche!C39 -> biologique | BJ46: =recherche!D39 -> indeterminé | BK46: =recherche!E39 -> 12 | BL46: =recherche!F39 -> 26412.91667 | BM46: =recherche!G39 -> 16844 | BN46: =recherche!H39 -> 20557.5 | BO46: =recherche!I39 -> 37021
T47: 97190 | U47: 40969 | V47: 39154 | X47: Q3, formule (excl) | Y47: =_xlfn.QUARTILE.EXC(Q:Q,3) -> 62401.25 | Z47: 34169 | AA47: 39552.5 | AB47: 40607.75 | AC47: 48515.25 | AD47: 44285.5
T48: 24826 | U48: 31776 | V48: 98245
T49: 23323 | U49: 46117 | X49: Q1, formule (SAS) | Y49: =recherche!G37 -> 26051 | Z49: =recherche!G38 -> 19940 | AA49: =recherche!G39 -> 16844 | AB49: =recherche!G34 -> 12901 | AC49: =recherche!G35 -> 16376 | AD49: =recherche!G36 -> 15689
T50: -10293 | U50: 59414 | X50: Q3, formule (SAS) | Y50: =recherche!I37 -> 60791 | Z50: =recherche!I38 -> 34169 | AA50: =recherche!I39 -> 37021 | AB50: =recherche!I34 -> 39738 | AC50: =recherche!I35 -> 46466 | AD50: =recherche!I36 -> 41763
T51: 5988 | U51: 56156
T52: 9992 | U52: 93674
T53: 25680 | U53: 16633
T54: 30749 | U54: 10990
T55: 6589 | U55: 5355
T56: 9431 | U56: 19634
T57: 21997 | U57: 60316
T58: 23055 | U58: 59066
T59: 26534 | U59: 61622
T60: 21409 | U60: 12567
T61: 35906 | U61: 55608
T62: 11465 | U62: -7190
T63: 9243 | U63: 69290
T64: 31907 | U64: 123463
T65: 13101 | U65: -3977
T66: -1142 | U66: 33961
A67: Naisseurs, conventionnel (N = 188) | F67: Engraisseurs, conventionnel (N=72) | K67: Indéterminés, conventionnel (N=45) | T67: 15706 | U67: 488
B68: Moyenne | C68: =AVERAGE(C71:C258) -> 29981.3617 | G68: Moyenne | H68: =AVERAGE(H71:H142) -> 34880.31944 | L68: Moyenne | M68: =AVERAGE(M71:M115) -> 31346.86667 | T68: 2991 | U68: 931
B69: Ecart-Type | C69: =_xlfn.STDEV.S(C71:C258) -> 23445.57333 | G69: Ecart-Type | H69: =_xlfn.STDEV.S(H71:H142) -> 24782.0617 | L69: Ecart-Type | M69: =_xlfn.STDEV.S(M71:M115) -> 23990.15724 | T69: 3833 | U69: 2696
A70: an | B70: num | C70: RA_bov_four_UTF | F70: an | G70: num | H70: RA_bov_four_UTF | K70: an | L70: num | M70: RA_bov_four_UTF | N70: Normale | T70: 60014 | U70: 6876
A71: 2020 | B71: 54188 | C71: 3332 | F71: 2024 | G71: 24204 | H71: -10774 | K71: 2021 | L71: 68257 | M71: 61359 | T71: 61707 | U71: 26972
A72: 2021 | B72: 54188 | C72: 3242 | F72: 2020 | G72: 54334 | H72: 18142 | K72: 2023 | L72: 68257 | M72: 65462 | T72: 106119 | U72: 33942
A73: 2022 | B73: 54188 | C73: 10236 | F73: 2020 | G73: 56048 | H73: 40890 | K73: 2022 | L73: 87072 | M73: 38111 | T73: 103422 | U73: 47060
A74: 2023 | B74: 54188 | C74: 16311 | F74: 2022 | G74: 66327 | H74: 57401 | K74: 2021 | L74: 87083 | M74: 31267 | T74: 118391 | U74: 14592
A75: 2023 | B75: 54291 | C75: 7005 | F75: 2023 | G75: 66327 | H75: 42842 | K75: 2022 | L75: 87083 | M75: 27590 | T75: 41382 | U75: 32283
A76: 2024 | B76: 54291 | C76: 2840 | F76: 2024 | G76: 66327 | H76: 47483 | K76: 2024 | L76: 87083 | M76: 40685 | T76: 35529
A77: 2022 | B77: 54386 | C77: 43741 | F77: 2020 | G77: 68124 | H77: 23192 | K77: 2022 | L77: 88091 | M77: -5587 | T77: 38354
A78: 2020 | B78: 66276 | C78: 16438 | F78: 2021 | G78: 68124 | H78: 19694 | K78: 2023 | L78: 88091 | M78: 7336 | T78: 38408
A79: 2021 | B79: 66276 | C79: 20670 | F79: 2022 | G79: 68124 | H79: 15315 | K79: 2020 | L79: 88206 | M79: 17725 | T79: 44059
A80: 2022 | B80: 66276 | C80: 29207 | F80: 2023 | G80: 68124 | H80: 30846 | K80: 2021 | L80: 88206 | M80: 18723 | T80: 52637
A81: 2023 | B81: 66276 | C81: 24310 | F81: 2024 | G81: 68124 | H81: 71187 | K81: 2023 | L81: 88206 | M81: 19124 | T81: -6419
A82: 2024 | B82: 66331 | C82: 51746 | F82: 2022 | G82: 68257 | H82: 69967 | K82: 2020 | L82: 88226 | M82: 50936 | T82: 2746
A83: 2024 | B83: 68257 | C83: 99234 | F83: 2021 | G83: 87036 | H83: 29959 | K83: 2021 | L83: 88226 | M83: 39746 | T83: -5583
A84: 2020 | B84: 87055 | C84: 12121 | F84: 2022 | G84: 87036 | H84: 37791 | K84: 2024 | L84: 88226 | M84: 57459 | T84: 14598
A85: 2021 | B85: 87055 | C85: 24380 | F85: 2023 | G85: 87036 | H85: -645 | K85: 2020 | L85: 88249 | M85: 4614 | T85: 463
A86: 2022 | B86: 87055 | C86: 23969 | F86: 2024 | G86: 87036 | H86: 57872 | K86: 2021 | L86: 88249 | M86: 11574 | T86: 48698
A87: 2023 | B87: 87055 | C87: 21202 | F87: 2020 | G87: 87083 | H87: 24267 | K87: 2022 | L87: 88249 | M87: 21214 | T87: 37123
A88: 2024 | B88: 87055 | C88: 42500 | F88: 2020 | G88: 88082 | H88: 16376 | K88: 2023 | L88: 88249 | M88: 23968 | T88: 20851
A89: 2020 | B89: 87071 | C89: 12039 | F89: 2021 | G89: 88082 | H89: 18176 | K89: 2024 | L89: 88249 | M89: 41763 | T89: 6420
A90: 2021 | B90: 87071 | C90: 7685 | F90: 2022 | G90: 88082 | H90: 29815 | K90: 2021 | L90: 88262 | M90: 69003 | T90: 26469
A91: 2022 | B91: 87071 | C91: 5404 | F91: 2023 | G91: 88082 | H91: 31765 | K91: 2022 | L91: 88262 | M91: 28465 | T91: 20592
A92: 2023 | B92: 87071 | C92: 39738 | F92: 2020 | G92: 88126 | H92: 6793 | K92: 2024 | L92: 88264 | M92: 15689 | T92: 17220
A93: 2024 | B93: 87071 | C93: 38100 | F93: 2021 | G93: 88126 | H93: 4101 | K93: 2021 | L93: 88272 | M93: 16232 | T93: 24573
A94: 2020 | B94: 87072 | C94: 35287 | F94: 2022 | G94: 88126 | H94: 30329 | K94: 2024 | L94: 88273 | M94: 83633 | T94: 19994
A95: 2021 | B95: 87072 | C95: 48065 | F95: 2023 | G95: 88126 | H95: 11593 | K95: 2021 | L95: 89125 | M95: 43672 | T95: 25498
A96: 2023 | B96: 87072 | C96: 59586 | F96: 2024 | G96: 88126 | H96: 35186 | K96: 2022 | L96: 94017 | M96: -8432 | T96: 40779
A97: 2024 | B97: 87072 | C97: 43729 | F97: 2021 | G97: 88167 | H97: 37649 | K97: 2022 | L97: 95202 | M97: 27925 | T97: 34823
A98: 2023 | B98: 87083 | C98: 40094 | F98: 2022 | G98: 88167 | H98: 19887 | K98: 2024 | L98: 95216 | M98: 26297 | T98: 47607
A99: 2020 | B99: 87087 | C99: 13655 | F99: 2024 | G99: 88206 | H99: 11968 | K99: 2020 | L99: 96017 | M99: 65354 | T99: 63508
A100: 2021 | B100: 87087 | C100: 25879 | F100: 2020 | G100: 88211 | H100: 38037 | K100: 2021 | L100: 96017 | M100: 61163 | T100: 34453
A101: 2022 | B101: 87087 | C101: 13802 | F101: 2021 | G101: 88211 | H101: 46466 | K101: 2022 | L101: 97123 | M101: 32541 | T101: 38659
A102: 2023 | B102: 87087 | C102: 37416 | F102: 2022 | G102: 88211 | H102: 34271 | K102: 2023 | L102: 97124 | M102: 464 | T102: 39981
A103: 2024 | B103: 87087 | C103: 11952 | F103: 2023 | G103: 88211 | H103: 51325 | K103: 2020 | L103: 97140 | M103: 35381 | T103: 26791
A104: 2020 | B104: 87098 | C104: 2133 | F104: 2024 | G104: 88211 | H104: 44898 | K104: 2024 | L104: 97140 | M104: 49685 | T104: 42263
A105: 2021 | B105: 87098 | C105: -6439 | F105: 2023 | G105: 88226 | H105: 32323 | K105: 2021 | L105: 97174 | M105: -4001 | T105: 6675
A106: 2022 | B106: 87098 | C106: 5413 | F106: 2021 | G106: 88229 | H106: 40275 | K106: 2020 | L106: 97179 | M106: 18527 | T106: 33776
A107: 2023 | B107: 87098 | C107: 9612 | F107: 2022 | G107: 88229 | H107: 30838 | K107: 2022 | L107: 97179 | M107: 39201 | T107: 37730
A108: 2024 | B108: 87098 | C108: 25272 | F108: 2023 | G108: 88229 | H108: 74190 | K108: 2023 | L108: 97179 | M108: 2939 | T108: 53949
A109: 2024 | B109: 87105 | C109: 12901 | F109: 2024 | G109: 88229 | H109: 71006 | K109: 2024 | L109: 97179 | M109: 14239 | T109: 26414
A110: 2020 | B110: 88015 | C110: 36309 | F110: 2023 | G110: 88262 | H110: 47652 | K110: 2021 | L110: 97180 | M110: 11804 | T110: 53526
A111: 2021 | B111: 88015 | C111: 66452 | F111: 2021 | G111: 88293 | H111: 44918 | K111: 2020 | L111: 98042 | M111: 8226 | T111: 45424
A112: 2022 | B112: 88015 | C112: 37693 | F112: 2022 | G112: 88293 | H112: 48803 | K112: 2023 | L112: 98043 | M112: 17235 | T112: 59696
A113: 2023 | B113: 88015 | C113: 43738 | F113: 2023 | G113: 88293 | H113: 66030 | K113: 2020 | L113: 98052 | M113: 44899 | T113: -2818
A114: 2024 | B114: 88015 | C114: 97190 | F114: 2020 | G114: 88297 | H114: 40969 | K114: 2021 | L114: 98052 | M114: 39154 | T114: 38813
A115: 2020 | B115: 88091 | C115: 24826 | F115: 2021 | G115: 88297 | H115: 31776 | K115: 2022 | L115: 98054 | M115: 98245 | T115: 83049
A116: 2021 | B116: 88091 | C116: 23323 | F116: 2020 | G116: 89125 | H116: 46117 | T116: 23996
A117: 2024 | B117: 88091 | C117: -10293 | F117: 2022 | G117: 89125 | H117: 59414 | T117: 22656
A118: 2020 | B118: 88130 | C118: 5988 | F118: 2023 | G118: 89125 | H118: 56156 | T118: 33897
A119: 2022 | B119: 88159 | C119: 9992 | F119: 2024 | G119: 89125 | H119: 93674 | T119: 30746
A120: 2023 | B120: 88167 | C120: 25680 | F120: 2020 | G120: 95202 | H120: 16633 | T120: 27378
A121: 2024 | B121: 88167 | C121: 30749 | F121: 2021 | G121: 95202 | H121: 10990 | T121: 30272
A122: 2020 | B122: 88184 | C122: 6589 | F122: 2023 | G122: 95202 | H122: 5355 | T122: 34768
A123: 2021 | B123: 88184 | C123: 9431 | F123: 2024 | G123: 95202 | H123: 19634 | T123: 51062
A124: 2020 | B124: 88201 | C124: 21997 | F124: 2022 | G124: 96017 | H124: 60316 | T124: 7132
A125: 2021 | B125: 88201 | C125: 23055 | F125: 2023 | G125: 96017 | H125: 59066 | T125: 3854
A126: 2022 | B126: 88201 | C126: 26534 | F126: 2024 | G126: 96017 | H126: 61622 | T126: 68229
A127: 2023 | B127: 88201 | C127: 21409 | F127: 2020 | G127: 96018 | H127: 12567 | T127: 22739
A128: 2024 | B128: 88201 | C128: 35906 | F128: 2021 | G128: 96018 | H128: 55608 | T128: 26717
A129: 2022 | B129: 88206 | C129: 11465 | F129: 2022 | G129: 96018 | H129: -7190 | T129: 43568
A130: 2022 | B130: 88222 | C130: 9243 | F130: 2023 | G130: 96018 | H130: 69290 | T130: 58498
A131: 2023 | B131: 88222 | C131: 31907 | F131: 2024 | G131: 96018 | H131: 123463 | T131: 34460
A132: 2024 | B132: 88222 | C132: 13101 | F132: 2023 | G132: 97096 | H132: -3977 | T132: 6323
A133: 2020 | B133: 88223 | C133: -1142 | F133: 2020 | G133: 97123 | H133: 33961 | T133: 14654
A134: 2021 | B134: 88223 | C134: 15706 | F134: 2020 | G134: 97180 | H134: 488 | T134: 7844
A135: 2023 | B135: 88223 | C135: 2991 | F135: 2022 | G135: 97180 | H135: 931 | T135: -6558
A136: 2024 | B136: 88223 | C136: 3833 | F136: 2023 | G136: 97180 | H136: 2696 | T136: 8788
A137: 2020 | B137: 88224 | C137: 60014 | F137: 2024 | G137: 97180 | H137: 6876 | T137: 41331
A138: 2021 | B138: 88224 | C138: 61707 | F138: 2020 | G138: 97185 | H138: 26972 | T138: 36449
A139: 2022 | B139: 88224 | C139: 106119 | F139: 2021 | G139: 97185 | H139: 33942 | T139: 51856
A140: 2023 | B140: 88224 | C140: 103422 | F140: 2022 | G140: 97185 | H140: 47060 | T140: 12446
A141: 2024 | B141: 88224 | C141: 118391 | F141: 2023 | G141: 97185 | H141: 14592 | T141: 23745
A142: 2022 | B142: 88226 | C142: 41382 | F142: 2024 | G142: 97185 | H142: 32283 | T142: 38779
A143: 2020 | B143: 88241 | C143: 35529 | T143: 16044
A144: 2021 | B144: 88241 | C144: 38354 | T144: 39490
A145: 2022 | B145: 88241 | C145: 38408 | T145: 7130
A146: 2023 | B146: 88241 | C146: 44059 | T146: 32188
A147: 2024 | B147: 88241 | C147: 52637 | T147: 34400
A148: 2020 | B148: 88258 | C148: -6419 | T148: 50400
A149: 2021 | B149: 88258 | C149: 2746 | T149: 58077
A150: 2022 | B150: 88258 | C150: -5583 | T150: 54901
A151: 2023 | B151: 88258 | C151: 14598 | T151: 54025
A152: 2024 | B152: 88258 | C152: 463 | T152: 44027
A153: 2020 | B153: 88262 | C153: 48698 | T153: 25112
A154: 2024 | B154: 88262 | C154: 37123 | T154: 24461
A155: 2020 | B155: 88264 | C155: 20851 | T155: 49589
A156: 2021 | B156: 88264 | C156: 6420 | T156: 40883
A157: 2022 | B157: 88264 | C157: 26469 | T157: 30047
A158: 2023 | B158: 88264 | C158: 20592 | T158: 19779
A159: 2020 | B159: 88272 | C159: 17220 | T159: 4368
A160: 2022 | B160: 88272 | C160: 24573 | T160: 33710
A161: 2023 | B161: 88272 | C161: 19994 | T161: -6175
A162: 2024 | B162: 88272 | C162: 25498 | T162: 25476
A163: 2020 | B163: 88273 | C163: 40779 | T163: 20826
A164: 2021 | B164: 88273 | C164: 34823 | T164: -2324
A165: 2022 | B165: 88273 | C165: 47607 | T165: 17454
A166: 2023 | B166: 88273 | C166: 63508 | T166: 19678
A167: 2020 | B167: 88278 | C167: 34453 | T167: 26562
A168: 2021 | B168: 88278 | C168: 38659 | T168: 106308
A169: 2022 | B169: 88278 | C169: 39981 | T169: 52312
A170: 2023 | B170: 88278 | C170: 26791 | T170: 16627
A171: 2024 | B171: 88278 | C171: 42263 | T171: 21434
A172: 2020 | B172: 88284 | C172: 6675 | T172: 17860
A173: 2020 | B173: 88295 | C173: 33776 | T173: 10793
A174: 2021 | B174: 88295 | C174: 37730 | T174: 18078
A175: 2022 | B175: 88295 | C175: 53949 | T175: 22691
A176: 2023 | B176: 88295 | C176: 26414 | T176: 26328
A177: 2024 | B177: 88295 | C177: 53526 | T177: 37952
A178: 2022 | B178: 88297 | C178: 45424 | T178: 37941
A179: 2022 | B179: 88303 | C179: 59696 | T179: 17104
A180: 2023 | B180: 88303 | C180: -2818 | T180: 28149
A181: 2024 | B181: 88303 | C181: 38813 | T181: 32257
A182: 2024 | B182: 88309 | C182: 83049 | T182: 11424
A183: 2022 | B183: 89053 | C183: 23996 | T183: 41746
A184: 2023 | B184: 89053 | C184: 22656 | T184: 8268
A185: 2024 | B185: 89053 | C185: 33897 | T185: 7867
A186: 2020 | B186: 89102 | C186: 30746 | T186: 11965
A187: 2021 | B187: 89102 | C187: 27378 | T187: 36144
A188: 2022 | B188: 89102 | C188: 30272 | T188: 26379
A189: 2023 | B189: 89102 | C189: 34768 | T189: 62247
A190: 2024 | B190: 89102 | C190: 51062 | T190: 88569
A191: 2022 | B191: 89105 | C191: 7132 | T191: 104454
A192: 2023 | B192: 89105 | C192: 3854
A193: 2020 | B193: 89117 | C193: 68229
A194: 2020 | B194: 95134 | C194: 22739
A195: 2020 | B195: 95216 | C195: 26717
A196: 2021 | B196: 95216 | C196: 43568
A197: 2022 | B197: 95216 | C197: 58498
A198: 2023 | B198: 95216 | C198: 34460
A199: 2020 | B199: 95219 | C199: 6323
A200: 2021 | B200: 95219 | C200: 14654
... 58 more rows

Sheet INTRO
E1: votre outil de Comparaison et d'Amélioration des Performances de votre activité de production viandeuse
J4: version 2026.10(1)
A5: Bienvenue dans cet outil de comparaison des performances agricoles. Il a été spécialement conçu pour vous aider à évaluer la situation de votre activité de production de viande bovine en la comparant aux résultats d'autres exploitations du secteur et semblables à la vôtre.
A10: En renseignant vos propres informations1, vous aurez l'occasion de situer votre activité par rapports à différents indicateurs tels que
C13: 1. les revenus générés | G13: 3. la ventilation des produits et des charges
C19: 2. Indices (zoo)techniques | G19: 4. les prix de vente obtenus
A24: Les tableaux et graphiques qui suivent vous offriront dès lors une vue d'ensemble de votre positionnement, vous permettant ainsi de mieux comprendre vos points forts et les domaines où des améliorations pourraient être envisagées.
A27: Cet aperçu vous accompagnera dans l'identification de pistes d'amélioration et à orienter vos choix pour soutenir la rentabilité de votre activité.
A31: CONTACT : | D31: Pour toute question ou remarque concernant cet outil, vous pouvez prendre contact avec le CER Groupe par mail à l'adresse agrideveloppement@cergroupe.be ou par téléphone au +32 84 220 389
G34: Cet outil a été réalisé par le CER Groupe, en collaboration et avec le soutien financier du Service Public de Wallonie Agriculture, Ressources naturelles et Environnement [SPW ARNE], Direction de l'Analyse Economique Agricole [DAEA]

Sheet recherche (hidden)
A1: CHOIX MODE DE PRODUCTION | D1: ENCODAGE DAEA? | F1: AIDES PERCUES
A2: Conventionnel | D2: OUI | F2: Bâtiment
A3: Biologique | D3: NON | F3: Matériel
A6: RECHERCHE INDICATEURS par profil et performance
A8: 1 | B8: 2 | C8: 3 | D8: 4 | E8: 5 | F8: 6 | G8: 7 | H8: 8 | I8: 9 | J8: 10 | K8: 11 | L8: 12 | M8: 13 | N8: 14 | O8: 15 | P8: 16 | Q8: 17 | R8: 18 | S8: 19 | T8: 20 | U8: 21 | V8: 22 | W8: 23 | X8: 24 | Y8: 25 | Z8: 26 | AA8: 27 | AB8: 28 | AC8: 29 | AD8: 30 | AE8: 31 | AF8: 32 | AG8: 33 | AH8: 34 | AI8: 35 | AJ8: 36 | AK8: 37 | AL8: 38 | AM8: 39 | AN8: 40 | AO8: 41 | AP8: 42 | AQ8: 43 | AR8: 44 | AS8: 45 | AT8: 46 | AU8: 47 | AV8: 48 | AW8: 49 | AX8: 50 | AY8: 51 | AZ8: 52 | BA8: 53 | BB8: 54 | BC8: 55 | BD8: 56 | BE8: 57 | BF8: 58 | BG8: 59 | BH8: 60 | BI8: 61 | BJ8: 62 | BK8: 63 | BL8: 64 | BM8: 65 | BN8: 66 | BO8: 67
A9: ID | B9: Performance | C9: Bio/Conv | D9: Profil | E9: Nb | F9: ='bdd1'!G1 -> UT | G9: ='bdd1'!H1 -> UTF | H9: ='bdd1'!I1 -> SFH | I9: ='bdd1'!J1 -> UGBB | J9: ='bdd1'!K1 -> UGBB_UT | K9: ='bdd1'!L1 -> UGBB_SFH | L9: ='bdd1'!M1 -> SFH_UT | M9: ='bdd1'!N1 -> prod_bov_four_UGB | N9: ='bdd1'!O1 -> prod_bov_UGB | O9: ='bdd1'!P1 -> prod_four_UGB | P9: ='bdd1'!Q1 -> chop_bov_four_UGB | Q9: ='bdd1'!R1 -> chop_bov_UGB | R9: ='bdd1'!S1 -> alim_comp_UGB | S9: ='bdd1'!T1 -> intra_conso_UGB | T9: ='bdd1'!U1 -> alim_achetés_UGB | U9: ='bdd1'!V1 -> vete_UGB | V9: ='bdd1'!W1 -> autres_ChOP_UGB | W9: ='bdd1'!X1 -> chop_four_UGB | X9: ='bdd1'!Y1 -> Chg_MAT_R_SFH | Y9: ='bdd1'!Z1 -> Trav par tiers_SFH | Z9: ='bdd1'!AA1 -> Meca_SFH | AA9: ='bdd1'!AB1 -> Ch_Fonc_R_SFH | AB9: ='bdd1'!AC1 -> aides couplées_UGB | AC9: ='bdd1'!AD1 -> autres aides_UGB | AD9: ='bdd1'!AE1 -> MB_bov_four_UGB | AE9: ='bdd1'!AF1 -> RA_bov_four_UTF | AF9: ='bdd1'!AG1 -> RT_bov_four_UT | AG9: ='bdd1'!AH1 -> RA_UTF | AH9: ='bdd1'!AI1 -> CoutMOF_UTF | AI9: ='bdd1'!AJ1 -> DELTA | AJ9: ='bdd1'!AK1 -> IVV | AK9: ='bdd1'!AL1 -> age_vel_prim | AL9: ='bdd1'!AM1 -> age_ref | AM9: ='bdd1'!AN1 -> Veaux_vie_100V | AN9: ='bdd1'!AO1 -> Veaux_vie_100VEL | AO9: ='bdd1'!AP1 -> Morts_100bov | AP9: ='bdd1'!AQ1 -> PM_VN | AQ9: ='bdd1'!AR1 -> PM_tot | AR9: ='bdd1'!AS1 -> PM_M1a | AS9: ='bdd1'!AT1 -> Vente_M1a_nb | AT9: ='bdd1'!AU1 -> Vente_M1_2a_nb | AU9: ='bdd1'!AV1 -> Vente_Tx_GR_nb | AV9: ='bdd1'!AW1 -> PV_moy_VN | AW9: ='bdd1'!AX1 -> PV_moy_vx | AX9: ='bdd1'!AY1 -> PV_moy_M1a | AY9: ='bdd1'!AZ1 -> PV_moy_F1a | AZ9: ='bdd1'!BA1 -> PV_moy_M1-2a | BA9: ='bdd1'!BB1 -> PV_moy_F1-2a | BB9: ='bdd1'!BC1 -> PV_moy_M2a | BC9: ='bdd1'!BD1 -> PV_moy_F2a | BD9: ='bdd1'!BE1 -> PV_moy_tx mg | BE9: ='bdd1'!BF1 -> PV_moy_tx gr | BF9: ='bdd1'!BG1 -> Poids_tx_gr | BG9: ='bdd1'!BH1 -> poids_moy_TX_gr | BH9: ='bdd1'!BI1 -> PV_KG_tx gras | BI9: ='bdd1'!BJ1 -> R_PRODBOVCF_PRODTOT | BJ9: ='bdd1'!BK1 -> CoutMOF_UTF_act bov | BK9: ='bdd1'!BL1 -> trav_par_tiers_UGBB | BL9: ='bdd1'!BM1 -> Chg_Mat_R_UGBB | BM9: ='bdd1'!BN1 -> CHg_fonc_R_UGBB | BN9: ='bdd1'!BO1 -> Tx_ref | BO9: ='bdd1'!BP1 -> tx_renew | BP9: =B9 -> Performance | BQ9: =C9 -> Bio/Conv | BR9: =D9 -> Profil
A10: 111 | B10: 1 | C10: conventionnel | D10: eleveur naisseur | E10: =COUNTIFS('bdd1'!B:B,B10,'bdd1'!C:C,C10,'bdd1'!D:D,D10) -> 47 | F10: =AVERAGEIFS('bdd1'!G:G,'bdd1'!$B:$B,$B10,'bdd1'!$C:$C,$C10,'bdd1'!$D:$D,$D10) -> 1.441489362 | G10: =AVERAGEIFS('bdd1'!H:H,'bdd1'!$B:$B,$B10,'bdd1'!$C:$C,$C10,'bdd1'!$D:$D,$D10) -> 1.436595745 | H10: =AVERAGEIFS('bdd1'!I:I,'bdd1'!$B:$B,$B10,'bdd1'!$C:$C,$C10,'bdd1'!$D:$D,$D10) -> 59.44042553 | I10: =AVERAGEIFS('bdd1'!J:J,'bdd1'!$B:$B,$B10,'bdd1'!$C:$C,$C10,'bdd1'!$D:$D,$D10) -> 104.7491489 | J10: =AVERAGEIFS('bdd1'!K:K,'bdd1'!$B:$B,$B10,'bdd1'!$C:$C,$C10,'bdd1'!$D:$D,$D10) -> 70.79093776 | K10: =AVERAGEIFS('bdd1'!L:L,'bdd1'!$B:$B,$B10,'bdd1'!$C:$C,$C10,'bdd1'!$D:$D,$D10) -> 1.774827021 | L10: =AVERAGEIFS('bdd1'!M:M,'bdd1'!$B:$B,$B10,'bdd1'!$C:$C,$C10,'bdd1'!$D:$D,$D10) -> 40.91999274 | M10: =AVERAGEIFS('bdd1'!N:N,'bdd1'!$B:$B,$B10,'bdd1'!$C:$C,$C10,'bdd1'!$D:$D,$D10) -> 811.9 | N10: =AVERAGEIFS('bdd1'!O:O,'bdd1'!$B:$B,$B10,'bdd1'!$C:$C,$C10,'bdd1'!$D:$D,$D10) -> 790.593617 | O10: =AVERAGEIFS('bdd1'!P:P,'bdd1'!$B:$B,$B10,'bdd1'!$C:$C,$C10,'bdd1'!$D:$D,$D10) -> 21.30638298 | P10: =AVERAGEIFS('bdd1'!Q:Q,'bdd1'!$B:$B,$B10,'bdd1'!$C:$C,$C10,'bdd1'!$D:$D,$D10) -> 537.0680851 | Q10: =AVERAGEIFS('bdd1'!R:R,'bdd1'!$B:$B,$B10,'bdd1'!$C:$C,$C10,'bdd1'!$D:$D,$D10) -> 457.0914894 | R10: =AVERAGEIFS('bdd1'!S:S,'bdd1'!$B:$B,$B10,'bdd1'!$C:$C,$C10,'bdd1'!$D:$D,$D10) -> 297.6829787 | S10: =AVERAGEIFS('bdd1'!T:T,'bdd1'!$B:$B,$B10,'bdd1'!$C:$C,$C10,'bdd1'!$D:$D,$D10) -> 40.28297872 | T10: =AVERAGEIFS('bdd1'!U:U,'bdd1'!$B:$B,$B10,'bdd1'!$C:$C,$C10,'bdd1'!$D:$D,$D10) -> 257.4 | U10: =AVERAGEIFS('bdd1'!V:V,'bdd1'!$B:$B,$B10,'bdd1'!$C:$C,$C10,'bdd1'!$D:$D,$D10) -> 118.3255319 | V10: =AVERAGEIFS('bdd1'!W:W,'bdd1'!$B:$B,$B10,'bdd1'!$C:$C,$C10,'bdd1'!$D:$D,$D10) -> 41.08297872 | W10: =AVERAGEIFS('bdd1'!X:X,'bdd1'!$B:$B,$B10,'bdd1'!$C:$C,$C10,'bdd1'!$D:$D,$D10) -> 79.98723404 | X10: =AVERAGEIFS('bdd1'!Y:Y,'bdd1'!$B:$B,$B10,'bdd1'!$C:$C,$C10,'bdd1'!$D:$D,$D10) -> 438.4077745 | Y10: =AVERAGEIFS('bdd1'!Z:Z,'bdd1'!$B:$B,$B10,'bdd1'!$C:$C,$C10,'bdd1'!$D:$D,$D10) -> 170.784937 | Z10: =AVERAGEIFS('bdd1'!AA:AA,'bdd1'!$B:$B,$B10,'bdd1'!$C:$C,$C10,'bdd1'!$D:$D,$D10) -> 609.1927116 | AA10: =AVERAGEIFS('bdd1'!AB:AB,'bdd1'!$B:$B,$B10,'bdd1'!$C:$C,$C10,'bdd1'!$D:$D,$D10) -> 308.1761949 | AB10: =AVERAGEIFS('bdd1'!AC:AC,'bdd1'!$B:$B,$B10,'bdd1'!$C:$C,$C10,'bdd1'!$D:$D,$D10) -> 130.8412851 | AC10: =AVERAGEIFS('bdd1'!AD:AD,'bdd1'!$B:$B,$B10,'bdd1'!$C:$C,$C10,'bdd1'!$D:$D,$D10) -> 197.8849301 | AD10: =AVERAGEIFS('bdd1'!AE:AE,'bdd1'!$B:$B,$B10,'bdd1'!$C:$C,$C10,'bdd1'!$D:$D,$D10) -> 274.8319149 | AE10: =AVERAGEIFS('bdd1'!AF:AF,'bdd1'!$B:$B,$B10,'bdd1'!$C:$C,$C10,'bdd1'!$D:$D,$D10) -> 5183.87234 | AF10: =AVERAGEIFS('bdd1'!AG:AG,'bdd1'!$B:$B,$B10,'bdd1'!$C:$C,$C10,'bdd1'!$D:$D,$D10) -> -6713.755319 | AG10: =AVERAGEIFS('bdd1'!AH:AH,'bdd1'!$B:$B,$B10,'bdd1'!$C:$C,$C10,'bdd1'!$D:$D,$D10) -> 6875.87234 | AH10: =AVERAGEIFS('bdd1'!AI:AI,'bdd1'!$B:$B,$B10,'bdd1'!$C:$C,$C10,'bdd1'!$D:$D,$D10) -> 49157.63057 | AI10: =AVERAGEIFS('bdd1'!AJ:AJ,'bdd1'!$B:$B,$B10,'bdd1'!$C:$C,$C10,'bdd1'!$D:$D,$D10) -> -43973.75823 | AJ10: =AVERAGEIFS('bdd1'!AK:AK,'bdd1'!$B:$B,$B10,'bdd1'!$C:$C,$C10,'bdd1'!$D:$D,$D10) -> 450.173913 | AK10: =AVERAGEIFS('bdd1'!AL:AL,'bdd1'!$B:$B,$B10,'bdd1'!$C:$C,$C10,'bdd1'!$D:$D,$D10) -> 36.04255319 | AL10: =AVERAGEIFS('bdd1'!AM:AM,'bdd1'!$B:$B,$B10,'bdd1'!$C:$C,$C10,'bdd1'!$D:$D,$D10) -> 5.617021277 | AM10: =AVERAGEIFS('bdd1'!AN:AN,'bdd1'!$B:$B,$B10,'bdd1'!$C:$C,$C10,'bdd1'!$D:$D,$D10) -> 99.60923404 | AN10: =AVERAGEIFS('bdd1'!AO:AO,'bdd1'!$B:$B,$B10,'bdd1'!$C:$C,$C10,'bdd1'!$D:$D,$D10) -> 97.84114894 | AO10: =AVERAGEIFS('bdd1'!AP:AP,'bdd1'!$B:$B,$B10,'bdd1'!$C:$C,$C10,'bdd1'!$D:$D,$D10) -> 5.801984082 | AP10: =AVERAGEIFS('bdd1'!AQ:AQ,'bdd1'!$B:$B,$B10,'bdd1'!$C:$C,$C10,'bdd1'!$D:$D,$D10) -> 62.7 | AQ10: =AVERAGEIFS('bdd1'!AR:AR,'bdd1'!$B:$B,$B10,'bdd1'!$C:$C,$C10,'bdd1'!$D:$D,$D10) -> 162.693617 | AR10: =AVERAGEIFS('bdd1'!AS:AS,'bdd1'!$B:$B,$B10,'bdd1'!$C:$C,$C10,'bdd1'!$D:$D,$D10) -> 15.72340426 | AS10: =AVERAGEIFS('bdd1'!AT:AT,'bdd1'!$B:$B,$B10,'bdd1'!$C:$C,$C10,'bdd1'!$D:$D,$D10) -> 26.87234043 | AT10: =AVERAGEIFS('bdd1'!AU:AU,'bdd1'!$B:$B,$B10,'bdd1'!$C:$C,$C10,'bdd1'!$D:$D,$D10) -> 2.063829787 | AU10: =AVERAGEIFS('bdd1'!AV:AV,'bdd1'!$B:$B,$B10,'bdd1'!$C:$C,$C10,'bdd1'!$D:$D,$D10) -> 0.4042553191 | AV10: =AVERAGEIFS('bdd1'!AW:AW,'bdd1'!$B:$B,$B10,'bdd1'!$C:$C,$C10,'bdd1'!$D:$D,$D10) -> 2034.220584 | AW10: =AVERAGEIFS('bdd1'!AX:AX,'bdd1'!$B:$B,$B10,'bdd1'!$C:$C,$C10,'bdd1'!$D:$D,$D10) -> 759.5480554 | AX10: =AVERAGEIFS('bdd1'!AY:AY,'bdd1'!$B:$B,$B10,'bdd1'!$C:$C,$C10,'bdd1'!$D:$D,$D10) -> 1042.574058 | AY10: =AVERAGEIFS('bdd1'!AZ:AZ,'bdd1'!$B:$B,$B10,'bdd1'!$C:$C,$C10,'bdd1'!$D:$D,$D10) -> 955.8238095 | AZ10: =AVERAGEIFS('bdd1'!BA:BA,'bdd1'!$B:$B,$B10,'bdd1'!$C:$C,$C10,'bdd1'!$D:$D,$D10) -> 1899.593476 | BA10: =AVERAGEIFS('bdd1'!BB:BB,'bdd1'!$B:$B,$B10,'bdd1'!$C:$C,$C10,'bdd1'!$D:$D,$D10) -> 924.2461538 | BB10: =AVERAGEIFS('bdd1'!BC:BC,'bdd1'!$B:$B,$B10,'bdd1'!$C:$C,$C10,'bdd1'!$D:$D,$D10) -> 2496.991071 | BC10: =AVERAGEIFS('bdd1'!BD:BD,'bdd1'!$B:$B,$B10,'bdd1'!$C:$C,$C10,'bdd1'!$D:$D,$D10) -> 1662.520139 | BD10: =AVERAGEIFS('bdd1'!BE:BE,'bdd1'!$B:$B,$B10,'bdd1'!$C:$C,$C10,'bdd1'!$D:$D,$D10) -> 1243.186731 | BE10: =AVERAGEIFS('bdd1'!BF:BF,'bdd1'!$B:$B,$B10,'bdd1'!$C:$C,$C10,'bdd1'!$D:$D,$D10) -> 2058.714286 | BF10: =AVERAGEIFS('bdd1'!BG:BG,'bdd1'!$B:$B,$B10,'bdd1'!$C:$C,$C10,'bdd1'!$D:$D,$D10) -> 269.7234043 | BG10: =AVERAGEIFS('bdd1'!BH:BH,'bdd1'!$B:$B,$B10,'bdd1'!$C:$C,$C10,'bdd1'!$D:$D,$D10) -> 677.8452381 | BH10: =AVERAGEIFS('bdd1'!BI:BI,'bdd1'!$B:$B,$B10,'bdd1'!$C:$C,$C10,'bdd1'!$D:$D,$D10) -> 3.656019538 | BI10: =AVERAGEIFS('bdd1'!BJ:BJ,'bdd1'!$B:$B,$B10,'bdd1'!$C:$C,$C10,'bdd1'!$D:$D,$D10) -> 82.40638298 | BJ10: =AVERAGEIFS('bdd1'!BK:BK,'bdd1'!$B:$B,$B10,'bdd1'!$C:$C,$C10,'bdd1'!$D:$D,$D10) -> 40643.60011 | BK10: =AVERAGEIFS('bdd1'!BL:BL,'bdd1'!$B:$B,$B10,'bdd1'!$C:$C,$C10,'bdd1'!$D:$D,$D10) -> 99.30349333 | BL10: =AVERAGEIFS('bdd1'!BM:BM,'bdd1'!$B:$B,$B10,'bdd1'!$C:$C,$C10,'bdd1'!$D:$D,$D10) -> 254.584978 | BM10: =AVERAGEIFS('bdd1'!BN:BN,'bdd1'!$B:$B,$B10,'bdd1'!$C:$C,$C10,'bdd1'!$D:$D,$D10) -> 193.1131255 | BN10: =AVERAGEIFS('bdd1'!BO:BO,'bdd1'!$B:$B,$B10,'bdd1'!$C:$C,$C10,'bdd1'!$D:$D,$D10) -> 41.93617021 | BO10: =AVERAGEIFS('bdd1'!BP:BP,'bdd1'!$B:$B,$B10,'bdd1'!$C:$C,$C10,'bdd1'!$D:$D,$D10) -> 41.14893617 | BP10: 1 | BQ10: conventionnel | BR10: eleveur naisseur
A11: 112 | B11: 1 | C11: conventionnel | D11: eleveur engraisseur | E11: =COUNTIFS('bdd1'!B:B,B11,'bdd1'!C:C,C11,'bdd1'!D:D,D11) -> 15 | F11: =AVERAGEIFS('bdd1'!G:G,'bdd1'!$B:$B,$B11,'bdd1'!$C:$C,$C11,'bdd1'!$D:$D,$D11) -> 1.788666667 | G11: =AVERAGEIFS('bdd1'!H:H,'bdd1'!$B:$B,$B11,'bdd1'!$C:$C,$C11,'bdd1'!$D:$D,$D11) -> 1.732 | H11: =AVERAGEIFS('bdd1'!I:I,'bdd1'!$B:$B,$B11,'bdd1'!$C:$C,$C11,'bdd1'!$D:$D,$D11) -> 85.224 | I11: =AVERAGEIFS('bdd1'!J:J,'bdd1'!$B:$B,$B11,'bdd1'!$C:$C,$C11,'bdd1'!$D:$D,$D11) -> 152.9153333 | J11: =AVERAGEIFS('bdd1'!K:K,'bdd1'!$B:$B,$B11,'bdd1'!$C:$C,$C11,'bdd1'!$D:$D,$D11) -> 88.79678214 | K11: =AVERAGEIFS('bdd1'!L:L,'bdd1'!$B:$B,$B11,'bdd1'!$C:$C,$C11,'bdd1'!$D:$D,$D11) -> 1.787123437 | L11: =AVERAGEIFS('bdd1'!M:M,'bdd1'!$B:$B,$B11,'bdd1'!$C:$C,$C11,'bdd1'!$D:$D,$D11) -> 53.47432577 | M11: =AVERAGEIFS('bdd1'!N:N,'bdd1'!$B:$B,$B11,'bdd1'!$C:$C,$C11,'bdd1'!$D:$D,$D11) -> 942.7733333 | N11: =AVERAGEIFS('bdd1'!O:O,'bdd1'!$B:$B,$B11,'bdd1'!$C:$C,$C11,'bdd1'!$D:$D,$D11) -> 924.9666667 | O11: =AVERAGEIFS('bdd1'!P:P,'bdd1'!$B:$B,$B11,'bdd1'!$C:$C,$C11,'bdd1'!$D:$D,$D11) -> 17.80666667 | P11: =AVERAGEIFS('bdd1'!Q:Q,'bdd1'!$B:$B,$B11,'bdd1'!$C:$C,$C11,'bdd1'!$D:$D,$D11) -> 765.0666667 | Q11: =AVERAGEIFS('bdd1'!R:R,'bdd1'!$B:$B,$B11,'bdd1'!$C:$C,$C11,'bdd1'!$D:$D,$D11) -> 699.82 | R11: =AVERAGEIFS('bdd1'!S:S,'bdd1'!$B:$B,$B11,'bdd1'!$C:$C,$C11,'bdd1'!$D:$D,$D11) -> 560.16 | S11: =AVERAGEIFS('bdd1'!T:T,'bdd1'!$B:$B,$B11,'bdd1'!$C:$C,$C11,'bdd1'!$D:$D,$D11) -> 49.52 | T11: =AVERAGEIFS('bdd1'!U:U,'bdd1'!$B:$B,$B11,'bdd1'!$C:$C,$C11,'bdd1'!$D:$D,$D11) -> 510.64 | U11: =AVERAGEIFS('bdd1'!V:V,'bdd1'!$B:$B,$B11,'bdd1'!$C:$C,$C11,'bdd1'!$D:$D,$D11) -> 104.9133333 | V11: =AVERAGEIFS('bdd1'!W:W,'bdd1'!$B:$B,$B11,'bdd1'!$C:$C,$C11,'bdd1'!$D:$D,$D11) -> 34.74666667 | W11: =AVERAGEIFS('bdd1'!X:X,'bdd1'!$B:$B,$B11,'bdd1'!$C:$C,$C11,'bdd1'!$D:$D,$D11) -> 65.26 | X11: =AVERAGEIFS('bdd1'!Y:Y,'bdd1'!$B:$B,$B11,'bdd1'!$C:$C,$C11,'bdd1'!$D:$D,$D11) -> 418.4214437 | Y11: =AVERAGEIFS('bdd1'!Z:Z,'bdd1'!$B:$B,$B11,'bdd1'!$C:$C,$C11,'bdd1'!$D:$D,$D11) -> 149.7779738 | Z11: =AVERAGEIFS('bdd1'!AA:AA,'bdd1'!$B:$B,$B11,'bdd1'!$C:$C,$C11,'bdd1'!$D:$D,$D11) -> 568.1994175 | AA11: =AVERAGEIFS('bdd1'!AB:AB,'bdd1'!$B:$B,$B11,'bdd1'!$C:$C,$C11,'bdd1'!$D:$D,$D11) -> 280.2896502 | AB11: =AVERAGEIFS('bdd1'!AC:AC,'bdd1'!$B:$B,$B11,'bdd1'!$C:$C,$C11,'bdd1'!$D:$D,$D11) -> 104.6375586 | AC11: =AVERAGEIFS('bdd1'!AD:AD,'bdd1'!$B:$B,$B11,'bdd1'!$C:$C,$C11,'bdd1'!$D:$D,$D11) -> 214.6549101 | AD11: =AVERAGEIFS('bdd1'!AE:AE,'bdd1'!$B:$B,$B11,'bdd1'!$C:$C,$C11,'bdd1'!$D:$D,$D11) -> 177.7 | AE11: =AVERAGEIFS('bdd1'!AF:AF,'bdd1'!$B:$B,$B11,'bdd1'!$C:$C,$C11,'bdd1'!$D:$D,$D11) -> 3586.466667 | AF11: =AVERAGEIFS('bdd1'!AG:AG,'bdd1'!$B:$B,$B11,'bdd1'!$C:$C,$C11,'bdd1'!$D:$D,$D11) -> -11286.26667 | AG11: =AVERAGEIFS('bdd1'!AH:AH,'bdd1'!$B:$B,$B11,'bdd1'!$C:$C,$C11,'bdd1'!$D:$D,$D11) -> 5940.2 | AH11: =AVERAGEIFS('bdd1'!AI:AI,'bdd1'!$B:$B,$B11,'bdd1'!$C:$C,$C11,'bdd1'!$D:$D,$D11) -> 60691.42374 | AI11: =AVERAGEIFS('bdd1'!AJ:AJ,'bdd1'!$B:$B,$B11,'bdd1'!$C:$C,$C11,'bdd1'!$D:$D,$D11) -> -57104.95707 | AJ11: =AVERAGEIFS('bdd1'!AK:AK,'bdd1'!$B:$B,$B11,'bdd1'!$C:$C,$C11,'bdd1'!$D:$D,$D11) -> 464.8666667 | AK11: =AVERAGEIFS('bdd1'!AL:AL,'bdd1'!$B:$B,$B11,'bdd1'!$C:$C,$C11,'bdd1'!$D:$D,$D11) -> 36.8 | AL11: =AVERAGEIFS('bdd1'!AM:AM,'bdd1'!$B:$B,$B11,'bdd1'!$C:$C,$C11,'bdd1'!$D:$D,$D11) -> 6.266666667 | AM11: =AVERAGEIFS('bdd1'!AN:AN,'bdd1'!$B:$B,$B11,'bdd1'!$C:$C,$C11,'bdd1'!$D:$D,$D11) -> 85.46673333 | AN11: =AVERAGEIFS('bdd1'!AO:AO,'bdd1'!$B:$B,$B11,'bdd1'!$C:$C,$C11,'bdd1'!$D:$D,$D11) -> 97.1544 | AO11: =AVERAGEIFS('bdd1'!AP:AP,'bdd1'!$B:$B,$B11,'bdd1'!$C:$C,$C11,'bdd1'!$D:$D,$D11) -> 7.179422777 | AP11: =AVERAGEIFS('bdd1'!AQ:AQ,'bdd1'!$B:$B,$B11,'bdd1'!$C:$C,$C11,'bdd1'!$D:$D,$D11) -> 81.32666667 | AQ11: =AVERAGEIFS('bdd1'!AR:AR,'bdd1'!$B:$B,$B11,'bdd1'!$C:$C,$C11,'bdd1'!$D:$D,$D11) -> 242.6666667 | AR11: =AVERAGEIFS('bdd1'!AS:AS,'bdd1'!$B:$B,$B11,'bdd1'!$C:$C,$C11,'bdd1'!$D:$D,$D11) -> 33.76 | AS11: =AVERAGEIFS('bdd1'!AT:AT,'bdd1'!$B:$B,$B11,'bdd1'!$C:$C,$C11,'bdd1'!$D:$D,$D11) -> 3.733333333 | AT11: =AVERAGEIFS('bdd1'!AU:AU,'bdd1'!$B:$B,$B11,'bdd1'!$C:$C,$C11,'bdd1'!$D:$D,$D11) -> 32.4 | AU11: =AVERAGEIFS('bdd1'!AV:AV,'bdd1'!$B:$B,$B11,'bdd1'!$C:$C,$C11,'bdd1'!$D:$D,$D11) -> 19.4 | AV11: =AVERAGEIFS('bdd1'!AW:AW,'bdd1'!$B:$B,$B11,'bdd1'!$C:$C,$C11,'bdd1'!$D:$D,$D11) -> 2432.993525 | AW11: =AVERAGEIFS('bdd1'!AX:AX,'bdd1'!$B:$B,$B11,'bdd1'!$C:$C,$C11,'bdd1'!$D:$D,$D11) -> 56.6 | AX11: =AVERAGEIFS('bdd1'!AY:AY,'bdd1'!$B:$B,$B11,'bdd1'!$C:$C,$C11,'bdd1'!$D:$D,$D11) -> 1362.266667 | AY11: =AVERAGEIFS('bdd1'!AZ:AZ,'bdd1'!$B:$B,$B11,'bdd1'!$C:$C,$C11,'bdd1'!$D:$D,$D11) -> 589.5 | AZ11: =AVERAGEIFS('bdd1'!BA:BA,'bdd1'!$B:$B,$B11,'bdd1'!$C:$C,$C11,'bdd1'!$D:$D,$D11) -> 2131.451014 | BA11: =AVERAGEIFS('bdd1'!BB:BB,'bdd1'!$B:$B,$B11,'bdd1'!$C:$C,$C11,'bdd1'!$D:$D,$D11) -> 945.1212121 | BB11: =AVERAGEIFS('bdd1'!BC:BC,'bdd1'!$B:$B,$B11,'bdd1'!$C:$C,$C11,'bdd1'!$D:$D,$D11) -> 2709.15 | BC11: =AVERAGEIFS('bdd1'!BD:BD,'bdd1'!$B:$B,$B11,'bdd1'!$C:$C,$C11,'bdd1'!$D:$D,$D11) -> 1930.98191 | BD11: =AVERAGEIFS('bdd1'!BE:BE,'bdd1'!$B:$B,$B11,'bdd1'!$C:$C,$C11,'bdd1'!$D:$D,$D11) -> 1810.651476 | BE11: =AVERAGEIFS('bdd1'!BF:BF,'bdd1'!$B:$B,$B11,'bdd1'!$C:$C,$C11,'bdd1'!$D:$D,$D11) -> 2754.877572 | BF11: =AVERAGEIFS('bdd1'!BG:BG,'bdd1'!$B:$B,$B11,'bdd1'!$C:$C,$C11,'bdd1'!$D:$D,$D11) -> 13146.93333 | BG11: =AVERAGEIFS('bdd1'!BH:BH,'bdd1'!$B:$B,$B11,'bdd1'!$C:$C,$C11,'bdd1'!$D:$D,$D11) -> 663.2503249 | BH11: =AVERAGEIFS('bdd1'!BI:BI,'bdd1'!$B:$B,$B11,'bdd1'!$C:$C,$C11,'bdd1'!$D:$D,$D11) -> 3.915493999 | BI11: =AVERAGEIFS('bdd1'!BJ:BJ,'bdd1'!$B:$B,$B11,'bdd1'!$C:$C,$C11,'bdd1'!$D:$D,$D11) -> 85.68666667 | BJ11: =AVERAGEIFS('bdd1'!BK:BK,'bdd1'!$B:$B,$B11,'bdd1'!$C:$C,$C11,'bdd1'!$D:$D,$D11) -> 51955.08321 | BK11: =AVERAGEIFS('bdd1'!BL:BL,'bdd1'!$B:$B,$B11,'bdd1'!$C:$C,$C11,'bdd1'!$D:$D,$D11) -> 91.77815945 | BL11: =AVERAGEIFS('bdd1'!BM:BM,'bdd1'!$B:$B,$B11,'bdd1'!$C:$C,$C11,'bdd1'!$D:$D,$D11) -> 242.8449651 | BM11: =AVERAGEIFS('bdd1'!BN:BN,'bdd1'!$B:$B,$B11,'bdd1'!$C:$C,$C11,'bdd1'!$D:$D,$D11) -> 159.9967885 | BN11: =AVERAGEIFS('bdd1'!BO:BO,'bdd1'!$B:$B,$B11,'bdd1'!$C:$C,$C11,'bdd1'!$D:$D,$D11) -> 38.33333333 | BO11: =AVERAGEIFS('bdd1'!BP:BP,'bdd1'!$B:$B,$B11,'bdd1'!$C:$C,$C11,'bdd1'!$D:$D,$D11) -> 34.26666667 | BP11: 1 | BQ11: conventionnel | BR11: eleveur engraisseur
A12: 113 | B12: 1 | C12: conventionnel | D12: intermediaire | E12: =COUNTIFS('bdd1'!B:B,B12,'bdd1'!C:C,C12,'bdd1'!D:D,D12) -> 12 | F12: =AVERAGEIFS('bdd1'!G:G,'bdd1'!$B:$B,$B12,'bdd1'!$C:$C,$C12,'bdd1'!$D:$D,$D12) -> 1.836666667 | G12: =AVERAGEIFS('bdd1'!H:H,'bdd1'!$B:$B,$B12,'bdd1'!$C:$C,$C12,'bdd1'!$D:$D,$D12) -> 1.834166667 | H12: =AVERAGEIFS('bdd1'!I:I,'bdd1'!$B:$B,$B12,'bdd1'!$C:$C,$C12,'bdd1'!$D:$D,$D12) -> 100.5783333 | I12: =AVERAGEIFS('bdd1'!J:J,'bdd1'!$B:$B,$B12,'bdd1'!$C:$C,$C12,'bdd1'!$D:$D,$D12) -> 171.09 | J12: =AVERAGEIFS('bdd1'!K:K,'bdd1'!$B:$B,$B12,'bdd1'!$C:$C,$C12,'bdd1'!$D:$D,$D12) -> 91.01710624 | K12: =AVERAGEIFS('bdd1'!L:L,'bdd1'!$B:$B,$B12,'bdd1'!$C:$C,$C12,'bdd1'!$D:$D,$D12) -> 1.799650336 | L12: =AVERAGEIFS('bdd1'!M:M,'bdd1'!$B:$B,$B12,'bdd1'!$C:$C,$C12,'bdd1'!$D:$D,$D12) -> 55.64420989 | M12: =AVERAGEIFS('bdd1'!N:N,'bdd1'!$B:$B,$B12,'bdd1'!$C:$C,$C12,'bdd1'!$D:$D,$D12) -> 807.6666667 | N12: =AVERAGEIFS('bdd1'!O:O,'bdd1'!$B:$B,$B12,'bdd1'!$C:$C,$C12,'bdd1'!$D:$D,$D12) -> 805.2083333 | O12: =AVERAGEIFS('bdd1'!P:P,'bdd1'!$B:$B,$B12,'bdd1'!$C:$C,$C12,'bdd1'!$D:$D,$D12) -> 2.458333333 | P12: =AVERAGEIFS('bdd1'!Q:Q,'bdd1'!$B:$B,$B12,'bdd1'!$C:$C,$C12,'bdd1'!$D:$D,$D12) -> 611.2083333 | Q12: =AVERAGEIFS('bdd1'!R:R,'bdd1'!$B:$B,$B12,'bdd1'!$C:$C,$C12,'bdd1'!$D:$D,$D12) -> 534.55 | R12: =AVERAGEIFS('bdd1'!S:S,'bdd1'!$B:$B,$B12,'bdd1'!$C:$C,$C12,'bdd1'!$D:$D,$D12) -> 383 | S12: =AVERAGEIFS('bdd1'!T:T,'bdd1'!$B:$B,$B12,'bdd1'!$C:$C,$C12,'bdd1'!$D:$D,$D12) -> 87.48333333 | T12: =AVERAGEIFS('bdd1'!U:U,'bdd1'!$B:$B,$B12,'bdd1'!$C:$C,$C12,'bdd1'!$D:$D,$D12) -> 295.5166667 | U12: =AVERAGEIFS('bdd1'!V:V,'bdd1'!$B:$B,$B12,'bdd1'!$C:$C,$C12,'bdd1'!$D:$D,$D12) -> 116.5166667 | V12: =AVERAGEIFS('bdd1'!W:W,'bdd1'!$B:$B,$B12,'bdd1'!$C:$C,$C12,'bdd1'!$D:$D,$D12) -> 35.03333333 | W12: =AVERAGEIFS('bdd1'!X:X,'bdd1'!$B:$B,$B12,'bdd1'!$C:$C,$C12,'bdd1'!$D:$D,$D12) -> 76.66666667 | X12: =AVERAGEIFS('bdd1'!Y:Y,'bdd1'!$B:$B,$B12,'bdd1'!$C:$C,$C12,'bdd1'!$D:$D,$D12) -> 447.9010225 | Y12: =AVERAGEIFS('bdd1'!Z:Z,'bdd1'!$B:$B,$B12,'bdd1'!$C:$C,$C12,'bdd1'!$D:$D,$D12) -> 175.4199035 | Z12: =AVERAGEIFS('bdd1'!AA:AA,'bdd1'!$B:$B,$B12,'bdd1'!$C:$C,$C12,'bdd1'!$D:$D,$D12) -> 623.320926 | AA12: =AVERAGEIFS('bdd1'!AB:AB,'bdd1'!$B:$B,$B12,'bdd1'!$C:$C,$C12,'bdd1'!$D:$D,$D12) -> 365.1702145 | AB12: =AVERAGEIFS('bdd1'!AC:AC,'bdd1'!$B:$B,$B12,'bdd1'!$C:$C,$C12,'bdd1'!$D:$D,$D12) -> 103.7210441 | AC12: =AVERAGEIFS('bdd1'!AD:AD,'bdd1'!$B:$B,$B12,'bdd1'!$C:$C,$C12,'bdd1'!$D:$D,$D12) -> 159.489795 | AD12: =AVERAGEIFS('bdd1'!AE:AE,'bdd1'!$B:$B,$B12,'bdd1'!$C:$C,$C12,'bdd1'!$D:$D,$D12) -> 196.4583333 | AE12: =AVERAGEIFS('bdd1'!AF:AF,'bdd1'!$B:$B,$B12,'bdd1'!$C:$C,$C12,'bdd1'!$D:$D,$D12) -> 4905.416667 | AF12: =AVERAGEIFS('bdd1'!AG:AG,'bdd1'!$B:$B,$B12,'bdd1'!$C:$C,$C12,'bdd1'!$D:$D,$D12) -> -10029.86667 | AG12: =AVERAGEIFS('bdd1'!AH:AH,'bdd1'!$B:$B,$B12,'bdd1'!$C:$C,$C12,'bdd1'!$D:$D,$D12) -> 10536.58333 | AH12: =AVERAGEIFS('bdd1'!AI:AI,'bdd1'!$B:$B,$B12,'bdd1'!$C:$C,$C12,'bdd1'!$D:$D,$D12) -> 54671.84841 | AI12: =AVERAGEIFS('bdd1'!AJ:AJ,'bdd1'!$B:$B,$B12,'bdd1'!$C:$C,$C12,'bdd1'!$D:$D,$D12) -> -49766.43174 | AJ12: =AVERAGEIFS('bdd1'!AK:AK,'bdd1'!$B:$B,$B12,'bdd1'!$C:$C,$C12,'bdd1'!$D:$D,$D12) -> 466.75 | AK12: =AVERAGEIFS('bdd1'!AL:AL,'bdd1'!$B:$B,$B12,'bdd1'!$C:$C,$C12,'bdd1'!$D:$D,$D12) -> 35.58333333 | AL12: =AVERAGEIFS('bdd1'!AM:AM,'bdd1'!$B:$B,$B12,'bdd1'!$C:$C,$C12,'bdd1'!$D:$D,$D12) -> 5.583333333 | AM12: =AVERAGEIFS('bdd1'!AN:AN,'bdd1'!$B:$B,$B12,'bdd1'!$C:$C,$C12,'bdd1'!$D:$D,$D12) -> 93.70383333 | AN12: =AVERAGEIFS('bdd1'!AO:AO,'bdd1'!$B:$B,$B12,'bdd1'!$C:$C,$C12,'bdd1'!$D:$D,$D12) -> 97.45708333 | AO12: =AVERAGEIFS('bdd1'!AP:AP,'bdd1'!$B:$B,$B12,'bdd1'!$C:$C,$C12,'bdd1'!$D:$D,$D12) -> 8.448749648 | AP12: =AVERAGEIFS('bdd1'!AQ:AQ,'bdd1'!$B:$B,$B12,'bdd1'!$C:$C,$C12,'bdd1'!$D:$D,$D12) -> 100.6916667 | AQ12: =AVERAGEIFS('bdd1'!AR:AR,'bdd1'!$B:$B,$B12,'bdd1'!$C:$C,$C12,'bdd1'!$D:$D,$D12) -> 267.6666667 | AR12: =AVERAGEIFS('bdd1'!AS:AS,'bdd1'!$B:$B,$B12,'bdd1'!$C:$C,$C12,'bdd1'!$D:$D,$D12) -> 31.5 | AS12: =AVERAGEIFS('bdd1'!AT:AT,'bdd1'!$B:$B,$B12,'bdd1'!$C:$C,$C12,'bdd1'!$D:$D,$D12) -> 20.83333333 | AT12: =AVERAGEIFS('bdd1'!AU:AU,'bdd1'!$B:$B,$B12,'bdd1'!$C:$C,$C12,'bdd1'!$D:$D,$D12) -> 14.41666667 | AU12: =AVERAGEIFS('bdd1'!AV:AV,'bdd1'!$B:$B,$B12,'bdd1'!$C:$C,$C12,'bdd1'!$D:$D,$D12) -> 2.583333333 | AV12: =AVERAGEIFS('bdd1'!AW:AW,'bdd1'!$B:$B,$B12,'bdd1'!$C:$C,$C12,'bdd1'!$D:$D,$D12) -> 2211.125935 | AW12: =AVERAGEIFS('bdd1'!AX:AX,'bdd1'!$B:$B,$B12,'bdd1'!$C:$C,$C12,'bdd1'!$D:$D,$D12) -> 800.3958333 | AX12: =AVERAGEIFS('bdd1'!AY:AY,'bdd1'!$B:$B,$B12,'bdd1'!$C:$C,$C12,'bdd1'!$D:$D,$D12) -> 1306.177033 | AY12: =AVERAGEIFS('bdd1'!AZ:AZ,'bdd1'!$B:$B,$B12,'bdd1'!$C:$C,$C12,'bdd1'!$D:$D,$D12) -> 1081.153846 | AZ12: =AVERAGEIFS('bdd1'!BA:BA,'bdd1'!$B:$B,$B12,'bdd1'!$C:$C,$C12,'bdd1'!$D:$D,$D12) -> 1737.183182 | BA12: =AVERAGEIFS('bdd1'!BB:BB,'bdd1'!$B:$B,$B12,'bdd1'!$C:$C,$C12,'bdd1'!$D:$D,$D12) -> 794 | BB12: =AVERAGEIFS('bdd1'!BC:BC,'bdd1'!$B:$B,$B12,'bdd1'!$C:$C,$C12,'bdd1'!$D:$D,$D12) -> 2653.5 | BC12: =AVERAGEIFS('bdd1'!BD:BD,'bdd1'!$B:$B,$B12,'bdd1'!$C:$C,$C12,'bdd1'!$D:$D,$D12) -> 1837.627381 | BD12: =AVERAGEIFS('bdd1'!BE:BE,'bdd1'!$B:$B,$B12,'bdd1'!$C:$C,$C12,'bdd1'!$D:$D,$D12) -> 1513.677728 | BE12: =AVERAGEIFS('bdd1'!BF:BF,'bdd1'!$B:$B,$B12,'bdd1'!$C:$C,$C12,'bdd1'!$D:$D,$D12) -> 1933.305195 | BF12: =AVERAGEIFS('bdd1'!BG:BG,'bdd1'!$B:$B,$B12,'bdd1'!$C:$C,$C12,'bdd1'!$D:$D,$D12) -> 1008.916667 | BG12: =AVERAGEIFS('bdd1'!BH:BH,'bdd1'!$B:$B,$B12,'bdd1'!$C:$C,$C12,'bdd1'!$D:$D,$D12) -> 486.7294372 | BH12: =AVERAGEIFS('bdd1'!BI:BI,'bdd1'!$B:$B,$B12,'bdd1'!$C:$C,$C12,'bdd1'!$D:$D,$D12) -> 4.014741226 | BI12: =AVERAGEIFS('bdd1'!BJ:BJ,'bdd1'!$B:$B,$B12,'bdd1'!$C:$C,$C12,'bdd1'!$D:$D,$D12) -> 76.04166667 | BJ12: =AVERAGEIFS('bdd1'!BK:BK,'bdd1'!$B:$B,$B12,'bdd1'!$C:$C,$C12,'bdd1'!$D:$D,$D12) -> 40955.38094 | BK12: =AVERAGEIFS('bdd1'!BL:BL,'bdd1'!$B:$B,$B12,'bdd1'!$C:$C,$C12,'bdd1'!$D:$D,$D12) -> 98.55063833 | BL12: =AVERAGEIFS('bdd1'!BM:BM,'bdd1'!$B:$B,$B12,'bdd1'!$C:$C,$C12,'bdd1'!$D:$D,$D12) -> 242.8529579 | BM12: =AVERAGEIFS('bdd1'!BN:BN,'bdd1'!$B:$B,$B12,'bdd1'!$C:$C,$C12,'bdd1'!$D:$D,$D12) -> 184.3333861 | BN12: =AVERAGEIFS('bdd1'!BO:BO,'bdd1'!$B:$B,$B12,'bdd1'!$C:$C,$C12,'bdd1'!$D:$D,$D12) -> 40.25 | BO12: =AVERAGEIFS('bdd1'!BP:BP,'bdd1'!$B:$B,$B12,'bdd1'!$C:$C,$C12,'bdd1'!$D:$D,$D12) -> 39.08333333 | BP12: 1 | BQ12: conventionnel | BR12: intermediaire
A13: 121 | B13: 1 | C13: biologique | D13: eleveur naisseur | E13: =COUNTIFS('bdd1'!B:B,B13,'bdd1'!C:C,C13,'bdd1'!D:D,D13) -> 4 | F13: =AVERAGEIFS('bdd1'!G:G,'bdd1'!$B:$B,$B13,'bdd1'!$C:$C,$C13,'bdd1'!$D:$D,$D13) -> 2.0425 | G13: =AVERAGEIFS('bdd1'!H:H,'bdd1'!$B:$B,$B13,'bdd1'!$C:$C,$C13,'bdd1'!$D:$D,$D13) -> 2.0425 | H13: =AVERAGEIFS('bdd1'!I:I,'bdd1'!$B:$B,$B13,'bdd1'!$C:$C,$C13,'bdd1'!$D:$D,$D13) -> 72.475 | I13: =AVERAGEIFS('bdd1'!J:J,'bdd1'!$B:$B,$B13,'bdd1'!$C:$C,$C13,'bdd1'!$D:$D,$D13) -> 83.14 | J13: =AVERAGEIFS('bdd1'!K:K,'bdd1'!$B:$B,$B13,'bdd1'!$C:$C,$C13,'bdd1'!$D:$D,$D13) -> 45.7229285 | K13: =AVERAGEIFS('bdd1'!L:L,'bdd1'!$B:$B,$B13,'bdd1'!$C:$C,$C13,'bdd1'!$D:$D,$D13) -> 1.128622018 | L13: =AVERAGEIFS('bdd1'!M:M,'bdd1'!$B:$B,$B13,'bdd1'!$C:$C,$C13,'bdd1'!$D:$D,$D13) -> 38.73583859 | M13: =AVERAGEIFS('bdd1'!N:N,'bdd1'!$B:$B,$B13,'bdd1'!$C:$C,$C13,'bdd1'!$D:$D,$D13) -> 695.3 | N13: =AVERAGEIFS('bdd1'!O:O,'bdd1'!$B:$B,$B13,'bdd1'!$C:$C,$C13,'bdd1'!$D:$D,$D13) -> 695.3 | O13: =AVERAGEIFS('bdd1'!P:P,'bdd1'!$B:$B,$B13,'bdd1'!$C:$C,$C13,'bdd1'!$D:$D,$D13) -> 0 | P13: =AVERAGEIFS('bdd1'!Q:Q,'bdd1'!$B:$B,$B13,'bdd1'!$C:$C,$C13,'bdd1'!$D:$D,$D13) -> 289.2 | Q13: =AVERAGEIFS('bdd1'!R:R,'bdd1'!$B:$B,$B13,'bdd1'!$C:$C,$C13,'bdd1'!$D:$D,$D13) -> 276.675 | R13: =AVERAGEIFS('bdd1'!S:S,'bdd1'!$B:$B,$B13,'bdd1'!$C:$C,$C13,'bdd1'!$D:$D,$D13) -> 176.125 | S13: =AVERAGEIFS('bdd1'!T:T,'bdd1'!$B:$B,$B13,'bdd1'!$C:$C,$C13,'bdd1'!$D:$D,$D13) -> 0 | T13: =AVERAGEIFS('bdd1'!U:U,'bdd1'!$B:$B,$B13,'bdd1'!$C:$C,$C13,'bdd1'!$D:$D,$D13) -> 176.125 | U13: =AVERAGEIFS('bdd1'!V:V,'bdd1'!$B:$B,$B13,'bdd1'!$C:$C,$C13,'bdd1'!$D:$D,$D13) -> 50.4 | V13: =AVERAGEIFS('bdd1'!W:W,'bdd1'!$B:$B,$B13,'bdd1'!$C:$C,$C13,'bdd1'!$D:$D,$D13) -> 50.15 | W13: =AVERAGEIFS('bdd1'!X:X,'bdd1'!$B:$B,$B13,'bdd1'!$C:$C,$C13,'bdd1'!$D:$D,$D13) -> 12.525 | X13: =AVERAGEIFS('bdd1'!Y:Y,'bdd1'!$B:$B,$B13,'bdd1'!$C:$C,$C13,'bdd1'!$D:$D,$D13) -> 413.0067985 | Y13: =AVERAGEIFS('bdd1'!Z:Z,'bdd1'!$B:$B,$B13,'bdd1'!$C:$C,$C13,'bdd1'!$D:$D,$D13) -> 107.6098916 | Z13: =AVERAGEIFS('bdd1'!AA:AA,'bdd1'!$B:$B,$B13,'bdd1'!$C:$C,$C13,'bdd1'!$D:$D,$D13) -> 520.6166901 | AA13: =AVERAGEIFS('bdd1'!AB:AB,'bdd1'!$B:$B,$B13,'bdd1'!$C:$C,$C13,'bdd1'!$D:$D,$D13) -> 229.8110831 | AB13: =AVERAGEIFS('bdd1'!AC:AC,'bdd1'!$B:$B,$B13,'bdd1'!$C:$C,$C13,'bdd1'!$D:$D,$D13) -> 124.7090983 | AC13: =AVERAGEIFS('bdd1'!AD:AD,'bdd1'!$B:$B,$B13,'bdd1'!$C:$C,$C13,'bdd1'!$D:$D,$D13) -> 623.2892931 | AD13: =AVERAGEIFS('bdd1'!AE:AE,'bdd1'!$B:$B,$B13,'bdd1'!$C:$C,$C13,'bdd1'!$D:$D,$D13) -> 406.075 | AE13: =AVERAGEIFS('bdd1'!AF:AF,'bdd1'!$B:$B,$B13,'bdd1'!$C:$C,$C13,'bdd1'!$D:$D,$D13) -> 18015 | AF13: =AVERAGEIFS('bdd1'!AG:AG,'bdd1'!$B:$B,$B13,'bdd1'!$C:$C,$C13,'bdd1'!$D:$D,$D13) -> 8569.675 | AG13: =AVERAGEIFS('bdd1'!AH:AH,'bdd1'!$B:$B,$B13,'bdd1'!$C:$C,$C13,'bdd1'!$D:$D,$D13) -> 16599 | AH13: =AVERAGEIFS('bdd1'!AI:AI,'bdd1'!$B:$B,$B13,'bdd1'!$C:$C,$C13,'bdd1'!$D:$D,$D13) -> 38776.78977 | AI13: =AVERAGEIFS('bdd1'!AJ:AJ,'bdd1'!$B:$B,$B13,'bdd1'!$C:$C,$C13,'bdd1'!$D:$D,$D13) -> -20761.78977 | AJ13: =AVERAGEIFS('bdd1'!AK:AK,'bdd1'!$B:$B,$B13,'bdd1'!$C:$C,$C13,'bdd1'!$D:$D,$D13) -> 408.25 | AK13: =AVERAGEIFS('bdd1'!AL:AL,'bdd1'!$B:$B,$B13,'bdd1'!$C:$C,$C13,'bdd1'!$D:$D,$D13) -> 37 | AL13: =AVERAGEIFS('bdd1'!AM:AM,'bdd1'!$B:$B,$B13,'bdd1'!$C:$C,$C13,'bdd1'!$D:$D,$D13) -> 6.5 | AM13: =AVERAGEIFS('bdd1'!AN:AN,'bdd1'!$B:$B,$B13,'bdd1'!$C:$C,$C13,'bdd1'!$D:$D,$D13) -> 99.5325 | AN13: =AVERAGEIFS('bdd1'!AO:AO,'bdd1'!$B:$B,$B13,'bdd1'!$C:$C,$C13,'bdd1'!$D:$D,$D13) -> 101.1625 | AO13: =AVERAGEIFS('bdd1'!AP:AP,'bdd1'!$B:$B,$B13,'bdd1'!$C:$C,$C13,'bdd1'!$D:$D,$D13) -> 5.18929368 | AP13: =AVERAGEIFS('bdd1'!AQ:AQ,'bdd1'!$B:$B,$B13,'bdd1'!$C:$C,$C13,'bdd1'!$D:$D,$D13) -> 46.325 | AQ13: =AVERAGEIFS('bdd1'!AR:AR,'bdd1'!$B:$B,$B13,'bdd1'!$C:$C,$C13,'bdd1'!$D:$D,$D13) -> 128.925 | AR13: =AVERAGEIFS('bdd1'!AS:AS,'bdd1'!$B:$B,$B13,'bdd1'!$C:$C,$C13,'bdd1'!$D:$D,$D13) -> 14 | AS13: =AVERAGEIFS('bdd1'!AT:AT,'bdd1'!$B:$B,$B13,'bdd1'!$C:$C,$C13,'bdd1'!$D:$D,$D13) -> 21.5 | AT13: =AVERAGEIFS('bdd1'!AU:AU,'bdd1'!$B:$B,$B13,'bdd1'!$C:$C,$C13,'bdd1'!$D:$D,$D13) -> 5.5 | AU13: =AVERAGEIFS('bdd1'!AV:AV,'bdd1'!$B:$B,$B13,'bdd1'!$C:$C,$C13,'bdd1'!$D:$D,$D13) -> 1.75 | AV13: =AVERAGEIFS('bdd1'!AW:AW,'bdd1'!$B:$B,$B13,'bdd1'!$C:$C,$C13,'bdd1'!$D:$D,$D13) -> 1744.321587 | AW13: =AVERAGEIFS('bdd1'!AX:AX,'bdd1'!$B:$B,$B13,'bdd1'!$C:$C,$C13,'bdd1'!$D:$D,$D13) ->  | AX13: =AVERAGEIFS('bdd1'!AY:AY,'bdd1'!$B:$B,$B13,'bdd1'!$C:$C,$C13,'bdd1'!$D:$D,$D13) -> 1248.725634 | AY13: =AVERAGEIFS('bdd1'!AZ:AZ,'bdd1'!$B:$B,$B13,'bdd1'!$C:$C,$C13,'bdd1'!$D:$D,$D13) ->  | AZ13: =AVERAGEIFS('bdd1'!BA:BA,'bdd1'!$B:$B,$B13,'bdd1'!$C:$C,$C13,'bdd1'!$D:$D,$D13) -> 2085.040909 | BA13: =AVERAGEIFS('bdd1'!BB:BB,'bdd1'!$B:$B,$B13,'bdd1'!$C:$C,$C13,'bdd1'!$D:$D,$D13) ->  | BB13: =AVERAGEIFS('bdd1'!BC:BC,'bdd1'!$B:$B,$B13,'bdd1'!$C:$C,$C13,'bdd1'!$D:$D,$D13) ->  | BC13: =AVERAGEIFS('bdd1'!BD:BD,'bdd1'!$B:$B,$B13,'bdd1'!$C:$C,$C13,'bdd1'!$D:$D,$D13) ->  | BD13: =AVERAGEIFS('bdd1'!BE:BE,'bdd1'!$B:$B,$B13,'bdd1'!$C:$C,$C13,'bdd1'!$D:$D,$D13) -> 1444.161898 | BE13: =AVERAGEIFS('bdd1'!BF:BF,'bdd1'!$B:$B,$B13,'bdd1'!$C:$C,$C13,'bdd1'!$D:$D,$D13) -> 2013.428571 | BF13: =AVERAGEIFS('bdd1'!BG:BG,'bdd1'!$B:$B,$B13,'bdd1'!$C:$C,$C13,'bdd1'!$D:$D,$D13) -> 552.25 | BG13: =AVERAGEIFS('bdd1'!BH:BH,'bdd1'!$B:$B,$B13,'bdd1'!$C:$C,$C13,'bdd1'!$D:$D,$D13) -> 315.5714286 | BH13: =AVERAGEIFS('bdd1'!BI:BI,'bdd1'!$B:$B,$B13,'bdd1'!$C:$C,$C13,'bdd1'!$D:$D,$D13) -> 6.380262562 | BI13: =AVERAGEIFS('bdd1'!BJ:BJ,'bdd1'!$B:$B,$B13,'bdd1'!$C:$C,$C13,'bdd1'!$D:$D,$D13) -> 78.525 | BJ13: =AVERAGEIFS('bdd1'!BK:BK,'bdd1'!$B:$B,$B13,'bdd1'!$C:$C,$C13,'bdd1'!$D:$D,$D13) -> 32274.81198 | BK13: =AVERAGEIFS('bdd1'!BL:BL,'bdd1'!$B:$B,$B13,'bdd1'!$C:$C,$C13,'bdd1'!$D:$D,$D13) -> 85.53638272 | BL13: =AVERAGEIFS('bdd1'!BM:BM,'bdd1'!$B:$B,$B13,'bdd1'!$C:$C,$C13,'bdd1'!$D:$D,$D13) -> 402.2408837 | BM13: =AVERAGEIFS('bdd1'!BN:BN,'bdd1'!$B:$B,$B13,'bdd1'!$C:$C,$C13,'bdd1'!$D:$D,$D13) -> 227.9993785 | BN13: =AVERAGEIFS('bdd1'!BO:BO,'bdd1'!$B:$B,$B13,'bdd1'!$C:$C,$C13,'bdd1'!$D:$D,$D13) -> 31 | BO13: =AVERAGEIFS('bdd1'!BP:BP,'bdd1'!$B:$B,$B13,'bdd1'!$C:$C,$C13,'bdd1'!$D:$D,$D13) -> 28.25 | BP13: 1 | BQ13: biologique | BR13: eleveur naisseur
A14: 122 | B14: 1 | C14: biologique | D14: eleveur engraisseur | E14: =COUNTIFS('bdd1'!B:B,B14,'bdd1'!C:C,C14,'bdd1'!D:D,D14) -> 4 | F14: =AVERAGEIFS('bdd1'!G:G,'bdd1'!$B:$B,$B14,'bdd1'!$C:$C,$C14,'bdd1'!$D:$D,$D14) -> 1.835 | G14: =AVERAGEIFS('bdd1'!H:H,'bdd1'!$B:$B,$B14,'bdd1'!$C:$C,$C14,'bdd1'!$D:$D,$D14) -> 1.82 | H14: =AVERAGEIFS('bdd1'!I:I,'bdd1'!$B:$B,$B14,'bdd1'!$C:$C,$C14,'bdd1'!$D:$D,$D14) -> 63.68 | I14: =AVERAGEIFS('bdd1'!J:J,'bdd1'!$B:$B,$B14,'bdd1'!$C:$C,$C14,'bdd1'!$D:$D,$D14) -> 86.755 | J14: =AVERAGEIFS('bdd1'!K:K,'bdd1'!$B:$B,$B14,'bdd1'!$C:$C,$C14,'bdd1'!$D:$D,$D14) -> 42.82264611 | K14: =AVERAGEIFS('bdd1'!L:L,'bdd1'!$B:$B,$B14,'bdd1'!$C:$C,$C14,'bdd1'!$D:$D,$D14) -> 1.302450394 | L14: =AVERAGEIFS('bdd1'!M:M,'bdd1'!$B:$B,$B14,'bdd1'!$C:$C,$C14,'bdd1'!$D:$D,$D14) -> 36.55051491 | M14: =AVERAGEIFS('bdd1'!N:N,'bdd1'!$B:$B,$B14,'bdd1'!$C:$C,$C14,'bdd1'!$D:$D,$D14) -> 721.1 | N14: =AVERAGEIFS('bdd1'!O:O,'bdd1'!$B:$B,$B14,'bdd1'!$C:$C,$C14,'bdd1'!$D:$D,$D14) -> 709.55 | O14: =AVERAGEIFS('bdd1'!P:P,'bdd1'!$B:$B,$B14,'bdd1'!$C:$C,$C14,'bdd1'!$D:$D,$D14) -> 11.55 | P14: =AVERAGEIFS('bdd1'!Q:Q,'bdd1'!$B:$B,$B14,'bdd1'!$C:$C,$C14,'bdd1'!$D:$D,$D14) -> 315.4 | Q14: =AVERAGEIFS('bdd1'!R:R,'bdd1'!$B:$B,$B14,'bdd1'!$C:$C,$C14,'bdd1'!$D:$D,$D14) -> 296.85 | R14: =AVERAGEIFS('bdd1'!S:S,'bdd1'!$B:$B,$B14,'bdd1'!$C:$C,$C14,'bdd1'!$D:$D,$D14) -> 164.55 | S14: =AVERAGEIFS('bdd1'!T:T,'bdd1'!$B:$B,$B14,'bdd1'!$C:$C,$C14,'bdd1'!$D:$D,$D14) -> 48.075 | T14: =AVERAGEIFS('bdd1'!U:U,'bdd1'!$B:$B,$B14,'bdd1'!$C:$C,$C14,'bdd1'!$D:$D,$D14) -> 116.475 | U14: =AVERAGEIFS('bdd1'!V:V,'bdd1'!$B:$B,$B14,'bdd1'!$C:$C,$C14,'bdd1'!$D:$D,$D14) -> 78.125 | V14: =AVERAGEIFS('bdd1'!W:W,'bdd1'!$B:$B,$B14,'bdd1'!$C:$C,$C14,'bdd1'!$D:$D,$D14) -> 54.175 | W14: =AVERAGEIFS('bdd1'!X:X,'bdd1'!$B:$B,$B14,'bdd1'!$C:$C,$C14,'bdd1'!$D:$D,$D14) -> 18.575 | X14: =AVERAGEIFS('bdd1'!Y:Y,'bdd1'!$B:$B,$B14,'bdd1'!$C:$C,$C14,'bdd1'!$D:$D,$D14) -> 449.6758536 | Y14: =AVERAGEIFS('bdd1'!Z:Z,'bdd1'!$B:$B,$B14,'bdd1'!$C:$C,$C14,'bdd1'!$D:$D,$D14) -> 146.9216064 | Z14: =AVERAGEIFS('bdd1'!AA:AA,'bdd1'!$B:$B,$B14,'bdd1'!$C:$C,$C14,'bdd1'!$D:$D,$D14) -> 596.59746 | AA14: =AVERAGEIFS('bdd1'!AB:AB,'bdd1'!$B:$B,$B14,'bdd1'!$C:$C,$C14,'bdd1'!$D:$D,$D14) -> 308.1152548 | AB14: =AVERAGEIFS('bdd1'!AC:AC,'bdd1'!$B:$B,$B14,'bdd1'!$C:$C,$C14,'bdd1'!$D:$D,$D14) -> 55.90484381 | AC14: =AVERAGEIFS('bdd1'!AD:AD,'bdd1'!$B:$B,$B14,'bdd1'!$C:$C,$C14,'bdd1'!$D:$D,$D14) -> 672.2315958 | AD14: =AVERAGEIFS('bdd1'!AE:AE,'bdd1'!$B:$B,$B14,'bdd1'!$C:$C,$C14,'bdd1'!$D:$D,$D14) -> 405.65 | AE14: =AVERAGEIFS('bdd1'!AF:AF,'bdd1'!$B:$B,$B14,'bdd1'!$C:$C,$C14,'bdd1'!$D:$D,$D14) -> 17465.25 | AF14: =AVERAGEIFS('bdd1'!AG:AG,'bdd1'!$B:$B,$B14,'bdd1'!$C:$C,$C14,'bdd1'!$D:$D,$D14) -> 10529.15 | AG14: =AVERAGEIFS('bdd1'!AH:AH,'bdd1'!$B:$B,$B14,'bdd1'!$C:$C,$C14,'bdd1'!$D:$D,$D14) -> 17876.5 | AH14: =AVERAGEIFS('bdd1'!AI:AI,'bdd1'!$B:$B,$B14,'bdd1'!$C:$C,$C14,'bdd1'!$D:$D,$D14) -> 32677.90521 | AI14: =AVERAGEIFS('bdd1'!AJ:AJ,'bdd1'!$B:$B,$B14,'bdd1'!$C:$C,$C14,'bdd1'!$D:$D,$D14) -> -15212.65521 | AJ14: =AVERAGEIFS('bdd1'!AK:AK,'bdd1'!$B:$B,$B14,'bdd1'!$C:$C,$C14,'bdd1'!$D:$D,$D14) -> 425.6666667 | AK14: =AVERAGEIFS('bdd1'!AL:AL,'bdd1'!$B:$B,$B14,'bdd1'!$C:$C,$C14,'bdd1'!$D:$D,$D14) -> 35.25 | AL14: =AVERAGEIFS('bdd1'!AM:AM,'bdd1'!$B:$B,$B14,'bdd1'!$C:$C,$C14,'bdd1'!$D:$D,$D14) -> 7.75 | AM14: =AVERAGEIFS('bdd1'!AN:AN,'bdd1'!$B:$B,$B14,'bdd1'!$C:$C,$C14,'bdd1'!$D:$D,$D14) -> 80.52925 | AN14: =AVERAGEIFS('bdd1'!AO:AO,'bdd1'!$B:$B,$B14,'bdd1'!$C:$C,$C14,'bdd1'!$D:$D,$D14) -> 99.57 | AO14: =AVERAGEIFS('bdd1'!AP:AP,'bdd1'!$B:$B,$B14,'bdd1'!$C:$C,$C14,'bdd1'!$D:$D,$D14) -> 5.204745807 | AP14: =AVERAGEIFS('bdd1'!AQ:AQ,'bdd1'!$B:$B,$B14,'bdd1'!$C:$C,$C14,'bdd1'!$D:$D,$D14) -> 56.725 | AQ14: =AVERAGEIFS('bdd1'!AR:AR,'bdd1'!$B:$B,$B14,'bdd1'!$C:$C,$C14,'bdd1'!$D:$D,$D14) -> 141.125 | AR14: =AVERAGEIFS('bdd1'!AS:AS,'bdd1'!$B:$B,$B14,'bdd1'!$C:$C,$C14,'bdd1'!$D:$D,$D14) -> 22.325 | AS14: =AVERAGEIFS('bdd1'!AT:AT,'bdd1'!$B:$B,$B14,'bdd1'!$C:$C,$C14,'bdd1'!$D:$D,$D14) -> 6 | AT14: =AVERAGEIFS('bdd1'!AU:AU,'bdd1'!$B:$B,$B14,'bdd1'!$C:$C,$C14,'bdd1'!$D:$D,$D14) -> 15.25 | AU14: =AVERAGEIFS('bdd1'!AV:AV,'bdd1'!$B:$B,$B14,'bdd1'!$C:$C,$C14,'bdd1'!$D:$D,$D14) -> 3.75 | AV14: =AVERAGEIFS('bdd1'!AW:AW,'bdd1'!$B:$B,$B14,'bdd1'!$C:$C,$C14,'bdd1'!$D:$D,$D14) -> 1711.143678 | AW14: =AVERAGEIFS('bdd1'!AX:AX,'bdd1'!$B:$B,$B14,'bdd1'!$C:$C,$C14,'bdd1'!$D:$D,$D14) ->  | AX14: =AVERAGEIFS('bdd1'!AY:AY,'bdd1'!$B:$B,$B14,'bdd1'!$C:$C,$C14,'bdd1'!$D:$D,$D14) -> 1418.464286 | AY14: =AVERAGEIFS('bdd1'!AZ:AZ,'bdd1'!$B:$B,$B14,'bdd1'!$C:$C,$C14,'bdd1'!$D:$D,$D14) -> 673.4 | AZ14: =AVERAGEIFS('bdd1'!BA:BA,'bdd1'!$B:$B,$B14,'bdd1'!$C:$C,$C14,'bdd1'!$D:$D,$D14) -> 1215.710135 | BA14: =AVERAGEIFS('bdd1'!BB:BB,'bdd1'!$B:$B,$B14,'bdd1'!$C:$C,$C14,'bdd1'!$D:$D,$D14) -> 860.1648352 | BB14: =AVERAGEIFS('bdd1'!BC:BC,'bdd1'!$B:$B,$B14,'bdd1'!$C:$C,$C14,'bdd1'!$D:$D,$D14) ->  | BC14: =AVERAGEIFS('bdd1'!BD:BD,'bdd1'!$B:$B,$B14,'bdd1'!$C:$C,$C14,'bdd1'!$D:$D,$D14) -> 1044.2 | BD14: =AVERAGEIFS('bdd1'!BE:BE,'bdd1'!$B:$B,$B14,'bdd1'!$C:$C,$C14,'bdd1'!$D:$D,$D14) -> 1291.17037 | BE14: =AVERAGEIFS('bdd1'!BF:BF,'bdd1'!$B:$B,$B14,'bdd1'!$C:$C,$C14,'bdd1'!$D:$D,$D14) -> 1688.461538 | BF14: =AVERAGEIFS('bdd1'!BG:BG,'bdd1'!$B:$B,$B14,'bdd1'!$C:$C,$C14,'bdd1'!$D:$D,$D14) -> 1695.25 | BG14: =AVERAGEIFS('bdd1'!BH:BH,'bdd1'!$B:$B,$B14,'bdd1'!$C:$C,$C14,'bdd1'!$D:$D,$D14) -> 498.5769231 | BH14: =AVERAGEIFS('bdd1'!BI:BI,'bdd1'!$B:$B,$B14,'bdd1'!$C:$C,$C14,'bdd1'!$D:$D,$D14) -> 3.419166771 | BI14: =AVERAGEIFS('bdd1'!BJ:BJ,'bdd1'!$B:$B,$B14,'bdd1'!$C:$C,$C14,'bdd1'!$D:$D,$D14) -> 80.175 | BJ14: =AVERAGEIFS('bdd1'!BK:BK,'bdd1'!$B:$B,$B14,'bdd1'!$C:$C,$C14,'bdd1'!$D:$D,$D14) -> 25946.45781 | BK14: =AVERAGEIFS('bdd1'!BL:BL,'bdd1'!$B:$B,$B14,'bdd1'!$C:$C,$C14,'bdd1'!$D:$D,$D14) -> 129.7599409 | BL14: =AVERAGEIFS('bdd1'!BM:BM,'bdd1'!$B:$B,$B14,'bdd1'!$C:$C,$C14,'bdd1'!$D:$D,$D14) -> 376.4436361 | BM14: =AVERAGEIFS('bdd1'!BN:BN,'bdd1'!$B:$B,$B14,'bdd1'!$C:$C,$C14,'bdd1'!$D:$D,$D14) -> 271.7257706 | BN14: =AVERAGEIFS('bdd1'!BO:BO,'bdd1'!$B:$B,$B14,'bdd1'!$C:$C,$C14,'bdd1'!$D:$D,$D14) -> 25 | BO14: =AVERAGEIFS('bdd1'!BP:BP,'bdd1'!$B:$B,$B14,'bdd1'!$C:$C,$C14,'bdd1'!$D:$D,$D14) -> 19 | BP14: 1 | BQ14: biologique | BR14: eleveur engraisseur
A15: 123 | B15: 1 | C15: biologique | D15: intermediaire | E15: =COUNTIFS('bdd1'!B:B,B15,'bdd1'!C:C,C15,'bdd1'!D:D,D15) -> 5 | F15: =AVERAGEIFS('bdd1'!G:G,'bdd1'!$B:$B,$B15,'bdd1'!$C:$C,$C15,'bdd1'!$D:$D,$D15) -> 1.594 | G15: =AVERAGEIFS('bdd1'!H:H,'bdd1'!$B:$B,$B15,'bdd1'!$C:$C,$C15,'bdd1'!$D:$D,$D15) -> 1.594 | H15: =AVERAGEIFS('bdd1'!I:I,'bdd1'!$B:$B,$B15,'bdd1'!$C:$C,$C15,'bdd1'!$D:$D,$D15) -> 54.648 | I15: =AVERAGEIFS('bdd1'!J:J,'bdd1'!$B:$B,$B15,'bdd1'!$C:$C,$C15,'bdd1'!$D:$D,$D15) -> 61.252 | J15: =AVERAGEIFS('bdd1'!K:K,'bdd1'!$B:$B,$B15,'bdd1'!$C:$C,$C15,'bdd1'!$D:$D,$D15) -> 38.51889366 | K15: =AVERAGEIFS('bdd1'!L:L,'bdd1'!$B:$B,$B15,'bdd1'!$C:$C,$C15,'bdd1'!$D:$D,$D15) -> 1.094811636 | L15: =AVERAGEIFS('bdd1'!M:M,'bdd1'!$B:$B,$B15,'bdd1'!$C:$C,$C15,'bdd1'!$D:$D,$D15) -> 37.86871308 | M15: =AVERAGEIFS('bdd1'!N:N,'bdd1'!$B:$B,$B15,'bdd1'!$C:$C,$C15,'bdd1'!$D:$D,$D15) -> 597.08 | N15: =AVERAGEIFS('bdd1'!O:O,'bdd1'!$B:$B,$B15,'bdd1'!$C:$C,$C15,'bdd1'!$D:$D,$D15) -> 597.08 | O15: =AVERAGEIFS('bdd1'!P:P,'bdd1'!$B:$B,$B15,'bdd1'!$C:$C,$C15,'bdd1'!$D:$D,$D15) -> 0 | P15: =AVERAGEIFS('bdd1'!Q:Q,'bdd1'!$B:$B,$B15,'bdd1'!$C:$C,$C15,'bdd1'!$D:$D,$D15) -> 239.6 | Q15: =AVERAGEIFS('bdd1'!R:R,'bdd1'!$B:$B,$B15,'bdd1'!$C:$C,$C15,'bdd1'!$D:$D,$D15) -> 204.96 | R15: =AVERAGEIFS('bdd1'!S:S,'bdd1'!$B:$B,$B15,'bdd1'!$C:$C,$C15,'bdd1'!$D:$D,$D15) -> 99.46 | S15: =AVERAGEIFS('bdd1'!T:T,'bdd1'!$B:$B,$B15,'bdd1'!$C:$C,$C15,'bdd1'!$D:$D,$D15) -> 0 | T15: =AVERAGEIFS('bdd1'!U:U,'bdd1'!$B:$B,$B15,'bdd1'!$C:$C,$C15,'bdd1'!$D:$D,$D15) -> 99.46 | U15: =AVERAGEIFS('bdd1'!V:V,'bdd1'!$B:$B,$B15,'bdd1'!$C:$C,$C15,'bdd1'!$D:$D,$D15) -> 55.1 | V15: =AVERAGEIFS('bdd1'!W:W,'bdd1'!$B:$B,$B15,'bdd1'!$C:$C,$C15,'bdd1'!$D:$D,$D15) -> 50.4 | W15: =AVERAGEIFS('bdd1'!X:X,'bdd1'!$B:$B,$B15,'bdd1'!$C:$C,$C15,'bdd1'!$D:$D,$D15) -> 34.66 | X15: =AVERAGEIFS('bdd1'!Y:Y,'bdd1'!$B:$B,$B15,'bdd1'!$C:$C,$C15,'bdd1'!$D:$D,$D15) -> 204.3440597 | Y15: =AVERAGEIFS('bdd1'!Z:Z,'bdd1'!$B:$B,$B15,'bdd1'!$C:$C,$C15,'bdd1'!$D:$D,$D15) -> 220.7039841 | Z15: =AVERAGEIFS('bdd1'!AA:AA,'bdd1'!$B:$B,$B15,'bdd1'!$C:$C,$C15,'bdd1'!$D:$D,$D15) -> 425.0480438 | AA15: =AVERAGEIFS('bdd1'!AB:AB,'bdd1'!$B:$B,$B15,'bdd1'!$C:$C,$C15,'bdd1'!$D:$D,$D15) -> 290.5506762 | AB15: =AVERAGEIFS('bdd1'!AC:AC,'bdd1'!$B:$B,$B15,'bdd1'!$C:$C,$C15,'bdd1'!$D:$D,$D15) -> 49.18095882 | AC15: =AVERAGEIFS('bdd1'!AD:AD,'bdd1'!$B:$B,$B15,'bdd1'!$C:$C,$C15,'bdd1'!$D:$D,$D15) -> 618.3257868 | AD15: =AVERAGEIFS('bdd1'!AE:AE,'bdd1'!$B:$B,$B15,'bdd1'!$C:$C,$C15,'bdd1'!$D:$D,$D15) -> 357.46 | AE15: =AVERAGEIFS('bdd1'!AF:AF,'bdd1'!$B:$B,$B15,'bdd1'!$C:$C,$C15,'bdd1'!$D:$D,$D15) -> 14693.4 | AF15: =AVERAGEIFS('bdd1'!AG:AG,'bdd1'!$B:$B,$B15,'bdd1'!$C:$C,$C15,'bdd1'!$D:$D,$D15) -> 5635.7 | AG15: =AVERAGEIFS('bdd1'!AH:AH,'bdd1'!$B:$B,$B15,'bdd1'!$C:$C,$C15,'bdd1'!$D:$D,$D15) -> 11953 | AH15: =AVERAGEIFS('bdd1'!AI:AI,'bdd1'!$B:$B,$B15,'bdd1'!$C:$C,$C15,'bdd1'!$D:$D,$D15) -> 32748.56132 | AI15: =AVERAGEIFS('bdd1'!AJ:AJ,'bdd1'!$B:$B,$B15,'bdd1'!$C:$C,$C15,'bdd1'!$D:$D,$D15) -> -18055.16132 | AJ15: =AVERAGEIFS('bdd1'!AK:AK,'bdd1'!$B:$B,$B15,'bdd1'!$C:$C,$C15,'bdd1'!$D:$D,$D15) -> 405.4 | AK15: =AVERAGEIFS('bdd1'!AL:AL,'bdd1'!$B:$B,$B15,'bdd1'!$C:$C,$C15,'bdd1'!$D:$D,$D15) -> 34.33333333 | AL15: =AVERAGEIFS('bdd1'!AM:AM,'bdd1'!$B:$B,$B15,'bdd1'!$C:$C,$C15,'bdd1'!$D:$D,$D15) -> 2.8 | AM15: =AVERAGEIFS('bdd1'!AN:AN,'bdd1'!$B:$B,$B15,'bdd1'!$C:$C,$C15,'bdd1'!$D:$D,$D15) -> 84.287 | AN15: =AVERAGEIFS('bdd1'!AO:AO,'bdd1'!$B:$B,$B15,'bdd1'!$C:$C,$C15,'bdd1'!$D:$D,$D15) -> 100.06 | AO15: =AVERAGEIFS('bdd1'!AP:AP,'bdd1'!$B:$B,$B15,'bdd1'!$C:$C,$C15,'bdd1'!$D:$D,$D15) -> 5.984669271 | AP15: =AVERAGEIFS('bdd1'!AQ:AQ,'bdd1'!$B:$B,$B15,'bdd1'!$C:$C,$C15,'bdd1'!$D:$D,$D15) -> 38.8 | AQ15: =AVERAGEIFS('bdd1'!AR:AR,'bdd1'!$B:$B,$B15,'bdd1'!$C:$C,$C15,'bdd1'!$D:$D,$D15) -> 97.18 | AR15: =AVERAGEIFS('bdd1'!AS:AS,'bdd1'!$B:$B,$B15,'bdd1'!$C:$C,$C15,'bdd1'!$D:$D,$D15) -> 15.54 | AS15: =AVERAGEIFS('bdd1'!AT:AT,'bdd1'!$B:$B,$B15,'bdd1'!$C:$C,$C15,'bdd1'!$D:$D,$D15) -> 1 | AT15: =AVERAGEIFS('bdd1'!AU:AU,'bdd1'!$B:$B,$B15,'bdd1'!$C:$C,$C15,'bdd1'!$D:$D,$D15) -> 6.8 | AU15: =AVERAGEIFS('bdd1'!AV:AV,'bdd1'!$B:$B,$B15,'bdd1'!$C:$C,$C15,'bdd1'!$D:$D,$D15) -> 2.2 | AV15: =AVERAGEIFS('bdd1'!AW:AW,'bdd1'!$B:$B,$B15,'bdd1'!$C:$C,$C15,'bdd1'!$D:$D,$D15) -> 1259.642857 | AW15: =AVERAGEIFS('bdd1'!AX:AX,'bdd1'!$B:$B,$B15,'bdd1'!$C:$C,$C15,'bdd1'!$D:$D,$D15) ->  | AX15: =AVERAGEIFS('bdd1'!AY:AY,'bdd1'!$B:$B,$B15,'bdd1'!$C:$C,$C15,'bdd1'!$D:$D,$D15) ->  | AY15: =AVERAGEIFS('bdd1'!AZ:AZ,'bdd1'!$B:$B,$B15,'bdd1'!$C:$C,$C15,'bdd1'!$D:$D,$D15) -> 946.5138889 | AZ15: =AVERAGEIFS('bdd1'!BA:BA,'bdd1'!$B:$B,$B15,'bdd1'!$C:$C,$C15,'bdd1'!$D:$D,$D15) -> 1109.453416 | BA15: =AVERAGEIFS('bdd1'!BB:BB,'bdd1'!$B:$B,$B15,'bdd1'!$C:$C,$C15,'bdd1'!$D:$D,$D15) -> 991 | BB15: =AVERAGEIFS('bdd1'!BC:BC,'bdd1'!$B:$B,$B15,'bdd1'!$C:$C,$C15,'bdd1'!$D:$D,$D15) -> 2020.875 | BC15: =AVERAGEIFS('bdd1'!BD:BD,'bdd1'!$B:$B,$B15,'bdd1'!$C:$C,$C15,'bdd1'!$D:$D,$D15) -> 2157.5 | BD15: =AVERAGEIFS('bdd1'!BE:BE,'bdd1'!$B:$B,$B15,'bdd1'!$C:$C,$C15,'bdd1'!$D:$D,$D15) -> 1251.346032 | BE15: =AVERAGEIFS('bdd1'!BF:BF,'bdd1'!$B:$B,$B15,'bdd1'!$C:$C,$C15,'bdd1'!$D:$D,$D15) -> 2205.4 | BF15: =AVERAGEIFS('bdd1'!BG:BG,'bdd1'!$B:$B,$B15,'bdd1'!$C:$C,$C15,'bdd1'!$D:$D,$D15) -> 960.6 | BG15: =AVERAGEIFS('bdd1'!BH:BH,'bdd1'!$B:$B,$B15,'bdd1'!$C:$C,$C15,'bdd1'!$D:$D,$D15) -> 576.75 | BH15: =AVERAGEIFS('bdd1'!BI:BI,'bdd1'!$B:$B,$B15,'bdd1'!$C:$C,$C15,'bdd1'!$D:$D,$D15) -> 3.320963094 | BI15: =AVERAGEIFS('bdd1'!BJ:BJ,'bdd1'!$B:$B,$B15,'bdd1'!$C:$C,$C15,'bdd1'!$D:$D,$D15) -> 88.34 | BJ15: =AVERAGEIFS('bdd1'!BK:BK,'bdd1'!$B:$B,$B15,'bdd1'!$C:$C,$C15,'bdd1'!$D:$D,$D15) -> 28918.3645 | BK15: =AVERAGEIFS('bdd1'!BL:BL,'bdd1'!$B:$B,$B15,'bdd1'!$C:$C,$C15,'bdd1'!$D:$D,$D15) -> 237.522554 | BL15: =AVERAGEIFS('bdd1'!BM:BM,'bdd1'!$B:$B,$B15,'bdd1'!$C:$C,$C15,'bdd1'!$D:$D,$D15) -> 212.4486429 | BM15: =AVERAGEIFS('bdd1'!BN:BN,'bdd1'!$B:$B,$B15,'bdd1'!$C:$C,$C15,'bdd1'!$D:$D,$D15) -> 268.7376732 | BN15: =AVERAGEIFS('bdd1'!BO:BO,'bdd1'!$B:$B,$B15,'bdd1'!$C:$C,$C15,'bdd1'!$D:$D,$D15) -> 11.6 | BO15: =AVERAGEIFS('bdd1'!BP:BP,'bdd1'!$B:$B,$B15,'bdd1'!$C:$C,$C15,'bdd1'!$D:$D,$D15) -> 9.2 | BP15: 1 | BQ15: biologique | BR15: intermediaire
A16: 211 | B16: 2 | C16: conventionnel | D16: eleveur naisseur | E16: =COUNTIFS('bdd1'!B:B,B16,'bdd1'!C:C,C16,'bdd1'!D:D,D16) -> 98 | F16: =AVERAGEIFS('bdd1'!G:G,'bdd1'!$B:$B,$B16,'bdd1'!$C:$C,$C16,'bdd1'!$D:$D,$D16) -> 1.636122449 | G16: =AVERAGEIFS('bdd1'!H:H,'bdd1'!$B:$B,$B16,'bdd1'!$C:$C,$C16,'bdd1'!$D:$D,$D16) -> 1.612040816 | H16: =AVERAGEIFS('bdd1'!I:I,'bdd1'!$B:$B,$B16,'bdd1'!$C:$C,$C16,'bdd1'!$D:$D,$D16) -> 82.7222449 | I16: =AVERAGEIFS('bdd1'!J:J,'bdd1'!$B:$B,$B16,'bdd1'!$C:$C,$C16,'bdd1'!$D:$D,$D16) -> 139.4934694 | J16: =AVERAGEIFS('bdd1'!K:K,'bdd1'!$B:$B,$B16,'bdd1'!$C:$C,$C16,'bdd1'!$D:$D,$D16) -> 84.77063488 | K16: =AVERAGEIFS('bdd1'!L:L,'bdd1'!$B:$B,$B16,'bdd1'!$C:$C,$C16,'bdd1'!$D:$D,$D16) -> 1.6664665 | L16: =AVERAGEIFS('bdd1'!M:M,'bdd1'!$B:$B,$B16,'bdd1'!$C:$C,$C16,'bdd1'!$D:$D,$D16) -> 51.63165372 | M16: =AVERAGEIFS('bdd1'!N:N,'bdd1'!$B:$B,$B16,'bdd1'!$C:$C,$C16,'bdd1'!$D:$D,$D16) -> 964.1918367 | N16: =AVERAGEIFS('bdd1'!O:O,'bdd1'!$B:$B,$B16,'bdd1'!$C:$C,$C16,'bdd1'!$D:$D,$D16) -> 943.772449 | O16: =AVERAGEIFS('bdd1'!P:P,'bdd1'!$B:$B,$B16,'bdd1'!$C:$C,$C16,'bdd1'!$D:$D,$D16) -> 20.41938776 | P16: =AVERAGEIFS('bdd1'!Q:Q,'bdd1'!$B:$B,$B16,'bdd1'!$C:$C,$C16,'bdd1'!$D:$D,$D16) -> 527.7612245 | Q16: =AVERAGEIFS('bdd1'!R:R,'bdd1'!$B:$B,$B16,'bdd1'!$C:$C,$C16,'bdd1'!$D:$D,$D16) -> 462.3602041 | R16: =AVERAGEIFS('bdd1'!S:S,'bdd1'!$B:$B,$B16,'bdd1'!$C:$C,$C16,'bdd1'!$D:$D,$D16) -> 300.5357143 | S16: =AVERAGEIFS('bdd1'!T:T,'bdd1'!$B:$B,$B16,'bdd1'!$C:$C,$C16,'bdd1'!$D:$D,$D16) -> 40.75918367 | T16: =AVERAGEIFS('bdd1'!U:U,'bdd1'!$B:$B,$B16,'bdd1'!$C:$C,$C16,'bdd1'!$D:$D,$D16) -> 259.7765306 | U16: =AVERAGEIFS('bdd1'!V:V,'bdd1'!$B:$B,$B16,'bdd1'!$C:$C,$C16,'bdd1'!$D:$D,$D16) -> 126.855102 | V16: =AVERAGEIFS('bdd1'!W:W,'bdd1'!$B:$B,$B16,'bdd1'!$C:$C,$C16,'bdd1'!$D:$D,$D16) -> 34.96938776 | W16: =AVERAGEIFS('bdd1'!X:X,'bdd1'!$B:$B,$B16,'bdd1'!$C:$C,$C16,'bdd1'!$D:$D,$D16) -> 65.40408163 | X16: =AVERAGEIFS('bdd1'!Y:Y,'bdd1'!$B:$B,$B16,'bdd1'!$C:$C,$C16,'bdd1'!$D:$D,$D16) -> 360.5002021 | Y16: =AVERAGEIFS('bdd1'!Z:Z,'bdd1'!$B:$B,$B16,'bdd1'!$C:$C,$C16,'bdd1'!$D:$D,$D16) -> 135.3007829 | Z16: =AVERAGEIFS('bdd1'!AA:AA,'bdd1'!$B:$B,$B16,'bdd1'!$C:$C,$C16,'bdd1'!$D:$D,$D16) -> 495.8009849 | AA16: =AVERAGEIFS('bdd1'!AB:AB,'bdd1'!$B:$B,$B16,'bdd1'!$C:$C,$C16,'bdd1'!$D:$D,$D16) -> 238.6278661 | AB16: =AVERAGEIFS('bdd1'!AC:AC,'bdd1'!$B:$B,$B16,'bdd1'!$C:$C,$C16,'bdd1'!$D:$D,$D16) -> 131.1719773 | AC16: =AVERAGEIFS('bdd1'!AD:AD,'bdd1'!$B:$B,$B16,'bdd1'!$C:$C,$C16,'bdd1'!$D:$D,$D16) -> 209.4019549 | AD16: =AVERAGEIFS('bdd1'!AE:AE,'bdd1'!$B:$B,$B16,'bdd1'!$C:$C,$C16,'bdd1'!$D:$D,$D16) -> 436.4265306 | AE16: =AVERAGEIFS('bdd1'!AF:AF,'bdd1'!$B:$B,$B16,'bdd1'!$C:$C,$C16,'bdd1'!$D:$D,$D16) -> 28213.08163 | AF16: =AVERAGEIFS('bdd1'!AG:AG,'bdd1'!$B:$B,$B16,'bdd1'!$C:$C,$C16,'bdd1'!$D:$D,$D16) -> 13784.42551 | AG16: =AVERAGEIFS('bdd1'!AH:AH,'bdd1'!$B:$B,$B16,'bdd1'!$C:$C,$C16,'bdd1'!$D:$D,$D16) -> 33251.80612 | AH16: =AVERAGEIFS('bdd1'!AI:AI,'bdd1'!$B:$B,$B16,'bdd1'!$C:$C,$C16,'bdd1'!$D:$D,$D16) -> 53981.4117 | AI16: =AVERAGEIFS('bdd1'!AJ:AJ,'bdd1'!$B:$B,$B16,'bdd1'!$C:$C,$C16,'bdd1'!$D:$D,$D16) -> -25768.33007 | AJ16: =AVERAGEIFS('bdd1'!AK:AK,'bdd1'!$B:$B,$B16,'bdd1'!$C:$C,$C16,'bdd1'!$D:$D,$D16) -> 434.3265306 | AK16: =AVERAGEIFS('bdd1'!AL:AL,'bdd1'!$B:$B,$B16,'bdd1'!$C:$C,$C16,'bdd1'!$D:$D,$D16) -> 34.31632653 | AL16: =AVERAGEIFS('bdd1'!AM:AM,'bdd1'!$B:$B,$B16,'bdd1'!$C:$C,$C16,'bdd1'!$D:$D,$D16) -> 5.428571429 | AM16: =AVERAGEIFS('bdd1'!AN:AN,'bdd1'!$B:$B,$B16,'bdd1'!$C:$C,$C16,'bdd1'!$D:$D,$D16) -> 104.2779184 | AN16: =AVERAGEIFS('bdd1'!AO:AO,'bdd1'!$B:$B,$B16,'bdd1'!$C:$C,$C16,'bdd1'!$D:$D,$D16) -> 98.53216327 | AO16: =AVERAGEIFS('bdd1'!AP:AP,'bdd1'!$B:$B,$B16,'bdd1'!$C:$C,$C16,'bdd1'!$D:$D,$D16) -> 5.711746503 | AP16: =AVERAGEIFS('bdd1'!AQ:AQ,'bdd1'!$B:$B,$B16,'bdd1'!$C:$C,$C16,'bdd1'!$D:$D,$D16) -> 84.60612245 | AQ16: =AVERAGEIFS('bdd1'!AR:AR,'bdd1'!$B:$B,$B16,'bdd1'!$C:$C,$C16,'bdd1'!$D:$D,$D16) -> 223.0683673 | AR16: =AVERAGEIFS('bdd1'!AS:AS,'bdd1'!$B:$B,$B16,'bdd1'!$C:$C,$C16,'bdd1'!$D:$D,$D16) -> 25.17959184 | AS16: =AVERAGEIFS('bdd1'!AT:AT,'bdd1'!$B:$B,$B16,'bdd1'!$C:$C,$C16,'bdd1'!$D:$D,$D16) -> 36.53061224 | AT16: =AVERAGEIFS('bdd1'!AU:AU,'bdd1'!$B:$B,$B16,'bdd1'!$C:$C,$C16,'bdd1'!$D:$D,$D16) -> 3.673469388 | AU16: =AVERAGEIFS('bdd1'!AV:AV,'bdd1'!$B:$B,$B16,'bdd1'!$C:$C,$C16,'bdd1'!$D:$D,$D16) -> 0.5612244898 | AV16: =AVERAGEIFS('bdd1'!AW:AW,'bdd1'!$B:$B,$B16,'bdd1'!$C:$C,$C16,'bdd1'!$D:$D,$D16) -> 2154.49954 | AW16: =AVERAGEIFS('bdd1'!AX:AX,'bdd1'!$B:$B,$B16,'bdd1'!$C:$C,$C16,'bdd1'!$D:$D,$D16) -> 750.5876735 | AX16: =AVERAGEIFS('bdd1'!AY:AY,'bdd1'!$B:$B,$B16,'bdd1'!$C:$C,$C16,'bdd1'!$D:$D,$D16) -> 1173.65548 | AY16: =AVERAGEIFS('bdd1'!AZ:AZ,'bdd1'!$B:$B,$B16,'bdd1'!$C:$C,$C16,'bdd1'!$D:$D,$D16) -> 1008.725926 | AZ16: =AVERAGEIFS('bdd1'!BA:BA,'bdd1'!$B:$B,$B16,'bdd1'!$C:$C,$C16,'bdd1'!$D:$D,$D16) -> 2164.403781 | BA16: =AVERAGEIFS('bdd1'!BB:BB,'bdd1'!$B:$B,$B16,'bdd1'!$C:$C,$C16,'bdd1'!$D:$D,$D16) -> 1234.872564 | BB16: =AVERAGEIFS('bdd1'!BC:BC,'bdd1'!$B:$B,$B16,'bdd1'!$C:$C,$C16,'bdd1'!$D:$D,$D16) -> 3043.028889 | BC16: =AVERAGEIFS('bdd1'!BD:BD,'bdd1'!$B:$B,$B16,'bdd1'!$C:$C,$C16,'bdd1'!$D:$D,$D16) -> 1784.698315 | BD16: =AVERAGEIFS('bdd1'!BE:BE,'bdd1'!$B:$B,$B16,'bdd1'!$C:$C,$C16,'bdd1'!$D:$D,$D16) -> 1323.589547 | BE16: =AVERAGEIFS('bdd1'!BF:BF,'bdd1'!$B:$B,$B16,'bdd1'!$C:$C,$C16,'bdd1'!$D:$D,$D16) -> 2595.52963 | BF16: =AVERAGEIFS('bdd1'!BG:BG,'bdd1'!$B:$B,$B16,'bdd1'!$C:$C,$C16,'bdd1'!$D:$D,$D16) -> 379.9285714 | BG16: =AVERAGEIFS('bdd1'!BH:BH,'bdd1'!$B:$B,$B16,'bdd1'!$C:$C,$C16,'bdd1'!$D:$D,$D16) -> 643.9718954 | BH16: =AVERAGEIFS('bdd1'!BI:BI,'bdd1'!$B:$B,$B16,'bdd1'!$C:$C,$C16,'bdd1'!$D:$D,$D16) -> 3.661277542 | BI16: =AVERAGEIFS('bdd1'!BJ:BJ,'bdd1'!$B:$B,$B16,'bdd1'!$C:$C,$C16,'bdd1'!$D:$D,$D16) -> 84.89285714 | BJ16: =AVERAGEIFS('bdd1'!BK:BK,'bdd1'!$B:$B,$B16,'bdd1'!$C:$C,$C16,'bdd1'!$D:$D,$D16) -> 45663.98868 | BK16: =AVERAGEIFS('bdd1'!BL:BL,'bdd1'!$B:$B,$B16,'bdd1'!$C:$C,$C16,'bdd1'!$D:$D,$D16) -> 79.45981245 | BL16: =AVERAGEIFS('bdd1'!BM:BM,'bdd1'!$B:$B,$B16,'bdd1'!$C:$C,$C16,'bdd1'!$D:$D,$D16) -> 222.8581695 | BM16: =AVERAGEIFS('bdd1'!BN:BN,'bdd1'!$B:$B,$B16,'bdd1'!$C:$C,$C16,'bdd1'!$D:$D,$D16) -> 150.8819381 | BN16: =AVERAGEIFS('bdd1'!BO:BO,'bdd1'!$B:$B,$B16,'bdd1'!$C:$C,$C16,'bdd1'!$D:$D,$D16) -> 45.13265306 | BO16: =AVERAGEIFS('bdd1'!BP:BP,'bdd1'!$B:$B,$B16,'bdd1'!$C:$C,$C16,'bdd1'!$D:$D,$D16) -> 41.2244898 | BP16: 2 | BQ16: conventionnel | BR16: eleveur naisseur
A17: 212 | B17: 2 | C17: conventionnel | D17: eleveur engraisseur | E17: =COUNTIFS('bdd1'!B:B,B17,'bdd1'!C:C,C17,'bdd1'!D:D,D17) -> 29 | F17: =AVERAGEIFS('bdd1'!G:G,'bdd1'!$B:$B,$B17,'bdd1'!$C:$C,$C17,'bdd1'!$D:$D,$D17) -> 1.906551724 | G17: =AVERAGEIFS('bdd1'!H:H,'bdd1'!$B:$B,$B17,'bdd1'!$C:$C,$C17,'bdd1'!$D:$D,$D17) -> 1.83862069 | H17: =AVERAGEIFS('bdd1'!I:I,'bdd1'!$B:$B,$B17,'bdd1'!$C:$C,$C17,'bdd1'!$D:$D,$D17) -> 90.08758621 | I17: =AVERAGEIFS('bdd1'!J:J,'bdd1'!$B:$B,$B17,'bdd1'!$C:$C,$C17,'bdd1'!$D:$D,$D17) -> 194.5386207 | J17: =AVERAGEIFS('bdd1'!K:K,'bdd1'!$B:$B,$B17,'bdd1'!$C:$C,$C17,'bdd1'!$D:$D,$D17) -> 97.86548347 | K17: =AVERAGEIFS('bdd1'!L:L,'bdd1'!$B:$B,$B17,'bdd1'!$C:$C,$C17,'bdd1'!$D:$D,$D17) -> 2.020496763 | L17: =AVERAGEIFS('bdd1'!M:M,'bdd1'!$B:$B,$B17,'bdd1'!$C:$C,$C17,'bdd1'!$D:$D,$D17) -> 50.439323 | M17: =AVERAGEIFS('bdd1'!N:N,'bdd1'!$B:$B,$B17,'bdd1'!$C:$C,$C17,'bdd1'!$D:$D,$D17) -> 1272.348276 | N17: =AVERAGEIFS('bdd1'!O:O,'bdd1'!$B:$B,$B17,'bdd1'!$C:$C,$C17,'bdd1'!$D:$D,$D17) -> 1268.103448 | O17: =AVERAGEIFS('bdd1'!P:P,'bdd1'!$B:$B,$B17,'bdd1'!$C:$C,$C17,'bdd1'!$D:$D,$D17) -> 4.244827586 | P17: =AVERAGEIFS('bdd1'!Q:Q,'bdd1'!$B:$B,$B17,'bdd1'!$C:$C,$C17,'bdd1'!$D:$D,$D17) -> 775.0862069 | Q17: =AVERAGEIFS('bdd1'!R:R,'bdd1'!$B:$B,$B17,'bdd1'!$C:$C,$C17,'bdd1'!$D:$D,$D17) -> 705.0551724 | R17: =AVERAGEIFS('bdd1'!S:S,'bdd1'!$B:$B,$B17,'bdd1'!$C:$C,$C17,'bdd1'!$D:$D,$D17) -> 542.5275862 | S17: =AVERAGEIFS('bdd1'!T:T,'bdd1'!$B:$B,$B17,'bdd1'!$C:$C,$C17,'bdd1'!$D:$D,$D17) -> 39.84137931 | T17: =AVERAGEIFS('bdd1'!U:U,'bdd1'!$B:$B,$B17,'bdd1'!$C:$C,$C17,'bdd1'!$D:$D,$D17) -> 502.6862069 | U17: =AVERAGEIFS('bdd1'!V:V,'bdd1'!$B:$B,$B17,'bdd1'!$C:$C,$C17,'bdd1'!$D:$D,$D17) -> 120.6724138 | V17: =AVERAGEIFS('bdd1'!W:W,'bdd1'!$B:$B,$B17,'bdd1'!$C:$C,$C17,'bdd1'!$D:$D,$D17) -> 41.85517241 | W17: =AVERAGEIFS('bdd1'!X:X,'bdd1'!$B:$B,$B17,'bdd1'!$C:$C,$C17,'bdd1'!$D:$D,$D17) -> 70.02413793 | X17: =AVERAGEIFS('bdd1'!Y:Y,'bdd1'!$B:$B,$B17,'bdd1'!$C:$C,$C17,'bdd1'!$D:$D,$D17) -> 490.2173532 | Y17: =AVERAGEIFS('bdd1'!Z:Z,'bdd1'!$B:$B,$B17,'bdd1'!$C:$C,$C17,'bdd1'!$D:$D,$D17) -> 170.7896762 | Z17: =AVERAGEIFS('bdd1'!AA:AA,'bdd1'!$B:$B,$B17,'bdd1'!$C:$C,$C17,'bdd1'!$D:$D,$D17) -> 661.0070294 | AA17: =AVERAGEIFS('bdd1'!AB:AB,'bdd1'!$B:$B,$B17,'bdd1'!$C:$C,$C17,'bdd1'!$D:$D,$D17) -> 298.2304202 | AB17: =AVERAGEIFS('bdd1'!AC:AC,'bdd1'!$B:$B,$B17,'bdd1'!$C:$C,$C17,'bdd1'!$D:$D,$D17) -> 109.6916875 | AC17: =AVERAGEIFS('bdd1'!AD:AD,'bdd1'!$B:$B,$B17,'bdd1'!$C:$C,$C17,'bdd1'!$D:$D,$D17) -> 171.0918921 | AD17: =AVERAGEIFS('bdd1'!AE:AE,'bdd1'!$B:$B,$B17,'bdd1'!$C:$C,$C17,'bdd1'!$D:$D,$D17) -> 497.2758621 | AE17: =AVERAGEIFS('bdd1'!AF:AF,'bdd1'!$B:$B,$B17,'bdd1'!$C:$C,$C17,'bdd1'!$D:$D,$D17) -> 28136.89655 | AF17: =AVERAGEIFS('bdd1'!AG:AG,'bdd1'!$B:$B,$B17,'bdd1'!$C:$C,$C17,'bdd1'!$D:$D,$D17) -> 9979.768966 | AG17: =AVERAGEIFS('bdd1'!AH:AH,'bdd1'!$B:$B,$B17,'bdd1'!$C:$C,$C17,'bdd1'!$D:$D,$D17) -> 36466.65517 | AH17: =AVERAGEIFS('bdd1'!AI:AI,'bdd1'!$B:$B,$B17,'bdd1'!$C:$C,$C17,'bdd1'!$D:$D,$D17) -> 54999.83023 | AI17: =AVERAGEIFS('bdd1'!AJ:AJ,'bdd1'!$B:$B,$B17,'bdd1'!$C:$C,$C17,'bdd1'!$D:$D,$D17) -> -26862.93368 | AJ17: =AVERAGEIFS('bdd1'!AK:AK,'bdd1'!$B:$B,$B17,'bdd1'!$C:$C,$C17,'bdd1'!$D:$D,$D17) -> 418.5862069 | AK17: =AVERAGEIFS('bdd1'!AL:AL,'bdd1'!$B:$B,$B17,'bdd1'!$C:$C,$C17,'bdd1'!$D:$D,$D17) -> 32.31034483 | AL17: =AVERAGEIFS('bdd1'!AM:AM,'bdd1'!$B:$B,$B17,'bdd1'!$C:$C,$C17,'bdd1'!$D:$D,$D17) -> 5.137931034 | AM17: =AVERAGEIFS('bdd1'!AN:AN,'bdd1'!$B:$B,$B17,'bdd1'!$C:$C,$C17,'bdd1'!$D:$D,$D17) -> 99.8522069 | AN17: =AVERAGEIFS('bdd1'!AO:AO,'bdd1'!$B:$B,$B17,'bdd1'!$C:$C,$C17,'bdd1'!$D:$D,$D17) -> 98.60051724 | AO17: =AVERAGEIFS('bdd1'!AP:AP,'bdd1'!$B:$B,$B17,'bdd1'!$C:$C,$C17,'bdd1'!$D:$D,$D17) -> 5.417319766 | AP17: =AVERAGEIFS('bdd1'!AQ:AQ,'bdd1'!$B:$B,$B17,'bdd1'!$C:$C,$C17,'bdd1'!$D:$D,$D17) -> 105.8862069 | AQ17: =AVERAGEIFS('bdd1'!AR:AR,'bdd1'!$B:$B,$B17,'bdd1'!$C:$C,$C17,'bdd1'!$D:$D,$D17) -> 319.6068966 | AR17: =AVERAGEIFS('bdd1'!AS:AS,'bdd1'!$B:$B,$B17,'bdd1'!$C:$C,$C17,'bdd1'!$D:$D,$D17) -> 47.78965517 | AS17: =AVERAGEIFS('bdd1'!AT:AT,'bdd1'!$B:$B,$B17,'bdd1'!$C:$C,$C17,'bdd1'!$D:$D,$D17) -> 5.068965517 | AT17: =AVERAGEIFS('bdd1'!AU:AU,'bdd1'!$B:$B,$B17,'bdd1'!$C:$C,$C17,'bdd1'!$D:$D,$D17) -> 43.51724138 | AU17: =AVERAGEIFS('bdd1'!AV:AV,'bdd1'!$B:$B,$B17,'bdd1'!$C:$C,$C17,'bdd1'!$D:$D,$D17) -> 39.37931034 | AV17: =AVERAGEIFS('bdd1'!AW:AW,'bdd1'!$B:$B,$B17,'bdd1'!$C:$C,$C17,'bdd1'!$D:$D,$D17) -> 2587.277018 | AW17: =AVERAGEIFS('bdd1'!AX:AX,'bdd1'!$B:$B,$B17,'bdd1'!$C:$C,$C17,'bdd1'!$D:$D,$D17) -> 727.0555556 | AX17: =AVERAGEIFS('bdd1'!AY:AY,'bdd1'!$B:$B,$B17,'bdd1'!$C:$C,$C17,'bdd1'!$D:$D,$D17) -> 1147.448406 | AY17: =AVERAGEIFS('bdd1'!AZ:AZ,'bdd1'!$B:$B,$B17,'bdd1'!$C:$C,$C17,'bdd1'!$D:$D,$D17) ->  | AZ17: =AVERAGEIFS('bdd1'!BA:BA,'bdd1'!$B:$B,$B17,'bdd1'!$C:$C,$C17,'bdd1'!$D:$D,$D17) -> 2602.275448 | BA17: =AVERAGEIFS('bdd1'!BB:BB,'bdd1'!$B:$B,$B17,'bdd1'!$C:$C,$C17,'bdd1'!$D:$D,$D17) -> 1423.377778 | BB17: =AVERAGEIFS('bdd1'!BC:BC,'bdd1'!$B:$B,$B17,'bdd1'!$C:$C,$C17,'bdd1'!$D:$D,$D17) -> 2822.169015 | BC17: =AVERAGEIFS('bdd1'!BD:BD,'bdd1'!$B:$B,$B17,'bdd1'!$C:$C,$C17,'bdd1'!$D:$D,$D17) -> 2319.842989 | BD17: =AVERAGEIFS('bdd1'!BE:BE,'bdd1'!$B:$B,$B17,'bdd1'!$C:$C,$C17,'bdd1'!$D:$D,$D17) -> 2140.001623 | BE17: =AVERAGEIFS('bdd1'!BF:BF,'bdd1'!$B:$B,$B17,'bdd1'!$C:$C,$C17,'bdd1'!$D:$D,$D17) -> 2735.410381 | BF17: =AVERAGEIFS('bdd1'!BG:BG,'bdd1'!$B:$B,$B17,'bdd1'!$C:$C,$C17,'bdd1'!$D:$D,$D17) -> 28985.65517 | BG17: =AVERAGEIFS('bdd1'!BH:BH,'bdd1'!$B:$B,$B17,'bdd1'!$C:$C,$C17,'bdd1'!$D:$D,$D17) -> 745.4046251 | BH17: =AVERAGEIFS('bdd1'!BI:BI,'bdd1'!$B:$B,$B17,'bdd1'!$C:$C,$C17,'bdd1'!$D:$D,$D17) -> 3.732234067 | BI17: =AVERAGEIFS('bdd1'!BJ:BJ,'bdd1'!$B:$B,$B17,'bdd1'!$C:$C,$C17,'bdd1'!$D:$D,$D17) -> 87.54137931 | BJ17: =AVERAGEIFS('bdd1'!BK:BK,'bdd1'!$B:$B,$B17,'bdd1'!$C:$C,$C17,'bdd1'!$D:$D,$D17) -> 48154.89546 | BK17: =AVERAGEIFS('bdd1'!BL:BL,'bdd1'!$B:$B,$B17,'bdd1'!$C:$C,$C17,'bdd1'!$D:$D,$D17) -> 91.3558849 | BL17: =AVERAGEIFS('bdd1'!BM:BM,'bdd1'!$B:$B,$B17,'bdd1'!$C:$C,$C17,'bdd1'!$D:$D,$D17) -> 249.6752189 | BM17: =AVERAGEIFS('bdd1'!BN:BN,'bdd1'!$B:$B,$B17,'bdd1'!$C:$C,$C17,'bdd1'!$D:$D,$D17) -> 150.5553072 | BN17: =AVERAGEIFS('bdd1'!BO:BO,'bdd1'!$B:$B,$B17,'bdd1'!$C:$C,$C17,'bdd1'!$D:$D,$D17) -> 46.72413793 | BO17: =AVERAGEIFS('bdd1'!BP:BP,'bdd1'!$B:$B,$B17,'bdd1'!$C:$C,$C17,'bdd1'!$D:$D,$D17) -> 42.55172414 | BP17: 2 | BQ17: conventionnel | BR17: eleveur engraisseur
A18: 213 | B18: 2 | C18: conventionnel | D18: intermediaire | E18: =COUNTIFS('bdd1'!B:B,B18,'bdd1'!C:C,C18,'bdd1'!D:D,D18) -> 21 | F18: =AVERAGEIFS('bdd1'!G:G,'bdd1'!$B:$B,$B18,'bdd1'!$C:$C,$C18,'bdd1'!$D:$D,$D18) -> 1.60047619 | G18: =AVERAGEIFS('bdd1'!H:H,'bdd1'!$B:$B,$B18,'bdd1'!$C:$C,$C18,'bdd1'!$D:$D,$D18) -> 1.596190476 | H18: =AVERAGEIFS('bdd1'!I:I,'bdd1'!$B:$B,$B18,'bdd1'!$C:$C,$C18,'bdd1'!$D:$D,$D18) -> 95.48714286 | I18: =AVERAGEIFS('bdd1'!J:J,'bdd1'!$B:$B,$B18,'bdd1'!$C:$C,$C18,'bdd1'!$D:$D,$D18) -> 145.1347619 | J18: =AVERAGEIFS('bdd1'!K:K,'bdd1'!$B:$B,$B18,'bdd1'!$C:$C,$C18,'bdd1'!$D:$D,$D18) -> 91.05462886 | K18: =AVERAGEIFS('bdd1'!L:L,'bdd1'!$B:$B,$B18,'bdd1'!$C:$C,$C18,'bdd1'!$D:$D,$D18) -> 1.610201632 | L18: =AVERAGEIFS('bdd1'!M:M,'bdd1'!$B:$B,$B18,'bdd1'!$C:$C,$C18,'bdd1'!$D:$D,$D18) -> 59.90825572 | M18: =AVERAGEIFS('bdd1'!N:N,'bdd1'!$B:$B,$B18,'bdd1'!$C:$C,$C18,'bdd1'!$D:$D,$D18) -> 810.6095238 | N18: =AVERAGEIFS('bdd1'!O:O,'bdd1'!$B:$B,$B18,'bdd1'!$C:$C,$C18,'bdd1'!$D:$D,$D18) -> 804.147619 | O18: =AVERAGEIFS('bdd1'!P:P,'bdd1'!$B:$B,$B18,'bdd1'!$C:$C,$C18,'bdd1'!$D:$D,$D18) -> 6.461904762 | P18: =AVERAGEIFS('bdd1'!Q:Q,'bdd1'!$B:$B,$B18,'bdd1'!$C:$C,$C18,'bdd1'!$D:$D,$D18) -> 437.2380952 | Q18: =AVERAGEIFS('bdd1'!R:R,'bdd1'!$B:$B,$B18,'bdd1'!$C:$C,$C18,'bdd1'!$D:$D,$D18) -> 381.6857143 | R18: =AVERAGEIFS('bdd1'!S:S,'bdd1'!$B:$B,$B18,'bdd1'!$C:$C,$C18,'bdd1'!$D:$D,$D18) -> 269.4380952 | S18: =AVERAGEIFS('bdd1'!T:T,'bdd1'!$B:$B,$B18,'bdd1'!$C:$C,$C18,'bdd1'!$D:$D,$D18) -> 51.13333333 | T18: =AVERAGEIFS('bdd1'!U:U,'bdd1'!$B:$B,$B18,'bdd1'!$C:$C,$C18,'bdd1'!$D:$D,$D18) -> 218.3047619 | U18: =AVERAGEIFS('bdd1'!V:V,'bdd1'!$B:$B,$B18,'bdd1'!$C:$C,$C18,'bdd1'!$D:$D,$D18) -> 83.13809524 | V18: =AVERAGEIFS('bdd1'!W:W,'bdd1'!$B:$B,$B18,'bdd1'!$C:$C,$C18,'bdd1'!$D:$D,$D18) -> 29.10952381 | W18: =AVERAGEIFS('bdd1'!X:X,'bdd1'!$B:$B,$B18,'bdd1'!$C:$C,$C18,'bdd1'!$D:$D,$D18) -> 55.55714286 | X18: =AVERAGEIFS('bdd1'!Y:Y,'bdd1'!$B:$B,$B18,'bdd1'!$C:$C,$C18,'bdd1'!$D:$D,$D18) -> 303.9701087 | Y18: =AVERAGEIFS('bdd1'!Z:Z,'bdd1'!$B:$B,$B18,'bdd1'!$C:$C,$C18,'bdd1'!$D:$D,$D18) -> 122.2097105 | Z18: =AVERAGEIFS('bdd1'!AA:AA,'bdd1'!$B:$B,$B18,'bdd1'!$C:$C,$C18,'bdd1'!$D:$D,$D18) -> 426.1798192 | AA18: =AVERAGEIFS('bdd1'!AB:AB,'bdd1'!$B:$B,$B18,'bdd1'!$C:$C,$C18,'bdd1'!$D:$D,$D18) -> 193.3319887 | AB18: =AVERAGEIFS('bdd1'!AC:AC,'bdd1'!$B:$B,$B18,'bdd1'!$C:$C,$C18,'bdd1'!$D:$D,$D18) -> 129.6162442 | AC18: =AVERAGEIFS('bdd1'!AD:AD,'bdd1'!$B:$B,$B18,'bdd1'!$C:$C,$C18,'bdd1'!$D:$D,$D18) -> 173.5270843 | AD18: =AVERAGEIFS('bdd1'!AE:AE,'bdd1'!$B:$B,$B18,'bdd1'!$C:$C,$C18,'bdd1'!$D:$D,$D18) -> 373.3857143 | AE18: =AVERAGEIFS('bdd1'!AF:AF,'bdd1'!$B:$B,$B18,'bdd1'!$C:$C,$C18,'bdd1'!$D:$D,$D18) -> 29294.19048 | AF18: =AVERAGEIFS('bdd1'!AG:AG,'bdd1'!$B:$B,$B18,'bdd1'!$C:$C,$C18,'bdd1'!$D:$D,$D18) -> 15895.1381 | AG18: =AVERAGEIFS('bdd1'!AH:AH,'bdd1'!$B:$B,$B18,'bdd1'!$C:$C,$C18,'bdd1'!$D:$D,$D18) -> 34096.57143 | AH18: =AVERAGEIFS('bdd1'!AI:AI,'bdd1'!$B:$B,$B18,'bdd1'!$C:$C,$C18,'bdd1'!$D:$D,$D18) -> 55420.66713 | AI18: =AVERAGEIFS('bdd1'!AJ:AJ,'bdd1'!$B:$B,$B18,'bdd1'!$C:$C,$C18,'bdd1'!$D:$D,$D18) -> -26126.47665 | AJ18: =AVERAGEIFS('bdd1'!AK:AK,'bdd1'!$B:$B,$B18,'bdd1'!$C:$C,$C18,'bdd1'!$D:$D,$D18) -> 457.5238095 | AK18: =AVERAGEIFS('bdd1'!AL:AL,'bdd1'!$B:$B,$B18,'bdd1'!$C:$C,$C18,'bdd1'!$D:$D,$D18) -> 35.66666667 | AL18: =AVERAGEIFS('bdd1'!AM:AM,'bdd1'!$B:$B,$B18,'bdd1'!$C:$C,$C18,'bdd1'!$D:$D,$D18) -> 5.80952381 | AM18: =AVERAGEIFS('bdd1'!AN:AN,'bdd1'!$B:$B,$B18,'bdd1'!$C:$C,$C18,'bdd1'!$D:$D,$D18) -> 90.13585714 | AN18: =AVERAGEIFS('bdd1'!AO:AO,'bdd1'!$B:$B,$B18,'bdd1'!$C:$C,$C18,'bdd1'!$D:$D,$D18) -> 95.63290476 | AO18: =AVERAGEIFS('bdd1'!AP:AP,'bdd1'!$B:$B,$B18,'bdd1'!$C:$C,$C18,'bdd1'!$D:$D,$D18) -> 8.163711286 | AP18: =AVERAGEIFS('bdd1'!AQ:AQ,'bdd1'!$B:$B,$B18,'bdd1'!$C:$C,$C18,'bdd1'!$D:$D,$D18) -> 88.44285714 | AQ18: =AVERAGEIFS('bdd1'!AR:AR,'bdd1'!$B:$B,$B18,'bdd1'!$C:$C,$C18,'bdd1'!$D:$D,$D18) -> 229.4428571 | AR18: =AVERAGEIFS('bdd1'!AS:AS,'bdd1'!$B:$B,$B18,'bdd1'!$C:$C,$C18,'bdd1'!$D:$D,$D18) -> 29.54285714 | AS18: =AVERAGEIFS('bdd1'!AT:AT,'bdd1'!$B:$B,$B18,'bdd1'!$C:$C,$C18,'bdd1'!$D:$D,$D18) -> 17.14285714 | AT18: =AVERAGEIFS('bdd1'!AU:AU,'bdd1'!$B:$B,$B18,'bdd1'!$C:$C,$C18,'bdd1'!$D:$D,$D18) -> 10.85714286 | AU18: =AVERAGEIFS('bdd1'!AV:AV,'bdd1'!$B:$B,$B18,'bdd1'!$C:$C,$C18,'bdd1'!$D:$D,$D18) -> 1.19047619 | AV18: =AVERAGEIFS('bdd1'!AW:AW,'bdd1'!$B:$B,$B18,'bdd1'!$C:$C,$C18,'bdd1'!$D:$D,$D18) -> 2185.346701 | AW18: =AVERAGEIFS('bdd1'!AX:AX,'bdd1'!$B:$B,$B18,'bdd1'!$C:$C,$C18,'bdd1'!$D:$D,$D18) -> 771.7878788 | AX18: =AVERAGEIFS('bdd1'!AY:AY,'bdd1'!$B:$B,$B18,'bdd1'!$C:$C,$C18,'bdd1'!$D:$D,$D18) -> 1301.006076 | AY18: =AVERAGEIFS('bdd1'!AZ:AZ,'bdd1'!$B:$B,$B18,'bdd1'!$C:$C,$C18,'bdd1'!$D:$D,$D18) ->  | AZ18: =AVERAGEIFS('bdd1'!BA:BA,'bdd1'!$B:$B,$B18,'bdd1'!$C:$C,$C18,'bdd1'!$D:$D,$D18) -> 1744.078778 | BA18: =AVERAGEIFS('bdd1'!BB:BB,'bdd1'!$B:$B,$B18,'bdd1'!$C:$C,$C18,'bdd1'!$D:$D,$D18) -> 1224.25 | BB18: =AVERAGEIFS('bdd1'!BC:BC,'bdd1'!$B:$B,$B18,'bdd1'!$C:$C,$C18,'bdd1'!$D:$D,$D18) -> 2175 | BC18: =AVERAGEIFS('bdd1'!BD:BD,'bdd1'!$B:$B,$B18,'bdd1'!$C:$C,$C18,'bdd1'!$D:$D,$D18) -> 1601.028571 | BD18: =AVERAGEIFS('bdd1'!BE:BE,'bdd1'!$B:$B,$B18,'bdd1'!$C:$C,$C18,'bdd1'!$D:$D,$D18) -> 1403.523099 | BE18: =AVERAGEIFS('bdd1'!BF:BF,'bdd1'!$B:$B,$B18,'bdd1'!$C:$C,$C18,'bdd1'!$D:$D,$D18) -> 2680.3 | BF18: =AVERAGEIFS('bdd1'!BG:BG,'bdd1'!$B:$B,$B18,'bdd1'!$C:$C,$C18,'bdd1'!$D:$D,$D18) -> 841.9047619 | BG18: =AVERAGEIFS('bdd1'!BH:BH,'bdd1'!$B:$B,$B18,'bdd1'!$C:$C,$C18,'bdd1'!$D:$D,$D18) -> 704.6 | BH18: =AVERAGEIFS('bdd1'!BI:BI,'bdd1'!$B:$B,$B18,'bdd1'!$C:$C,$C18,'bdd1'!$D:$D,$D18) -> 3.787812669 | BI18: =AVERAGEIFS('bdd1'!BJ:BJ,'bdd1'!$B:$B,$B18,'bdd1'!$C:$C,$C18,'bdd1'!$D:$D,$D18) -> 83.16190476 | BJ18: =AVERAGEIFS('bdd1'!BK:BK,'bdd1'!$B:$B,$B18,'bdd1'!$C:$C,$C18,'bdd1'!$D:$D,$D18) -> 45501.12451 | BK18: =AVERAGEIFS('bdd1'!BL:BL,'bdd1'!$B:$B,$B18,'bdd1'!$C:$C,$C18,'bdd1'!$D:$D,$D18) -> 77.32008842 | BL18: =AVERAGEIFS('bdd1'!BM:BM,'bdd1'!$B:$B,$B18,'bdd1'!$C:$C,$C18,'bdd1'!$D:$D,$D18) -> 190.8726211 | BM18: =AVERAGEIFS('bdd1'!BN:BN,'bdd1'!$B:$B,$B18,'bdd1'!$C:$C,$C18,'bdd1'!$D:$D,$D18) -> 126.0747409 | BN18: =AVERAGEIFS('bdd1'!BO:BO,'bdd1'!$B:$B,$B18,'bdd1'!$C:$C,$C18,'bdd1'!$D:$D,$D18) -> 33.33333333 | BO18: =AVERAGEIFS('bdd1'!BP:BP,'bdd1'!$B:$B,$B18,'bdd1'!$C:$C,$C18,'bdd1'!$D:$D,$D18) -> 34.14285714 | BP18: 2 | BQ18: conventionnel | BR18: intermediaire
A19: 221 | B19: 2 | C19: biologique | D19: eleveur naisseur | E19: =COUNTIFS('bdd1'!B:B,B19,'bdd1'!C:C,C19,'bdd1'!D:D,D19) -> 19 | F19: =AVERAGEIFS('bdd1'!G:G,'bdd1'!$B:$B,$B19,'bdd1'!$C:$C,$C19,'bdd1'!$D:$D,$D19) -> 1.357894737 | G19: =AVERAGEIFS('bdd1'!H:H,'bdd1'!$B:$B,$B19,'bdd1'!$C:$C,$C19,'bdd1'!$D:$D,$D19) -> 1.357894737 | H19: =AVERAGEIFS('bdd1'!I:I,'bdd1'!$B:$B,$B19,'bdd1'!$C:$C,$C19,'bdd1'!$D:$D,$D19) -> 79.25578947 | I19: =AVERAGEIFS('bdd1'!J:J,'bdd1'!$B:$B,$B19,'bdd1'!$C:$C,$C19,'bdd1'!$D:$D,$D19) -> 88.17842105 | J19: =AVERAGEIFS('bdd1'!K:K,'bdd1'!$B:$B,$B19,'bdd1'!$C:$C,$C19,'bdd1'!$D:$D,$D19) -> 65.28056576 | K19: =AVERAGEIFS('bdd1'!L:L,'bdd1'!$B:$B,$B19,'bdd1'!$C:$C,$C19,'bdd1'!$D:$D,$D19) -> 1.100576887 | L19: =AVERAGEIFS('bdd1'!M:M,'bdd1'!$B:$B,$B19,'bdd1'!$C:$C,$C19,'bdd1'!$D:$D,$D19) -> 60.23521842 | M19: =AVERAGEIFS('bdd1'!N:N,'bdd1'!$B:$B,$B19,'bdd1'!$C:$C,$C19,'bdd1'!$D:$D,$D19) -> 608.8789474 | N19: =AVERAGEIFS('bdd1'!O:O,'bdd1'!$B:$B,$B19,'bdd1'!$C:$C,$C19,'bdd1'!$D:$D,$D19) -> 588.8105263 | O19: =AVERAGEIFS('bdd1'!P:P,'bdd1'!$B:$B,$B19,'bdd1'!$C:$C,$C19,'bdd1'!$D:$D,$D19) -> 20.06842105 | P19: =AVERAGEIFS('bdd1'!Q:Q,'bdd1'!$B:$B,$B19,'bdd1'!$C:$C,$C19,'bdd1'!$D:$D,$D19) -> 224.1052632 | Q19: =AVERAGEIFS('bdd1'!R:R,'bdd1'!$B:$B,$B19,'bdd1'!$C:$C,$C19,'bdd1'!$D:$D,$D19) -> 191.8473684 | R19: =AVERAGEIFS('bdd1'!S:S,'bdd1'!$B:$B,$B19,'bdd1'!$C:$C,$C19,'bdd1'!$D:$D,$D19) -> 116.7947368 | S19: =AVERAGEIFS('bdd1'!T:T,'bdd1'!$B:$B,$B19,'bdd1'!$C:$C,$C19,'bdd1'!$D:$D,$D19) -> 26.77368421 | T19: =AVERAGEIFS('bdd1'!U:U,'bdd1'!$B:$B,$B19,'bdd1'!$C:$C,$C19,'bdd1'!$D:$D,$D19) -> 90.02105263 | U19: =AVERAGEIFS('bdd1'!V:V,'bdd1'!$B:$B,$B19,'bdd1'!$C:$C,$C19,'bdd1'!$D:$D,$D19) -> 48.06842105 | V19: =AVERAGEIFS('bdd1'!W:W,'bdd1'!$B:$B,$B19,'bdd1'!$C:$C,$C19,'bdd1'!$D:$D,$D19) -> 26.98421053 | W19: =AVERAGEIFS('bdd1'!X:X,'bdd1'!$B:$B,$B19,'bdd1'!$C:$C,$C19,'bdd1'!$D:$D,$D19) -> 32.24736842 | X19: =AVERAGEIFS('bdd1'!Y:Y,'bdd1'!$B:$B,$B19,'bdd1'!$C:$C,$C19,'bdd1'!$D:$D,$D19) -> 318.7473094 | Y19: =AVERAGEIFS('bdd1'!Z:Z,'bdd1'!$B:$B,$B19,'bdd1'!$C:$C,$C19,'bdd1'!$D:$D,$D19) -> 181.0669539 | Z19: =AVERAGEIFS('bdd1'!AA:AA,'bdd1'!$B:$B,$B19,'bdd1'!$C:$C,$C19,'bdd1'!$D:$D,$D19) -> 499.8142633 | AA19: =AVERAGEIFS('bdd1'!AB:AB,'bdd1'!$B:$B,$B19,'bdd1'!$C:$C,$C19,'bdd1'!$D:$D,$D19) -> 179.83536 | AB19: =AVERAGEIFS('bdd1'!AC:AC,'bdd1'!$B:$B,$B19,'bdd1'!$C:$C,$C19,'bdd1'!$D:$D,$D19) -> 120.993556 | AC19: =AVERAGEIFS('bdd1'!AD:AD,'bdd1'!$B:$B,$B19,'bdd1'!$C:$C,$C19,'bdd1'!$D:$D,$D19) -> 574.7554441 | AD19: =AVERAGEIFS('bdd1'!AE:AE,'bdd1'!$B:$B,$B19,'bdd1'!$C:$C,$C19,'bdd1'!$D:$D,$D19) -> 384.7842105 | AE19: =AVERAGEIFS('bdd1'!AF:AF,'bdd1'!$B:$B,$B19,'bdd1'!$C:$C,$C19,'bdd1'!$D:$D,$D19) -> 34050.47368 | AF19: =AVERAGEIFS('bdd1'!AG:AG,'bdd1'!$B:$B,$B19,'bdd1'!$C:$C,$C19,'bdd1'!$D:$D,$D19) -> 22472.91579 | AG19: =AVERAGEIFS('bdd1'!AH:AH,'bdd1'!$B:$B,$B19,'bdd1'!$C:$C,$C19,'bdd1'!$D:$D,$D19) -> 30409.68421 | AH19: =AVERAGEIFS('bdd1'!AI:AI,'bdd1'!$B:$B,$B19,'bdd1'!$C:$C,$C19,'bdd1'!$D:$D,$D19) -> 51100.25527 | AI19: =AVERAGEIFS('bdd1'!AJ:AJ,'bdd1'!$B:$B,$B19,'bdd1'!$C:$C,$C19,'bdd1'!$D:$D,$D19) -> -17049.78158 | AJ19: =AVERAGEIFS('bdd1'!AK:AK,'bdd1'!$B:$B,$B19,'bdd1'!$C:$C,$C19,'bdd1'!$D:$D,$D19) -> 407.2105263 | AK19: =AVERAGEIFS('bdd1'!AL:AL,'bdd1'!$B:$B,$B19,'bdd1'!$C:$C,$C19,'bdd1'!$D:$D,$D19) -> 36.31578947 | AL19: =AVERAGEIFS('bdd1'!AM:AM,'bdd1'!$B:$B,$B19,'bdd1'!$C:$C,$C19,'bdd1'!$D:$D,$D19) -> 6.263157895 | AM19: =AVERAGEIFS('bdd1'!AN:AN,'bdd1'!$B:$B,$B19,'bdd1'!$C:$C,$C19,'bdd1'!$D:$D,$D19) -> 102.3823158 | AN19: =AVERAGEIFS('bdd1'!AO:AO,'bdd1'!$B:$B,$B19,'bdd1'!$C:$C,$C19,'bdd1'!$D:$D,$D19) -> 97.57410526 | AO19: =AVERAGEIFS('bdd1'!AP:AP,'bdd1'!$B:$B,$B19,'bdd1'!$C:$C,$C19,'bdd1'!$D:$D,$D19) -> 5.706069449 | AP19: =AVERAGEIFS('bdd1'!AQ:AQ,'bdd1'!$B:$B,$B19,'bdd1'!$C:$C,$C19,'bdd1'!$D:$D,$D19) -> 53.63157895 | AQ19: =AVERAGEIFS('bdd1'!AR:AR,'bdd1'!$B:$B,$B19,'bdd1'!$C:$C,$C19,'bdd1'!$D:$D,$D19) -> 138.6210526 | AR19: =AVERAGEIFS('bdd1'!AS:AS,'bdd1'!$B:$B,$B19,'bdd1'!$C:$C,$C19,'bdd1'!$D:$D,$D19) -> 16.11578947 | AS19: =AVERAGEIFS('bdd1'!AT:AT,'bdd1'!$B:$B,$B19,'bdd1'!$C:$C,$C19,'bdd1'!$D:$D,$D19) -> 22.10526316 | AT19: =AVERAGEIFS('bdd1'!AU:AU,'bdd1'!$B:$B,$B19,'bdd1'!$C:$C,$C19,'bdd1'!$D:$D,$D19) -> 2.157894737 | AU19: =AVERAGEIFS('bdd1'!AV:AV,'bdd1'!$B:$B,$B19,'bdd1'!$C:$C,$C19,'bdd1'!$D:$D,$D19) -> 0.05263157895 | AV19: =AVERAGEIFS('bdd1'!AW:AW,'bdd1'!$B:$B,$B19,'bdd1'!$C:$C,$C19,'bdd1'!$D:$D,$D19) -> 1451.403125 | AW19: =AVERAGEIFS('bdd1'!AX:AX,'bdd1'!$B:$B,$B19,'bdd1'!$C:$C,$C19,'bdd1'!$D:$D,$D19) ->  | AX19: =AVERAGEIFS('bdd1'!AY:AY,'bdd1'!$B:$B,$B19,'bdd1'!$C:$C,$C19,'bdd1'!$D:$D,$D19) -> 846.8437491 | AY19: =AVERAGEIFS('bdd1'!AZ:AZ,'bdd1'!$B:$B,$B19,'bdd1'!$C:$C,$C19,'bdd1'!$D:$D,$D19) -> 832.1857113 | AZ19: =AVERAGEIFS('bdd1'!BA:BA,'bdd1'!$B:$B,$B19,'bdd1'!$C:$C,$C19,'bdd1'!$D:$D,$D19) -> 1874.6875 | BA19: =AVERAGEIFS('bdd1'!BB:BB,'bdd1'!$B:$B,$B19,'bdd1'!$C:$C,$C19,'bdd1'!$D:$D,$D19) -> 1018.704167 | BB19: =AVERAGEIFS('bdd1'!BC:BC,'bdd1'!$B:$B,$B19,'bdd1'!$C:$C,$C19,'bdd1'!$D:$D,$D19) ->  | BC19: =AVERAGEIFS('bdd1'!BD:BD,'bdd1'!$B:$B,$B19,'bdd1'!$C:$C,$C19,'bdd1'!$D:$D,$D19) -> 1210.333333 | BD19: =AVERAGEIFS('bdd1'!BE:BE,'bdd1'!$B:$B,$B19,'bdd1'!$C:$C,$C19,'bdd1'!$D:$D,$D19) -> 889.3971936 | BE19: =AVERAGEIFS('bdd1'!BF:BF,'bdd1'!$B:$B,$B19,'bdd1'!$C:$C,$C19,'bdd1'!$D:$D,$D19) ->  | BF19: =AVERAGEIFS('bdd1'!BG:BG,'bdd1'!$B:$B,$B19,'bdd1'!$C:$C,$C19,'bdd1'!$D:$D,$D19) -> 46.84210526 | BG19: =AVERAGEIFS('bdd1'!BH:BH,'bdd1'!$B:$B,$B19,'bdd1'!$C:$C,$C19,'bdd1'!$D:$D,$D19) -> 890 | BH19: =AVERAGEIFS('bdd1'!BI:BI,'bdd1'!$B:$B,$B19,'bdd1'!$C:$C,$C19,'bdd1'!$D:$D,$D19) -> 2.543820225 | BI19: =AVERAGEIFS('bdd1'!BJ:BJ,'bdd1'!$B:$B,$B19,'bdd1'!$C:$C,$C19,'bdd1'!$D:$D,$D19) -> 81.19473684 | BJ19: =AVERAGEIFS('bdd1'!BK:BK,'bdd1'!$B:$B,$B19,'bdd1'!$C:$C,$C19,'bdd1'!$D:$D,$D19) -> 41751.6908 | BK19: =AVERAGEIFS('bdd1'!BL:BL,'bdd1'!$B:$B,$B19,'bdd1'!$C:$C,$C19,'bdd1'!$D:$D,$D19) -> 164.7213636 | BL19: =AVERAGEIFS('bdd1'!BM:BM,'bdd1'!$B:$B,$B19,'bdd1'!$C:$C,$C19,'bdd1'!$D:$D,$D19) -> 290.2011508 | BM19: =AVERAGEIFS('bdd1'!BN:BN,'bdd1'!$B:$B,$B19,'bdd1'!$C:$C,$C19,'bdd1'!$D:$D,$D19) -> 160.5510661 | BN19: =AVERAGEIFS('bdd1'!BO:BO,'bdd1'!$B:$B,$B19,'bdd1'!$C:$C,$C19,'bdd1'!$D:$D,$D19) -> 26.21052632 | BO19: =AVERAGEIFS('bdd1'!BP:BP,'bdd1'!$B:$B,$B19,'bdd1'!$C:$C,$C19,'bdd1'!$D:$D,$D19) -> 32.47368421 | BP19: 2 | BQ19: biologique | BR19: eleveur naisseur
A20: 222 | B20: 2 | C20: biologique | D20: eleveur engraisseur | E20: =COUNTIFS('bdd1'!B:B,B20,'bdd1'!C:C,C20,'bdd1'!D:D,D20) -> 5 | F20: =AVERAGEIFS('bdd1'!G:G,'bdd1'!$B:$B,$B20,'bdd1'!$C:$C,$C20,'bdd1'!$D:$D,$D20) -> 1.944 | G20: =AVERAGEIFS('bdd1'!H:H,'bdd1'!$B:$B,$B20,'bdd1'!$C:$C,$C20,'bdd1'!$D:$D,$D20) -> 1.944 | H20: =AVERAGEIFS('bdd1'!I:I,'bdd1'!$B:$B,$B20,'bdd1'!$C:$C,$C20,'bdd1'!$D:$D,$D20) -> 101.246 | I20: =AVERAGEIFS('bdd1'!J:J,'bdd1'!$B:$B,$B20,'bdd1'!$C:$C,$C20,'bdd1'!$D:$D,$D20) -> 81.708 | J20: =AVERAGEIFS('bdd1'!K:K,'bdd1'!$B:$B,$B20,'bdd1'!$C:$C,$C20,'bdd1'!$D:$D,$D20) -> 41.68132292 | K20: =AVERAGEIFS('bdd1'!L:L,'bdd1'!$B:$B,$B20,'bdd1'!$C:$C,$C20,'bdd1'!$D:$D,$D20) -> 0.7979427461 | L20: =AVERAGEIFS('bdd1'!M:M,'bdd1'!$B:$B,$B20,'bdd1'!$C:$C,$C20,'bdd1'!$D:$D,$D20) -> 53.27354838 | M20: =AVERAGEIFS('bdd1'!N:N,'bdd1'!$B:$B,$B20,'bdd1'!$C:$C,$C20,'bdd1'!$D:$D,$D20) -> 972.7 | N20: =AVERAGEIFS('bdd1'!O:O,'bdd1'!$B:$B,$B20,'bdd1'!$C:$C,$C20,'bdd1'!$D:$D,$D20) -> 969.64 | O20: =AVERAGEIFS('bdd1'!P:P,'bdd1'!$B:$B,$B20,'bdd1'!$C:$C,$C20,'bdd1'!$D:$D,$D20) -> 3.06 | P20: =AVERAGEIFS('bdd1'!Q:Q,'bdd1'!$B:$B,$B20,'bdd1'!$C:$C,$C20,'bdd1'!$D:$D,$D20) -> 299.86 | Q20: =AVERAGEIFS('bdd1'!R:R,'bdd1'!$B:$B,$B20,'bdd1'!$C:$C,$C20,'bdd1'!$D:$D,$D20) -> 285.56 | R20: =AVERAGEIFS('bdd1'!S:S,'bdd1'!$B:$B,$B20,'bdd1'!$C:$C,$C20,'bdd1'!$D:$D,$D20) -> 158.2 | S20: =AVERAGEIFS('bdd1'!T:T,'bdd1'!$B:$B,$B20,'bdd1'!$C:$C,$C20,'bdd1'!$D:$D,$D20) -> 23.36 | T20: =AVERAGEIFS('bdd1'!U:U,'bdd1'!$B:$B,$B20,'bdd1'!$C:$C,$C20,'bdd1'!$D:$D,$D20) -> 134.84 | U20: =AVERAGEIFS('bdd1'!V:V,'bdd1'!$B:$B,$B20,'bdd1'!$C:$C,$C20,'bdd1'!$D:$D,$D20) -> 66.86 | V20: =AVERAGEIFS('bdd1'!W:W,'bdd1'!$B:$B,$B20,'bdd1'!$C:$C,$C20,'bdd1'!$D:$D,$D20) -> 60.5 | W20: =AVERAGEIFS('bdd1'!X:X,'bdd1'!$B:$B,$B20,'bdd1'!$C:$C,$C20,'bdd1'!$D:$D,$D20) -> 14.3 | X20: =AVERAGEIFS('bdd1'!Y:Y,'bdd1'!$B:$B,$B20,'bdd1'!$C:$C,$C20,'bdd1'!$D:$D,$D20) -> 354.2333477 | Y20: =AVERAGEIFS('bdd1'!Z:Z,'bdd1'!$B:$B,$B20,'bdd1'!$C:$C,$C20,'bdd1'!$D:$D,$D20) -> 63.26188977 | Z20: =AVERAGEIFS('bdd1'!AA:AA,'bdd1'!$B:$B,$B20,'bdd1'!$C:$C,$C20,'bdd1'!$D:$D,$D20) -> 417.4952375 | AA20: =AVERAGEIFS('bdd1'!AB:AB,'bdd1'!$B:$B,$B20,'bdd1'!$C:$C,$C20,'bdd1'!$D:$D,$D20) -> 256.2136479 | AB20: =AVERAGEIFS('bdd1'!AC:AC,'bdd1'!$B:$B,$B20,'bdd1'!$C:$C,$C20,'bdd1'!$D:$D,$D20) -> 108.5407054 | AC20: =AVERAGEIFS('bdd1'!AD:AD,'bdd1'!$B:$B,$B20,'bdd1'!$C:$C,$C20,'bdd1'!$D:$D,$D20) -> 828.594495 | AD20: =AVERAGEIFS('bdd1'!AE:AE,'bdd1'!$B:$B,$B20,'bdd1'!$C:$C,$C20,'bdd1'!$D:$D,$D20) -> 672.86 | AE20: =AVERAGEIFS('bdd1'!AF:AF,'bdd1'!$B:$B,$B20,'bdd1'!$C:$C,$C20,'bdd1'!$D:$D,$D20) -> 30697.8 | AF20: =AVERAGEIFS('bdd1'!AG:AG,'bdd1'!$B:$B,$B20,'bdd1'!$C:$C,$C20,'bdd1'!$D:$D,$D20) -> 22564.02 | AG20: =AVERAGEIFS('bdd1'!AH:AH,'bdd1'!$B:$B,$B20,'bdd1'!$C:$C,$C20,'bdd1'!$D:$D,$D20) -> 29403.4 | AH20: =AVERAGEIFS('bdd1'!AI:AI,'bdd1'!$B:$B,$B20,'bdd1'!$C:$C,$C20,'bdd1'!$D:$D,$D20) -> 38232.5452 | AI20: =AVERAGEIFS('bdd1'!AJ:AJ,'bdd1'!$B:$B,$B20,'bdd1'!$C:$C,$C20,'bdd1'!$D:$D,$D20) -> -7534.745201 | AJ20: =AVERAGEIFS('bdd1'!AK:AK,'bdd1'!$B:$B,$B20,'bdd1'!$C:$C,$C20,'bdd1'!$D:$D,$D20) -> 404.2 | AK20: =AVERAGEIFS('bdd1'!AL:AL,'bdd1'!$B:$B,$B20,'bdd1'!$C:$C,$C20,'bdd1'!$D:$D,$D20) -> 35 | AL20: =AVERAGEIFS('bdd1'!AM:AM,'bdd1'!$B:$B,$B20,'bdd1'!$C:$C,$C20,'bdd1'!$D:$D,$D20) -> 7.4 | AM20: =AVERAGEIFS('bdd1'!AN:AN,'bdd1'!$B:$B,$B20,'bdd1'!$C:$C,$C20,'bdd1'!$D:$D,$D20) -> 92.7664 | AN20: =AVERAGEIFS('bdd1'!AO:AO,'bdd1'!$B:$B,$B20,'bdd1'!$C:$C,$C20,'bdd1'!$D:$D,$D20) -> 97.464 | AO20: =AVERAGEIFS('bdd1'!AP:AP,'bdd1'!$B:$B,$B20,'bdd1'!$C:$C,$C20,'bdd1'!$D:$D,$D20) -> 4.406095151 | AP20: =AVERAGEIFS('bdd1'!AQ:AQ,'bdd1'!$B:$B,$B20,'bdd1'!$C:$C,$C20,'bdd1'!$D:$D,$D20) -> 49.42 | AQ20: =AVERAGEIFS('bdd1'!AR:AR,'bdd1'!$B:$B,$B20,'bdd1'!$C:$C,$C20,'bdd1'!$D:$D,$D20) -> 133.04 | AR20: =AVERAGEIFS('bdd1'!AS:AS,'bdd1'!$B:$B,$B20,'bdd1'!$C:$C,$C20,'bdd1'!$D:$D,$D20) -> 21.26 | AS20: =AVERAGEIFS('bdd1'!AT:AT,'bdd1'!$B:$B,$B20,'bdd1'!$C:$C,$C20,'bdd1'!$D:$D,$D20) -> 10.6 | AT20: =AVERAGEIFS('bdd1'!AU:AU,'bdd1'!$B:$B,$B20,'bdd1'!$C:$C,$C20,'bdd1'!$D:$D,$D20) -> 11 | AU20: =AVERAGEIFS('bdd1'!AV:AV,'bdd1'!$B:$B,$B20,'bdd1'!$C:$C,$C20,'bdd1'!$D:$D,$D20) -> 12.2 | AV20: =AVERAGEIFS('bdd1'!AW:AW,'bdd1'!$B:$B,$B20,'bdd1'!$C:$C,$C20,'bdd1'!$D:$D,$D20) -> 1830.515789 | AW20: =AVERAGEIFS('bdd1'!AX:AX,'bdd1'!$B:$B,$B20,'bdd1'!$C:$C,$C20,'bdd1'!$D:$D,$D20) ->  | AX20: =AVERAGEIFS('bdd1'!AY:AY,'bdd1'!$B:$B,$B20,'bdd1'!$C:$C,$C20,'bdd1'!$D:$D,$D20) -> 1566.114892 | AY20: =AVERAGEIFS('bdd1'!AZ:AZ,'bdd1'!$B:$B,$B20,'bdd1'!$C:$C,$C20,'bdd1'!$D:$D,$D20) ->  | AZ20: =AVERAGEIFS('bdd1'!BA:BA,'bdd1'!$B:$B,$B20,'bdd1'!$C:$C,$C20,'bdd1'!$D:$D,$D20) -> 1999.509297 | BA20: =AVERAGEIFS('bdd1'!BB:BB,'bdd1'!$B:$B,$B20,'bdd1'!$C:$C,$C20,'bdd1'!$D:$D,$D20) -> 1207.359477 | BB20: =AVERAGEIFS('bdd1'!BC:BC,'bdd1'!$B:$B,$B20,'bdd1'!$C:$C,$C20,'bdd1'!$D:$D,$D20) ->  | BC20: =AVERAGEIFS('bdd1'!BD:BD,'bdd1'!$B:$B,$B20,'bdd1'!$C:$C,$C20,'bdd1'!$D:$D,$D20) ->  | BD20: =AVERAGEIFS('bdd1'!BE:BE,'bdd1'!$B:$B,$B20,'bdd1'!$C:$C,$C20,'bdd1'!$D:$D,$D20) -> 2086.447368 | BE20: =AVERAGEIFS('bdd1'!BF:BF,'bdd1'!$B:$B,$B20,'bdd1'!$C:$C,$C20,'bdd1'!$D:$D,$D20) -> 1794.885258 | BF20: =AVERAGEIFS('bdd1'!BG:BG,'bdd1'!$B:$B,$B20,'bdd1'!$C:$C,$C20,'bdd1'!$D:$D,$D20) -> 4608.6 | BG20: =AVERAGEIFS('bdd1'!BH:BH,'bdd1'!$B:$B,$B20,'bdd1'!$C:$C,$C20,'bdd1'!$D:$D,$D20) -> 397.2867949 | BH20: =AVERAGEIFS('bdd1'!BI:BI,'bdd1'!$B:$B,$B20,'bdd1'!$C:$C,$C20,'bdd1'!$D:$D,$D20) -> 4.84749078 | BI20: =AVERAGEIFS('bdd1'!BJ:BJ,'bdd1'!$B:$B,$B20,'bdd1'!$C:$C,$C20,'bdd1'!$D:$D,$D20) -> 87.86 | BJ20: =AVERAGEIFS('bdd1'!BK:BK,'bdd1'!$B:$B,$B20,'bdd1'!$C:$C,$C20,'bdd1'!$D:$D,$D20) -> 33486.5663 | BK20: =AVERAGEIFS('bdd1'!BL:BL,'bdd1'!$B:$B,$B20,'bdd1'!$C:$C,$C20,'bdd1'!$D:$D,$D20) -> 77.50946862 | BL20: =AVERAGEIFS('bdd1'!BM:BM,'bdd1'!$B:$B,$B20,'bdd1'!$C:$C,$C20,'bdd1'!$D:$D,$D20) -> 463.6842508 | BM20: =AVERAGEIFS('bdd1'!BN:BN,'bdd1'!$B:$B,$B20,'bdd1'!$C:$C,$C20,'bdd1'!$D:$D,$D20) -> 355.1707897 | BN20: =AVERAGEIFS('bdd1'!BO:BO,'bdd1'!$B:$B,$B20,'bdd1'!$C:$C,$C20,'bdd1'!$D:$D,$D20) -> 29.2 | BO20: =AVERAGEIFS('bdd1'!BP:BP,'bdd1'!$B:$B,$B20,'bdd1'!$C:$C,$C20,'bdd1'!$D:$D,$D20) -> 27.2 | BP20: 2 | BQ20: biologique | BR20: eleveur engraisseur
